Workbook

Sheet Mercado
C1: Empresa: | D1: =[2]DATOS!$B$3 -> ENSA
C2: Período:
D4: jul21/jun22 | E4: 1 | F4: 2 | G4: 3 | H4: 4 | I4: 5 | J4: 6 | K4: 7 | L4: 8 | M4: 9 | N4: 10
C5: Cantidad semanas al año: | D5: =365/7 -> 52.14285714
C9: Energía Inyectada (MWh) | D9: =D$4 -> jul21/jun22 | E9: =E$4 -> 1 | F9: 2 | G9: 3 | H9: 4 | I9: 5 | J9: 6 | K9: 7 | L9: 8 | M9: 9 | N9: 10
C10: AT | D10: =[3]DEMANDA!D7+[3]DEMANDA!D8 -> 4517552.724 | E10: =[3]DEMANDA!E7+[3]DEMANDA!E8 -> 4674158.854 | F10: =[3]DEMANDA!F7+[3]DEMANDA!F8 -> 4841251.506 | G10: =[3]DEMANDA!G7+[3]DEMANDA!G8 -> 5016947.941 | H10: =[3]DEMANDA!H7+[3]DEMANDA!H8 -> 5200609.807
C14: Potencias Máximas (MW) | D14: =D$4 -> jul21/jun22 | E14: =E$4 -> 1 | F14: 2 | G14: 3 | H14: 4 | I14: 5 | J14: 6 | K14: 7 | L14: 8 | M14: 9 | N14: 10
C15: Punta | D15: =[3]DEMANDA!D6 -> 882.3287538 | E15: =[3]DEMANDA!E6 -> 906.5681801 | F15: =[3]DEMANDA!F6 -> 937.9855468 | G15: =[3]DEMANDA!G6 -> 971.2280775 | H15: =[3]DEMANDA!H6 -> 1005.956802
C16: Fuera de Punta | D16: =[4]Datos!$D$16/[4]Datos!$D$15*D15 -> 797.7689073 | E16: =E15*($D$16/$D$15) -> 819.6852968 | F16: =F15*($D$16/$D$15) -> 848.0917135 | G16: 878.1483758 | H16: 909.5487997
C18: Pérdidas de Energía (%). Respecto de la energía ingresada
C19: Totales | D19: =(D10-D226)/D10 -> 0.08861959256 | E19: =(E10-E226)/E10 -> 0.09307184204 | F19: 0.09664357107 | G19: 0.100487346 | H19: 0.1044861838
C20: Pérdida NT BT (%) | D20: =D19-SUM(D21:D23) -> 0.03167159077 | E20: =E19-SUM(E21:E23) -> 0.03612384025 | F20: 0.03969556928 | G20: 0.04353934421 | H20: 0.04753818204
C21: Pérdida T BT (%) | D21: =[4]Balance!$F$8/[4]Balance!$F$15 -> 0.01400884096 | E21: =$D21 -> 0.01400884096 | F21: =$D21 -> 0.01400884096 | G21: 0.01400884096 | H21: 0.01400884096
C22: Pérdida MT (%) | D22: =[4]Balance!$F$11/[4]Balance!$F$15 -> 0.03523835023 | E22: =$D22 -> 0.03523835023 | F22: 0.03523835023 | G22: 0.03523835023 | H22: 0.03523835023
C23: Pérdida AT (%) | D23: =[4]Balance!$F$14/[4]Balance!$F$15 -> 0.007700810604 | E23: 0.007700810604 | F23: 0.007700810604 | G23: 0.007700810604 | H23: 0.007700810604
C30: Tipos de medición | D30: Energia
D31: Pot_Max
D32: Pot_Max_P
D33: Pot_Max_FP
D34: Energia_P
D35: Energia_FP
B37: Nivel tensión | C37: Clientes | D37: =D$4 -> jul21/jun22 | E37: 1 | F37: 2 | G37: 3 | H37: 4 | I37: 5 | J37: 6 | K37: 7 | L37: 8 | M37: 9 | N37: 10 | O37: V. Presente
B38: =IF(C38="","","BT") -> BT | C38: BTS | D38: =SUM([5]Reconstrucción!D109:D114) -> 492517.8333 | E38: =SUM([5]Reconstrucción!E109:E114) -> 515488.3002 | F38: =SUM([5]Reconstrucción!F109:F114) -> 533542.5278 | G38: =SUM([5]Reconstrucción!G109:G114) -> 552228.9663 | H38: =SUM([5]Reconstrucción!H109:H114) -> 571569.714 | O38: =SUMPRODUCT(E38:H38,datos!$B$10:$E$10) -> 1838689.576 | Q38: =Ajustes_2!E351 -> 1838689.576
B39: BT | C39: BTD | D39: =SUM([5]Reconstrucción!D115:D118) -> 5294.438219 | E39: =SUM([5]Reconstrucción!E115:E118) -> 5543.704313 | F39: =SUM([5]Reconstrucción!F115:F118) -> 5737.18563 | G39: =SUM([5]Reconstrucción!G115:G118) -> 5937.438794 | H39: =SUM([5]Reconstrucción!H115:H118) -> 6144.700818 | O39: =SUMPRODUCT(E39:H39,datos!$B$10:$E$10) -> 19770.47849 | Q39: =Ajustes_2!E364 -> 19770.47849
B40: BT | C40: BTH | D40: =SUM([5]Reconstrucción!D119:D119) -> 89.33333333 | E40: =SUM([5]Reconstrucción!E119:E119) -> 90.33333333 | F40: =SUM([5]Reconstrucción!F119:F119) -> 91.33333333 | G40: =SUM([5]Reconstrucción!G119:G119) -> 92.33333333 | H40: =SUM([5]Reconstrucción!H119:H119) -> 93.33333333 | O40: =SUMPRODUCT(E40:H40,datos!$B$10:$E$10) -> 311.6159101 | Q40: =Ajustes_2!E372 -> 311.6159101
B41: BT | C41: A-BTS | O41: =SUMPRODUCT(E41:H41,datos!$B$10:$E$10) -> 0
B42: BT | C42: A-BTD | O42: =SUMPRODUCT(E42:H42,datos!$B$10:$E$10) -> 0
B43: BT | C43: Peaje BT | D43: =SUM([5]Reconstrucción!D127:D128) -> 106.6666667 | E43: =SUM([5]Reconstrucción!E127:E128) -> 106.6666667 | F43: =SUM([5]Reconstrucción!F127:F128) -> 106.6666667 | G43: =SUM([5]Reconstrucción!G127:G128) -> 106.6666667 | H43: =SUM([5]Reconstrucción!H127:H128) -> 106.6666667 | O43: =SUMPRODUCT(E43:H43,datos!$B$10:$E$10) -> 362.3646799 | Q43: =Ajustes_2!E378 -> 362.3646799
B44: BT | C44: Peaje BTH | D44: =[5]Reconstrucción!D134 -> 2 | E44: =[5]Reconstrucción!E134 -> 2 | F44: =[5]Reconstrucción!F134 -> 2 | G44: =[5]Reconstrucción!G134 -> 2 | H44: =[5]Reconstrucción!H134 -> 2 | O44: =SUMPRODUCT(E44:H44,datos!$B$10:$E$10) -> 6.794337748 | Q44: =Ajustes_2!E380 -> 6.794337748
O45: =SUMPRODUCT(E45:H45,datos!$B$10:$E$10) -> 0
O46: =SUMPRODUCT(E46:H46,datos!$B$10:$E$10) -> 0
O47: =SUMPRODUCT(E47:H47,datos!$B$10:$E$10) -> 0
O48: =SUMPRODUCT(E48:H48,datos!$B$10:$E$10) -> 0
O49: =SUMPRODUCT(E49:H49,datos!$B$10:$E$10) -> 0
O50: =SUMPRODUCT(E50:H50,datos!$B$10:$E$10) -> 0
O51: =SUMPRODUCT(E51:H51,datos!$B$10:$E$10) -> 0
O52: =SUMPRODUCT(E52:H52,datos!$B$10:$E$10) -> 0
O53: =SUMPRODUCT(E53:H53,datos!$B$10:$E$10) -> 0
O54: =SUMPRODUCT(E54:H54,datos!$B$10:$E$10) -> 0
O55: =SUMPRODUCT(E55:H55,datos!$B$10:$E$10) -> 0
O56: =SUMPRODUCT(E56:H56,datos!$B$10:$E$10) -> 0
O57: =SUMPRODUCT(E57:H57,datos!$B$10:$E$10) -> 0
B58: BT | C58: AP | O58: =SUMPRODUCT(E58:H58,datos!$B$10:$E$10) -> 0
B59: =IF(C59="","","MT") ->  | O59: =SUMPRODUCT(E59:H59,datos!$B$10:$E$10) -> 0
B60: =IF(C60="","","MT") ->  | O60: =SUMPRODUCT(E60:H60,datos!$B$10:$E$10) -> 0
O61: =SUMPRODUCT(E61:H61,datos!$B$10:$E$10) -> 0
O62: =SUMPRODUCT(E62:H62,datos!$B$10:$E$10) -> 0
O63: =SUMPRODUCT(E63:H63,datos!$B$10:$E$10) -> 0
O64: =SUMPRODUCT(E64:H64,datos!$B$10:$E$10) -> 0
B65: MT | C65: MTD | D65: =[5]Reconstrucción!D121 -> 400.5 | E65: =[5]Reconstrucción!E121 -> 405.5 | F65: =[5]Reconstrucción!F121 -> 410.5 | G65: =[5]Reconstrucción!G121 -> 415.5 | H65: =[5]Reconstrucción!H121 -> 420.5 | O65: =SUMPRODUCT(E65:H65,datos!$B$10:$E$10) -> 1401.243587 | Q65: =Ajustes_2!E368 -> 1401.243587
B66: MT | C66: MTH | D66: =[5]Reconstrucción!D122 -> 28.25 | E66: =[5]Reconstrucción!E122 -> 29.25 | F66: =[5]Reconstrucción!F122 -> 30.25 | G66: =[5]Reconstrucción!G122 -> 31.25 | H66: =[5]Reconstrucción!H122 -> 32.25 | O66: =SUMPRODUCT(E66:H66,datos!$B$10:$E$10) -> 104.1055114 | Q66: =Ajustes_2!E374 -> 104.1055114
B67: MT | C67: A-MT | O67: =SUMPRODUCT(E67:H67,datos!$B$10:$E$10) -> 0
B68: MT | C68: Peaje MT | D68: =SUM([5]Reconstrucción!D129:D130) -> 151.5 | E68: =SUM([5]Reconstrucción!E129:E130) -> 151.5 | F68: =SUM([5]Reconstrucción!F129:F130) -> 151.5 | G68: =SUM([5]Reconstrucción!G129:G130) -> 151.5 | H68: =SUM([5]Reconstrucción!H129:H130) -> 151.5 | O68: =SUMPRODUCT(E68:H68,datos!$B$10:$E$10) -> 514.6710844 | Q68: =Ajustes_2!E382 -> 514.6710844
O69: =SUMPRODUCT(E69:H69,datos!$B$10:$E$10) -> 0
O70: =SUMPRODUCT(E70:H70,datos!$B$10:$E$10) -> 0
O71: =SUMPRODUCT(E71:H71,datos!$B$10:$E$10) -> 0
O72: =SUMPRODUCT(E72:H72,datos!$B$10:$E$10) -> 0
O73: =SUMPRODUCT(E73:H73,datos!$B$10:$E$10) -> 0
B74: MT | C74: Peaje MTH | D74: =[5]Reconstrucción!D131 -> 36.83333333 | E74: =[5]Reconstrucción!E131 -> 36.83333333 | F74: =[5]Reconstrucción!F131 -> 36.83333333 | G74: =[5]Reconstrucción!G131 -> 36.83333333 | H74: =[5]Reconstrucción!H131 -> 36.83333333 | O74: =SUMPRODUCT(E74:H74,datos!$B$10:$E$10) -> 125.1290535 | Q74: =Ajustes_2!E384 -> 125.1290535
O75: =SUMPRODUCT(E75:H75,datos!$B$10:$E$10) -> 0
O76: =SUMPRODUCT(E76:H76,datos!$B$10:$E$10) -> 0
O77: =SUMPRODUCT(E77:H77,datos!$B$10:$E$10) -> 0
O78: =SUMPRODUCT(E78:H78,datos!$B$10:$E$10) -> 0
B79: =IF(C79="","","AT") ->  | O79: =SUMPRODUCT(E79:H79,datos!$B$10:$E$10) -> 0
B80: =IF(C80="","","AT") ->  | O80: =SUMPRODUCT(E80:H80,datos!$B$10:$E$10) -> 0
O81: =SUMPRODUCT(E81:H81,datos!$B$10:$E$10) -> 0
O82: =SUMPRODUCT(E82:H82,datos!$B$10:$E$10) -> 0
O83: =SUMPRODUCT(E83:H83,datos!$B$10:$E$10) -> 0
O84: =SUMPRODUCT(E84:H84,datos!$B$10:$E$10) -> 0
O85: =SUMPRODUCT(E85:H85,datos!$B$10:$E$10) -> 0
O86: =SUMPRODUCT(E86:H86,datos!$B$10:$E$10) -> 0
O87: =SUMPRODUCT(E87:H87,datos!$B$10:$E$10) -> 0
O88: =SUMPRODUCT(E88:H88,datos!$B$10:$E$10) -> 0
B89: AT | C89: ATD | D89: =[5]Reconstrucción!D124 -> 0 | E89: =[5]Reconstrucción!E124 -> 0 | F89: =[5]Reconstrucción!F124 -> 0 | G89: =[5]Reconstrucción!G124 -> 0 | H89: =[5]Reconstrucción!H124 -> 0 | O89: =SUMPRODUCT(E89:H89,datos!$B$10:$E$10) -> 0
B90: AT | C90: ATH | D90: =[5]Reconstrucción!D398 -> 3 | E90: =[5]Reconstrucción!E398 -> 3 | F90: =[5]Reconstrucción!F398 -> 3 | G90: =[5]Reconstrucción!G398 -> 3 | H90: =[5]Reconstrucción!H398 -> 3 | O90: =SUMPRODUCT(E90:H90,datos!$B$10:$E$10) -> 10.19150662 | Q90: =Ajustes_2!E376 -> 10.19150662
B91: AT | C91: Peaje AT | D91: =[5]Reconstrucción!D132+[5]Reconstrucción!D133 -> 1 | E91: =[5]Reconstrucción!E132+[5]Reconstrucción!E133 -> 1 | F91: =[5]Reconstrucción!F132+[5]Reconstrucción!F133 -> 1 | G91: =[5]Reconstrucción!G132+[5]Reconstrucción!G133 -> 1 | H91: =[5]Reconstrucción!H132+[5]Reconstrucción!H133 -> 1 | O91: =SUMPRODUCT(E91:H91,datos!$B$10:$E$10) -> 3.397168874 | Q91: =Ajustes_2!E386 -> 3.397168874
B92: AT | C92: EDEMET | D92: 1 | E92: 1 | F92: 1 | G92: 1 | H92: 1 | O92: =SUMPRODUCT(E92:H92,datos!$B$10:$E$10) -> 3.397168874 | Q92: =Ajustes_2!E390 -> 3.397168874
B93: AT | C93: A-AT | O93: =SUMPRODUCT(E93:H93,datos!$B$10:$E$10) -> 0
B94: AT | C94: Peaje ATH | D94: =[5]Reconstrucción!D136 -> 1 | E94: =[5]Reconstrucción!E136 -> 1 | F94: =[5]Reconstrucción!F136 -> 1 | G94: =[5]Reconstrucción!G136 -> 1 | H94: =[5]Reconstrucción!H136 -> 1 | O94: =SUMPRODUCT(E94:H94,datos!$B$10:$E$10) -> 3.397168874 | Q94: =Ajustes_2!E388 -> 3.397168874
O95: =SUMPRODUCT(E95:H95,datos!$B$10:$E$10) -> 0
O96: =SUMPRODUCT(E96:H96,datos!$B$10:$E$10) -> 0
O97: =SUMPRODUCT(E97:H97,datos!$B$10:$E$10) -> 0
O98: =SUMPRODUCT(E98:H98,datos!$B$10:$E$10) -> 0
B100: Nivel tensión | C100: Conexiones | D100: =D$4 -> jul21/jun22 | E100: 1 | F100: 2 | G100: 3 | H100: 4 | I100: 5 | J100: 6 | K100: 7 | L100: 8 | M100: 9 | N100: 10 | O100: V. Presente
B101: =IF(C101="","","BT") -> BT | C101: BTS | E101: =IF(E38<D38,0,(E38-SUM([5]Reconstrucción!E401:E402)-(D38-SUM([5]Reconstrucción!D401:D402)))) -> 15297.41485 | F101: =IF(F38<E38,0,(F38-SUM([5]Reconstrucción!F401:F402)-(E38-SUM([5]Reconstrucción!E401:E402)))) -> 10227.23271 | G101: =IF(G38<F38,0,(G38-SUM([5]Reconstrucción!G401:G402)-(F38-SUM([5]Reconstrucción!F401:F402)))) -> 15325.25624 | H101: =IF(H38<G38,0,(H38-SUM([5]Reconstrucción!H401:H402)-(G38-SUM([5]Reconstrucción!G401:G402)))) -> 15671.44462 | O101: =SUMPRODUCT(E101:H101,datos!$B$10:$E$10) -> 47797.50654 | P101: =SUMPRODUCT(F101:H101,datos!$C$10:$E$10) -> 33118.73715 | Q101: =Ajustes_2!E422 -> 47797.50654 | R101: =O101-Q101 -> 0
B102: BT | C102: BTD | E102: =IF(E39<D39,0,E39-D39) -> 249.2660937 | F102: =IF(F39<E39,0,F39-E39) -> 193.4813176 | G102: 200.2531637 | H102: 207.2620245 | O102: =SUMPRODUCT(E102:H102,datos!$B$10:$E$10) -> 726.5741374 | P102: =SUMPRODUCT(F102:H102,datos!$C$10:$E$10) -> 487.3886578 | Q102: =Ajustes_2!E424 -> 726.5741374 | R102: =O102-Q102 -> 0
B103: BT | C103: BTH | E103: =IF(E40<D40,0,E40-D40) -> 1 | F103: =IF(F40<E40,0,F40-E40) -> 1 | G103: 1 | H103: 1 | O103: =SUMPRODUCT(E103:H103,datos!$B$10:$E$10) -> 3.397168874 | P103: =SUMPRODUCT(F103:H103,datos!$C$10:$E$10) -> 2.437610051 | Q103: =Ajustes_2!E430 -> 3.397168874 | R103: 0
B104: BT | C104: A-BTS | E104: =IF(E41<D41,0,E41-D41) -> 0 | F104: 0 | G104: 0 | H104: 0 | O104: =SUMPRODUCT(E104:H104,datos!$B$10:$E$10) -> 0 | P104: =SUMPRODUCT(F104:H104,datos!$C$10:$E$10) -> 0 | R104: 0
B105: BT | C105: A-BTD | E105: =IF(E42<D42,0,E42-D42) -> 0 | F105: 0 | G105: 0 | H105: 0 | O105: =SUMPRODUCT(E105:H105,datos!$B$10:$E$10) -> 0 | P105: =SUMPRODUCT(F105:H105,datos!$C$10:$E$10) -> 0 | R105: 0
B106: BT | C106: Peaje BT | E106: =IF(E43<D43,0,E43-D43) -> 0 | F106: 0 | G106: 0 | H106: 0 | O106: =SUMPRODUCT(E106:H106,datos!$B$10:$E$10) -> 0 | P106: =SUMPRODUCT(F106:H106,datos!$C$10:$E$10) -> 0 | Q106: =Ajustes_2!E436 -> 0 | R106: 0
B107: BT | C107: Peaje BTH | E107: =IF(E44<D44,0,E44-D44) -> 0 | F107: =IF(F44<E44,0,F44-E44) -> 0 | G107: =IF(G44<F44,0,G44-F44) -> 0 | H107: =IF(H44<G44,0,H44-G44) -> 0 | O107: =SUMPRODUCT(E107:H107,datos!$B$10:$E$10) -> 0 | P107: =SUMPRODUCT(F107:H107,datos!$C$10:$E$10) -> 0 | Q107: =Ajustes_2!E438 -> 0 | R107: 0
O108: =SUMPRODUCT(E108:H108,datos!$B$10:$E$10) -> 0 | P108: =SUMPRODUCT(F108:H108,datos!$C$10:$E$10) -> 0 | R108: 0
O109: =SUMPRODUCT(E109:H109,datos!$B$10:$E$10) -> 0 | P109: =SUMPRODUCT(F109:H109,datos!$C$10:$E$10) -> 0 | R109: 0
O110: =SUMPRODUCT(E110:H110,datos!$B$10:$E$10) -> 0 | P110: =SUMPRODUCT(F110:H110,datos!$C$10:$E$10) -> 0 | R110: 0
O111: =SUMPRODUCT(E111:H111,datos!$B$10:$E$10) -> 0 | P111: =SUMPRODUCT(F111:H111,datos!$C$10:$E$10) -> 0 | R111: 0
O112: =SUMPRODUCT(E112:H112,datos!$B$10:$E$10) -> 0 | P112: =SUMPRODUCT(F112:H112,datos!$C$10:$E$10) -> 0 | R112: 0
O113: =SUMPRODUCT(E113:H113,datos!$B$10:$E$10) -> 0 | P113: =SUMPRODUCT(F113:H113,datos!$C$10:$E$10) -> 0 | R113: 0
O114: =SUMPRODUCT(E114:H114,datos!$B$10:$E$10) -> 0 | P114: =SUMPRODUCT(F114:H114,datos!$C$10:$E$10) -> 0 | R114: 0
O115: =SUMPRODUCT(E115:H115,datos!$B$10:$E$10) -> 0 | P115: =SUMPRODUCT(F115:H115,datos!$C$10:$E$10) -> 0 | R115: 0
O116: =SUMPRODUCT(E116:H116,datos!$B$10:$E$10) -> 0 | P116: =SUMPRODUCT(F116:H116,datos!$C$10:$E$10) -> 0 | R116: 0
O117: =SUMPRODUCT(E117:H117,datos!$B$10:$E$10) -> 0 | P117: =SUMPRODUCT(F117:H117,datos!$C$10:$E$10) -> 0 | R117: 0
O118: =SUMPRODUCT(E118:H118,datos!$B$10:$E$10) -> 0 | P118: =SUMPRODUCT(F118:H118,datos!$C$10:$E$10) -> 0 | R118: 0
O119: =SUMPRODUCT(E119:H119,datos!$B$10:$E$10) -> 0 | P119: =SUMPRODUCT(F119:H119,datos!$C$10:$E$10) -> 0 | R119: 0
O120: =SUMPRODUCT(E120:H120,datos!$B$10:$E$10) -> 0 | P120: =SUMPRODUCT(F120:H120,datos!$C$10:$E$10) -> 0 | R120: 0
B121: BT | C121: AP | O121: =SUMPRODUCT(E121:H121,datos!$B$10:$E$10) -> 0 | P121: =SUMPRODUCT(F121:H121,datos!$C$10:$E$10) -> 0 | R121: 0
B122: =IF(C122="","","MT") ->  | O122: =SUMPRODUCT(E122:H122,datos!$B$10:$E$10) -> 0 | P122: =SUMPRODUCT(F122:H122,datos!$C$10:$E$10) -> 0 | R122: 0
B123: =IF(C123="","","MT") ->  | O123: =SUMPRODUCT(E123:H123,datos!$B$10:$E$10) -> 0 | P123: =SUMPRODUCT(F123:H123,datos!$C$10:$E$10) -> 0 | R123: 0
O124: =SUMPRODUCT(E124:H124,datos!$B$10:$E$10) -> 0 | P124: =SUMPRODUCT(F124:H124,datos!$C$10:$E$10) -> 0 | R124: 0
O125: =SUMPRODUCT(E125:H125,datos!$B$10:$E$10) -> 0 | P125: =SUMPRODUCT(F125:H125,datos!$C$10:$E$10) -> 0 | R125: 0
O126: =SUMPRODUCT(E126:H126,datos!$B$10:$E$10) -> 0 | P126: =SUMPRODUCT(F126:H126,datos!$C$10:$E$10) -> 0 | R126: 0
O127: =SUMPRODUCT(E127:H127,datos!$B$10:$E$10) -> 0 | P127: =SUMPRODUCT(F127:H127,datos!$C$10:$E$10) -> 0 | R127: 0
B128: MT | C128: MTD | E128: =IF(E65<D65,0,E65-D65) -> 5 | F128: 5 | G128: 5 | H128: 5 | O128: =SUMPRODUCT(E128:H128,datos!$B$10:$E$10) -> 16.98584437 | P128: =SUMPRODUCT(F128:H128,datos!$C$10:$E$10) -> 12.18805025 | Q128: =Ajustes_2!E426 -> 16.98584437 | R128: 0
B129: MT | C129: MTH | E129: =IF(E66<D66,0,E66-D66) -> 1 | F129: 1 | G129: 1 | H129: 1 | O129: =SUMPRODUCT(E129:H129,datos!$B$10:$E$10) -> 3.397168874 | P129: =SUMPRODUCT(F129:H129,datos!$C$10:$E$10) -> 2.437610051 | Q129: =Ajustes_2!E432 -> 3.397168874 | R129: 0
B130: MT | C130: A-MT | E130: =IF(E67<D67,0,E67-D67) -> 0 | F130: 0 | G130: 0 | H130: 0 | O130: =SUMPRODUCT(E130:H130,datos!$B$10:$E$10) -> 0 | P130: =SUMPRODUCT(F130:H130,datos!$C$10:$E$10) -> 0 | R130: 0
B131: MT | C131: Peaje MT | E131: =IF(E68<D68,0,E68-D68) -> 0 | F131: 0 | G131: 0 | H131: 0 | O131: =SUMPRODUCT(E131:H131,datos!$B$10:$E$10) -> 0 | P131: =SUMPRODUCT(F131:H131,datos!$C$10:$E$10) -> 0 | Q131: =Ajustes_2!E442 -> 0 | R131: 0
O132: =SUMPRODUCT(E132:H132,datos!$B$10:$E$10) -> 0 | P132: =SUMPRODUCT(F132:H132,datos!$C$10:$E$10) -> 0 | R132: 0
O133: =SUMPRODUCT(E133:H133,datos!$B$10:$E$10) -> 0 | P133: =SUMPRODUCT(F133:H133,datos!$C$10:$E$10) -> 0 | R133: 0
O134: =SUMPRODUCT(E134:H134,datos!$B$10:$E$10) -> 0 | P134: =SUMPRODUCT(F134:H134,datos!$C$10:$E$10) -> 0 | R134: 0
O135: =SUMPRODUCT(E135:H135,datos!$B$10:$E$10) -> 0 | P135: =SUMPRODUCT(F135:H135,datos!$C$10:$E$10) -> 0 | R135: 0
O136: =SUMPRODUCT(E136:H136,datos!$B$10:$E$10) -> 0 | P136: =SUMPRODUCT(F136:H136,datos!$C$10:$E$10) -> 0 | R136: 0
B137: MT | C137: Peaje MTH | E137: =IF(E74<D74,0,E74-D74) -> 0 | F137: =IF(F74<E74,0,F74-E74) -> 0 | G137: =IF(G74<F74,0,G74-F74) -> 0 | H137: =IF(H74<G74,0,H74-G74) -> 0 | O137: =SUMPRODUCT(E137:H137,datos!$B$10:$E$10) -> 0 | P137: =SUMPRODUCT(F137:H137,datos!$C$10:$E$10) -> 0 | R137: 0
O138: =SUMPRODUCT(E138:H138,datos!$B$10:$E$10) -> 0 | P138: =SUMPRODUCT(F138:H138,datos!$C$10:$E$10) -> 0 | R138: 0
O139: =SUMPRODUCT(E139:H139,datos!$B$10:$E$10) -> 0 | P139: =SUMPRODUCT(F139:H139,datos!$C$10:$E$10) -> 0 | R139: 0
O140: =SUMPRODUCT(E140:H140,datos!$B$10:$E$10) -> 0 | P140: =SUMPRODUCT(F140:H140,datos!$C$10:$E$10) -> 0 | R140: 0
O141: =SUMPRODUCT(E141:H141,datos!$B$10:$E$10) -> 0 | P141: =SUMPRODUCT(F141:H141,datos!$C$10:$E$10) -> 0 | R141: 0
B142: =IF(C142="","","AT") ->  | O142: =SUMPRODUCT(E142:H142,datos!$B$10:$E$10) -> 0 | P142: =SUMPRODUCT(F142:H142,datos!$C$10:$E$10) -> 0 | R142: 0
B143: =IF(C143="","","AT") ->  | O143: =SUMPRODUCT(E143:H143,datos!$B$10:$E$10) -> 0 | P143: =SUMPRODUCT(F143:H143,datos!$C$10:$E$10) -> 0 | R143: 0
O144: =SUMPRODUCT(E144:H144,datos!$B$10:$E$10) -> 0 | P144: =SUMPRODUCT(F144:H144,datos!$C$10:$E$10) -> 0 | R144: 0
O145: =SUMPRODUCT(E145:H145,datos!$B$10:$E$10) -> 0 | P145: =SUMPRODUCT(F145:H145,datos!$C$10:$E$10) -> 0 | R145: 0
O146: =SUMPRODUCT(E146:H146,datos!$B$10:$E$10) -> 0 | P146: =SUMPRODUCT(F146:H146,datos!$C$10:$E$10) -> 0 | R146: 0
O147: =SUMPRODUCT(E147:H147,datos!$B$10:$E$10) -> 0 | P147: =SUMPRODUCT(F147:H147,datos!$C$10:$E$10) -> 0 | R147: 0
O148: =SUMPRODUCT(E148:H148,datos!$B$10:$E$10) -> 0 | P148: =SUMPRODUCT(F148:H148,datos!$C$10:$E$10) -> 0 | R148: 0
O149: =SUMPRODUCT(E149:H149,datos!$B$10:$E$10) -> 0 | P149: =SUMPRODUCT(F149:H149,datos!$C$10:$E$10) -> 0 | R149: 0
O150: =SUMPRODUCT(E150:H150,datos!$B$10:$E$10) -> 0 | P150: =SUMPRODUCT(F150:H150,datos!$C$10:$E$10) -> 0 | R150: 0
O151: =SUMPRODUCT(E151:H151,datos!$B$10:$E$10) -> 0 | P151: =SUMPRODUCT(F151:H151,datos!$C$10:$E$10) -> 0 | R151: 0
B152: AT | C152: ATD | E152: =IF(E89<D89,0,E89-D89) -> 0 | F152: 0 | G152: 0 | H152: 0 | O152: =SUMPRODUCT(E152:H152,datos!$B$10:$E$10) -> 0 | P152: =SUMPRODUCT(F152:H152,datos!$C$10:$E$10) -> 0 | Q152: =Ajustes_2!E428 -> 0 | R152: 0
B153: AT | C153: ATH | E153: =IF(E90<D90,0,E90-D90) -> 0 | F153: 0 | G153: 0 | H153: 0 | O153: =SUMPRODUCT(E153:H153,datos!$B$10:$E$10) -> 0 | P153: =SUMPRODUCT(F153:H153,datos!$C$10:$E$10) -> 0 | Q153: =Ajustes_2!E434 -> 0 | R153: 0
B154: AT | C154: Peaje AT | E154: =IF(E91<D91,0,E91-D91) -> 0 | F154: 0 | G154: 0 | H154: 0 | O154: =SUMPRODUCT(E154:H154,datos!$B$10:$E$10) -> 0 | P154: =SUMPRODUCT(F154:H154,datos!$C$10:$E$10) -> 0 | Q154: =Ajustes_2!E444 -> 0 | R154: 0
B155: AT | C155: EDEMET | E155: =IF(E92<D92,0,E92-D92) -> 0 | F155: 0 | G155: 0 | H155: 0 | O155: =SUMPRODUCT(E155:H155,datos!$B$10:$E$10) -> 0 | P155: =SUMPRODUCT(F155:H155,datos!$C$10:$E$10) -> 0 | Q155: =Ajustes_2!E448 -> 0 | R155: 0
B156: AT | C156: A-AT | E156: 0 | F156: 0 | G156: 0 | H156: 0 | O156: =SUMPRODUCT(E156:H156,datos!$B$10:$E$10) -> 0 | P156: =SUMPRODUCT(F156:H156,datos!$C$10:$E$10) -> 0 | R156: 0
B157: AT | C157: Peaje ATH | E157: =IF(E94<D94,0,E94-D94) -> 0 | F157: =IF(F94<E94,0,F94-E94) -> 0 | G157: =IF(G94<F94,0,G94-F94) -> 0 | H157: =IF(H94<G94,0,H94-G94) -> 0 | O157: =SUMPRODUCT(E157:H157,datos!$B$10:$E$10) -> 0 | P157: =SUMPRODUCT(F157:H157,datos!$C$10:$E$10) -> 0 | Q157: =Ajustes_2!E446 -> 0 | R157: 0
O158: =SUMPRODUCT(E158:H158,datos!$B$10:$E$10) -> 0 | P158: =SUMPRODUCT(F158:H158,datos!$C$10:$E$10) -> 0 | R158: 0
O159: =SUMPRODUCT(E159:H159,datos!$B$10:$E$10) -> 0 | P159: =SUMPRODUCT(F159:H159,datos!$C$10:$E$10) -> 0 | R159: 0
O160: =SUMPRODUCT(E160:H160,datos!$B$10:$E$10) -> 0 | P160: =SUMPRODUCT(F160:H160,datos!$C$10:$E$10) -> 0 | R160: 0
O161: =SUMPRODUCT(E161:H161,datos!$B$10:$E$10) -> 0 | P161: =SUMPRODUCT(F161:H161,datos!$C$10:$E$10) -> 0 | R161: 0
B164: Nivel tensión | C164: Energía Facturada (MWh) | D164: =D4 -> jul21/jun22 | E164: =E$4 -> 1 | F164: 2 | G164: 3 | H164: 4 | I164: 5 | J164: 6 | K164: 7 | L164: 8 | M164: 9 | N164: 10 | O164: V. Presente
A165: =$D$30 -> Energia | B165: =IF(C165="","","BT") -> BT | C165: BTS | D165: =SUM([5]Reconstrucción!D37:D42) -> 1886241.457 | E165: =SUM([5]Reconstrucción!E37:E42) -> 1969214.031 | F165: =SUM([5]Reconstrucción!F37:F42) -> 2052780.97 | G165: =SUM([5]Reconstrucción!G37:G42) -> 2139910.663 | H165: =SUM([5]Reconstrucción!H37:H42) -> 2230327.124 | O165: =SUMPRODUCT(E165:H165,datos!$B$10:$E$10) -> 7096365.335 | Q165: =Ajustes_2!E96 -> 7096365.335 | R165: =O165-Q165 -> 0
A166: =$D$30 -> Energia | B166: BT | C166: BTD | D166: =SUM([5]Reconstrucción!D43:D46) -> 562029.1407 | E166: =SUM([5]Reconstrucción!E43:E46) -> 583386.2481 | F166: =SUM([5]Reconstrucción!F43:F46) -> 605554.9255 | G166: =SUM([5]Reconstrucción!G43:G46) -> 628566.0127 | H166: =SUM([5]Reconstrucción!H43:H46) -> 652451.5212 | O166: =SUMPRODUCT(E166:H166,datos!$B$10:$E$10) -> 2089493.56 | Q166: =Ajustes_2!E211 -> 2089493.56 | R166: =O166-Q166 -> 0
A167: Energia | B167: BT | C167: BTH | D167: =SUM([5]Reconstrucción!D47:D48) -> 6127.27233 | E167: =SUM([5]Reconstrucción!E47:E48) -> 6249.817777 | F167: =SUM([5]Reconstrucción!F47:F48) -> 6374.814132 | G167: =SUM([5]Reconstrucción!G47:G48) -> 6502.310415 | H167: =SUM([5]Reconstrucción!H47:H48) -> 6632.356623 | O167: =SUMPRODUCT(E167:H167,datos!$B$10:$E$10) -> 21831.61081 | Q167: =Ajustes_2!E247 -> 21831.61081 | R167: 0
A168: Energia | B168: BT | C168: A-BTS | O168: =SUMPRODUCT(E168:H168,datos!$B$10:$E$10) -> 0 | R168: 0
A169: Energia | B169: BT | C169: A-BTD | O169: =SUMPRODUCT(E169:H169,datos!$B$10:$E$10) -> 0 | R169: 0
A170: Energia | B170: BT | C170: Peaje BT | D170: =SUM([5]Reconstrucción!D55:D56) -> 92165.40961 | E170: =SUM([5]Reconstrucción!E55:E56) -> 93087.0637 | F170: =SUM([5]Reconstrucción!F55:F56) -> 94017.93434 | G170: =SUM([5]Reconstrucción!G55:G56) -> 94958.11368 | H170: =SUM([5]Reconstrucción!H55:H56) -> 95907.69482 | O170: =SUMPRODUCT(E170:H170,datos!$B$10:$E$10) -> 320671.6615 | Q170: =Ajustes_2!E257 -> 320671.6615 | R170: 0
A171: Energia | B171: BT | C171: Peaje BTH | D171: =SUM([5]Reconstrucción!D64:D65) -> 2473.46468 | E171: =SUM([5]Reconstrucción!E64:E65) -> 2498.199327 | F171: =SUM([5]Reconstrucción!F64:F65) -> 2523.18132 | G171: =SUM([5]Reconstrucción!G64:G65) -> 2548.413134 | H171: =SUM([5]Reconstrucción!H64:H65) -> 2573.897265 | O171: =SUMPRODUCT(E171:H171,datos!$B$10:$E$10) -> 8605.940472 | Q171: =Ajustes_2!E261 -> 8605.940472 | R171: 0
A172: Energia | O172: =SUMPRODUCT(E172:H172,datos!$B$10:$E$10) -> 0 | R172: 0
A173: Energia | O173: =SUMPRODUCT(E173:H173,datos!$B$10:$E$10) -> 0 | R173: 0
A174: Energia | O174: =SUMPRODUCT(E174:H174,datos!$B$10:$E$10) -> 0 | R174: 0
A175: Energia | O175: =SUMPRODUCT(E175:H175,datos!$B$10:$E$10) -> 0 | R175: 0
A176: Energia | O176: =SUMPRODUCT(E176:H176,datos!$B$10:$E$10) -> 0 | R176: 0
A177: Energia | O177: =SUMPRODUCT(E177:H177,datos!$B$10:$E$10) -> 0 | R177: 0
A178: Energia | O178: =SUMPRODUCT(E178:H178,datos!$B$10:$E$10) -> 0 | R178: 0
A179: Energia | O179: =SUMPRODUCT(E179:H179,datos!$B$10:$E$10) -> 0 | R179: 0
A180: Energia | O180: =SUMPRODUCT(E180:H180,datos!$B$10:$E$10) -> 0 | R180: 0
A181: Energia | O181: =SUMPRODUCT(E181:H181,datos!$B$10:$E$10) -> 0 | R181: 0
A182: Energia | O182: =SUMPRODUCT(E182:H182,datos!$B$10:$E$10) -> 0 | R182: 0
A183: Energia | O183: =SUMPRODUCT(E183:H183,datos!$B$10:$E$10) -> 0 | R183: 0
A184: Energia | O184: =SUMPRODUCT(E184:H184,datos!$B$10:$E$10) -> 0 | R184: 0
A185: Energia | B185: BT | C185: AP | D185: =[5]Reconstrucción!D33 -> 83512.78764 | E185: =[5]Reconstrucción!E33 -> 86408.2794 | F185: =[5]Reconstrucción!F33 -> 89497.67196 | G185: =[5]Reconstrucción!G33 -> 92746.1573 | H185: =[5]Reconstrucción!H33 -> 96141.93455 | O185: =SUMPRODUCT(E185:H185,datos!$B$10:$E$10) -> 308657.8197 | R185: 308657.8197
A186: Energia | B186: =IF(C186="","","MT") ->  | O186: =SUMPRODUCT(E186:H186,datos!$B$10:$E$10) -> 0 | R186: 0
A187: Energia | B187: =IF(C187="","","MT") ->  | O187: =SUMPRODUCT(E187:H187,datos!$B$10:$E$10) -> 0 | R187: 0
A188: Energia | O188: =SUMPRODUCT(E188:H188,datos!$B$10:$E$10) -> 0 | R188: 0
A189: Energia | O189: =SUMPRODUCT(E189:H189,datos!$B$10:$E$10) -> 0 | R189: 0
A190: Energia | O190: =SUMPRODUCT(E190:H190,datos!$B$10:$E$10) -> 0 | R190: 0
A191: Energia | O191: =SUMPRODUCT(E191:H191,datos!$B$10:$E$10) -> 0 | R191: 0
A192: Energia | B192: MT | C192: MTD | D192: =[5]Reconstrucción!D49 -> 256154.8027 | E192: =[5]Reconstrucción!E49 -> 261277.8987 | F192: =[5]Reconstrucción!F49 -> 266503.4567 | G192: =[5]Reconstrucción!G49 -> 271833.5258 | H192: =[5]Reconstrucción!H49 -> 277270.1964 | O192: =SUMPRODUCT(E192:H192,datos!$B$10:$E$10) -> 912685.3936 | Q192: =Ajustes_2!E229 -> 912685.3936 | R192: 0
A193: Energia | B193: MT | C193: MTH | D193: =SUM([5]Reconstrucción!D50:D51) -> 45784.87246 | E193: =SUM([5]Reconstrucción!E50:E51) -> 47387.343 | F193: =SUM([5]Reconstrucción!F50:F51) -> 49045.9 | G193: =SUM([5]Reconstrucción!G50:G51) -> 50762.5065 | H193: =SUM([5]Reconstrucción!H50:H51) -> 52539.19423 | O193: =SUMPRODUCT(E193:H193,datos!$B$10:$E$10) -> 169019.9021 | Q193: =Ajustes_2!E251 -> 169019.9021 | R193: 0
A194: Energia | B194: MT | C194: A-MT | O194: =SUMPRODUCT(E194:H194,datos!$B$10:$E$10) -> 0 | R194: 0
A195: Energia | B195: MT | C195: Peaje MT | D195: =SUM([5]Reconstrucción!D57:D58) -> 425468.6614 | E195: =SUM([5]Reconstrucción!E57:E58) -> 429723.348 | F195: =SUM([5]Reconstrucción!F57:F58) -> 434020.5815 | G195: =SUM([5]Reconstrucción!G57:G58) -> 438360.7873 | H195: =SUM([5]Reconstrucción!H57:H58) -> 442744.3952 | O195: =SUMPRODUCT(E195:H195,datos!$B$10:$E$10) -> 1480335.661 | Q195: =Ajustes_2!E263 -> 1480335.661 | R195: 0
A196: Energia | O196: =SUMPRODUCT(E196:H196,datos!$B$10:$E$10) -> 0 | R196: 0
A197: Energia | O197: =SUMPRODUCT(E197:H197,datos!$B$10:$E$10) -> 0 | R197: 0
A198: Energia | O198: =SUMPRODUCT(E198:H198,datos!$B$10:$E$10) -> 0 | R198: 0
A199: Energia | O199: =SUMPRODUCT(E199:H199,datos!$B$10:$E$10) -> 0 | R199: 0
A200: Energia | O200: =SUMPRODUCT(E200:H200,datos!$B$10:$E$10) -> 0 | R200: 0
A201: Energia | B201: MT | C201: Peaje MTH | D201: =[5]Reconstrucción!D59 -> 112830.9002 | E201: =[5]Reconstrucción!E59 -> 113959.2092 | F201: =[5]Reconstrucción!F59 -> 115098.8013 | G201: =[5]Reconstrucción!G59 -> 116249.7893 | H201: =[5]Reconstrucción!H59 -> 117412.2872 | O201: =SUMPRODUCT(E201:H201,datos!$B$10:$E$10) -> 392573.2265 | Q201: =Ajustes_2!E267 -> 392573.2265 | R201: 0
A202: Energia | O202: =SUMPRODUCT(E202:H202,datos!$B$10:$E$10) -> 0 | R202: 0
A203: Energia | O203: =SUMPRODUCT(E203:H203,datos!$B$10:$E$10) -> 0 | R203: 0
A204: Energia | O204: =SUMPRODUCT(E204:H204,datos!$B$10:$E$10) -> 0 | R204: 0
A205: Energia | O205: =SUMPRODUCT(E205:H205,datos!$B$10:$E$10) -> 0 | R205: 0
A206: Energia | B206: =IF(C206="","","AT") ->  | O206: =SUMPRODUCT(E206:H206,datos!$B$10:$E$10) -> 0 | R206: 0
A207: Energia | B207: =IF(C207="","","AT") ->  | O207: =SUMPRODUCT(E207:H207,datos!$B$10:$E$10) -> 0 | R207: 0
A208: Energia | O208: =SUMPRODUCT(E208:H208,datos!$B$10:$E$10) -> 0 | R208: 0
A209: Energia | O209: =SUMPRODUCT(E209:H209,datos!$B$10:$E$10) -> 0 | R209: 0
A210: Energia | O210: =SUMPRODUCT(E210:H210,datos!$B$10:$E$10) -> 0 | R210: 0
A211: Energia | O211: =SUMPRODUCT(E211:H211,datos!$B$10:$E$10) -> 0 | R211: 0
A212: Energia | O212: =SUMPRODUCT(E212:H212,datos!$B$10:$E$10) -> 0 | R212: 0
A213: Energia | O213: =SUMPRODUCT(E213:H213,datos!$B$10:$E$10) -> 0 | R213: 0
A214: Energia | O214: =SUMPRODUCT(E214:H214,datos!$B$10:$E$10) -> 0 | R214: 0
A215: Energia | O215: =SUMPRODUCT(E215:H215,datos!$B$10:$E$10) -> 0 | R215: 0
A216: Energia | B216: AT | C216: ATD | D216: =[5]Reconstrucción!D52 -> 0 | E216: =[5]Reconstrucción!E52 -> 0 | F216: =[5]Reconstrucción!F52 -> 0 | G216: =[5]Reconstrucción!G52 -> 0 | H216: =[5]Reconstrucción!H52 -> 0 | O216: =SUMPRODUCT(E216:H216,datos!$B$10:$E$10) -> 0 | R216: 0
A217: Energia | B217: AT | C217: ATH | D217: =[5]Reconstrucción!D389 -> 203642.7238 | E217: =[5]Reconstrucción!E389 -> 204660.9375 | F217: =[5]Reconstrucción!F389 -> 205684.2422 | G217: =[5]Reconstrucción!G389 -> 206712.6634 | H217: =[5]Reconstrucción!H389 -> 207746.2267 | O217: =SUMPRODUCT(E217:H217,datos!$B$10:$E$10) -> 700132.1162 | Q217: =Ajustes_2!E255 -> 700132.1162 | R217: 0
A218: Energia | B218: AT | C218: Peaje AT | D218: =SUM([5]Reconstrucción!D60:D61) -> 62865.82742 | E218: =SUM([5]Reconstrucción!E60:E61) -> 63494.48569 | F218: =SUM([5]Reconstrucción!F60:F61) -> 64129.43055 | G218: =SUM([5]Reconstrucción!G60:G61) -> 64770.72485 | H218: =SUM([5]Reconstrucción!H60:H61) -> 65418.4321 | O218: =SUMPRODUCT(E218:H218,datos!$B$10:$E$10) -> 218729.4497 | Q218: =Ajustes_2!E269 -> 218729.4497 | R218: 0
... 423 more rows

Sheet Balance
E3: Pérdidas Totales (%) | F3: =(Mercado!D10-Mercado!D226)/Mercado!D10 -> 0.08861959256
E4: Balance de Energía | M4: Balance de energía en horas de punta | U4: Balance de energía en horas fuera de punta
F5: =Mercado!D4 -> jul21/jun22 | G5: =Mercado!E4 -> 1 | H5: =Mercado!F4 -> 2 | I5: =Mercado!G4 -> 3 | J5: =Mercado!H4 -> 4 | K5: V. Presente | N5: =F5 -> jul21/jun22 | O5: =G5 -> 1 | P5: 2 | Q5: 3 | R5: 4 | S5: V. Presente | V5: =N5 -> jul21/jun22 | W5: =O5 -> 1 | X5: =P5 -> 2 | Y5: =Q5 -> 3 | Z5: =R5 -> 4 | AA5: =S5 -> V. Presente
E6: Ventas BT | F6: =SUM(Mercado!D165:D185) -> 2632549.532 | G6: =SUM(Mercado!E165:E185) -> 2740843.639 | H6: =SUM(Mercado!F165:F185) -> 2850749.498 | I6: =SUM(Mercado!G165:G185) -> 2965231.67 | J6: =SUM(Mercado!H165:H185) -> 3084034.528 | K6: =SUMPRODUCT(G6:J6,datos!$B$10:$E$10) -> 9845625.927 | M6: =E6 -> Ventas BT | N6: =SUMPRODUCT(Mercado!$D$553:$D$573,Mercado!D165:D185) -> 732105.9913 | O6: =SUMPRODUCT(Mercado!$D$553:$D$573,Mercado!E165:E185) -> 761506.8376 | P6: =SUMPRODUCT(Mercado!$D$553:$D$573,Mercado!F165:F185) -> 791394.4198 | Q6: =SUMPRODUCT(Mercado!$D$553:$D$573,Mercado!G165:G185) -> 822499.2512 | R6: =SUMPRODUCT(Mercado!$D$553:$D$573,Mercado!H165:H185) -> 854768.0085 | S6: =SUMPRODUCT(O6:R6,datos!$B$10:$E$10) -> 2732252.03 | U6: =M6 -> Ventas BT | V6: =SUMPRODUCT(Mercado!$F$553:$F$573,Mercado!D165:D185) -> 1131740.297 | W6: =SUMPRODUCT(Mercado!$F$553:$F$573,Mercado!E165:E185) -> 1178781.876 | X6: =SUMPRODUCT(Mercado!$F$553:$F$573,Mercado!F165:F185) -> 1226486.802 | Y6: =SUMPRODUCT(Mercado!$F$553:$F$573,Mercado!G165:G185) -> 1276195.039 | Z6: =SUMPRODUCT(Mercado!$F$553:$F$573,Mercado!H165:H185) -> 1327785.145 | AA6: =SUMPRODUCT(W6:Z6,datos!$B$10:$E$10) -> 4236573.516
E7: Pérdidas NT BT | F7: =Mercado!D20*Mercado!D$10 -> 143078.0812 | G7: =Mercado!E20*Mercado!E$10 -> 168848.5677 | H7: =Mercado!F20*Mercado!F$10 -> 192176.2346 | I7: =Mercado!G20*Mercado!G$10 -> 218434.6233 | J7: =Mercado!H20*Mercado!H$10 -> 247227.5357 | K7: =SUMPRODUCT(G7:J7,datos!$B$10:$E$10) -> 692772.1818 | M7: =E7 -> Pérdidas NT BT | N7: =F7/F6*N6 -> 39789.68645 | O7: =G7/G6*O6 -> 46912.32181 | P7: 53349.89965 | Q7: 60589.6382 | R7: 68521.3432 | S7: =SUMPRODUCT(O7:R7,datos!$B$10:$E$10) -> 192233.4844 | U7: =M7 -> Pérdidas NT BT | V7: =F7/F6*V6 -> 61509.66129 | W7: =G7/G6*W6 -> 72618.38239 | X7: 82680.57773 | Y7: 94011.26578 | Z7: 106440.1343 | AA7: =SUMPRODUCT(W7:Z7,datos!$B$10:$E$10) -> 298111.4623
E8: Pérdidas T BT | F8: =Mercado!D21*Mercado!D$10 -> 63285.67765 | G8: =Mercado!E21*Mercado!E$10 -> 65479.54802 | H8: =Mercado!F21*Mercado!F$10 -> 67820.3224 | I8: =Mercado!G21*Mercado!G$10 -> 70281.62582 | J8: =Mercado!H21*Mercado!H$10 -> 72854.51569 | K8: =SUMPRODUCT(G8:J8,datos!$B$10:$E$10) -> 233896.8646 | M8: Pérdidas T BT | N8: =F8/SUM(F6:F7)*SUM(N6:N7) -> 17599.60191 | O8: =G8/SUM(G6:G7)*SUM(O6:O7) -> 18192.61881 | P8: 18827.54859 | Q8: 19494.79536 | R8: 20192.28667 | S8: =SUMPRODUCT(O8:R8,datos!$B$10:$E$10) -> 64908.78572 | U8: Pérdidas T BT | V8: =F8/SUM(F6:F7)*SUM(V6:V7) -> 27206.68718 | W8: =G8/SUM(G6:G7)*SUM(W6:W7) -> 28161.44028 | X8: 29178.54776 | Y8: 30248.24776 | Z8: 31366.42692 | AA8: =SUMPRODUCT(W8:Z8,datos!$B$10:$E$10) -> 100645.6705
E9: Energía Ingresada BT | F9: =SUM(F6:F8) -> 2838913.291 | G9: =SUM(G6:G8) -> 2975171.755 | H9: 3110746.055 | I9: 3253947.92 | J9: 3404116.58 | K9: =SUMPRODUCT(G9:J9,datos!$B$10:$E$10) -> 10772294.97 | M9: Energía Ingresada BT | N9: =SUM(N6:N8) -> 789495.2796 | O9: =SUM(O6:O8) -> 826611.7783 | P9: 863571.868 | Q9: 902583.6847 | R9: 943481.6384 | S9: =SUMPRODUCT(O9:R9,datos!$B$10:$E$10) -> 2989394.3 | U9: Energía Ingresada BT | V9: =SUM(V6:V8) -> 1220456.645 | W9: =SUM(W6:W8) -> 1279561.699 | X9: 1338345.928 | Y9: 1400454.553 | Z9: 1465591.706 | AA9: =SUMPRODUCT(W9:Z9,datos!$B$10:$E$10) -> 4635330.648
E10: Ventas MT | F10: =SUM(Mercado!D186:D205) -> 840239.2367 | G10: =SUM(Mercado!E186:E205) -> 852347.7989 | H10: =SUM(Mercado!F186:F205) -> 864668.7395 | I10: =SUM(Mercado!G186:G205) -> 877206.6089 | J10: =SUM(Mercado!H186:H205) -> 889966.0729 | K10: =SUMPRODUCT(G10:J10,datos!$B$10:$E$10) -> 2954614.183 | M10: Ventas MT | N10: =SUMPRODUCT(Mercado!$D$574:$D$593,Mercado!D186:D205) -> 273832.0291 | O10: =SUMPRODUCT(Mercado!$D$574:$D$593,Mercado!E186:E205) -> 277778.1816 | P10: =SUMPRODUCT(Mercado!$D$574:$D$593,Mercado!F186:F205) -> 281793.5477 | Q10: =SUMPRODUCT(Mercado!$D$574:$D$593,Mercado!G186:G205) -> 285879.6104 | R10: =SUMPRODUCT(Mercado!$D$574:$D$593,Mercado!H186:H205) -> 290037.8903 | S10: =SUMPRODUCT(O10:R10,datos!$B$10:$E$10) -> 962901.9469 | U10: Ventas MT | V10: =SUMPRODUCT(Mercado!$F$574:$F$593,Mercado!D186:D205) -> 340384.6878 | W10: =SUMPRODUCT(Mercado!$F$574:$F$593,Mercado!E186:E205) -> 345289.9207 | X10: =SUMPRODUCT(Mercado!$F$574:$F$593,Mercado!F186:F205) -> 350281.1891 | Y10: =SUMPRODUCT(Mercado!$F$574:$F$593,Mercado!G186:G205) -> 355360.3363 | Z10: =SUMPRODUCT(Mercado!$F$574:$F$593,Mercado!H186:H205) -> 360529.2525 | AA10: =SUMPRODUCT(W10:Z10,datos!$B$10:$E$10) -> 1196927.473
E11: Pérdidas MT | F11: =Mercado!D22*Mercado!D$10 -> 159191.1051 | G11: =Mercado!E22*Mercado!E$10 -> 164709.6467 | H11: =Mercado!F22*Mercado!F$10 -> 170597.7161 | I11: =Mercado!G22*Mercado!G$10 -> 176788.9686 | J11: =Mercado!H22*Mercado!H$10 -> 183260.9098 | K11: =SUMPRODUCT(G11:J11,datos!$B$10:$E$10) -> 588352.7164 | M11: Pérdidas MT | N11: =F11/SUM(F9:F10)*SUM(N9:N10) -> 46008.4892 | O11: =G11/SUM(G9:G10)*SUM(O9:O10) -> 47525.21249 | P11: 49151.27959 | Q11: 50859.19656 | R11: 52643.58638 | S11: =SUMPRODUCT(O11:R11,datos!$B$10:$E$10) -> 169401.2908 | U11: Pérdidas MT | V11: =F11/SUM(F9:F10)*SUM(V9:V10) -> 67535.13338 | W11: =G11/SUM(G9:G10)*SUM(W9:W10) -> 69922.23879 | X11: 72464.37024 | Y11: 75138.4876 | Z11: 77934.36113 | AA11: =SUMPRODUCT(W11:Z11,datos!$B$10:$E$10) -> 249977.4659
E12: Energía Ingresada MT | F12: =SUM(F9:F11) -> 3838343.633 | G12: =SUM(G9:G11) -> 3992229.201 | H12: 4146012.51 | I12: 4307943.497 | J12: 4477343.562 | K12: =SUMPRODUCT(G12:J12,datos!$B$10:$E$10) -> 14315261.87 | M12: Energía Ingresada MT | N12: =SUM(N9:N11) -> 1109335.798 | O12: =SUM(O9:O11) -> 1151915.172 | P12: 1194516.695 | Q12: 1239322.492 | R12: 1286163.115 | S12: =SUMPRODUCT(O12:R12,datos!$B$10:$E$10) -> 4121697.537 | U12: Energía Ingresada MT | V12: =SUM(V9:V11) -> 1628376.467 | W12: =SUM(W9:W11) -> 1694773.859 | X12: 1761091.487 | Y12: 1830953.377 | Z12: 1904055.319 | AA12: =SUMPRODUCT(W12:Z12,datos!$B$10:$E$10) -> 6082235.587
E13: Ventas AT | F13: =SUM(Mercado!D206:D225) -> 644420.2736 | G13: =SUM(Mercado!E206:E225) -> 645934.841 | H13: =SUM(Mercado!F206:F225) -> 657957.4347 | I13: =SUM(Mercado!G206:G225) -> 670369.8779 | J13: =SUM(Mercado!H206:H225) -> 683217.3333 | K13: =SUMPRODUCT(G13:J13,datos!$B$10:$E$10) -> 2252537.691 | M13: Ventas AT | N13: =SUMPRODUCT(Mercado!$D$594:$D$613,Mercado!D206:D225) -> 186562.188 | O13: =SUMPRODUCT(Mercado!$D$594:$D$613,Mercado!E206:E225) -> 187000.6612 | P13: =SUMPRODUCT(Mercado!$D$594:$D$613,Mercado!F206:F225) -> 190481.249 | Q13: =SUMPRODUCT(Mercado!$D$594:$D$613,Mercado!G206:G225) -> 194074.6998 | R13: =SUMPRODUCT(Mercado!$D$594:$D$613,Mercado!H206:H225) -> 197794.0884 | S13: =SUMPRODUCT(O13:R13,datos!$B$10:$E$10) -> 652118.4658 | U13: Ventas AT | V13: =SUMPRODUCT(Mercado!$F$594:$F$613,Mercado!D206:D225) -> 280582.3011 | W13: =SUMPRODUCT(Mercado!$F$594:$F$613,Mercado!E206:E225) -> 281241.7478 | X13: =SUMPRODUCT(Mercado!$F$594:$F$613,Mercado!F206:F225) -> 286476.417 | Y13: =SUMPRODUCT(Mercado!$F$594:$F$613,Mercado!G206:G225) -> 291880.8278 | Z13: =SUMPRODUCT(Mercado!$F$594:$F$613,Mercado!H206:H225) -> 297474.6441 | AA13: =SUMPRODUCT(W13:Z13,datos!$B$10:$E$10) -> 980760.9017
E14: Pérdidas AT | F14: =Mercado!D23*Mercado!D$10 -> 34788.81792 | G14: =Mercado!E23*Mercado!E$10 -> 35994.81207 | H14: =Mercado!F23*Mercado!F$10 -> 37281.56093 | I14: =Mercado!G23*Mercado!G$10 -> 38634.5659 | J14: =Mercado!H23*Mercado!H$10 -> 40048.91115 | K14: =SUMPRODUCT(G14:J14,datos!$B$10:$E$10) -> 128575.6231 | M14: Pérdidas AT | N14: =F14/SUM(F12:F13)*SUM(N12:N13) -> 10056.91132 | O14: =G14/SUM(G12:G13)*SUM(O12:O13) -> 10390.75448 | P14: 10748.37808 | Q14: 11123.98399 | R14: 11516.35867 | S14: =SUMPRODUCT(O14:R14,datos!$B$10:$E$10) -> 37047.54906 | U14: Pérdidas AT | V14: =F14/SUM(F12:F13)*SUM(V12:V13) -> 14814.61446 | W14: =G14/SUM(G12:G13)*SUM(W12:W13) -> 15335.01397 | X14: 15890.30083 | Y14: 16474.41047 | Z14: 17085.13467 | AA14: =SUMPRODUCT(W14:Z14,datos!$B$10:$E$10) -> 54812.90204
E15: Energía Ingresada AT | F15: =SUM(F12:F14) -> 4517552.724 | G15: =SUM(G12:G14) -> 4674158.854 | H15: 4841251.506 | I15: 5016947.941 | J15: 5200609.807 | K15: =SUMPRODUCT(G15:J15,datos!$B$10:$E$10) -> 16696375.19 | M15: Energía Ingresada AT | N15: =SUM(N12:N14) -> 1305954.897 | O15: =SUM(O12:O14) -> 1349306.588 | P15: 1395746.322 | Q15: 1444521.176 | R15: 1495473.562 | S15: =SUMPRODUCT(O15:R15,datos!$B$10:$E$10) -> 4810863.552 | U15: Energía Ingresada AT | V15: =SUM(V12:V14) -> 1923773.382 | W15: =SUM(W12:W14) -> 1991350.62 | X15: 2063458.205 | Y15: 2139308.615 | Z15: 2218615.098 | AA15: =SUMPRODUCT(W15:Z15,datos!$B$10:$E$10) -> 7117809.391
E16: Energía Ingresada | F16: =Mercado!D10 -> 4517552.724 | G16: =Mercado!E10 -> 4674158.854 | H16: =Mercado!F10 -> 4841251.506 | I16: =Mercado!G10 -> 5016947.941 | J16: =Mercado!H10 -> 5200609.807
D18: Pérdidas de Energía (respecto del nivel de tensión correspondiente) | E18: BT NT | F18: =F7/F9 -> 0.05039889088 | G18: =G7/G9 -> 0.0567525446 | H18: 0.06177818156 | I18: 0.06712910861 | J18: 0.07262604847
E19: BT T | F19: =F8/F9 -> 0.0222922193 | G19: =G8/G9 -> 0.02200866148 | H19: 0.02180194757 | I19: 0.02159887852 | J19: 0.02140188621
E20: MT | F20: =F11/F12 -> 0.04147390653 | G20: =G11/G12 -> 0.04125756274 | H20: 0.04114741952 | I20: 0.04103790329 | J20: 0.04093072314
E21: AT | F21: =F14/F15 -> 0.007700810604 | G21: =G14/G15 -> 0.007700810604 | H21: 0.007700810604 | I21: 0.007700810604 | J21: 0.007700810604
C22: Factores de carga | D22: PUNTA | E22: BT | F22: =F9/(8760*F116) -> 0.6187221063 | G22: =G9/(8760*G116) -> 0.6221169937 | H22: 0.6223874993 | I22: 0.6224729356 | J22: 0.6225340349
E23: MT | F23: =F12/(8760*F165) -> 0.5900570394 | G23: =G12/(8760*G165) -> 0.594735754 | H23: 0.5962380351 | I23: 0.5975595615 | J23: 0.5988440624
E24: AT | F24: =F15/(8760*F236) -> 0.5844787031 | G24: =G15/(8760*G236) -> 0.5885710414 | H24: 0.5891927476 | I24: 0.5896770959 | J24: 0.5901614435
D25: PUNTA | E25: BT
E26: MT
E27: AT
D28: FUERA DE PUNTA | E28: BT
E29: MT
E30: AT
C31: Factores de carga de pérdidas | E31: BT | F31: =0.7*F22^2+0.3*F22 -> 0.4535885632 | G31: 0.4575557858 | H31: 0.4578725893 | I31: 0.4579726696 | J31: 0.4580442477
E32: MT | F32: 0.4207342287 | G32: 0.4260181582 | H32: 0.4277212667 | I32: 0.4292220692 | J32: 0.4306831665
E33: AT | F33: 0.414474359 | G33: 0.4190624219 | H33: 0.4197614899 | I33: 0.420306483 | J33: 0.4208518036
D34: PUNTA | E34: BT
E35: MT
E36: AT
D37: FUERA DE PUNTA | E37: BT
E38: MT
E39: AT
C40: Pérdida Potencia | E40: BT NT | F40: =F18*F22/F31 -> 0.06874712117 | G40: =G18*G22/G31 -> 0.07716375473 | H40: 0.08397525607 | I40: 0.09124136892 | J40: 0.09870702933
E41: BT T | F41: =F19*F22/F31 -> 0.03040792911 | G41: =G19*G22/G31 -> 0.02992413765 | H41: 0.0296354487 | I41: 0.02935702982 | J41: 0.02908758847
E42: MT | F42: =F20*F23/F32 -> 0.05816491465 | G42: 0.05759695265 | H42: 0.0573589823 | I42: 0.05713264359 | J42: 0.05691218611
E43: AT | F43: =F21*F24/F33 -> 0.01085944087 | G43: 0.01081574935 | H43: 0.01080914249 | I43: 0.01080400093 | J43: 0.01079886426
D44: PUNTA | E44: BT NT | F44: =F40 -> 0.06874712117 | G44: =G40 -> 0.07716375473 | H44: 0.08397525607 | I44: 0.09124136892 | J44: 0.09870702933
E45: BT T | F45: =F41 -> 0.03040792911 | G45: 0.02992413765 | H45: 0.0296354487 | I45: 0.02935702982 | J45: 0.02908758847
E46: MT | F46: =F42 -> 0.05816491465 | G46: 0.05759695265 | H46: 0.0573589823 | I46: 0.05713264359 | J46: 0.05691218611
E47: AT | F47: =F43 -> 0.01085944087 | G47: 0.01081574935 | H47: 0.01080914249 | I47: 0.01080400093 | J47: 0.01079886426
D48: FUERA DE PUNTA | E48: BT NT | F48: =F40 -> 0.06874712117 | G48: =G40 -> 0.07716375473 | H48: 0.08397525607 | I48: 0.09124136892 | J48: 0.09870702933
E49: BT T | F49: =F41 -> 0.03040792911 | G49: 0.02992413765 | H49: 0.0296354487 | I49: 0.02935702982 | J49: 0.02908758847
E50: MT | F50: =F42 -> 0.05816491465 | G50: 0.05759695265 | H50: 0.0573589823 | I50: 0.05713264359 | J50: 0.05691218611
E51: AT | F51: =F43 -> 0.01085944087 | G51: 0.01081574935 | H51: 0.01080914249 | I51: 0.01080400093 | J51: 0.01079886426
C52: Pérdida Potencia | D52: PUNTA | E52: BT NT | F52: 0.06874712116 | G52: 0.07716375473 | H52: 0.08397525607 | I52: 0.09124136893 | J52: 0.09870702935 | K52: 0 | L52: 0 | M52: 0 | N52: 0 | O52: 0 | P52: 0
E53: BT T | F53: 0.03040792911 | G53: 0.02992413765 | H53: 0.0296354487 | I53: 0.02935702982 | J53: 0.02908758848 | K53: 0 | L53: 0 | M53: 0 | N53: 0 | O53: 0 | P53: 0
E54: MT | F54: 0.05816491466 | G54: 0.05759695266 | H54: 0.05735898232 | I54: 0.05713264361 | J54: 0.05691218613 | K54: 0 | L54: 0 | M54: 0 | N54: 0 | O54: 0 | P54: 0
E55: AT | F55: 0.01085944087 | G55: 0.01081574935 | H55: 0.01080914249 | I55: 0.01080400093 | J55: 0.01079886426 | K55: 0 | L55: 0 | M55: 0 | N55: 0 | O55: 0 | P55: 0
D56: FUERA DE PUNTA | E56: BT NT | F56: 0.06874712117 | G56: 0.07716375473 | H56: 0.08397525607 | I56: 0.09124136892 | J56: 0.09870702933 | K56: 0 | L56: 0 | M56: 0 | N56: 0 | O56: 0 | P56: 0
E57: BT T | F57: 0.03040792911 | G57: 0.02992413765 | H57: 0.0296354487 | I57: 0.02935702982 | J57: 0.02908758847 | K57: 0 | L57: 0 | M57: 0 | N57: 0 | O57: 0 | P57: 0
E58: MT | F58: 0.05816491465 | G58: 0.05759695265 | H58: 0.0573589823 | I58: 0.05713264359 | J58: 0.05691218611 | K58: 0 | L58: 0 | M58: 0 | N58: 0 | O58: 0 | P58: 0
E59: AT | F59: 0.01085944087 | G59: 0.01081574935 | H59: 0.01080914249 | I59: 0.01080400093 | J59: 0.01079886426 | K59: 0 | L59: 0 | M59: 0 | N59: 0 | O59: 0 | P59: 0
C60: Cierre | D60: PUNTA | E60: BT NT | F60: =F52-F40 -> -7.861516993e-12 | G60: =G52-G40 -> -2.871355931e-12 | H60: 2.488037554e-12 | I60: 1.114590364e-11 | J60: 2.368279184e-11
E61: BT T | F61: =F53-F41 -> -3.477263616e-12 | G61: -1.11351553e-12 | H61: 8.780476346e-13 | I61: 3.586214659e-12 | J61: 6.978993772e-12
E62: MT | F62: =F54-F42 -> 1.058185484e-11 | G62: 1.361689927e-11 | H62: 1.711581571e-11 | I62: 2.146083311e-11 | J62: 2.657866982e-11
E63: AT | F63: =F55-F43 -> 0 | G63: 0 | H63: 0 | I63: 0 | J63: 0
D64: FUERA DE PUNTA | E64: BT NT | F64: =F56-F40 -> 0 | G64: =G56-G40 -> 0 | H64: 0 | I64: 0 | J64: 0
E65: BT T | F65: =F57-F41 -> 0 | G65: 0 | H65: =H57-H41 -> 0 | I65: 0 | J65: 0
E66: MT | F66: =F58-F42 -> 0 | G66: 0 | H66: 0 | I66: 0 | J66: 0
E67: AT | F67: =F59-F43 -> 0 | G67: 0 | H67: 0 | I67: 0 | J67: 0
C68: Factores pérdidas Punta | D68: PUNTA | E68: BT NT | F68: =1/(1-F52) -> 1.073822184 | G68: =1/(1-G52) -> 1.083615869 | H68: =1/(1-H52) -> 1.091673567 | I68: =1/(1-I52) -> 1.100402203 | J68: =1/(1-J52) -> 1.109517141
E69: BT T | F69: =1/(1-F53) -> 1.031361569 | G69: =1/(1-G53) -> 1.030847214 | H69: 1.030540531 | I69: 1.030244931 | J69: 1.029959024
E70: MT | F70: =1/(1-F54) -> 1.061757006 | G70: =1/(1-G54) -> 1.061117112 | H70: 1.060849232 | I70: 1.060594572 | J70: 1.060346646
E71: AT | F71: =1/(1-F55) -> 1.010978663 | G71: 1.010934009 | H71: 1.010927257 | I71: 1.010922002 | J71: 1.010916753
D72: FUERA DE PUNTA | E72: BT NT | F72: =1/(1-F56) -> 1.073822184 | G72: 1.083615869 | H72: 1.091673567 | I72: 1.100402203 | J72: 1.109517141
E73: BT T | F73: =1/(1-F57) -> 1.031361569 | G73: 1.030847214 | H73: 1.030540531 | I73: 1.030244931 | J73: 1.029959024
E74: MT | F74: =1/(1-F58) -> 1.061757006 | G74: 1.061117112 | H74: 1.060849232 | I74: 1.060594572 | J74: 1.060346646
E75: AT | F75: 1.010978663 | G75: 1.010934009 | H75: 1.010927257 | I75: 1.010922002 | J75: 1.010916753
C76: Factores pérdidas Punta Acumulados | D76: PUNTA | E76: BT NT | F76: =PRODUCT(F$68:F68) -> 1.073822184 | G76: =PRODUCT(G$68:G68) -> 1.083615869 | H76: =PRODUCT(H$68:H68) -> 1.091673567 | I76: =PRODUCT(I$68:I68) -> 1.100402203 | J76: =PRODUCT(J$68:J68) -> 1.109517141
E77: BT T | F77: =PRODUCT(F$68:F69) -> 1.107498933 | G77: =PRODUCT(G$68:G69) -> 1.1170424 | H77: =PRODUCT(H$68:H69) -> 1.125013858 | I77: =PRODUCT(I$68:I69) -> 1.133683792 | J77: =PRODUCT(J$68:J69) -> 1.142757192
E78: MT | F78: =PRODUCT(F$68:F70) -> 1.175894751 | G78: =PRODUCT(G$68:G70) -> 1.185312805 | H78: =PRODUCT(H$68:H70) -> 1.193470087 | I78: =PRODUCT(I$68:I70) -> 1.202378876 | J78: =PRODUCT(J$68:J70) -> 1.211718755
E79: AT | F79: =PRODUCT(F$68:F71) -> 1.188804503 | G79: =PRODUCT(G$68:G71) -> 1.198273026 | H79: =PRODUCT(H$68:H71) -> 1.206511442 | I79: =PRODUCT(I$68:I71) -> 1.215511261 | J79: =PRODUCT(J$68:J71) -> 1.224946789
D80: FUERA DE PUNTA | E80: BT NT | F80: =PRODUCT(F$72:F72) -> 1.073822184 | G80: =PRODUCT(G$72:G72) -> 1.083615869 | H80: =PRODUCT(H$72:H72) -> 1.091673567 | I80: =PRODUCT(I$72:I72) -> 1.100402203 | J80: =PRODUCT(J$72:J72) -> 1.109517141
E81: BT T | F81: =PRODUCT(F$72:F73) -> 1.107498933 | G81: =PRODUCT(G$72:G73) -> 1.1170424 | H81: =PRODUCT(H$72:H73) -> 1.125013858 | I81: =PRODUCT(I$72:I73) -> 1.133683792 | J81: =PRODUCT(J$72:J73) -> 1.142757192
E82: MT | F82: =PRODUCT(F$72:F74) -> 1.175894751 | G82: =PRODUCT(G$72:G74) -> 1.185312805 | H82: =PRODUCT(H$72:H74) -> 1.193470087 | I82: =PRODUCT(I$72:I74) -> 1.202378876 | J82: =PRODUCT(J$72:J74) -> 1.211718755
E83: AT | F83: =PRODUCT(F$72:F75) -> 1.188804503 | G83: =PRODUCT(G$72:G75) -> 1.198273026 | H83: =PRODUCT(H$72:H75) -> 1.206511442 | I83: =PRODUCT(I$72:I75) -> 1.215511261 | J83: =PRODUCT(J$72:J75) -> 1.224946789
E86: FaP | F86: 1.182590092 | G86: 1.182428337 | H86: 1.188107176 | I86: 1.193839052 | J86: 1.199383172 | K86: 1 | L86: 1 | M86: 1 | N86: 1 | O86: 1 | P86: 1
E87: FaFP | F87: 1.246539693 | G87: 1.242207014 | H87: 1.244416063 | I87: 1.246603163 | J87: 1.248558975 | K87: 1 | L87: 1 | M87: 1 | N87: 1 | O87: 1 | P87: 1
A89: BALANCE DE POTENCIA HORAS PUNTA
F90: =Mercado!D4 -> jul21/jun22 | G90: =Mercado!E4 -> 1 | H90: =Mercado!F4 -> 2 | I90: =Mercado!G4 -> 3 | J90: =Mercado!H4 -> 4 | K90: V. Presente
C91: Coeficientes de responsabilidad (Tipo de medición) | F91: Potencia coincidente con máxima BT
A92: Variable Facturación | C92: Energía | D92: Potencia máxima | E92: Potencia por franja horaria
A93: =Mercado!D618 -> Energia | B93: =Mercado!C165 -> BTS | C93: =1/(Mercado!$G553*8760)*Mercado!$X553 -> 0.0001273027066 | D93: =Mercado!$H553*Mercado!$X553 -> 0.3986000416 | E93: =Mercado!$I553*Mercado!$N553 -> 0.5126984678 | F93: =IFERROR(SUMIFS(Mercado!D:D,Mercado!$A:$A,$A93,Mercado!$C:$C,$B93)*IF($A93=Mercado!$D$30,$C93,IF($A93=Mercado!$D$31,$D93,$E93))*F$86,"-") -> 283.9678406 | G93: =IFERROR(SUMIFS(Mercado!E:E,Mercado!$A:$A,$A93,Mercado!$C:$C,$B93)*IF($A93=Mercado!$D$30,$C93,IF($A93=Mercado!$D$31,$D93,$E93))*G$86,"-") -> 296.4185565 | H93: =IFERROR(SUMIFS(Mercado!F:F,Mercado!$A:$A,$A93,Mercado!$C:$C,$B93)*IF($A93=Mercado!$D$30,$C93,IF($A93=Mercado!$D$31,$D93,$E93))*H$86,"-") -> 310.4816011 | I93: =IFERROR(SUMIFS(Mercado!G:G,Mercado!$A:$A,$A93,Mercado!$C:$C,$B93)*IF($A93=Mercado!$D$30,$C93,IF($A93=Mercado!$D$31,$D93,$E93))*I$86,"-") -> 325.2213596 | J93: =IFERROR(SUMIFS(Mercado!H:H,Mercado!$A:$A,$A93,Mercado!$C:$C,$B93)*IF($A93=Mercado!$D$30,$C93,IF($A93=Mercado!$D$31,$D93,$E93))*J$86,"-") -> 340.5368814 | K93: =SUMPRODUCT(G93:J93,datos!$B$10:$E$10) -> 1075.60502
A94: =Mercado!D619 -> Pot_Max | B94: =Mercado!C166 -> BTD | C94: =1/(Mercado!$G554*8760)*Mercado!$X554 -> 0.0002100179781 | D94: =Mercado!$H554*Mercado!$X554 -> 0.7627076752 | E94: =Mercado!$I554*Mercado!$N554 -> 0.7870304742 | F94: =IFERROR(SUMIFS(Mercado!D:D,Mercado!$A:$A,$A94,Mercado!$C:$C,$B94)*IF($A94=Mercado!$D$30,$C94,IF($A94=Mercado!$D$31,$D94,$E94))*F$86,"-") -> 167.5048371 | G94: =IFERROR(SUMIFS(Mercado!E:E,Mercado!$A:$A,$A94,Mercado!$C:$C,$B94)*IF($A94=Mercado!$D$30,$C94,IF($A94=Mercado!$D$31,$D94,$E94))*G$86,"-") -> 170.8406297 | H94: =IFERROR(SUMIFS(Mercado!F:F,Mercado!$A:$A,$A94,Mercado!$C:$C,$B94)*IF($A94=Mercado!$D$30,$C94,IF($A94=Mercado!$D$31,$D94,$E94))*H$86,"-") -> 175.1037934 | I94: =IFERROR(SUMIFS(Mercado!G:G,Mercado!$A:$A,$A94,Mercado!$C:$C,$B94)*IF($A94=Mercado!$D$30,$C94,IF($A94=Mercado!$D$31,$D94,$E94))*I$86,"-") -> 179.477369 | J94: =IFERROR(SUMIFS(Mercado!H:H,Mercado!$A:$A,$A94,Mercado!$C:$C,$B94)*IF($A94=Mercado!$D$30,$C94,IF($A94=Mercado!$D$31,$D94,$E94))*J$86,"-") -> 183.9273067 | K94: =SUMPRODUCT(G94:J94,datos!$B$10:$E$10) -> 600.8856306
A95: =Mercado!D620 -> Pot_Max_P | B95: =Mercado!C167 -> BTH | C95: =1/(Mercado!$G555*8760)*Mercado!$X555 -> 0.0002100179781 | D95: =Mercado!$H555*Mercado!$X555 -> 0.7627076752 | E95: =Mercado!$I555*Mercado!$N555 -> 0.7870304742 | F95: =IFERROR(SUMIFS(Mercado!D:D,Mercado!$A:$A,$A95,Mercado!$C:$C,$B95)*IF($A95=Mercado!$D$30,$C95,IF($A95=Mercado!$D$31,$D95,$E95))*F$86,"-") -> 1.56813241 | G95: =IFERROR(SUMIFS(Mercado!E:E,Mercado!$A:$A,$A95,Mercado!$C:$C,$B95)*IF($A95=Mercado!$D$30,$C95,IF($A95=Mercado!$D$31,$D95,$E95))*G$86,"-") -> 1.567917921 | H95: =IFERROR(SUMIFS(Mercado!F:F,Mercado!$A:$A,$A95,Mercado!$C:$C,$B95)*IF($A95=Mercado!$D$30,$C95,IF($A95=Mercado!$D$31,$D95,$E95))*H$86,"-") -> 1.575448148 | I95: =IFERROR(SUMIFS(Mercado!G:G,Mercado!$A:$A,$A95,Mercado!$C:$C,$B95)*IF($A95=Mercado!$D$30,$C95,IF($A95=Mercado!$D$31,$D95,$E95))*I$86,"-") -> 1.583048702 | J95: =IFERROR(SUMIFS(Mercado!H:H,Mercado!$A:$A,$A95,Mercado!$C:$C,$B95)*IF($A95=Mercado!$D$30,$C95,IF($A95=Mercado!$D$31,$D95,$E95))*J$86,"-") -> 1.59040029 | K95: =SUMPRODUCT(G95:J95,datos!$B$10:$E$10) -> 5.362138907
A96: =Mercado!D621 -> 0 | B96: =Mercado!C168 -> A-BTS | C96: =1/(Mercado!$G556*8760)*Mercado!$X556 -> 0.0002044371221 | D96: =Mercado!$H556*Mercado!$X556 -> 0.5237600539 | E96: =Mercado!$I556*Mercado!$N556 -> 0.5307110911 | F96: =IFERROR(SUMIFS(Mercado!D:D,Mercado!$A:$A,$A96,Mercado!$C:$C,$B96)*IF($A96=Mercado!$D$30,$C96,IF($A96=Mercado!$D$31,$D96,$E96))*F$86,"-") -> 0 | G96: =IFERROR(SUMIFS(Mercado!E:E,Mercado!$A:$A,$A96,Mercado!$C:$C,$B96)*IF($A96=Mercado!$D$30,$C96,IF($A96=Mercado!$D$31,$D96,$E96))*G$86,"-") -> 0 | H96: =IFERROR(SUMIFS(Mercado!F:F,Mercado!$A:$A,$A96,Mercado!$C:$C,$B96)*IF($A96=Mercado!$D$30,$C96,IF($A96=Mercado!$D$31,$D96,$E96))*H$86,"-") -> 0 | I96: =IFERROR(SUMIFS(Mercado!G:G,Mercado!$A:$A,$A96,Mercado!$C:$C,$B96)*IF($A96=Mercado!$D$30,$C96,IF($A96=Mercado!$D$31,$D96,$E96))*I$86,"-") -> 0 | J96: =IFERROR(SUMIFS(Mercado!H:H,Mercado!$A:$A,$A96,Mercado!$C:$C,$B96)*IF($A96=Mercado!$D$30,$C96,IF($A96=Mercado!$D$31,$D96,$E96))*J$86,"-") -> 0 | K96: =SUMPRODUCT(G96:J96,datos!$B$10:$E$10) -> 0
A97: =Mercado!D622 -> Pot_Max | B97: =Mercado!C169 -> A-BTD | C97: =1/(Mercado!$G557*8760)*Mercado!$X557 -> 0.0002044371221 | D97: =Mercado!$H557*Mercado!$X557 -> 0.5237600539 | E97: =Mercado!$I557*Mercado!$N557 -> 0.5307110911 | F97: =IFERROR(SUMIFS(Mercado!D:D,Mercado!$A:$A,$A97,Mercado!$C:$C,$B97)*IF($A97=Mercado!$D$30,$C97,IF($A97=Mercado!$D$31,$D97,$E97))*F$86,"-") -> 0 | G97: =IFERROR(SUMIFS(Mercado!E:E,Mercado!$A:$A,$A97,Mercado!$C:$C,$B97)*IF($A97=Mercado!$D$30,$C97,IF($A97=Mercado!$D$31,$D97,$E97))*G$86,"-") -> 0 | H97: =IFERROR(SUMIFS(Mercado!F:F,Mercado!$A:$A,$A97,Mercado!$C:$C,$B97)*IF($A97=Mercado!$D$30,$C97,IF($A97=Mercado!$D$31,$D97,$E97))*H$86,"-") -> 0 | I97: =IFERROR(SUMIFS(Mercado!G:G,Mercado!$A:$A,$A97,Mercado!$C:$C,$B97)*IF($A97=Mercado!$D$30,$C97,IF($A97=Mercado!$D$31,$D97,$E97))*I$86,"-") -> 0 | J97: =IFERROR(SUMIFS(Mercado!H:H,Mercado!$A:$A,$A97,Mercado!$C:$C,$B97)*IF($A97=Mercado!$D$30,$C97,IF($A97=Mercado!$D$31,$D97,$E97))*J$86,"-") -> 0 | K97: =SUMPRODUCT(G97:J97,datos!$B$10:$E$10) -> 0
A98: =Mercado!D623 -> Pot_Max | B98: =Mercado!C170 -> Peaje BT | C98: =1/(Mercado!$G558*8760)*Mercado!$X558 -> 0.0002100179781 | D98: =Mercado!$H558*Mercado!$X558 -> 0.7627076752 | E98: =Mercado!$I558*Mercado!$N558 -> 0.7870304742 | F98: =IFERROR(SUMIFS(Mercado!D:D,Mercado!$A:$A,$A98,Mercado!$C:$C,$B98)*IF($A98=Mercado!$D$30,$C98,IF($A98=Mercado!$D$31,$D98,$E98))*F$86,"-") -> 19.41438809 | G98: =IFERROR(SUMIFS(Mercado!E:E,Mercado!$A:$A,$A98,Mercado!$C:$C,$B98)*IF($A98=Mercado!$D$30,$C98,IF($A98=Mercado!$D$31,$D98,$E98))*G$86,"-") -> 19.4117326 | H98: =IFERROR(SUMIFS(Mercado!F:F,Mercado!$A:$A,$A98,Mercado!$C:$C,$B98)*IF($A98=Mercado!$D$30,$C98,IF($A98=Mercado!$D$31,$D98,$E98))*H$86,"-") -> 19.50496116 | I98: =IFERROR(SUMIFS(Mercado!G:G,Mercado!$A:$A,$A98,Mercado!$C:$C,$B98)*IF($A98=Mercado!$D$30,$C98,IF($A98=Mercado!$D$31,$D98,$E98))*I$86,"-") -> 19.59906042 | J98: =IFERROR(SUMIFS(Mercado!H:H,Mercado!$A:$A,$A98,Mercado!$C:$C,$B98)*IF($A98=Mercado!$D$30,$C98,IF($A98=Mercado!$D$31,$D98,$E98))*J$86,"-") -> 19.69007735 | K98: =SUMPRODUCT(G98:J98,datos!$B$10:$E$10) -> 66.38638744
A99: =Mercado!D624 -> Pot_Max_P | B99: =Mercado!C171 -> Peaje BTH | C99: =1/(Mercado!$G559*8760)*Mercado!$X559 -> 0.0002100179781 | D99: =Mercado!$H559*Mercado!$X559 -> 0.7627076752 | E99: =Mercado!$I559*Mercado!$N559 -> 0.7870304742 | F99: =IFERROR(SUMIFS(Mercado!D:D,Mercado!$A:$A,$A99,Mercado!$C:$C,$B99)*IF($A99=Mercado!$D$30,$C99,IF($A99=Mercado!$D$31,$D99,$E99))*F$86,"-") -> 0.4880962206 | G99: =IFERROR(SUMIFS(Mercado!E:E,Mercado!$A:$A,$A99,Mercado!$C:$C,$B99)*IF($A99=Mercado!$D$30,$C99,IF($A99=Mercado!$D$31,$D99,$E99))*G$86,"-") -> 0.488029459 | H99: =IFERROR(SUMIFS(Mercado!F:F,Mercado!$A:$A,$A99,Mercado!$C:$C,$B99)*IF($A99=Mercado!$D$30,$C99,IF($A99=Mercado!$D$31,$D99,$E99))*H$86,"-") -> 0.490373314 | I99: =IFERROR(SUMIFS(Mercado!G:G,Mercado!$A:$A,$A99,Mercado!$C:$C,$B99)*IF($A99=Mercado!$D$30,$C99,IF($A99=Mercado!$D$31,$D99,$E99))*I$86,"-") -> 0.4927390592 | J99: =IFERROR(SUMIFS(Mercado!H:H,Mercado!$A:$A,$A99,Mercado!$C:$C,$B99)*IF($A99=Mercado!$D$30,$C99,IF($A99=Mercado!$D$31,$D99,$E99))*J$86,"-") -> 0.4950273114 | K99: =SUMPRODUCT(G99:J99,datos!$B$10:$E$10) -> 1.669017054
A100: =Mercado!D625 -> 0 | B100: =Mercado!C172 ->  | C100: =1/(Mercado!$G560*8760)*Mercado!$X560 ->  | D100: =Mercado!$H560*Mercado!$X560 ->  | E100: =Mercado!$I560*Mercado!$N560 ->  | F100: =IFERROR(SUMIFS(Mercado!D:D,Mercado!$A:$A,$A100,Mercado!$C:$C,$B100)*IF($A100=Mercado!$D$30,$C100,IF($A100=Mercado!$D$31,$D100,$E100))*F$86,"-") -> - | G100: =IFERROR(SUMIFS(Mercado!E:E,Mercado!$A:$A,$A100,Mercado!$C:$C,$B100)*IF($A100=Mercado!$D$30,$C100,IF($A100=Mercado!$D$31,$D100,$E100))*G$86,"-") -> - | H100: =IFERROR(SUMIFS(Mercado!F:F,Mercado!$A:$A,$A100,Mercado!$C:$C,$B100)*IF($A100=Mercado!$D$30,$C100,IF($A100=Mercado!$D$31,$D100,$E100))*H$86,"-") -> - | I100: =IFERROR(SUMIFS(Mercado!G:G,Mercado!$A:$A,$A100,Mercado!$C:$C,$B100)*IF($A100=Mercado!$D$30,$C100,IF($A100=Mercado!$D$31,$D100,$E100))*I$86,"-") -> - | J100: =IFERROR(SUMIFS(Mercado!H:H,Mercado!$A:$A,$A100,Mercado!$C:$C,$B100)*IF($A100=Mercado!$D$30,$C100,IF($A100=Mercado!$D$31,$D100,$E100))*J$86,"-") -> - | K100: =SUMPRODUCT(G100:J100,datos!$B$10:$E$10) -> 0
A101: =Mercado!D626 -> 0 | B101: =Mercado!C173 ->  | C101: =1/(Mercado!$G561*8760)*Mercado!$X561 ->  | D101: =Mercado!$H561*Mercado!$X561 ->  | E101: =Mercado!$I561*Mercado!$N561 ->  | F101: =IFERROR(SUMIFS(Mercado!D:D,Mercado!$A:$A,$A101,Mercado!$C:$C,$B101)*IF($A101=Mercado!$D$30,$C101,IF($A101=Mercado!$D$31,$D101,$E101))*F$86,"-") -> - | G101: =IFERROR(SUMIFS(Mercado!E:E,Mercado!$A:$A,$A101,Mercado!$C:$C,$B101)*IF($A101=Mercado!$D$30,$C101,IF($A101=Mercado!$D$31,$D101,$E101))*G$86,"-") -> - | H101: =IFERROR(SUMIFS(Mercado!F:F,Mercado!$A:$A,$A101,Mercado!$C:$C,$B101)*IF($A101=Mercado!$D$30,$C101,IF($A101=Mercado!$D$31,$D101,$E101))*H$86,"-") -> - | I101: =IFERROR(SUMIFS(Mercado!G:G,Mercado!$A:$A,$A101,Mercado!$C:$C,$B101)*IF($A101=Mercado!$D$30,$C101,IF($A101=Mercado!$D$31,$D101,$E101))*I$86,"-") -> - | J101: =IFERROR(SUMIFS(Mercado!H:H,Mercado!$A:$A,$A101,Mercado!$C:$C,$B101)*IF($A101=Mercado!$D$30,$C101,IF($A101=Mercado!$D$31,$D101,$E101))*J$86,"-") -> - | K101: =SUMPRODUCT(G101:J101,datos!$B$10:$E$10) -> 0
A102: =Mercado!D627 -> 0 | B102: =Mercado!C174 ->  | C102: =1/(Mercado!$G562*8760)*Mercado!$X562 ->  | D102: =Mercado!$H562*Mercado!$X562 ->  | E102: =Mercado!$I562*Mercado!$N562 ->  | F102: =IFERROR(SUMIFS(Mercado!D:D,Mercado!$A:$A,$A102,Mercado!$C:$C,$B102)*IF($A102=Mercado!$D$30,$C102,IF($A102=Mercado!$D$31,$D102,$E102))*F$86,"-") -> - | G102: =IFERROR(SUMIFS(Mercado!E:E,Mercado!$A:$A,$A102,Mercado!$C:$C,$B102)*IF($A102=Mercado!$D$30,$C102,IF($A102=Mercado!$D$31,$D102,$E102))*G$86,"-") -> - | H102: =IFERROR(SUMIFS(Mercado!F:F,Mercado!$A:$A,$A102,Mercado!$C:$C,$B102)*IF($A102=Mercado!$D$30,$C102,IF($A102=Mercado!$D$31,$D102,$E102))*H$86,"-") -> - | I102: =IFERROR(SUMIFS(Mercado!G:G,Mercado!$A:$A,$A102,Mercado!$C:$C,$B102)*IF($A102=Mercado!$D$30,$C102,IF($A102=Mercado!$D$31,$D102,$E102))*I$86,"-") -> - | J102: =IFERROR(SUMIFS(Mercado!H:H,Mercado!$A:$A,$A102,Mercado!$C:$C,$B102)*IF($A102=Mercado!$D$30,$C102,IF($A102=Mercado!$D$31,$D102,$E102))*J$86,"-") -> - | K102: =SUMPRODUCT(G102:J102,datos!$B$10:$E$10) -> 0
A103: =Mercado!D628 -> 0 | B103: =Mercado!C175 ->  | C103: =1/(Mercado!$G563*8760)*Mercado!$X563 ->  | D103: =Mercado!$H563*Mercado!$X563 ->  | E103: =Mercado!$I563*Mercado!$N563 ->  | F103: =IFERROR(SUMIFS(Mercado!D:D,Mercado!$A:$A,$A103,Mercado!$C:$C,$B103)*IF($A103=Mercado!$D$30,$C103,IF($A103=Mercado!$D$31,$D103,$E103))*F$86,"-") -> - | G103: =IFERROR(SUMIFS(Mercado!E:E,Mercado!$A:$A,$A103,Mercado!$C:$C,$B103)*IF($A103=Mercado!$D$30,$C103,IF($A103=Mercado!$D$31,$D103,$E103))*G$86,"-") -> - | H103: =IFERROR(SUMIFS(Mercado!F:F,Mercado!$A:$A,$A103,Mercado!$C:$C,$B103)*IF($A103=Mercado!$D$30,$C103,IF($A103=Mercado!$D$31,$D103,$E103))*H$86,"-") -> - | I103: =IFERROR(SUMIFS(Mercado!G:G,Mercado!$A:$A,$A103,Mercado!$C:$C,$B103)*IF($A103=Mercado!$D$30,$C103,IF($A103=Mercado!$D$31,$D103,$E103))*I$86,"-") -> - | J103: =IFERROR(SUMIFS(Mercado!H:H,Mercado!$A:$A,$A103,Mercado!$C:$C,$B103)*IF($A103=Mercado!$D$30,$C103,IF($A103=Mercado!$D$31,$D103,$E103))*J$86,"-") -> - | K103: =SUMPRODUCT(G103:J103,datos!$B$10:$E$10) -> 0
A104: =Mercado!D629 -> 0 | B104: =Mercado!C176 ->  | C104: =1/(Mercado!$G564*8760)*Mercado!$X564 ->  | D104: =Mercado!$H564*Mercado!$X564 ->  | E104: =Mercado!$I564*Mercado!$N564 ->  | F104: =IFERROR(SUMIFS(Mercado!D:D,Mercado!$A:$A,$A104,Mercado!$C:$C,$B104)*IF($A104=Mercado!$D$30,$C104,IF($A104=Mercado!$D$31,$D104,$E104))*F$86,"-") -> - | G104: =IFERROR(SUMIFS(Mercado!E:E,Mercado!$A:$A,$A104,Mercado!$C:$C,$B104)*IF($A104=Mercado!$D$30,$C104,IF($A104=Mercado!$D$31,$D104,$E104))*G$86,"-") -> - | H104: =IFERROR(SUMIFS(Mercado!F:F,Mercado!$A:$A,$A104,Mercado!$C:$C,$B104)*IF($A104=Mercado!$D$30,$C104,IF($A104=Mercado!$D$31,$D104,$E104))*H$86,"-") -> - | I104: =IFERROR(SUMIFS(Mercado!G:G,Mercado!$A:$A,$A104,Mercado!$C:$C,$B104)*IF($A104=Mercado!$D$30,$C104,IF($A104=Mercado!$D$31,$D104,$E104))*I$86,"-") -> - | J104: =IFERROR(SUMIFS(Mercado!H:H,Mercado!$A:$A,$A104,Mercado!$C:$C,$B104)*IF($A104=Mercado!$D$30,$C104,IF($A104=Mercado!$D$31,$D104,$E104))*J$86,"-") -> - | K104: =SUMPRODUCT(G104:J104,datos!$B$10:$E$10) -> 0
A105: =Mercado!D630 -> 0 | B105: =Mercado!C177 ->  | C105: =1/(Mercado!$G565*8760)*Mercado!$X565 ->  | D105: =Mercado!$H565*Mercado!$X565 ->  | E105: =Mercado!$I565*Mercado!$N565 ->  | F105: =IFERROR(SUMIFS(Mercado!D:D,Mercado!$A:$A,$A105,Mercado!$C:$C,$B105)*IF($A105=Mercado!$D$30,$C105,IF($A105=Mercado!$D$31,$D105,$E105))*F$86,"-") -> - | G105: =IFERROR(SUMIFS(Mercado!E:E,Mercado!$A:$A,$A105,Mercado!$C:$C,$B105)*IF($A105=Mercado!$D$30,$C105,IF($A105=Mercado!$D$31,$D105,$E105))*G$86,"-") -> - | H105: =IFERROR(SUMIFS(Mercado!F:F,Mercado!$A:$A,$A105,Mercado!$C:$C,$B105)*IF($A105=Mercado!$D$30,$C105,IF($A105=Mercado!$D$31,$D105,$E105))*H$86,"-") -> - | I105: =IFERROR(SUMIFS(Mercado!G:G,Mercado!$A:$A,$A105,Mercado!$C:$C,$B105)*IF($A105=Mercado!$D$30,$C105,IF($A105=Mercado!$D$31,$D105,$E105))*I$86,"-") -> - | J105: =IFERROR(SUMIFS(Mercado!H:H,Mercado!$A:$A,$A105,Mercado!$C:$C,$B105)*IF($A105=Mercado!$D$30,$C105,IF($A105=Mercado!$D$31,$D105,$E105))*J$86,"-") -> - | K105: =SUMPRODUCT(G105:J105,datos!$B$10:$E$10) -> 0
A106: =Mercado!D631 -> 0 | B106: =Mercado!C178 ->  | C106: =1/(Mercado!$G566*8760)*Mercado!$X566 ->  | D106: =Mercado!$H566*Mercado!$X566 ->  | E106: =Mercado!$I566*Mercado!$N566 ->  | F106: =IFERROR(SUMIFS(Mercado!D:D,Mercado!$A:$A,$A106,Mercado!$C:$C,$B106)*IF($A106=Mercado!$D$30,$C106,IF($A106=Mercado!$D$31,$D106,$E106))*F$86,"-") -> - | G106: =IFERROR(SUMIFS(Mercado!E:E,Mercado!$A:$A,$A106,Mercado!$C:$C,$B106)*IF($A106=Mercado!$D$30,$C106,IF($A106=Mercado!$D$31,$D106,$E106))*G$86,"-") -> - | H106: =IFERROR(SUMIFS(Mercado!F:F,Mercado!$A:$A,$A106,Mercado!$C:$C,$B106)*IF($A106=Mercado!$D$30,$C106,IF($A106=Mercado!$D$31,$D106,$E106))*H$86,"-") -> - | I106: =IFERROR(SUMIFS(Mercado!G:G,Mercado!$A:$A,$A106,Mercado!$C:$C,$B106)*IF($A106=Mercado!$D$30,$C106,IF($A106=Mercado!$D$31,$D106,$E106))*I$86,"-") -> - | J106: =IFERROR(SUMIFS(Mercado!H:H,Mercado!$A:$A,$A106,Mercado!$C:$C,$B106)*IF($A106=Mercado!$D$30,$C106,IF($A106=Mercado!$D$31,$D106,$E106))*J$86,"-") -> - | K106: =SUMPRODUCT(G106:J106,datos!$B$10:$E$10) -> 0
A107: =Mercado!D632 -> 0 | B107: =Mercado!C179 ->  | C107: =1/(Mercado!$G567*8760)*Mercado!$X567 ->  | D107: =Mercado!$H567*Mercado!$X567 ->  | E107: =Mercado!$I567*Mercado!$N567 ->  | F107: =IFERROR(SUMIFS(Mercado!D:D,Mercado!$A:$A,$A107,Mercado!$C:$C,$B107)*IF($A107=Mercado!$D$30,$C107,IF($A107=Mercado!$D$31,$D107,$E107))*F$86,"-") -> - | G107: =IFERROR(SUMIFS(Mercado!E:E,Mercado!$A:$A,$A107,Mercado!$C:$C,$B107)*IF($A107=Mercado!$D$30,$C107,IF($A107=Mercado!$D$31,$D107,$E107))*G$86,"-") -> - | H107: =IFERROR(SUMIFS(Mercado!F:F,Mercado!$A:$A,$A107,Mercado!$C:$C,$B107)*IF($A107=Mercado!$D$30,$C107,IF($A107=Mercado!$D$31,$D107,$E107))*H$86,"-") -> - | I107: =IFERROR(SUMIFS(Mercado!G:G,Mercado!$A:$A,$A107,Mercado!$C:$C,$B107)*IF($A107=Mercado!$D$30,$C107,IF($A107=Mercado!$D$31,$D107,$E107))*I$86,"-") -> - | J107: =IFERROR(SUMIFS(Mercado!H:H,Mercado!$A:$A,$A107,Mercado!$C:$C,$B107)*IF($A107=Mercado!$D$30,$C107,IF($A107=Mercado!$D$31,$D107,$E107))*J$86,"-") -> - | K107: =SUMPRODUCT(G107:J107,datos!$B$10:$E$10) -> 0
A108: =Mercado!D633 -> 0 | B108: =Mercado!C180 ->  | C108: =1/(Mercado!$G568*8760)*Mercado!$X568 ->  | D108: =Mercado!$H568*Mercado!$X568 ->  | E108: =Mercado!$I568*Mercado!$N568 ->  | F108: =IFERROR(SUMIFS(Mercado!D:D,Mercado!$A:$A,$A108,Mercado!$C:$C,$B108)*IF($A108=Mercado!$D$30,$C108,IF($A108=Mercado!$D$31,$D108,$E108))*F$86,"-") -> - | G108: =IFERROR(SUMIFS(Mercado!E:E,Mercado!$A:$A,$A108,Mercado!$C:$C,$B108)*IF($A108=Mercado!$D$30,$C108,IF($A108=Mercado!$D$31,$D108,$E108))*G$86,"-") -> - | H108: =IFERROR(SUMIFS(Mercado!F:F,Mercado!$A:$A,$A108,Mercado!$C:$C,$B108)*IF($A108=Mercado!$D$30,$C108,IF($A108=Mercado!$D$31,$D108,$E108))*H$86,"-") -> - | I108: =IFERROR(SUMIFS(Mercado!G:G,Mercado!$A:$A,$A108,Mercado!$C:$C,$B108)*IF($A108=Mercado!$D$30,$C108,IF($A108=Mercado!$D$31,$D108,$E108))*I$86,"-") -> - | J108: =IFERROR(SUMIFS(Mercado!H:H,Mercado!$A:$A,$A108,Mercado!$C:$C,$B108)*IF($A108=Mercado!$D$30,$C108,IF($A108=Mercado!$D$31,$D108,$E108))*J$86,"-") -> - | K108: =SUMPRODUCT(G108:J108,datos!$B$10:$E$10) -> 0
A109: =Mercado!D634 -> 0 | B109: =Mercado!C181 ->  | C109: =1/(Mercado!$G569*8760)*Mercado!$X569 ->  | D109: =Mercado!$H569*Mercado!$X569 ->  | E109: =Mercado!$I569*Mercado!$N569 ->  | F109: =IFERROR(SUMIFS(Mercado!D:D,Mercado!$A:$A,$A109,Mercado!$C:$C,$B109)*IF($A109=Mercado!$D$30,$C109,IF($A109=Mercado!$D$31,$D109,$E109))*F$86,"-") -> - | G109: =IFERROR(SUMIFS(Mercado!E:E,Mercado!$A:$A,$A109,Mercado!$C:$C,$B109)*IF($A109=Mercado!$D$30,$C109,IF($A109=Mercado!$D$31,$D109,$E109))*G$86,"-") -> - | H109: =IFERROR(SUMIFS(Mercado!F:F,Mercado!$A:$A,$A109,Mercado!$C:$C,$B109)*IF($A109=Mercado!$D$30,$C109,IF($A109=Mercado!$D$31,$D109,$E109))*H$86,"-") -> - | I109: =IFERROR(SUMIFS(Mercado!G:G,Mercado!$A:$A,$A109,Mercado!$C:$C,$B109)*IF($A109=Mercado!$D$30,$C109,IF($A109=Mercado!$D$31,$D109,$E109))*I$86,"-") -> - | J109: =IFERROR(SUMIFS(Mercado!H:H,Mercado!$A:$A,$A109,Mercado!$C:$C,$B109)*IF($A109=Mercado!$D$30,$C109,IF($A109=Mercado!$D$31,$D109,$E109))*J$86,"-") -> - | K109: =SUMPRODUCT(G109:J109,datos!$B$10:$E$10) -> 0
A110: =Mercado!D635 -> 0 | B110: =Mercado!C182 ->  | C110: =1/(Mercado!$G570*8760)*Mercado!$X570 ->  | D110: =Mercado!$H570*Mercado!$X570 ->  | E110: =Mercado!$I570*Mercado!$N570 ->  | F110: =IFERROR(SUMIFS(Mercado!D:D,Mercado!$A:$A,$A110,Mercado!$C:$C,$B110)*IF($A110=Mercado!$D$30,$C110,IF($A110=Mercado!$D$31,$D110,$E110))*F$86,"-") -> - | G110: =IFERROR(SUMIFS(Mercado!E:E,Mercado!$A:$A,$A110,Mercado!$C:$C,$B110)*IF($A110=Mercado!$D$30,$C110,IF($A110=Mercado!$D$31,$D110,$E110))*G$86,"-") -> - | H110: =IFERROR(SUMIFS(Mercado!F:F,Mercado!$A:$A,$A110,Mercado!$C:$C,$B110)*IF($A110=Mercado!$D$30,$C110,IF($A110=Mercado!$D$31,$D110,$E110))*H$86,"-") -> - | I110: =IFERROR(SUMIFS(Mercado!G:G,Mercado!$A:$A,$A110,Mercado!$C:$C,$B110)*IF($A110=Mercado!$D$30,$C110,IF($A110=Mercado!$D$31,$D110,$E110))*I$86,"-") -> - | J110: =IFERROR(SUMIFS(Mercado!H:H,Mercado!$A:$A,$A110,Mercado!$C:$C,$B110)*IF($A110=Mercado!$D$30,$C110,IF($A110=Mercado!$D$31,$D110,$E110))*J$86,"-") -> - | K110: =SUMPRODUCT(G110:J110,datos!$B$10:$E$10) -> 0
A111: =Mercado!D636 -> 0 | B111: =Mercado!C183 ->  | C111: =1/(Mercado!$G571*8760)*Mercado!$X571 ->  | D111: =Mercado!$H571*Mercado!$X571 ->  | E111: =Mercado!$I571*Mercado!$N571 ->  | F111: =IFERROR(SUMIFS(Mercado!D:D,Mercado!$A:$A,$A111,Mercado!$C:$C,$B111)*IF($A111=Mercado!$D$30,$C111,IF($A111=Mercado!$D$31,$D111,$E111))*F$86,"-") -> - | G111: =IFERROR(SUMIFS(Mercado!E:E,Mercado!$A:$A,$A111,Mercado!$C:$C,$B111)*IF($A111=Mercado!$D$30,$C111,IF($A111=Mercado!$D$31,$D111,$E111))*G$86,"-") -> - | H111: =IFERROR(SUMIFS(Mercado!F:F,Mercado!$A:$A,$A111,Mercado!$C:$C,$B111)*IF($A111=Mercado!$D$30,$C111,IF($A111=Mercado!$D$31,$D111,$E111))*H$86,"-") -> - | I111: =IFERROR(SUMIFS(Mercado!G:G,Mercado!$A:$A,$A111,Mercado!$C:$C,$B111)*IF($A111=Mercado!$D$30,$C111,IF($A111=Mercado!$D$31,$D111,$E111))*I$86,"-") -> - | J111: =IFERROR(SUMIFS(Mercado!H:H,Mercado!$A:$A,$A111,Mercado!$C:$C,$B111)*IF($A111=Mercado!$D$30,$C111,IF($A111=Mercado!$D$31,$D111,$E111))*J$86,"-") -> - | K111: =SUMPRODUCT(G111:J111,datos!$B$10:$E$10) -> 0
A112: =Mercado!D637 -> 0 | B112: =Mercado!C184 ->  | C112: =1/(Mercado!$G572*8760)*Mercado!$X572 ->  | D112: =Mercado!$H572*Mercado!$X572 ->  | E112: =Mercado!$I572*Mercado!$N572 ->  | F112: =IFERROR(SUMIFS(Mercado!D:D,Mercado!$A:$A,$A112,Mercado!$C:$C,$B112)*IF($A112=Mercado!$D$30,$C112,IF($A112=Mercado!$D$31,$D112,$E112))*F$86,"-") -> - | G112: =IFERROR(SUMIFS(Mercado!E:E,Mercado!$A:$A,$A112,Mercado!$C:$C,$B112)*IF($A112=Mercado!$D$30,$C112,IF($A112=Mercado!$D$31,$D112,$E112))*G$86,"-") -> - | H112: =IFERROR(SUMIFS(Mercado!F:F,Mercado!$A:$A,$A112,Mercado!$C:$C,$B112)*IF($A112=Mercado!$D$30,$C112,IF($A112=Mercado!$D$31,$D112,$E112))*H$86,"-") -> - | I112: =IFERROR(SUMIFS(Mercado!G:G,Mercado!$A:$A,$A112,Mercado!$C:$C,$B112)*IF($A112=Mercado!$D$30,$C112,IF($A112=Mercado!$D$31,$D112,$E112))*I$86,"-") -> - | J112: =IFERROR(SUMIFS(Mercado!H:H,Mercado!$A:$A,$A112,Mercado!$C:$C,$B112)*IF($A112=Mercado!$D$30,$C112,IF($A112=Mercado!$D$31,$D112,$E112))*J$86,"-") -> - | K112: =SUMPRODUCT(G112:J112,datos!$B$10:$E$10) -> 0
A113: =Mercado!D638 -> Energia | B113: =Mercado!C185 -> AP | C113: =1/(Mercado!$G573*8760)*Mercado!$X573 -> 0 | D113: =Mercado!$H573*Mercado!$X573 -> 0 | E113: =Mercado!$I573*Mercado!$N573 -> 0 | F113: =IFERROR(SUMIFS(Mercado!D:D,Mercado!$A:$A,$A113,Mercado!$C:$C,$B113)*IF($A113=Mercado!$D$30,$C113,IF($A113=Mercado!$D$31,$D113,$E113))*F$86,"-") -> 0 | G113: =IFERROR(SUMIFS(Mercado!E:E,Mercado!$A:$A,$A113,Mercado!$C:$C,$B113)*IF($A113=Mercado!$D$30,$C113,IF($A113=Mercado!$D$31,$D113,$E113))*G$86,"-") -> 0 | H113: =IFERROR(SUMIFS(Mercado!F:F,Mercado!$A:$A,$A113,Mercado!$C:$C,$B113)*IF($A113=Mercado!$D$30,$C113,IF($A113=Mercado!$D$31,$D113,$E113))*H$86,"-") -> 0 | I113: =IFERROR(SUMIFS(Mercado!G:G,Mercado!$A:$A,$A113,Mercado!$C:$C,$B113)*IF($A113=Mercado!$D$30,$C113,IF($A113=Mercado!$D$31,$D113,$E113))*I$86,"-") -> 0 | J113: =IFERROR(SUMIFS(Mercado!H:H,Mercado!$A:$A,$A113,Mercado!$C:$C,$B113)*IF($A113=Mercado!$D$30,$C113,IF($A113=Mercado!$D$31,$D113,$E113))*J$86,"-") -> 0 | K113: =SUMPRODUCT(G113:J113,datos!$B$10:$E$10) -> 0
B114: Pérdida NT BT | F114: =SUM(F93:F113)*(F68-1) -> 34.9137068 | G114: =SUM(G93:G113)*(G68-1) -> 40.86532169 | H114: =SUM(H93:H113)*(H68-1) -> 46.49281597 | I114: 52.84906692 | J114: 59.82260949 | K114: =SUMPRODUCT(G114:J114,datos!$B$10:$E$10) -> 167.6278493
B115: Pérdida T BT | F115: =SUM(F93:F114)*(F69-1) -> 15.92719264 | G115: =SUM(G93:G114)*(G69-1) -> 16.33644351 | H115: 16.90873426 | I115: 17.51854899 | J115: 18.15703522 | K115: =SUMPRODUCT(G115:J115,datos!$B$10:$E$10) -> 58.31704867
B116: Potencia Máxima BT | F116: =SUM(F93:F115) -> 523.7841939 | G116: =SUM(G93:G115) -> 545.9286314 | H116: 570.5577273 | I116: 596.7411926 | J116: 624.2193378 | K116: =SUMPRODUCT(G116:J116,datos!$B$10:$E$10) -> 1975.853092
C118: Coeficientes de responsabilidad (Tipo de medición) | F118: Potencia coincidente con máxima MT
C119: Energía | D119: Potencia máxima | E119: Potencia por franja horaria
A120: =A93 -> Energia | B120: =Mercado!C165 -> BTS | C120: =1/(Mercado!$G553*8760)*Mercado!$Y553 -> 0.0001273027066 | D120: =Mercado!$H553*Mercado!$Y553 -> 0.3986000416 | E120: =Mercado!$I553*Mercado!$O553 -> 0.5126984678 | F120: =IFERROR(SUMIFS(Mercado!D:D,Mercado!$A:$A,$A120,Mercado!$C:$C,$B120)*IF($A120=Mercado!$D$30,$C120,IF($A120=Mercado!$D$31,$D120,$E120))*F$86,"-") -> 283.9678406 | G120: =IFERROR(SUMIFS(Mercado!E:E,Mercado!$A:$A,$A120,Mercado!$C:$C,$B120)*IF($A120=Mercado!$D$30,$C120,IF($A120=Mercado!$D$31,$D120,$E120))*G$86,"-") -> 296.4185565 | H120: =IFERROR(SUMIFS(Mercado!F:F,Mercado!$A:$A,$A120,Mercado!$C:$C,$B120)*IF($A120=Mercado!$D$30,$C120,IF($A120=Mercado!$D$31,$D120,$E120))*H$86,"-") -> 310.4816011 | I120: =IFERROR(SUMIFS(Mercado!G:G,Mercado!$A:$A,$A120,Mercado!$C:$C,$B120)*IF($A120=Mercado!$D$30,$C120,IF($A120=Mercado!$D$31,$D120,$E120))*I$86,"-") -> 325.2213596 | J120: =IFERROR(SUMIFS(Mercado!H:H,Mercado!$A:$A,$A120,Mercado!$C:$C,$B120)*IF($A120=Mercado!$D$30,$C120,IF($A120=Mercado!$D$31,$D120,$E120))*J$86,"-") -> 340.5368814 | K120: =SUMPRODUCT(G120:J120,datos!$B$10:$E$10) -> 1075.60502
A121: Pot_Max | B121: =Mercado!C166 -> BTD | C121: =1/(Mercado!$G554*8760)*Mercado!$Y554 -> 0.0002100179781 | D121: =Mercado!$H554*Mercado!$Y554 -> 0.7627076752 | E121: =Mercado!$I554*Mercado!$O554 -> 0.7870304742 | F121: =IFERROR(SUMIFS(Mercado!D:D,Mercado!$A:$A,$A121,Mercado!$C:$C,$B121)*IF($A121=Mercado!$D$30,$C121,IF($A121=Mercado!$D$31,$D121,$E121))*F$86,"-") -> 167.5048371 | G121: =IFERROR(SUMIFS(Mercado!E:E,Mercado!$A:$A,$A121,Mercado!$C:$C,$B121)*IF($A121=Mercado!$D$30,$C121,IF($A121=Mercado!$D$31,$D121,$E121))*G$86,"-") -> 170.8406297 | H121: =IFERROR(SUMIFS(Mercado!F:F,Mercado!$A:$A,$A121,Mercado!$C:$C,$B121)*IF($A121=Mercado!$D$30,$C121,IF($A121=Mercado!$D$31,$D121,$E121))*H$86,"-") -> 175.1037934 | I121: =IFERROR(SUMIFS(Mercado!G:G,Mercado!$A:$A,$A121,Mercado!$C:$C,$B121)*IF($A121=Mercado!$D$30,$C121,IF($A121=Mercado!$D$31,$D121,$E121))*I$86,"-") -> 179.477369 | J121: =IFERROR(SUMIFS(Mercado!H:H,Mercado!$A:$A,$A121,Mercado!$C:$C,$B121)*IF($A121=Mercado!$D$30,$C121,IF($A121=Mercado!$D$31,$D121,$E121))*J$86,"-") -> 183.9273067 | K121: =SUMPRODUCT(G121:J121,datos!$B$10:$E$10) -> 600.8856306
A122: Pot_Max_P | B122: =Mercado!C167 -> BTH | C122: =1/(Mercado!$G555*8760)*Mercado!$Y555 -> 0.0002100179781 | D122: =Mercado!$H555*Mercado!$Y555 -> 0.7627076752 | E122: =Mercado!$I555*Mercado!$O555 -> 0.7870304742 | F122: =IFERROR(SUMIFS(Mercado!D:D,Mercado!$A:$A,$A122,Mercado!$C:$C,$B122)*IF($A122=Mercado!$D$30,$C122,IF($A122=Mercado!$D$31,$D122,$E122))*F$86,"-") -> 1.56813241 | G122: =IFERROR(SUMIFS(Mercado!E:E,Mercado!$A:$A,$A122,Mercado!$C:$C,$B122)*IF($A122=Mercado!$D$30,$C122,IF($A122=Mercado!$D$31,$D122,$E122))*G$86,"-") -> 1.567917921 | H122: =IFERROR(SUMIFS(Mercado!F:F,Mercado!$A:$A,$A122,Mercado!$C:$C,$B122)*IF($A122=Mercado!$D$30,$C122,IF($A122=Mercado!$D$31,$D122,$E122))*H$86,"-") -> 1.575448148 | I122: =IFERROR(SUMIFS(Mercado!G:G,Mercado!$A:$A,$A122,Mercado!$C:$C,$B122)*IF($A122=Mercado!$D$30,$C122,IF($A122=Mercado!$D$31,$D122,$E122))*I$86,"-") -> 1.583048702 | J122: =IFERROR(SUMIFS(Mercado!H:H,Mercado!$A:$A,$A122,Mercado!$C:$C,$B122)*IF($A122=Mercado!$D$30,$C122,IF($A122=Mercado!$D$31,$D122,$E122))*J$86,"-") -> 1.59040029 | K122: =SUMPRODUCT(G122:J122,datos!$B$10:$E$10) -> 5.362138907
A123: 0 | B123: =Mercado!C168 -> A-BTS | C123: =1/(Mercado!$G556*8760)*Mercado!$Y556 -> 0.0002044371221 | D123: =Mercado!$H556*Mercado!$Y556 -> 0.5237600539 | E123: =Mercado!$I556*Mercado!$O556 -> 0.5307110911 | F123: =IFERROR(SUMIFS(Mercado!D:D,Mercado!$A:$A,$A123,Mercado!$C:$C,$B123)*IF($A123=Mercado!$D$30,$C123,IF($A123=Mercado!$D$31,$D123,$E123))*F$86,"-") -> 0 | G123: =IFERROR(SUMIFS(Mercado!E:E,Mercado!$A:$A,$A123,Mercado!$C:$C,$B123)*IF($A123=Mercado!$D$30,$C123,IF($A123=Mercado!$D$31,$D123,$E123))*G$86,"-") -> 0 | H123: =IFERROR(SUMIFS(Mercado!F:F,Mercado!$A:$A,$A123,Mercado!$C:$C,$B123)*IF($A123=Mercado!$D$30,$C123,IF($A123=Mercado!$D$31,$D123,$E123))*H$86,"-") -> 0 | I123: =IFERROR(SUMIFS(Mercado!G:G,Mercado!$A:$A,$A123,Mercado!$C:$C,$B123)*IF($A123=Mercado!$D$30,$C123,IF($A123=Mercado!$D$31,$D123,$E123))*I$86,"-") -> 0 | J123: =IFERROR(SUMIFS(Mercado!H:H,Mercado!$A:$A,$A123,Mercado!$C:$C,$B123)*IF($A123=Mercado!$D$30,$C123,IF($A123=Mercado!$D$31,$D123,$E123))*J$86,"-") -> 0 | K123: =SUMPRODUCT(G123:J123,datos!$B$10:$E$10) -> 0
A124: Pot_Max | B124: =Mercado!C169 -> A-BTD | C124: =1/(Mercado!$G557*8760)*Mercado!$Y557 -> 0.0002044371221 | D124: =Mercado!$H557*Mercado!$Y557 -> 0.5237600539 | E124: =Mercado!$I557*Mercado!$O557 -> 0.5307110911 | F124: =IFERROR(SUMIFS(Mercado!D:D,Mercado!$A:$A,$A124,Mercado!$C:$C,$B124)*IF($A124=Mercado!$D$30,$C124,IF($A124=Mercado!$D$31,$D124,$E124))*F$86,"-") -> 0 | G124: =IFERROR(SUMIFS(Mercado!E:E,Mercado!$A:$A,$A124,Mercado!$C:$C,$B124)*IF($A124=Mercado!$D$30,$C124,IF($A124=Mercado!$D$31,$D124,$E124))*G$86,"-") -> 0 | H124: =IFERROR(SUMIFS(Mercado!F:F,Mercado!$A:$A,$A124,Mercado!$C:$C,$B124)*IF($A124=Mercado!$D$30,$C124,IF($A124=Mercado!$D$31,$D124,$E124))*H$86,"-") -> 0 | I124: =IFERROR(SUMIFS(Mercado!G:G,Mercado!$A:$A,$A124,Mercado!$C:$C,$B124)*IF($A124=Mercado!$D$30,$C124,IF($A124=Mercado!$D$31,$D124,$E124))*I$86,"-") -> 0 | J124: =IFERROR(SUMIFS(Mercado!H:H,Mercado!$A:$A,$A124,Mercado!$C:$C,$B124)*IF($A124=Mercado!$D$30,$C124,IF($A124=Mercado!$D$31,$D124,$E124))*J$86,"-") -> 0 | K124: =SUMPRODUCT(G124:J124,datos!$B$10:$E$10) -> 0
A125: Pot_Max | B125: =Mercado!C170 -> Peaje BT | C125: =1/(Mercado!$G558*8760)*Mercado!$Y558 -> 0.0002100179781 | D125: =Mercado!$H558*Mercado!$Y558 -> 0.7627076752 | E125: =Mercado!$I558*Mercado!$O558 -> 0.7870304742 | F125: =IFERROR(SUMIFS(Mercado!D:D,Mercado!$A:$A,$A125,Mercado!$C:$C,$B125)*IF($A125=Mercado!$D$30,$C125,IF($A125=Mercado!$D$31,$D125,$E125))*F$86,"-") -> 19.41438809 | G125: =IFERROR(SUMIFS(Mercado!E:E,Mercado!$A:$A,$A125,Mercado!$C:$C,$B125)*IF($A125=Mercado!$D$30,$C125,IF($A125=Mercado!$D$31,$D125,$E125))*G$86,"-") -> 19.4117326 | H125: =IFERROR(SUMIFS(Mercado!F:F,Mercado!$A:$A,$A125,Mercado!$C:$C,$B125)*IF($A125=Mercado!$D$30,$C125,IF($A125=Mercado!$D$31,$D125,$E125))*H$86,"-") -> 19.50496116 | I125: =IFERROR(SUMIFS(Mercado!G:G,Mercado!$A:$A,$A125,Mercado!$C:$C,$B125)*IF($A125=Mercado!$D$30,$C125,IF($A125=Mercado!$D$31,$D125,$E125))*I$86,"-") -> 19.59906042 | J125: =IFERROR(SUMIFS(Mercado!H:H,Mercado!$A:$A,$A125,Mercado!$C:$C,$B125)*IF($A125=Mercado!$D$30,$C125,IF($A125=Mercado!$D$31,$D125,$E125))*J$86,"-") -> 19.69007735 | K125: =SUMPRODUCT(G125:J125,datos!$B$10:$E$10) -> 66.38638744
A126: Pot_Max_P | B126: =Mercado!C171 -> Peaje BTH | C126: =1/(Mercado!$G559*8760)*Mercado!$Y559 -> 0.0002100179781 | D126: =Mercado!$H559*Mercado!$Y559 -> 0.7627076752 | E126: =Mercado!$I559*Mercado!$O559 -> 0.7870304742 | F126: =IFERROR(SUMIFS(Mercado!D:D,Mercado!$A:$A,$A126,Mercado!$C:$C,$B126)*IF($A126=Mercado!$D$30,$C126,IF($A126=Mercado!$D$31,$D126,$E126))*F$86,"-") -> 0.4880962206 | G126: =IFERROR(SUMIFS(Mercado!E:E,Mercado!$A:$A,$A126,Mercado!$C:$C,$B126)*IF($A126=Mercado!$D$30,$C126,IF($A126=Mercado!$D$31,$D126,$E126))*G$86,"-") -> 0.488029459 | H126: =IFERROR(SUMIFS(Mercado!F:F,Mercado!$A:$A,$A126,Mercado!$C:$C,$B126)*IF($A126=Mercado!$D$30,$C126,IF($A126=Mercado!$D$31,$D126,$E126))*H$86,"-") -> 0.490373314 | I126: =IFERROR(SUMIFS(Mercado!G:G,Mercado!$A:$A,$A126,Mercado!$C:$C,$B126)*IF($A126=Mercado!$D$30,$C126,IF($A126=Mercado!$D$31,$D126,$E126))*I$86,"-") -> 0.4927390592 | J126: =IFERROR(SUMIFS(Mercado!H:H,Mercado!$A:$A,$A126,Mercado!$C:$C,$B126)*IF($A126=Mercado!$D$30,$C126,IF($A126=Mercado!$D$31,$D126,$E126))*J$86,"-") -> 0.4950273114 | K126: =SUMPRODUCT(G126:J126,datos!$B$10:$E$10) -> 1.669017054
A127: 0 | B127: =Mercado!C172 ->  | C127: =1/(Mercado!$G560*8760)*Mercado!$Y560 ->  | D127: =Mercado!$H560*Mercado!$Y560 ->  | E127: =Mercado!$I560*Mercado!$O560 ->  | F127: =IFERROR(SUMIFS(Mercado!D:D,Mercado!$A:$A,$A127,Mercado!$C:$C,$B127)*IF($A127=Mercado!$D$30,$C127,IF($A127=Mercado!$D$31,$D127,$E127))*F$86,"-") -> - | G127: =IFERROR(SUMIFS(Mercado!E:E,Mercado!$A:$A,$A127,Mercado!$C:$C,$B127)*IF($A127=Mercado!$D$30,$C127,IF($A127=Mercado!$D$31,$D127,$E127))*G$86,"-") -> - | H127: =IFERROR(SUMIFS(Mercado!F:F,Mercado!$A:$A,$A127,Mercado!$C:$C,$B127)*IF($A127=Mercado!$D$30,$C127,IF($A127=Mercado!$D$31,$D127,$E127))*H$86,"-") -> - | I127: =IFERROR(SUMIFS(Mercado!G:G,Mercado!$A:$A,$A127,Mercado!$C:$C,$B127)*IF($A127=Mercado!$D$30,$C127,IF($A127=Mercado!$D$31,$D127,$E127))*I$86,"-") -> - | J127: =IFERROR(SUMIFS(Mercado!H:H,Mercado!$A:$A,$A127,Mercado!$C:$C,$B127)*IF($A127=Mercado!$D$30,$C127,IF($A127=Mercado!$D$31,$D127,$E127))*J$86,"-") -> - | K127: =SUMPRODUCT(G127:J127,datos!$B$10:$E$10) -> 0
A128: 0 | B128: =Mercado!C173 ->  | C128: =1/(Mercado!$G561*8760)*Mercado!$Y561 ->  | D128: =Mercado!$H561*Mercado!$Y561 ->  | E128: =Mercado!$I561*Mercado!$O561 ->  | F128: =IFERROR(SUMIFS(Mercado!D:D,Mercado!$A:$A,$A128,Mercado!$C:$C,$B128)*IF($A128=Mercado!$D$30,$C128,IF($A128=Mercado!$D$31,$D128,$E128))*F$86,"-") -> - | G128: =IFERROR(SUMIFS(Mercado!E:E,Mercado!$A:$A,$A128,Mercado!$C:$C,$B128)*IF($A128=Mercado!$D$30,$C128,IF($A128=Mercado!$D$31,$D128,$E128))*G$86,"-") -> - | H128: =IFERROR(SUMIFS(Mercado!F:F,Mercado!$A:$A,$A128,Mercado!$C:$C,$B128)*IF($A128=Mercado!$D$30,$C128,IF($A128=Mercado!$D$31,$D128,$E128))*H$86,"-") -> - | I128: =IFERROR(SUMIFS(Mercado!G:G,Mercado!$A:$A,$A128,Mercado!$C:$C,$B128)*IF($A128=Mercado!$D$30,$C128,IF($A128=Mercado!$D$31,$D128,$E128))*I$86,"-") -> - | J128: =IFERROR(SUMIFS(Mercado!H:H,Mercado!$A:$A,$A128,Mercado!$C:$C,$B128)*IF($A128=Mercado!$D$30,$C128,IF($A128=Mercado!$D$31,$D128,$E128))*J$86,"-") -> - | K128: =SUMPRODUCT(G128:J128,datos!$B$10:$E$10) -> 0
A129: 0 | B129: =Mercado!C174 ->  | C129: =1/(Mercado!$G562*8760)*Mercado!$Y562 ->  | D129: =Mercado!$H562*Mercado!$Y562 ->  | E129: =Mercado!$I562*Mercado!$O562 ->  | F129: =IFERROR(SUMIFS(Mercado!D:D,Mercado!$A:$A,$A129,Mercado!$C:$C,$B129)*IF($A129=Mercado!$D$30,$C129,IF($A129=Mercado!$D$31,$D129,$E129))*F$86,"-") -> - | G129: =IFERROR(SUMIFS(Mercado!E:E,Mercado!$A:$A,$A129,Mercado!$C:$C,$B129)*IF($A129=Mercado!$D$30,$C129,IF($A129=Mercado!$D$31,$D129,$E129))*G$86,"-") -> - | H129: =IFERROR(SUMIFS(Mercado!F:F,Mercado!$A:$A,$A129,Mercado!$C:$C,$B129)*IF($A129=Mercado!$D$30,$C129,IF($A129=Mercado!$D$31,$D129,$E129))*H$86,"-") -> - | I129: =IFERROR(SUMIFS(Mercado!G:G,Mercado!$A:$A,$A129,Mercado!$C:$C,$B129)*IF($A129=Mercado!$D$30,$C129,IF($A129=Mercado!$D$31,$D129,$E129))*I$86,"-") -> - | J129: =IFERROR(SUMIFS(Mercado!H:H,Mercado!$A:$A,$A129,Mercado!$C:$C,$B129)*IF($A129=Mercado!$D$30,$C129,IF($A129=Mercado!$D$31,$D129,$E129))*J$86,"-") -> - | K129: =SUMPRODUCT(G129:J129,datos!$B$10:$E$10) -> 0
A130: 0 | B130: =Mercado!C175 ->  | C130: =1/(Mercado!$G563*8760)*Mercado!$Y563 ->  | D130: =Mercado!$H563*Mercado!$Y563 ->  | E130: =Mercado!$I563*Mercado!$O563 ->  | F130: =IFERROR(SUMIFS(Mercado!D:D,Mercado!$A:$A,$A130,Mercado!$C:$C,$B130)*IF($A130=Mercado!$D$30,$C130,IF($A130=Mercado!$D$31,$D130,$E130))*F$86,"-") -> - | G130: =IFERROR(SUMIFS(Mercado!E:E,Mercado!$A:$A,$A130,Mercado!$C:$C,$B130)*IF($A130=Mercado!$D$30,$C130,IF($A130=Mercado!$D$31,$D130,$E130))*G$86,"-") -> - | H130: =IFERROR(SUMIFS(Mercado!F:F,Mercado!$A:$A,$A130,Mercado!$C:$C,$B130)*IF($A130=Mercado!$D$30,$C130,IF($A130=Mercado!$D$31,$D130,$E130))*H$86,"-") -> - | I130: =IFERROR(SUMIFS(Mercado!G:G,Mercado!$A:$A,$A130,Mercado!$C:$C,$B130)*IF($A130=Mercado!$D$30,$C130,IF($A130=Mercado!$D$31,$D130,$E130))*I$86,"-") -> - | J130: =IFERROR(SUMIFS(Mercado!H:H,Mercado!$A:$A,$A130,Mercado!$C:$C,$B130)*IF($A130=Mercado!$D$30,$C130,IF($A130=Mercado!$D$31,$D130,$E130))*J$86,"-") -> - | K130: =SUMPRODUCT(G130:J130,datos!$B$10:$E$10) -> 0
A131: 0 | B131: =Mercado!C176 ->  | C131: =1/(Mercado!$G564*8760)*Mercado!$Y564 ->  | D131: =Mercado!$H564*Mercado!$Y564 ->  | E131: =Mercado!$I564*Mercado!$O564 ->  | F131: =IFERROR(SUMIFS(Mercado!D:D,Mercado!$A:$A,$A131,Mercado!$C:$C,$B131)*IF($A131=Mercado!$D$30,$C131,IF($A131=Mercado!$D$31,$D131,$E131))*F$86,"-") -> - | G131: =IFERROR(SUMIFS(Mercado!E:E,Mercado!$A:$A,$A131,Mercado!$C:$C,$B131)*IF($A131=Mercado!$D$30,$C131,IF($A131=Mercado!$D$31,$D131,$E131))*G$86,"-") -> - | H131: =IFERROR(SUMIFS(Mercado!F:F,Mercado!$A:$A,$A131,Mercado!$C:$C,$B131)*IF($A131=Mercado!$D$30,$C131,IF($A131=Mercado!$D$31,$D131,$E131))*H$86,"-") -> - | I131: =IFERROR(SUMIFS(Mercado!G:G,Mercado!$A:$A,$A131,Mercado!$C:$C,$B131)*IF($A131=Mercado!$D$30,$C131,IF($A131=Mercado!$D$31,$D131,$E131))*I$86,"-") -> - | J131: =IFERROR(SUMIFS(Mercado!H:H,Mercado!$A:$A,$A131,Mercado!$C:$C,$B131)*IF($A131=Mercado!$D$30,$C131,IF($A131=Mercado!$D$31,$D131,$E131))*J$86,"-") -> - | K131: =SUMPRODUCT(G131:J131,datos!$B$10:$E$10) -> 0
A132: 0 | B132: =Mercado!C177 ->  | C132: =1/(Mercado!$G565*8760)*Mercado!$Y565 ->  | D132: =Mercado!$H565*Mercado!$Y565 ->  | E132: =Mercado!$I565*Mercado!$O565 ->  | F132: =IFERROR(SUMIFS(Mercado!D:D,Mercado!$A:$A,$A132,Mercado!$C:$C,$B132)*IF($A132=Mercado!$D$30,$C132,IF($A132=Mercado!$D$31,$D132,$E132))*F$86,"-") -> - | G132: =IFERROR(SUMIFS(Mercado!E:E,Mercado!$A:$A,$A132,Mercado!$C:$C,$B132)*IF($A132=Mercado!$D$30,$C132,IF($A132=Mercado!$D$31,$D132,$E132))*G$86,"-") -> - | H132: =IFERROR(SUMIFS(Mercado!F:F,Mercado!$A:$A,$A132,Mercado!$C:$C,$B132)*IF($A132=Mercado!$D$30,$C132,IF($A132=Mercado!$D$31,$D132,$E132))*H$86,"-") -> - | I132: =IFERROR(SUMIFS(Mercado!G:G,Mercado!$A:$A,$A132,Mercado!$C:$C,$B132)*IF($A132=Mercado!$D$30,$C132,IF($A132=Mercado!$D$31,$D132,$E132))*I$86,"-") -> - | J132: =IFERROR(SUMIFS(Mercado!H:H,Mercado!$A:$A,$A132,Mercado!$C:$C,$B132)*IF($A132=Mercado!$D$30,$C132,IF($A132=Mercado!$D$31,$D132,$E132))*J$86,"-") -> - | K132: =SUMPRODUCT(G132:J132,datos!$B$10:$E$10) -> 0
A133: 0 | B133: =Mercado!C178 ->  | C133: =1/(Mercado!$G566*8760)*Mercado!$Y566 ->  | D133: =Mercado!$H566*Mercado!$Y566 ->  | E133: =Mercado!$I566*Mercado!$O566 ->  | F133: =IFERROR(SUMIFS(Mercado!D:D,Mercado!$A:$A,$A133,Mercado!$C:$C,$B133)*IF($A133=Mercado!$D$30,$C133,IF($A133=Mercado!$D$31,$D133,$E133))*F$86,"-") -> - | G133: =IFERROR(SUMIFS(Mercado!E:E,Mercado!$A:$A,$A133,Mercado!$C:$C,$B133)*IF($A133=Mercado!$D$30,$C133,IF($A133=Mercado!$D$31,$D133,$E133))*G$86,"-") -> - | H133: =IFERROR(SUMIFS(Mercado!F:F,Mercado!$A:$A,$A133,Mercado!$C:$C,$B133)*IF($A133=Mercado!$D$30,$C133,IF($A133=Mercado!$D$31,$D133,$E133))*H$86,"-") -> - | I133: =IFERROR(SUMIFS(Mercado!G:G,Mercado!$A:$A,$A133,Mercado!$C:$C,$B133)*IF($A133=Mercado!$D$30,$C133,IF($A133=Mercado!$D$31,$D133,$E133))*I$86,"-") -> - | J133: =IFERROR(SUMIFS(Mercado!H:H,Mercado!$A:$A,$A133,Mercado!$C:$C,$B133)*IF($A133=Mercado!$D$30,$C133,IF($A133=Mercado!$D$31,$D133,$E133))*J$86,"-") -> - | K133: =SUMPRODUCT(G133:J133,datos!$B$10:$E$10) -> 0
A134: 0 | B134: =Mercado!C179 ->  | C134: =1/(Mercado!$G567*8760)*Mercado!$Y567 ->  | D134: =Mercado!$H567*Mercado!$Y567 ->  | E134: =Mercado!$I567*Mercado!$O567 ->  | F134: =IFERROR(SUMIFS(Mercado!D:D,Mercado!$A:$A,$A134,Mercado!$C:$C,$B134)*IF($A134=Mercado!$D$30,$C134,IF($A134=Mercado!$D$31,$D134,$E134))*F$86,"-") -> - | G134: =IFERROR(SUMIFS(Mercado!E:E,Mercado!$A:$A,$A134,Mercado!$C:$C,$B134)*IF($A134=Mercado!$D$30,$C134,IF($A134=Mercado!$D$31,$D134,$E134))*G$86,"-") -> - | H134: =IFERROR(SUMIFS(Mercado!F:F,Mercado!$A:$A,$A134,Mercado!$C:$C,$B134)*IF($A134=Mercado!$D$30,$C134,IF($A134=Mercado!$D$31,$D134,$E134))*H$86,"-") -> - | I134: =IFERROR(SUMIFS(Mercado!G:G,Mercado!$A:$A,$A134,Mercado!$C:$C,$B134)*IF($A134=Mercado!$D$30,$C134,IF($A134=Mercado!$D$31,$D134,$E134))*I$86,"-") -> - | J134: =IFERROR(SUMIFS(Mercado!H:H,Mercado!$A:$A,$A134,Mercado!$C:$C,$B134)*IF($A134=Mercado!$D$30,$C134,IF($A134=Mercado!$D$31,$D134,$E134))*J$86,"-") -> - | K134: =SUMPRODUCT(G134:J134,datos!$B$10:$E$10) -> 0
A135: 0 | B135: =Mercado!C180 ->  | C135: =1/(Mercado!$G568*8760)*Mercado!$Y568 ->  | D135: =Mercado!$H568*Mercado!$Y568 ->  | E135: =Mercado!$I568*Mercado!$O568 ->  | F135: =IFERROR(SUMIFS(Mercado!D:D,Mercado!$A:$A,$A135,Mercado!$C:$C,$B135)*IF($A135=Mercado!$D$30,$C135,IF($A135=Mercado!$D$31,$D135,$E135))*F$86,"-") -> - | G135: =IFERROR(SUMIFS(Mercado!E:E,Mercado!$A:$A,$A135,Mercado!$C:$C,$B135)*IF($A135=Mercado!$D$30,$C135,IF($A135=Mercado!$D$31,$D135,$E135))*G$86,"-") -> - | H135: =IFERROR(SUMIFS(Mercado!F:F,Mercado!$A:$A,$A135,Mercado!$C:$C,$B135)*IF($A135=Mercado!$D$30,$C135,IF($A135=Mercado!$D$31,$D135,$E135))*H$86,"-") -> - | I135: =IFERROR(SUMIFS(Mercado!G:G,Mercado!$A:$A,$A135,Mercado!$C:$C,$B135)*IF($A135=Mercado!$D$30,$C135,IF($A135=Mercado!$D$31,$D135,$E135))*I$86,"-") -> - | J135: =IFERROR(SUMIFS(Mercado!H:H,Mercado!$A:$A,$A135,Mercado!$C:$C,$B135)*IF($A135=Mercado!$D$30,$C135,IF($A135=Mercado!$D$31,$D135,$E135))*J$86,"-") -> - | K135: =SUMPRODUCT(G135:J135,datos!$B$10:$E$10) -> 0
A136: 0 | B136: =Mercado!C181 ->  | C136: =1/(Mercado!$G569*8760)*Mercado!$Y569 ->  | D136: =Mercado!$H569*Mercado!$Y569 ->  | E136: =Mercado!$I569*Mercado!$O569 ->  | F136: =IFERROR(SUMIFS(Mercado!D:D,Mercado!$A:$A,$A136,Mercado!$C:$C,$B136)*IF($A136=Mercado!$D$30,$C136,IF($A136=Mercado!$D$31,$D136,$E136))*F$86,"-") -> - | G136: =IFERROR(SUMIFS(Mercado!E:E,Mercado!$A:$A,$A136,Mercado!$C:$C,$B136)*IF($A136=Mercado!$D$30,$C136,IF($A136=Mercado!$D$31,$D136,$E136))*G$86,"-") -> - | H136: =IFERROR(SUMIFS(Mercado!F:F,Mercado!$A:$A,$A136,Mercado!$C:$C,$B136)*IF($A136=Mercado!$D$30,$C136,IF($A136=Mercado!$D$31,$D136,$E136))*H$86,"-") -> - | I136: =IFERROR(SUMIFS(Mercado!G:G,Mercado!$A:$A,$A136,Mercado!$C:$C,$B136)*IF($A136=Mercado!$D$30,$C136,IF($A136=Mercado!$D$31,$D136,$E136))*I$86,"-") -> - | J136: =IFERROR(SUMIFS(Mercado!H:H,Mercado!$A:$A,$A136,Mercado!$C:$C,$B136)*IF($A136=Mercado!$D$30,$C136,IF($A136=Mercado!$D$31,$D136,$E136))*J$86,"-") -> - | K136: =SUMPRODUCT(G136:J136,datos!$B$10:$E$10) -> 0
A137: 0 | B137: =Mercado!C182 ->  | C137: =1/(Mercado!$G570*8760)*Mercado!$Y570 ->  | D137: =Mercado!$H570*Mercado!$Y570 ->  | E137: =Mercado!$I570*Mercado!$O570 ->  | F137: =IFERROR(SUMIFS(Mercado!D:D,Mercado!$A:$A,$A137,Mercado!$C:$C,$B137)*IF($A137=Mercado!$D$30,$C137,IF($A137=Mercado!$D$31,$D137,$E137))*F$86,"-") -> - | G137: =IFERROR(SUMIFS(Mercado!E:E,Mercado!$A:$A,$A137,Mercado!$C:$C,$B137)*IF($A137=Mercado!$D$30,$C137,IF($A137=Mercado!$D$31,$D137,$E137))*G$86,"-") -> - | H137: =IFERROR(SUMIFS(Mercado!F:F,Mercado!$A:$A,$A137,Mercado!$C:$C,$B137)*IF($A137=Mercado!$D$30,$C137,IF($A137=Mercado!$D$31,$D137,$E137))*H$86,"-") -> - | I137: =IFERROR(SUMIFS(Mercado!G:G,Mercado!$A:$A,$A137,Mercado!$C:$C,$B137)*IF($A137=Mercado!$D$30,$C137,IF($A137=Mercado!$D$31,$D137,$E137))*I$86,"-") -> - | J137: =IFERROR(SUMIFS(Mercado!H:H,Mercado!$A:$A,$A137,Mercado!$C:$C,$B137)*IF($A137=Mercado!$D$30,$C137,IF($A137=Mercado!$D$31,$D137,$E137))*J$86,"-") -> - | K137: =SUMPRODUCT(G137:J137,datos!$B$10:$E$10) -> 0
A138: 0 | B138: =Mercado!C183 ->  | C138: =1/(Mercado!$G571*8760)*Mercado!$Y571 ->  | D138: =Mercado!$H571*Mercado!$Y571 ->  | E138: =Mercado!$I571*Mercado!$O571 ->  | F138: =IFERROR(SUMIFS(Mercado!D:D,Mercado!$A:$A,$A138,Mercado!$C:$C,$B138)*IF($A138=Mercado!$D$30,$C138,IF($A138=Mercado!$D$31,$D138,$E138))*F$86,"-") -> - | G138: =IFERROR(SUMIFS(Mercado!E:E,Mercado!$A:$A,$A138,Mercado!$C:$C,$B138)*IF($A138=Mercado!$D$30,$C138,IF($A138=Mercado!$D$31,$D138,$E138))*G$86,"-") -> - | H138: =IFERROR(SUMIFS(Mercado!F:F,Mercado!$A:$A,$A138,Mercado!$C:$C,$B138)*IF($A138=Mercado!$D$30,$C138,IF($A138=Mercado!$D$31,$D138,$E138))*H$86,"-") -> - | I138: =IFERROR(SUMIFS(Mercado!G:G,Mercado!$A:$A,$A138,Mercado!$C:$C,$B138)*IF($A138=Mercado!$D$30,$C138,IF($A138=Mercado!$D$31,$D138,$E138))*I$86,"-") -> - | J138: =IFERROR(SUMIFS(Mercado!H:H,Mercado!$A:$A,$A138,Mercado!$C:$C,$B138)*IF($A138=Mercado!$D$30,$C138,IF($A138=Mercado!$D$31,$D138,$E138))*J$86,"-") -> - | K138: =SUMPRODUCT(G138:J138,datos!$B$10:$E$10) -> 0
A139: 0 | B139: =Mercado!C184 ->  | C139: =1/(Mercado!$G572*8760)*Mercado!$Y572 ->  | D139: =Mercado!$H572*Mercado!$Y572 ->  | E139: =Mercado!$I572*Mercado!$O572 ->  | F139: =IFERROR(SUMIFS(Mercado!D:D,Mercado!$A:$A,$A139,Mercado!$C:$C,$B139)*IF($A139=Mercado!$D$30,$C139,IF($A139=Mercado!$D$31,$D139,$E139))*F$86,"-") -> - | G139: =IFERROR(SUMIFS(Mercado!E:E,Mercado!$A:$A,$A139,Mercado!$C:$C,$B139)*IF($A139=Mercado!$D$30,$C139,IF($A139=Mercado!$D$31,$D139,$E139))*G$86,"-") -> - | H139: =IFERROR(SUMIFS(Mercado!F:F,Mercado!$A:$A,$A139,Mercado!$C:$C,$B139)*IF($A139=Mercado!$D$30,$C139,IF($A139=Mercado!$D$31,$D139,$E139))*H$86,"-") -> - | I139: =IFERROR(SUMIFS(Mercado!G:G,Mercado!$A:$A,$A139,Mercado!$C:$C,$B139)*IF($A139=Mercado!$D$30,$C139,IF($A139=Mercado!$D$31,$D139,$E139))*I$86,"-") -> - | J139: =IFERROR(SUMIFS(Mercado!H:H,Mercado!$A:$A,$A139,Mercado!$C:$C,$B139)*IF($A139=Mercado!$D$30,$C139,IF($A139=Mercado!$D$31,$D139,$E139))*J$86,"-") -> - | K139: =SUMPRODUCT(G139:J139,datos!$B$10:$E$10) -> 0
A140: Energia | B140: =Mercado!C185 -> AP | C140: =1/(Mercado!$G573*8760)*Mercado!$Y573 -> 0 | D140: =Mercado!$H573*Mercado!$Y573 -> 0 | E140: =Mercado!$I573*Mercado!$O573 -> 0 | F140: =IFERROR(SUMIFS(Mercado!D:D,Mercado!$A:$A,$A140,Mercado!$C:$C,$B140)*IF($A140=Mercado!$D$30,$C140,IF($A140=Mercado!$D$31,$D140,$E140))*F$86,"-") -> 0 | G140: =IFERROR(SUMIFS(Mercado!E:E,Mercado!$A:$A,$A140,Mercado!$C:$C,$B140)*IF($A140=Mercado!$D$30,$C140,IF($A140=Mercado!$D$31,$D140,$E140))*G$86,"-") -> 0 | H140: =IFERROR(SUMIFS(Mercado!F:F,Mercado!$A:$A,$A140,Mercado!$C:$C,$B140)*IF($A140=Mercado!$D$30,$C140,IF($A140=Mercado!$D$31,$D140,$E140))*H$86,"-") -> 0 | I140: =IFERROR(SUMIFS(Mercado!G:G,Mercado!$A:$A,$A140,Mercado!$C:$C,$B140)*IF($A140=Mercado!$D$30,$C140,IF($A140=Mercado!$D$31,$D140,$E140))*I$86,"-") -> 0 | J140: =IFERROR(SUMIFS(Mercado!H:H,Mercado!$A:$A,$A140,Mercado!$C:$C,$B140)*IF($A140=Mercado!$D$30,$C140,IF($A140=Mercado!$D$31,$D140,$E140))*J$86,"-") -> 0 | K140: =SUMPRODUCT(G140:J140,datos!$B$10:$E$10) -> 0
B141: Pérdida NT BT | F141: =SUM(F120:F140)*(F68-1) -> 34.9137068 | G141: =SUM(G120:G140)*(G68-1) -> 40.86532169 | H141: 46.49281597 | I141: 52.84906692 | J141: 59.82260949 | K141: =SUMPRODUCT(G141:J141,datos!$B$10:$E$10) -> 167.6278493
B142: Pérdida T BT | F142: =SUM(F120:F141)*(F69-1) -> 15.92719264 | G142: =SUM(G120:G141)*(G69-1) -> 16.33644351 | H142: 16.90873426 | I142: 17.51854899 | J142: 18.15703522 | K142: =SUMPRODUCT(G142:J142,datos!$B$10:$E$10) -> 58.31704867
B143: Potencia BT coincidente con Máx MT | F143: =SUM(F120:F142) -> 523.7841939 | G143: =SUM(G120:G142) -> 545.9286314 | H143: 570.5577273 | I143: 596.7411926 | J143: 624.2193378 | K143: =SUMPRODUCT(G143:J143,datos!$B$10:$E$10) -> 1975.853092
A144: =Mercado!D639 -> 0 | B144: =Mercado!C186 ->  | C144: =1/(Mercado!$G574*8760)*Mercado!$Y574 ->  | D144: =Mercado!$H574*Mercado!$Y574 ->  | E144: =Mercado!$I574*Mercado!$O574 ->  | F144: =IFERROR(SUMIFS(Mercado!D:D,Mercado!$A:$A,$A144,Mercado!$C:$C,$B144)*IF($A144=Mercado!$D$30,$C144,IF($A144=Mercado!$D$31,$D144,$E144))*F$86,"-") -> - | G144: =IFERROR(SUMIFS(Mercado!E:E,Mercado!$A:$A,$A144,Mercado!$C:$C,$B144)*IF($A144=Mercado!$D$30,$C144,IF($A144=Mercado!$D$31,$D144,$E144))*G$86,"-") -> - | H144: =IFERROR(SUMIFS(Mercado!F:F,Mercado!$A:$A,$A144,Mercado!$C:$C,$B144)*IF($A144=Mercado!$D$30,$C144,IF($A144=Mercado!$D$31,$D144,$E144))*H$86,"-") -> - | I144: =IFERROR(SUMIFS(Mercado!G:G,Mercado!$A:$A,$A144,Mercado!$C:$C,$B144)*IF($A144=Mercado!$D$30,$C144,IF($A144=Mercado!$D$31,$D144,$E144))*I$86,"-") -> - | J144: =IFERROR(SUMIFS(Mercado!H:H,Mercado!$A:$A,$A144,Mercado!$C:$C,$B144)*IF($A144=Mercado!$D$30,$C144,IF($A144=Mercado!$D$31,$D144,$E144))*J$86,"-") -> - | K144: =SUMPRODUCT(G144:J144,datos!$B$10:$E$10) -> 0
A145: =Mercado!D640 -> 0 | B145: =Mercado!C187 ->  | C145: =1/(Mercado!$G575*8760)*Mercado!$Y575 ->  | D145: =Mercado!$H575*Mercado!$Y575 ->  | E145: =Mercado!$I575*Mercado!$O575 ->  | F145: =IFERROR(SUMIFS(Mercado!D:D,Mercado!$A:$A,$A145,Mercado!$C:$C,$B145)*IF($A145=Mercado!$D$30,$C145,IF($A145=Mercado!$D$31,$D145,$E145))*F$86,"-") -> - | G145: =IFERROR(SUMIFS(Mercado!E:E,Mercado!$A:$A,$A145,Mercado!$C:$C,$B145)*IF($A145=Mercado!$D$30,$C145,IF($A145=Mercado!$D$31,$D145,$E145))*G$86,"-") -> - | H145: =IFERROR(SUMIFS(Mercado!F:F,Mercado!$A:$A,$A145,Mercado!$C:$C,$B145)*IF($A145=Mercado!$D$30,$C145,IF($A145=Mercado!$D$31,$D145,$E145))*H$86,"-") -> - | I145: =IFERROR(SUMIFS(Mercado!G:G,Mercado!$A:$A,$A145,Mercado!$C:$C,$B145)*IF($A145=Mercado!$D$30,$C145,IF($A145=Mercado!$D$31,$D145,$E145))*I$86,"-") -> - | J145: =IFERROR(SUMIFS(Mercado!H:H,Mercado!$A:$A,$A145,Mercado!$C:$C,$B145)*IF($A145=Mercado!$D$30,$C145,IF($A145=Mercado!$D$31,$D145,$E145))*J$86,"-") -> - | K145: =SUMPRODUCT(G145:J145,datos!$B$10:$E$10) -> 0
A146: =Mercado!D641 -> 0 | B146: =Mercado!C188 ->  | C146: =1/(Mercado!$G576*8760)*Mercado!$Y576 ->  | D146: =Mercado!$H576*Mercado!$Y576 ->  | E146: =Mercado!$I576*Mercado!$O576 ->  | F146: =IFERROR(SUMIFS(Mercado!D:D,Mercado!$A:$A,$A146,Mercado!$C:$C,$B146)*IF($A146=Mercado!$D$30,$C146,IF($A146=Mercado!$D$31,$D146,$E146))*F$86,"-") -> - | G146: =IFERROR(SUMIFS(Mercado!E:E,Mercado!$A:$A,$A146,Mercado!$C:$C,$B146)*IF($A146=Mercado!$D$30,$C146,IF($A146=Mercado!$D$31,$D146,$E146))*G$86,"-") -> - | H146: =IFERROR(SUMIFS(Mercado!F:F,Mercado!$A:$A,$A146,Mercado!$C:$C,$B146)*IF($A146=Mercado!$D$30,$C146,IF($A146=Mercado!$D$31,$D146,$E146))*H$86,"-") -> - | I146: =IFERROR(SUMIFS(Mercado!G:G,Mercado!$A:$A,$A146,Mercado!$C:$C,$B146)*IF($A146=Mercado!$D$30,$C146,IF($A146=Mercado!$D$31,$D146,$E146))*I$86,"-") -> - | J146: =IFERROR(SUMIFS(Mercado!H:H,Mercado!$A:$A,$A146,Mercado!$C:$C,$B146)*IF($A146=Mercado!$D$30,$C146,IF($A146=Mercado!$D$31,$D146,$E146))*J$86,"-") -> - | K146: =SUMPRODUCT(G146:J146,datos!$B$10:$E$10) -> 0
A147: =Mercado!D642 -> 0 | B147: =Mercado!C189 ->  | C147: =1/(Mercado!$G577*8760)*Mercado!$Y577 ->  | D147: =Mercado!$H577*Mercado!$Y577 ->  | E147: =Mercado!$I577*Mercado!$O577 ->  | F147: =IFERROR(SUMIFS(Mercado!D:D,Mercado!$A:$A,$A147,Mercado!$C:$C,$B147)*IF($A147=Mercado!$D$30,$C147,IF($A147=Mercado!$D$31,$D147,$E147))*F$86,"-") -> - | G147: =IFERROR(SUMIFS(Mercado!E:E,Mercado!$A:$A,$A147,Mercado!$C:$C,$B147)*IF($A147=Mercado!$D$30,$C147,IF($A147=Mercado!$D$31,$D147,$E147))*G$86,"-") -> - | H147: =IFERROR(SUMIFS(Mercado!F:F,Mercado!$A:$A,$A147,Mercado!$C:$C,$B147)*IF($A147=Mercado!$D$30,$C147,IF($A147=Mercado!$D$31,$D147,$E147))*H$86,"-") -> - | I147: =IFERROR(SUMIFS(Mercado!G:G,Mercado!$A:$A,$A147,Mercado!$C:$C,$B147)*IF($A147=Mercado!$D$30,$C147,IF($A147=Mercado!$D$31,$D147,$E147))*I$86,"-") -> - | J147: =IFERROR(SUMIFS(Mercado!H:H,Mercado!$A:$A,$A147,Mercado!$C:$C,$B147)*IF($A147=Mercado!$D$30,$C147,IF($A147=Mercado!$D$31,$D147,$E147))*J$86,"-") -> - | K147: =SUMPRODUCT(G147:J147,datos!$B$10:$E$10) -> 0
A148: =Mercado!D643 -> 0 | B148: =Mercado!C190 ->  | C148: =1/(Mercado!$G578*8760)*Mercado!$Y578 ->  | D148: =Mercado!$H578*Mercado!$Y578 ->  | E148: =Mercado!$I578*Mercado!$O578 ->  | F148: =IFERROR(SUMIFS(Mercado!D:D,Mercado!$A:$A,$A148,Mercado!$C:$C,$B148)*IF($A148=Mercado!$D$30,$C148,IF($A148=Mercado!$D$31,$D148,$E148))*F$86,"-") -> - | G148: =IFERROR(SUMIFS(Mercado!E:E,Mercado!$A:$A,$A148,Mercado!$C:$C,$B148)*IF($A148=Mercado!$D$30,$C148,IF($A148=Mercado!$D$31,$D148,$E148))*G$86,"-") -> - | H148: =IFERROR(SUMIFS(Mercado!F:F,Mercado!$A:$A,$A148,Mercado!$C:$C,$B148)*IF($A148=Mercado!$D$30,$C148,IF($A148=Mercado!$D$31,$D148,$E148))*H$86,"-") -> - | I148: =IFERROR(SUMIFS(Mercado!G:G,Mercado!$A:$A,$A148,Mercado!$C:$C,$B148)*IF($A148=Mercado!$D$30,$C148,IF($A148=Mercado!$D$31,$D148,$E148))*I$86,"-") -> - | J148: =IFERROR(SUMIFS(Mercado!H:H,Mercado!$A:$A,$A148,Mercado!$C:$C,$B148)*IF($A148=Mercado!$D$30,$C148,IF($A148=Mercado!$D$31,$D148,$E148))*J$86,"-") -> - | K148: =SUMPRODUCT(G148:J148,datos!$B$10:$E$10) -> 0
A149: =Mercado!D644 -> 0 | B149: =Mercado!C191 ->  | C149: =1/(Mercado!$G579*8760)*Mercado!$Y579 ->  | D149: =Mercado!$H579*Mercado!$Y579 ->  | E149: =Mercado!$I579*Mercado!$O579 ->  | F149: =IFERROR(SUMIFS(Mercado!D:D,Mercado!$A:$A,$A149,Mercado!$C:$C,$B149)*IF($A149=Mercado!$D$30,$C149,IF($A149=Mercado!$D$31,$D149,$E149))*F$86,"-") -> - | G149: =IFERROR(SUMIFS(Mercado!E:E,Mercado!$A:$A,$A149,Mercado!$C:$C,$B149)*IF($A149=Mercado!$D$30,$C149,IF($A149=Mercado!$D$31,$D149,$E149))*G$86,"-") -> - | H149: =IFERROR(SUMIFS(Mercado!F:F,Mercado!$A:$A,$A149,Mercado!$C:$C,$B149)*IF($A149=Mercado!$D$30,$C149,IF($A149=Mercado!$D$31,$D149,$E149))*H$86,"-") -> - | I149: =IFERROR(SUMIFS(Mercado!G:G,Mercado!$A:$A,$A149,Mercado!$C:$C,$B149)*IF($A149=Mercado!$D$30,$C149,IF($A149=Mercado!$D$31,$D149,$E149))*I$86,"-") -> - | J149: =IFERROR(SUMIFS(Mercado!H:H,Mercado!$A:$A,$A149,Mercado!$C:$C,$B149)*IF($A149=Mercado!$D$30,$C149,IF($A149=Mercado!$D$31,$D149,$E149))*J$86,"-") -> - | K149: =SUMPRODUCT(G149:J149,datos!$B$10:$E$10) -> 0
A150: =Mercado!D645 -> Pot_Max | B150: =Mercado!C192 -> MTD | C150: =1/(Mercado!$G580*8760)*Mercado!$Y580 -> 0.0001622627624 | D150: =Mercado!$H580*Mercado!$Y580 -> 0.8171768283 | E150: =Mercado!$I580*Mercado!$O580 -> 0.8329133491 | F150: =IFERROR(SUMIFS(Mercado!D:D,Mercado!$A:$A,$A150,Mercado!$C:$C,$B150)*IF($A150=Mercado!$D$30,$C150,IF($A150=Mercado!$D$31,$D150,$E150))*F$86,"-") -> 64.13992028 | G150: =IFERROR(SUMIFS(Mercado!E:E,Mercado!$A:$A,$A150,Mercado!$C:$C,$B150)*IF($A150=Mercado!$D$30,$C150,IF($A150=Mercado!$D$31,$D150,$E150))*G$86,"-") -> 64.76311281 | H150: =IFERROR(SUMIFS(Mercado!F:F,Mercado!$A:$A,$A150,Mercado!$C:$C,$B150)*IF($A150=Mercado!$D$30,$C150,IF($A150=Mercado!$D$31,$D150,$E150))*H$86,"-") -> 65.71551666 | I150: =IFERROR(SUMIFS(Mercado!G:G,Mercado!$A:$A,$A150,Mercado!$C:$C,$B150)*IF($A150=Mercado!$D$30,$C150,IF($A150=Mercado!$D$31,$D150,$E150))*I$86,"-") -> 66.68347451 | J150: =IFERROR(SUMIFS(Mercado!H:H,Mercado!$A:$A,$A150,Mercado!$C:$C,$B150)*IF($A150=Mercado!$D$30,$C150,IF($A150=Mercado!$D$31,$D150,$E150))*J$86,"-") -> 67.65364891 | K150: =SUMPRODUCT(G150:J150,datos!$B$10:$E$10) -> 224.5614637
A151: =Mercado!D646 -> Pot_Max_P | B151: =Mercado!C193 -> MTH | C151: =1/(Mercado!$G581*8760)*Mercado!$Y581 -> 0.0001622627624 | D151: =Mercado!$H581*Mercado!$Y581 -> 0.8171768283 | E151: =Mercado!$I581*Mercado!$O581 -> 0.8329133491 | F151: =IFERROR(SUMIFS(Mercado!D:D,Mercado!$A:$A,$A151,Mercado!$C:$C,$B151)*IF($A151=Mercado!$D$30,$C151,IF($A151=Mercado!$D$31,$D151,$E151))*F$86,"-") -> 9.078371263 | G151: =IFERROR(SUMIFS(Mercado!E:E,Mercado!$A:$A,$A151,Mercado!$C:$C,$B151)*IF($A151=Mercado!$D$30,$C151,IF($A151=Mercado!$D$31,$D151,$E151))*G$86,"-") -> 9.077129527 | H151: =IFERROR(SUMIFS(Mercado!F:F,Mercado!$A:$A,$A151,Mercado!$C:$C,$B151)*IF($A151=Mercado!$D$30,$C151,IF($A151=Mercado!$D$31,$D151,$E151))*H$86,"-") -> 9.120724181 | I151: =IFERROR(SUMIFS(Mercado!G:G,Mercado!$A:$A,$A151,Mercado!$C:$C,$B151)*IF($A151=Mercado!$D$30,$C151,IF($A151=Mercado!$D$31,$D151,$E151))*I$86,"-") -> 9.164725982 | J151: =IFERROR(SUMIFS(Mercado!H:H,Mercado!$A:$A,$A151,Mercado!$C:$C,$B151)*IF($A151=Mercado!$D$30,$C151,IF($A151=Mercado!$D$31,$D151,$E151))*J$86,"-") -> 9.20728645 | K151: =SUMPRODUCT(G151:J151,datos!$B$10:$E$10) -> 31.04297026
A152: =Mercado!D647 -> Pot_Max | B152: =Mercado!C194 -> A-MT | C152: =1/(Mercado!$G582*8760)*Mercado!$Y582 -> 0.0001832863965 | D152: =Mercado!$H582*Mercado!$Y582 -> 0.5482564127 | E152: =Mercado!$I582*Mercado!$O582 -> 0.5524613244 | F152: =IFERROR(SUMIFS(Mercado!D:D,Mercado!$A:$A,$A152,Mercado!$C:$C,$B152)*IF($A152=Mercado!$D$30,$C152,IF($A152=Mercado!$D$31,$D152,$E152))*F$86,"-") -> 0 | G152: =IFERROR(SUMIFS(Mercado!E:E,Mercado!$A:$A,$A152,Mercado!$C:$C,$B152)*IF($A152=Mercado!$D$30,$C152,IF($A152=Mercado!$D$31,$D152,$E152))*G$86,"-") -> 0 | H152: =IFERROR(SUMIFS(Mercado!F:F,Mercado!$A:$A,$A152,Mercado!$C:$C,$B152)*IF($A152=Mercado!$D$30,$C152,IF($A152=Mercado!$D$31,$D152,$E152))*H$86,"-") -> 0 | I152: =IFERROR(SUMIFS(Mercado!G:G,Mercado!$A:$A,$A152,Mercado!$C:$C,$B152)*IF($A152=Mercado!$D$30,$C152,IF($A152=Mercado!$D$31,$D152,$E152))*I$86,"-") -> 0 | J152: =IFERROR(SUMIFS(Mercado!H:H,Mercado!$A:$A,$A152,Mercado!$C:$C,$B152)*IF($A152=Mercado!$D$30,$C152,IF($A152=Mercado!$D$31,$D152,$E152))*J$86,"-") -> 0 | K152: =SUMPRODUCT(G152:J152,datos!$B$10:$E$10) -> 0
A153: =Mercado!D648 -> Pot_Max | B153: =Mercado!C195 -> Peaje MT | C153: =1/(Mercado!$G583*8760)*Mercado!$Y583 -> 0.0001622627624 | D153: =Mercado!$H583*Mercado!$Y583 -> 0.8171768283 | E153: =Mercado!$I583*Mercado!$O583 -> 0.8329133491 | F153: =IFERROR(SUMIFS(Mercado!D:D,Mercado!$A:$A,$A153,Mercado!$C:$C,$B153)*IF($A153=Mercado!$D$30,$C153,IF($A153=Mercado!$D$31,$D153,$E153))*F$86,"-") -> 81.04738539 | G153: =IFERROR(SUMIFS(Mercado!E:E,Mercado!$A:$A,$A153,Mercado!$C:$C,$B153)*IF($A153=Mercado!$D$30,$C153,IF($A153=Mercado!$D$31,$D153,$E153))*G$86,"-") -> 81.03629976 | H153: =IFERROR(SUMIFS(Mercado!F:F,Mercado!$A:$A,$A153,Mercado!$C:$C,$B153)*IF($A153=Mercado!$D$30,$C153,IF($A153=Mercado!$D$31,$D153,$E153))*H$86,"-") -> 81.42549212 | I153: =IFERROR(SUMIFS(Mercado!G:G,Mercado!$A:$A,$A153,Mercado!$C:$C,$B153)*IF($A153=Mercado!$D$30,$C153,IF($A153=Mercado!$D$31,$D153,$E153))*I$86,"-") -> 81.81831929 | J153: =IFERROR(SUMIFS(Mercado!H:H,Mercado!$A:$A,$A153,Mercado!$C:$C,$B153)*IF($A153=Mercado!$D$30,$C153,IF($A153=Mercado!$D$31,$D153,$E153))*J$86,"-") -> 82.19827892 | K153: =SUMPRODUCT(G153:J153,datos!$B$10:$E$10) -> 277.1368896
A154: =Mercado!D649 -> 0 | B154: =Mercado!C196 ->  | C154: =1/(Mercado!$G584*8760)*Mercado!$Y584 ->  | D154: =Mercado!$H584*Mercado!$Y584 ->  | E154: =Mercado!$I584*Mercado!$O584 ->  | F154: =IFERROR(SUMIFS(Mercado!D:D,Mercado!$A:$A,$A154,Mercado!$C:$C,$B154)*IF($A154=Mercado!$D$30,$C154,IF($A154=Mercado!$D$31,$D154,$E154))*F$86,"-") -> - | G154: =IFERROR(SUMIFS(Mercado!E:E,Mercado!$A:$A,$A154,Mercado!$C:$C,$B154)*IF($A154=Mercado!$D$30,$C154,IF($A154=Mercado!$D$31,$D154,$E154))*G$86,"-") -> - | H154: =IFERROR(SUMIFS(Mercado!F:F,Mercado!$A:$A,$A154,Mercado!$C:$C,$B154)*IF($A154=Mercado!$D$30,$C154,IF($A154=Mercado!$D$31,$D154,$E154))*H$86,"-") -> - | I154: =IFERROR(SUMIFS(Mercado!G:G,Mercado!$A:$A,$A154,Mercado!$C:$C,$B154)*IF($A154=Mercado!$D$30,$C154,IF($A154=Mercado!$D$31,$D154,$E154))*I$86,"-") -> - | J154: =IFERROR(SUMIFS(Mercado!H:H,Mercado!$A:$A,$A154,Mercado!$C:$C,$B154)*IF($A154=Mercado!$D$30,$C154,IF($A154=Mercado!$D$31,$D154,$E154))*J$86,"-") -> - | K154: =SUMPRODUCT(G154:J154,datos!$B$10:$E$10) -> 0
A155: =Mercado!D650 -> 0 | B155: =Mercado!C197 ->  | C155: =1/(Mercado!$G585*8760)*Mercado!$Y585 ->  | D155: =Mercado!$H585*Mercado!$Y585 ->  | E155: =Mercado!$I585*Mercado!$O585 ->  | F155: =IFERROR(SUMIFS(Mercado!D:D,Mercado!$A:$A,$A155,Mercado!$C:$C,$B155)*IF($A155=Mercado!$D$30,$C155,IF($A155=Mercado!$D$31,$D155,$E155))*F$86,"-") -> - | G155: =IFERROR(SUMIFS(Mercado!E:E,Mercado!$A:$A,$A155,Mercado!$C:$C,$B155)*IF($A155=Mercado!$D$30,$C155,IF($A155=Mercado!$D$31,$D155,$E155))*G$86,"-") -> - | H155: =IFERROR(SUMIFS(Mercado!F:F,Mercado!$A:$A,$A155,Mercado!$C:$C,$B155)*IF($A155=Mercado!$D$30,$C155,IF($A155=Mercado!$D$31,$D155,$E155))*H$86,"-") -> - | I155: =IFERROR(SUMIFS(Mercado!G:G,Mercado!$A:$A,$A155,Mercado!$C:$C,$B155)*IF($A155=Mercado!$D$30,$C155,IF($A155=Mercado!$D$31,$D155,$E155))*I$86,"-") -> - | J155: =IFERROR(SUMIFS(Mercado!H:H,Mercado!$A:$A,$A155,Mercado!$C:$C,$B155)*IF($A155=Mercado!$D$30,$C155,IF($A155=Mercado!$D$31,$D155,$E155))*J$86,"-") -> - | K155: =SUMPRODUCT(G155:J155,datos!$B$10:$E$10) -> 0
A156: =Mercado!D651 -> 0 | B156: =Mercado!C198 ->  | C156: =1/(Mercado!$G586*8760)*Mercado!$Y586 ->  | D156: =Mercado!$H586*Mercado!$Y586 ->  | E156: =Mercado!$I586*Mercado!$O586 ->  | F156: =IFERROR(SUMIFS(Mercado!D:D,Mercado!$A:$A,$A156,Mercado!$C:$C,$B156)*IF($A156=Mercado!$D$30,$C156,IF($A156=Mercado!$D$31,$D156,$E156))*F$86,"-") -> - | G156: =IFERROR(SUMIFS(Mercado!E:E,Mercado!$A:$A,$A156,Mercado!$C:$C,$B156)*IF($A156=Mercado!$D$30,$C156,IF($A156=Mercado!$D$31,$D156,$E156))*G$86,"-") -> - | H156: =IFERROR(SUMIFS(Mercado!F:F,Mercado!$A:$A,$A156,Mercado!$C:$C,$B156)*IF($A156=Mercado!$D$30,$C156,IF($A156=Mercado!$D$31,$D156,$E156))*H$86,"-") -> - | I156: =IFERROR(SUMIFS(Mercado!G:G,Mercado!$A:$A,$A156,Mercado!$C:$C,$B156)*IF($A156=Mercado!$D$30,$C156,IF($A156=Mercado!$D$31,$D156,$E156))*I$86,"-") -> - | J156: =IFERROR(SUMIFS(Mercado!H:H,Mercado!$A:$A,$A156,Mercado!$C:$C,$B156)*IF($A156=Mercado!$D$30,$C156,IF($A156=Mercado!$D$31,$D156,$E156))*J$86,"-") -> - | K156: =SUMPRODUCT(G156:J156,datos!$B$10:$E$10) -> 0
A157: =Mercado!D652 -> 0 | B157: =Mercado!C199 ->  | C157: =1/(Mercado!$G587*8760)*Mercado!$Y587 ->  | D157: =Mercado!$H587*Mercado!$Y587 ->  | E157: =Mercado!$I587*Mercado!$O587 ->  | F157: =IFERROR(SUMIFS(Mercado!D:D,Mercado!$A:$A,$A157,Mercado!$C:$C,$B157)*IF($A157=Mercado!$D$30,$C157,IF($A157=Mercado!$D$31,$D157,$E157))*F$86,"-") -> - | G157: =IFERROR(SUMIFS(Mercado!E:E,Mercado!$A:$A,$A157,Mercado!$C:$C,$B157)*IF($A157=Mercado!$D$30,$C157,IF($A157=Mercado!$D$31,$D157,$E157))*G$86,"-") -> - | H157: =IFERROR(SUMIFS(Mercado!F:F,Mercado!$A:$A,$A157,Mercado!$C:$C,$B157)*IF($A157=Mercado!$D$30,$C157,IF($A157=Mercado!$D$31,$D157,$E157))*H$86,"-") -> - | I157: =IFERROR(SUMIFS(Mercado!G:G,Mercado!$A:$A,$A157,Mercado!$C:$C,$B157)*IF($A157=Mercado!$D$30,$C157,IF($A157=Mercado!$D$31,$D157,$E157))*I$86,"-") -> - | J157: =IFERROR(SUMIFS(Mercado!H:H,Mercado!$A:$A,$A157,Mercado!$C:$C,$B157)*IF($A157=Mercado!$D$30,$C157,IF($A157=Mercado!$D$31,$D157,$E157))*J$86,"-") -> - | K157: =SUMPRODUCT(G157:J157,datos!$B$10:$E$10) -> 0
A158: =Mercado!D653 -> 0 | B158: =Mercado!C200 ->  | C158: =1/(Mercado!$G588*8760)*Mercado!$Y588 ->  | D158: =Mercado!$H588*Mercado!$Y588 ->  | E158: =Mercado!$I588*Mercado!$O588 ->  | F158: =IFERROR(SUMIFS(Mercado!D:D,Mercado!$A:$A,$A158,Mercado!$C:$C,$B158)*IF($A158=Mercado!$D$30,$C158,IF($A158=Mercado!$D$31,$D158,$E158))*F$86,"-") -> - | G158: =IFERROR(SUMIFS(Mercado!E:E,Mercado!$A:$A,$A158,Mercado!$C:$C,$B158)*IF($A158=Mercado!$D$30,$C158,IF($A158=Mercado!$D$31,$D158,$E158))*G$86,"-") -> - | H158: =IFERROR(SUMIFS(Mercado!F:F,Mercado!$A:$A,$A158,Mercado!$C:$C,$B158)*IF($A158=Mercado!$D$30,$C158,IF($A158=Mercado!$D$31,$D158,$E158))*H$86,"-") -> - | I158: =IFERROR(SUMIFS(Mercado!G:G,Mercado!$A:$A,$A158,Mercado!$C:$C,$B158)*IF($A158=Mercado!$D$30,$C158,IF($A158=Mercado!$D$31,$D158,$E158))*I$86,"-") -> - | J158: =IFERROR(SUMIFS(Mercado!H:H,Mercado!$A:$A,$A158,Mercado!$C:$C,$B158)*IF($A158=Mercado!$D$30,$C158,IF($A158=Mercado!$D$31,$D158,$E158))*J$86,"-") -> - | K158: =SUMPRODUCT(G158:J158,datos!$B$10:$E$10) -> 0
A159: =Mercado!D654 -> Pot_Max_P | B159: =Mercado!C201 -> Peaje MTH | C159: =1/(Mercado!$G589*8760)*Mercado!$Y589 -> 0.0001622627624 | D159: =Mercado!$H589*Mercado!$Y589 -> 0.8171768283 | E159: =Mercado!$I589*Mercado!$O589 -> 0.8329133491 | F159: =IFERROR(SUMIFS(Mercado!D:D,Mercado!$A:$A,$A159,Mercado!$C:$C,$B159)*IF($A159=Mercado!$D$30,$C159,IF($A159=Mercado!$D$31,$D159,$E159))*F$86,"-") -> 21.34205721 | G159: =IFERROR(SUMIFS(Mercado!E:E,Mercado!$A:$A,$A159,Mercado!$C:$C,$B159)*IF($A159=Mercado!$D$30,$C159,IF($A159=Mercado!$D$31,$D159,$E159))*G$86,"-") -> 21.33913805 | H159: =IFERROR(SUMIFS(Mercado!F:F,Mercado!$A:$A,$A159,Mercado!$C:$C,$B159)*IF($A159=Mercado!$D$30,$C159,IF($A159=Mercado!$D$31,$D159,$E159))*H$86,"-") -> 21.44162335 | I159: =IFERROR(SUMIFS(Mercado!G:G,Mercado!$A:$A,$A159,Mercado!$C:$C,$B159)*IF($A159=Mercado!$D$30,$C159,IF($A159=Mercado!$D$31,$D159,$E159))*I$86,"-") -> 21.5450658 | J159: =IFERROR(SUMIFS(Mercado!H:H,Mercado!$A:$A,$A159,Mercado!$C:$C,$B159)*IF($A159=Mercado!$D$30,$C159,IF($A159=Mercado!$D$31,$D159,$E159))*J$86,"-") -> 21.64511986 | K159: =SUMPRODUCT(G159:J159,datos!$B$10:$E$10) -> 72.97794151
A160: =Mercado!D655 -> 0 | B160: =Mercado!C202 ->  | C160: =1/(Mercado!$G590*8760)*Mercado!$Y590 ->  | D160: =Mercado!$H590*Mercado!$Y590 ->  | E160: =Mercado!$I590*Mercado!$O590 ->  | F160: =IFERROR(SUMIFS(Mercado!D:D,Mercado!$A:$A,$A160,Mercado!$C:$C,$B160)*IF($A160=Mercado!$D$30,$C160,IF($A160=Mercado!$D$31,$D160,$E160))*F$86,"-") -> - | G160: =IFERROR(SUMIFS(Mercado!E:E,Mercado!$A:$A,$A160,Mercado!$C:$C,$B160)*IF($A160=Mercado!$D$30,$C160,IF($A160=Mercado!$D$31,$D160,$E160))*G$86,"-") -> - | H160: =IFERROR(SUMIFS(Mercado!F:F,Mercado!$A:$A,$A160,Mercado!$C:$C,$B160)*IF($A160=Mercado!$D$30,$C160,IF($A160=Mercado!$D$31,$D160,$E160))*H$86,"-") -> - | I160: =IFERROR(SUMIFS(Mercado!G:G,Mercado!$A:$A,$A160,Mercado!$C:$C,$B160)*IF($A160=Mercado!$D$30,$C160,IF($A160=Mercado!$D$31,$D160,$E160))*I$86,"-") -> - | J160: =IFERROR(SUMIFS(Mercado!H:H,Mercado!$A:$A,$A160,Mercado!$C:$C,$B160)*IF($A160=Mercado!$D$30,$C160,IF($A160=Mercado!$D$31,$D160,$E160))*J$86,"-") -> - | K160: =SUMPRODUCT(G160:J160,datos!$B$10:$E$10) -> 0
A161: =Mercado!D656 -> 0 | B161: =Mercado!C203 ->  | C161: =1/(Mercado!$G591*8760)*Mercado!$Y591 ->  | D161: =Mercado!$H591*Mercado!$Y591 ->  | E161: =Mercado!$I591*Mercado!$O591 ->  | F161: =IFERROR(SUMIFS(Mercado!D:D,Mercado!$A:$A,$A161,Mercado!$C:$C,$B161)*IF($A161=Mercado!$D$30,$C161,IF($A161=Mercado!$D$31,$D161,$E161))*F$86,"-") -> - | G161: =IFERROR(SUMIFS(Mercado!E:E,Mercado!$A:$A,$A161,Mercado!$C:$C,$B161)*IF($A161=Mercado!$D$30,$C161,IF($A161=Mercado!$D$31,$D161,$E161))*G$86,"-") -> - | H161: =IFERROR(SUMIFS(Mercado!F:F,Mercado!$A:$A,$A161,Mercado!$C:$C,$B161)*IF($A161=Mercado!$D$30,$C161,IF($A161=Mercado!$D$31,$D161,$E161))*H$86,"-") -> - | I161: =IFERROR(SUMIFS(Mercado!G:G,Mercado!$A:$A,$A161,Mercado!$C:$C,$B161)*IF($A161=Mercado!$D$30,$C161,IF($A161=Mercado!$D$31,$D161,$E161))*I$86,"-") -> - | J161: =IFERROR(SUMIFS(Mercado!H:H,Mercado!$A:$A,$A161,Mercado!$C:$C,$B161)*IF($A161=Mercado!$D$30,$C161,IF($A161=Mercado!$D$31,$D161,$E161))*J$86,"-") -> - | K161: =SUMPRODUCT(G161:J161,datos!$B$10:$E$10) -> 0
A162: =Mercado!D657 -> 0 | B162: =Mercado!C204 ->  | C162: =1/(Mercado!$G592*8760)*Mercado!$Y592 ->  | D162: =Mercado!$H592*Mercado!$Y592 ->  | E162: =Mercado!$I592*Mercado!$O592 ->  | F162: =IFERROR(SUMIFS(Mercado!D:D,Mercado!$A:$A,$A162,Mercado!$C:$C,$B162)*IF($A162=Mercado!$D$30,$C162,IF($A162=Mercado!$D$31,$D162,$E162))*F$86,"-") -> - | G162: =IFERROR(SUMIFS(Mercado!E:E,Mercado!$A:$A,$A162,Mercado!$C:$C,$B162)*IF($A162=Mercado!$D$30,$C162,IF($A162=Mercado!$D$31,$D162,$E162))*G$86,"-") -> - | H162: =IFERROR(SUMIFS(Mercado!F:F,Mercado!$A:$A,$A162,Mercado!$C:$C,$B162)*IF($A162=Mercado!$D$30,$C162,IF($A162=Mercado!$D$31,$D162,$E162))*H$86,"-") -> - | I162: =IFERROR(SUMIFS(Mercado!G:G,Mercado!$A:$A,$A162,Mercado!$C:$C,$B162)*IF($A162=Mercado!$D$30,$C162,IF($A162=Mercado!$D$31,$D162,$E162))*I$86,"-") -> - | J162: =IFERROR(SUMIFS(Mercado!H:H,Mercado!$A:$A,$A162,Mercado!$C:$C,$B162)*IF($A162=Mercado!$D$30,$C162,IF($A162=Mercado!$D$31,$D162,$E162))*J$86,"-") -> - | K162: =SUMPRODUCT(G162:J162,datos!$B$10:$E$10) -> 0
A163: =Mercado!D658 -> 0 | B163: =Mercado!C205 ->  | C163: =1/(Mercado!$G593*8760)*Mercado!$Y593 ->  | D163: =Mercado!$H593*Mercado!$Y593 ->  | E163: =Mercado!$I593*Mercado!$O593 ->  | F163: =IFERROR(SUMIFS(Mercado!D:D,Mercado!$A:$A,$A163,Mercado!$C:$C,$B163)*IF($A163=Mercado!$D$30,$C163,IF($A163=Mercado!$D$31,$D163,$E163))*F$86,"-") -> - | G163: =IFERROR(SUMIFS(Mercado!E:E,Mercado!$A:$A,$A163,Mercado!$C:$C,$B163)*IF($A163=Mercado!$D$30,$C163,IF($A163=Mercado!$D$31,$D163,$E163))*G$86,"-") -> - | H163: =IFERROR(SUMIFS(Mercado!F:F,Mercado!$A:$A,$A163,Mercado!$C:$C,$B163)*IF($A163=Mercado!$D$30,$C163,IF($A163=Mercado!$D$31,$D163,$E163))*H$86,"-") -> - | I163: =IFERROR(SUMIFS(Mercado!G:G,Mercado!$A:$A,$A163,Mercado!$C:$C,$B163)*IF($A163=Mercado!$D$30,$C163,IF($A163=Mercado!$D$31,$D163,$E163))*I$86,"-") -> - | J163: =IFERROR(SUMIFS(Mercado!H:H,Mercado!$A:$A,$A163,Mercado!$C:$C,$B163)*IF($A163=Mercado!$D$30,$C163,IF($A163=Mercado!$D$31,$D163,$E163))*J$86,"-") -> - | K163: =SUMPRODUCT(G163:J163,datos!$B$10:$E$10) -> 0
B164: Pérdida MT | F164: =SUM(F143:F163)*(F70-1) -> 43.19235123 | G164: =SUM(G143:G163)*(G70-1) -> 44.13537482 | H164: 45.53111254 | I164: 47.01852623 | J164: 48.57444362 | K164: =SUMPRODUCT(G164:J164,datos!$B$10:$E$10) -> 156.8107346
B165: Potencia Máxima MT | F165: =SUM(F143:F164) -> 742.5842793 | G165: =SUM(G143:G164) -> 766.2796863 | H165: 793.7921962 | I165: 822.9713044 | J165: 853.4981156 | K165: =SUMPRODUCT(G165:J165,datos!$B$10:$E$10) -> 2738.383092
C167: Coeficientes de responsabilidad (Tipo de medición) | F167: Potencia coincidente con máxima AT
C168: Energía | D168: Potencia máxima | E168: Potencia por franja horaria
A169: =A93 -> Energia | B169: =Mercado!C165 -> BTS | C169: =1/(Mercado!$G553*8760)*Mercado!$Z553 -> 0.0001273027066 | D169: =Mercado!$H553*Mercado!$Z553 -> 0.3986000416 | E169: =Mercado!$I553*Mercado!$P553 -> 0.5126984678 | F169: =IFERROR(SUMIFS(Mercado!D:D,Mercado!$A:$A,$A169,Mercado!$C:$C,$B169)*IF($A169=Mercado!$D$30,$C169,IF($A169=Mercado!$D$31,$D169,$E169))*F$86,"-") -> 283.9678406 | G169: =IFERROR(SUMIFS(Mercado!E:E,Mercado!$A:$A,$A169,Mercado!$C:$C,$B169)*IF($A169=Mercado!$D$30,$C169,IF($A169=Mercado!$D$31,$D169,$E169))*G$86,"-") -> 296.4185565 | H169: =IFERROR(SUMIFS(Mercado!F:F,Mercado!$A:$A,$A169,Mercado!$C:$C,$B169)*IF($A169=Mercado!$D$30,$C169,IF($A169=Mercado!$D$31,$D169,$E169))*H$86,"-") -> 310.4816011 | I169: =IFERROR(SUMIFS(Mercado!G:G,Mercado!$A:$A,$A169,Mercado!$C:$C,$B169)*IF($A169=Mercado!$D$30,$C169,IF($A169=Mercado!$D$31,$D169,$E169))*I$86,"-") -> 325.2213596 | J169: =IFERROR(SUMIFS(Mercado!H:H,Mercado!$A:$A,$A169,Mercado!$C:$C,$B169)*IF($A169=Mercado!$D$30,$C169,IF($A169=Mercado!$D$31,$D169,$E169))*J$86,"-") -> 340.5368814 | K169: =SUMPRODUCT(G169:J169,datos!$B$10:$E$10) -> 1075.60502
A170: Pot_Max | B170: =Mercado!C166 -> BTD | C170: =1/(Mercado!$G554*8760)*Mercado!$Z554 -> 0.0002100179781 | D170: =Mercado!$H554*Mercado!$Z554 -> 0.7627076752 | E170: =Mercado!$I554*Mercado!$P554 -> 0.7870304742 | F170: =IFERROR(SUMIFS(Mercado!D:D,Mercado!$A:$A,$A170,Mercado!$C:$C,$B170)*IF($A170=Mercado!$D$30,$C170,IF($A170=Mercado!$D$31,$D170,$E170))*F$86,"-") -> 167.5048371 | G170: =IFERROR(SUMIFS(Mercado!E:E,Mercado!$A:$A,$A170,Mercado!$C:$C,$B170)*IF($A170=Mercado!$D$30,$C170,IF($A170=Mercado!$D$31,$D170,$E170))*G$86,"-") -> 170.8406297 | H170: =IFERROR(SUMIFS(Mercado!F:F,Mercado!$A:$A,$A170,Mercado!$C:$C,$B170)*IF($A170=Mercado!$D$30,$C170,IF($A170=Mercado!$D$31,$D170,$E170))*H$86,"-") -> 175.1037934 | I170: =IFERROR(SUMIFS(Mercado!G:G,Mercado!$A:$A,$A170,Mercado!$C:$C,$B170)*IF($A170=Mercado!$D$30,$C170,IF($A170=Mercado!$D$31,$D170,$E170))*I$86,"-") -> 179.477369 | J170: =IFERROR(SUMIFS(Mercado!H:H,Mercado!$A:$A,$A170,Mercado!$C:$C,$B170)*IF($A170=Mercado!$D$30,$C170,IF($A170=Mercado!$D$31,$D170,$E170))*J$86,"-") -> 183.9273067 | K170: =SUMPRODUCT(G170:J170,datos!$B$10:$E$10) -> 600.8856306
A171: Pot_Max_P | B171: =Mercado!C167 -> BTH | C171: =1/(Mercado!$G555*8760)*Mercado!$Z555 -> 0.0002100179781 | D171: =Mercado!$H555*Mercado!$Z555 -> 0.7627076752 | E171: =Mercado!$I555*Mercado!$P555 -> 0.7870304742 | F171: =IFERROR(SUMIFS(Mercado!D:D,Mercado!$A:$A,$A171,Mercado!$C:$C,$B171)*IF($A171=Mercado!$D$30,$C171,IF($A171=Mercado!$D$31,$D171,$E171))*F$86,"-") -> 1.56813241 | G171: =IFERROR(SUMIFS(Mercado!E:E,Mercado!$A:$A,$A171,Mercado!$C:$C,$B171)*IF($A171=Mercado!$D$30,$C171,IF($A171=Mercado!$D$31,$D171,$E171))*G$86,"-") -> 1.567917921 | H171: =IFERROR(SUMIFS(Mercado!F:F,Mercado!$A:$A,$A171,Mercado!$C:$C,$B171)*IF($A171=Mercado!$D$30,$C171,IF($A171=Mercado!$D$31,$D171,$E171))*H$86,"-") -> 1.575448148 | I171: =IFERROR(SUMIFS(Mercado!G:G,Mercado!$A:$A,$A171,Mercado!$C:$C,$B171)*IF($A171=Mercado!$D$30,$C171,IF($A171=Mercado!$D$31,$D171,$E171))*I$86,"-") -> 1.583048702 | J171: =IFERROR(SUMIFS(Mercado!H:H,Mercado!$A:$A,$A171,Mercado!$C:$C,$B171)*IF($A171=Mercado!$D$30,$C171,IF($A171=Mercado!$D$31,$D171,$E171))*J$86,"-") -> 1.59040029 | K171: =SUMPRODUCT(G171:J171,datos!$B$10:$E$10) -> 5.362138907
A172: 0 | B172: =Mercado!C168 -> A-BTS | C172: =1/(Mercado!$G556*8760)*Mercado!$Z556 -> 0.0002044371221 | D172: =Mercado!$H556*Mercado!$Z556 -> 0.5237600539 | E172: =Mercado!$I556*Mercado!$P556 -> 0.5307110911 | F172: =IFERROR(SUMIFS(Mercado!D:D,Mercado!$A:$A,$A172,Mercado!$C:$C,$B172)*IF($A172=Mercado!$D$30,$C172,IF($A172=Mercado!$D$31,$D172,$E172))*F$86,"-") -> 0 | G172: =IFERROR(SUMIFS(Mercado!E:E,Mercado!$A:$A,$A172,Mercado!$C:$C,$B172)*IF($A172=Mercado!$D$30,$C172,IF($A172=Mercado!$D$31,$D172,$E172))*G$86,"-") -> 0 | H172: =IFERROR(SUMIFS(Mercado!F:F,Mercado!$A:$A,$A172,Mercado!$C:$C,$B172)*IF($A172=Mercado!$D$30,$C172,IF($A172=Mercado!$D$31,$D172,$E172))*H$86,"-") -> 0 | I172: =IFERROR(SUMIFS(Mercado!G:G,Mercado!$A:$A,$A172,Mercado!$C:$C,$B172)*IF($A172=Mercado!$D$30,$C172,IF($A172=Mercado!$D$31,$D172,$E172))*I$86,"-") -> 0 | J172: =IFERROR(SUMIFS(Mercado!H:H,Mercado!$A:$A,$A172,Mercado!$C:$C,$B172)*IF($A172=Mercado!$D$30,$C172,IF($A172=Mercado!$D$31,$D172,$E172))*J$86,"-") -> 0 | K172: =SUMPRODUCT(G172:J172,datos!$B$10:$E$10) -> 0
A173: Pot_Max | B173: =Mercado!C169 -> A-BTD | C173: =1/(Mercado!$G557*8760)*Mercado!$Z557 -> 0.0002044371221 | D173: =Mercado!$H557*Mercado!$Z557 -> 0.5237600539 | E173: =Mercado!$I557*Mercado!$P557 -> 0.5307110911 | F173: =IFERROR(SUMIFS(Mercado!D:D,Mercado!$A:$A,$A173,Mercado!$C:$C,$B173)*IF($A173=Mercado!$D$30,$C173,IF($A173=Mercado!$D$31,$D173,$E173))*F$86,"-") -> 0 | G173: =IFERROR(SUMIFS(Mercado!E:E,Mercado!$A:$A,$A173,Mercado!$C:$C,$B173)*IF($A173=Mercado!$D$30,$C173,IF($A173=Mercado!$D$31,$D173,$E173))*G$86,"-") -> 0 | H173: =IFERROR(SUMIFS(Mercado!F:F,Mercado!$A:$A,$A173,Mercado!$C:$C,$B173)*IF($A173=Mercado!$D$30,$C173,IF($A173=Mercado!$D$31,$D173,$E173))*H$86,"-") -> 0 | I173: =IFERROR(SUMIFS(Mercado!G:G,Mercado!$A:$A,$A173,Mercado!$C:$C,$B173)*IF($A173=Mercado!$D$30,$C173,IF($A173=Mercado!$D$31,$D173,$E173))*I$86,"-") -> 0 | J173: =IFERROR(SUMIFS(Mercado!H:H,Mercado!$A:$A,$A173,Mercado!$C:$C,$B173)*IF($A173=Mercado!$D$30,$C173,IF($A173=Mercado!$D$31,$D173,$E173))*J$86,"-") -> 0 | K173: =SUMPRODUCT(G173:J173,datos!$B$10:$E$10) -> 0
A174: Pot_Max | B174: =Mercado!C170 -> Peaje BT | C174: =1/(Mercado!$G558*8760)*Mercado!$Z558 -> 0.0002100179781 | D174: =Mercado!$H558*Mercado!$Z558 -> 0.7627076752 | E174: =Mercado!$I558*Mercado!$P558 -> 0.7870304742 | F174: =IFERROR(SUMIFS(Mercado!D:D,Mercado!$A:$A,$A174,Mercado!$C:$C,$B174)*IF($A174=Mercado!$D$30,$C174,IF($A174=Mercado!$D$31,$D174,$E174))*F$86,"-") -> 19.41438809 | G174: =IFERROR(SUMIFS(Mercado!E:E,Mercado!$A:$A,$A174,Mercado!$C:$C,$B174)*IF($A174=Mercado!$D$30,$C174,IF($A174=Mercado!$D$31,$D174,$E174))*G$86,"-") -> 19.4117326 | H174: =IFERROR(SUMIFS(Mercado!F:F,Mercado!$A:$A,$A174,Mercado!$C:$C,$B174)*IF($A174=Mercado!$D$30,$C174,IF($A174=Mercado!$D$31,$D174,$E174))*H$86,"-") -> 19.50496116 | I174: =IFERROR(SUMIFS(Mercado!G:G,Mercado!$A:$A,$A174,Mercado!$C:$C,$B174)*IF($A174=Mercado!$D$30,$C174,IF($A174=Mercado!$D$31,$D174,$E174))*I$86,"-") -> 19.59906042 | J174: =IFERROR(SUMIFS(Mercado!H:H,Mercado!$A:$A,$A174,Mercado!$C:$C,$B174)*IF($A174=Mercado!$D$30,$C174,IF($A174=Mercado!$D$31,$D174,$E174))*J$86,"-") -> 19.69007735 | K174: =SUMPRODUCT(G174:J174,datos!$B$10:$E$10) -> 66.38638744
A175: Pot_Max_P | B175: =Mercado!C171 -> Peaje BTH | C175: =1/(Mercado!$G559*8760)*Mercado!$Z559 -> 0.0002100179781 | D175: =Mercado!$H559*Mercado!$Z559 -> 0.7627076752 | E175: =Mercado!$I559*Mercado!$P559 -> 0.7870304742 | F175: =IFERROR(SUMIFS(Mercado!D:D,Mercado!$A:$A,$A175,Mercado!$C:$C,$B175)*IF($A175=Mercado!$D$30,$C175,IF($A175=Mercado!$D$31,$D175,$E175))*F$86,"-") -> 0.4880962206 | G175: =IFERROR(SUMIFS(Mercado!E:E,Mercado!$A:$A,$A175,Mercado!$C:$C,$B175)*IF($A175=Mercado!$D$30,$C175,IF($A175=Mercado!$D$31,$D175,$E175))*G$86,"-") -> 0.488029459 | H175: =IFERROR(SUMIFS(Mercado!F:F,Mercado!$A:$A,$A175,Mercado!$C:$C,$B175)*IF($A175=Mercado!$D$30,$C175,IF($A175=Mercado!$D$31,$D175,$E175))*H$86,"-") -> 0.490373314 | I175: =IFERROR(SUMIFS(Mercado!G:G,Mercado!$A:$A,$A175,Mercado!$C:$C,$B175)*IF($A175=Mercado!$D$30,$C175,IF($A175=Mercado!$D$31,$D175,$E175))*I$86,"-") -> 0.4927390592 | J175: =IFERROR(SUMIFS(Mercado!H:H,Mercado!$A:$A,$A175,Mercado!$C:$C,$B175)*IF($A175=Mercado!$D$30,$C175,IF($A175=Mercado!$D$31,$D175,$E175))*J$86,"-") -> 0.4950273114 | K175: =SUMPRODUCT(G175:J175,datos!$B$10:$E$10) -> 1.669017054
A176: 0 | B176: =Mercado!C172 ->  | C176: =1/(Mercado!$G560*8760)*Mercado!$Z560 ->  | D176: =Mercado!$H560*Mercado!$Z560 ->  | E176: =Mercado!$I560*Mercado!$P560 ->  | F176: =IFERROR(SUMIFS(Mercado!D:D,Mercado!$A:$A,$A176,Mercado!$C:$C,$B176)*IF($A176=Mercado!$D$30,$C176,IF($A176=Mercado!$D$31,$D176,$E176))*F$86,"-") -> - | G176: =IFERROR(SUMIFS(Mercado!E:E,Mercado!$A:$A,$A176,Mercado!$C:$C,$B176)*IF($A176=Mercado!$D$30,$C176,IF($A176=Mercado!$D$31,$D176,$E176))*G$86,"-") -> - | H176: =IFERROR(SUMIFS(Mercado!F:F,Mercado!$A:$A,$A176,Mercado!$C:$C,$B176)*IF($A176=Mercado!$D$30,$C176,IF($A176=Mercado!$D$31,$D176,$E176))*H$86,"-") -> - | I176: =IFERROR(SUMIFS(Mercado!G:G,Mercado!$A:$A,$A176,Mercado!$C:$C,$B176)*IF($A176=Mercado!$D$30,$C176,IF($A176=Mercado!$D$31,$D176,$E176))*I$86,"-") -> - | J176: =IFERROR(SUMIFS(Mercado!H:H,Mercado!$A:$A,$A176,Mercado!$C:$C,$B176)*IF($A176=Mercado!$D$30,$C176,IF($A176=Mercado!$D$31,$D176,$E176))*J$86,"-") -> - | K176: =SUMPRODUCT(G176:J176,datos!$B$10:$E$10) -> 0
A177: 0 | B177: =Mercado!C173 ->  | C177: =1/(Mercado!$G561*8760)*Mercado!$Z561 ->  | D177: =Mercado!$H561*Mercado!$Z561 ->  | E177: =Mercado!$I561*Mercado!$P561 ->  | F177: =IFERROR(SUMIFS(Mercado!D:D,Mercado!$A:$A,$A177,Mercado!$C:$C,$B177)*IF($A177=Mercado!$D$30,$C177,IF($A177=Mercado!$D$31,$D177,$E177))*F$86,"-") -> - | G177: =IFERROR(SUMIFS(Mercado!E:E,Mercado!$A:$A,$A177,Mercado!$C:$C,$B177)*IF($A177=Mercado!$D$30,$C177,IF($A177=Mercado!$D$31,$D177,$E177))*G$86,"-") -> - | H177: =IFERROR(SUMIFS(Mercado!F:F,Mercado!$A:$A,$A177,Mercado!$C:$C,$B177)*IF($A177=Mercado!$D$30,$C177,IF($A177=Mercado!$D$31,$D177,$E177))*H$86,"-") -> - | I177: =IFERROR(SUMIFS(Mercado!G:G,Mercado!$A:$A,$A177,Mercado!$C:$C,$B177)*IF($A177=Mercado!$D$30,$C177,IF($A177=Mercado!$D$31,$D177,$E177))*I$86,"-") -> - | J177: =IFERROR(SUMIFS(Mercado!H:H,Mercado!$A:$A,$A177,Mercado!$C:$C,$B177)*IF($A177=Mercado!$D$30,$C177,IF($A177=Mercado!$D$31,$D177,$E177))*J$86,"-") -> - | K177: =SUMPRODUCT(G177:J177,datos!$B$10:$E$10) -> 0
A178: 0 | B178: =Mercado!C174 ->  | C178: =1/(Mercado!$G562*8760)*Mercado!$Z562 ->  | D178: =Mercado!$H562*Mercado!$Z562 ->  | E178: =Mercado!$I562*Mercado!$P562 ->  | F178: =IFERROR(SUMIFS(Mercado!D:D,Mercado!$A:$A,$A178,Mercado!$C:$C,$B178)*IF($A178=Mercado!$D$30,$C178,IF($A178=Mercado!$D$31,$D178,$E178))*F$86,"-") -> - | G178: =IFERROR(SUMIFS(Mercado!E:E,Mercado!$A:$A,$A178,Mercado!$C:$C,$B178)*IF($A178=Mercado!$D$30,$C178,IF($A178=Mercado!$D$31,$D178,$E178))*G$86,"-") -> - | H178: =IFERROR(SUMIFS(Mercado!F:F,Mercado!$A:$A,$A178,Mercado!$C:$C,$B178)*IF($A178=Mercado!$D$30,$C178,IF($A178=Mercado!$D$31,$D178,$E178))*H$86,"-") -> - | I178: =IFERROR(SUMIFS(Mercado!G:G,Mercado!$A:$A,$A178,Mercado!$C:$C,$B178)*IF($A178=Mercado!$D$30,$C178,IF($A178=Mercado!$D$31,$D178,$E178))*I$86,"-") -> - | J178: =IFERROR(SUMIFS(Mercado!H:H,Mercado!$A:$A,$A178,Mercado!$C:$C,$B178)*IF($A178=Mercado!$D$30,$C178,IF($A178=Mercado!$D$31,$D178,$E178))*J$86,"-") -> - | K178: =SUMPRODUCT(G178:J178,datos!$B$10:$E$10) -> 0
A179: 0 | B179: =Mercado!C175 ->  | C179: =1/(Mercado!$G563*8760)*Mercado!$Z563 ->  | D179: =Mercado!$H563*Mercado!$Z563 ->  | E179: =Mercado!$I563*Mercado!$P563 ->  | F179: =IFERROR(SUMIFS(Mercado!D:D,Mercado!$A:$A,$A179,Mercado!$C:$C,$B179)*IF($A179=Mercado!$D$30,$C179,IF($A179=Mercado!$D$31,$D179,$E179))*F$86,"-") -> - | G179: =IFERROR(SUMIFS(Mercado!E:E,Mercado!$A:$A,$A179,Mercado!$C:$C,$B179)*IF($A179=Mercado!$D$30,$C179,IF($A179=Mercado!$D$31,$D179,$E179))*G$86,"-") -> - | H179: =IFERROR(SUMIFS(Mercado!F:F,Mercado!$A:$A,$A179,Mercado!$C:$C,$B179)*IF($A179=Mercado!$D$30,$C179,IF($A179=Mercado!$D$31,$D179,$E179))*H$86,"-") -> - | I179: =IFERROR(SUMIFS(Mercado!G:G,Mercado!$A:$A,$A179,Mercado!$C:$C,$B179)*IF($A179=Mercado!$D$30,$C179,IF($A179=Mercado!$D$31,$D179,$E179))*I$86,"-") -> - | J179: =IFERROR(SUMIFS(Mercado!H:H,Mercado!$A:$A,$A179,Mercado!$C:$C,$B179)*IF($A179=Mercado!$D$30,$C179,IF($A179=Mercado!$D$31,$D179,$E179))*J$86,"-") -> - | K179: =SUMPRODUCT(G179:J179,datos!$B$10:$E$10) -> 0
A180: 0 | B180: =Mercado!C176 ->  | C180: =1/(Mercado!$G564*8760)*Mercado!$Z564 ->  | D180: =Mercado!$H564*Mercado!$Z564 ->  | E180: =Mercado!$I564*Mercado!$P564 ->  | F180: =IFERROR(SUMIFS(Mercado!D:D,Mercado!$A:$A,$A180,Mercado!$C:$C,$B180)*IF($A180=Mercado!$D$30,$C180,IF($A180=Mercado!$D$31,$D180,$E180))*F$86,"-") -> - | G180: =IFERROR(SUMIFS(Mercado!E:E,Mercado!$A:$A,$A180,Mercado!$C:$C,$B180)*IF($A180=Mercado!$D$30,$C180,IF($A180=Mercado!$D$31,$D180,$E180))*G$86,"-") -> - | H180: =IFERROR(SUMIFS(Mercado!F:F,Mercado!$A:$A,$A180,Mercado!$C:$C,$B180)*IF($A180=Mercado!$D$30,$C180,IF($A180=Mercado!$D$31,$D180,$E180))*H$86,"-") -> - | I180: =IFERROR(SUMIFS(Mercado!G:G,Mercado!$A:$A,$A180,Mercado!$C:$C,$B180)*IF($A180=Mercado!$D$30,$C180,IF($A180=Mercado!$D$31,$D180,$E180))*I$86,"-") -> - | J180: =IFERROR(SUMIFS(Mercado!H:H,Mercado!$A:$A,$A180,Mercado!$C:$C,$B180)*IF($A180=Mercado!$D$30,$C180,IF($A180=Mercado!$D$31,$D180,$E180))*J$86,"-") -> - | K180: =SUMPRODUCT(G180:J180,datos!$B$10:$E$10) -> 0
A181: 0 | B181: =Mercado!C177 ->  | C181: =1/(Mercado!$G565*8760)*Mercado!$Z565 ->  | D181: =Mercado!$H565*Mercado!$Z565 ->  | E181: =Mercado!$I565*Mercado!$P565 ->  | F181: =IFERROR(SUMIFS(Mercado!D:D,Mercado!$A:$A,$A181,Mercado!$C:$C,$B181)*IF($A181=Mercado!$D$30,$C181,IF($A181=Mercado!$D$31,$D181,$E181))*F$86,"-") -> - | G181: =IFERROR(SUMIFS(Mercado!E:E,Mercado!$A:$A,$A181,Mercado!$C:$C,$B181)*IF($A181=Mercado!$D$30,$C181,IF($A181=Mercado!$D$31,$D181,$E181))*G$86,"-") -> - | H181: =IFERROR(SUMIFS(Mercado!F:F,Mercado!$A:$A,$A181,Mercado!$C:$C,$B181)*IF($A181=Mercado!$D$30,$C181,IF($A181=Mercado!$D$31,$D181,$E181))*H$86,"-") -> - | I181: =IFERROR(SUMIFS(Mercado!G:G,Mercado!$A:$A,$A181,Mercado!$C:$C,$B181)*IF($A181=Mercado!$D$30,$C181,IF($A181=Mercado!$D$31,$D181,$E181))*I$86,"-") -> - | J181: =IFERROR(SUMIFS(Mercado!H:H,Mercado!$A:$A,$A181,Mercado!$C:$C,$B181)*IF($A181=Mercado!$D$30,$C181,IF($A181=Mercado!$D$31,$D181,$E181))*J$86,"-") -> - | K181: =SUMPRODUCT(G181:J181,datos!$B$10:$E$10) -> 0
A182: 0 | B182: =Mercado!C178 ->  | C182: =1/(Mercado!$G566*8760)*Mercado!$Z566 ->  | D182: =Mercado!$H566*Mercado!$Z566 ->  | E182: =Mercado!$I566*Mercado!$P566 ->  | F182: =IFERROR(SUMIFS(Mercado!D:D,Mercado!$A:$A,$A182,Mercado!$C:$C,$B182)*IF($A182=Mercado!$D$30,$C182,IF($A182=Mercado!$D$31,$D182,$E182))*F$86,"-") -> - | G182: =IFERROR(SUMIFS(Mercado!E:E,Mercado!$A:$A,$A182,Mercado!$C:$C,$B182)*IF($A182=Mercado!$D$30,$C182,IF($A182=Mercado!$D$31,$D182,$E182))*G$86,"-") -> - | H182: =IFERROR(SUMIFS(Mercado!F:F,Mercado!$A:$A,$A182,Mercado!$C:$C,$B182)*IF($A182=Mercado!$D$30,$C182,IF($A182=Mercado!$D$31,$D182,$E182))*H$86,"-") -> - | I182: =IFERROR(SUMIFS(Mercado!G:G,Mercado!$A:$A,$A182,Mercado!$C:$C,$B182)*IF($A182=Mercado!$D$30,$C182,IF($A182=Mercado!$D$31,$D182,$E182))*I$86,"-") -> - | J182: =IFERROR(SUMIFS(Mercado!H:H,Mercado!$A:$A,$A182,Mercado!$C:$C,$B182)*IF($A182=Mercado!$D$30,$C182,IF($A182=Mercado!$D$31,$D182,$E182))*J$86,"-") -> - | K182: =SUMPRODUCT(G182:J182,datos!$B$10:$E$10) -> 0
A183: 0 | B183: =Mercado!C179 ->  | C183: =1/(Mercado!$G567*8760)*Mercado!$Z567 ->  | D183: =Mercado!$H567*Mercado!$Z567 ->  | E183: =Mercado!$I567*Mercado!$P567 ->  | F183: =IFERROR(SUMIFS(Mercado!D:D,Mercado!$A:$A,$A183,Mercado!$C:$C,$B183)*IF($A183=Mercado!$D$30,$C183,IF($A183=Mercado!$D$31,$D183,$E183))*F$86,"-") -> - | G183: =IFERROR(SUMIFS(Mercado!E:E,Mercado!$A:$A,$A183,Mercado!$C:$C,$B183)*IF($A183=Mercado!$D$30,$C183,IF($A183=Mercado!$D$31,$D183,$E183))*G$86,"-") -> - | H183: =IFERROR(SUMIFS(Mercado!F:F,Mercado!$A:$A,$A183,Mercado!$C:$C,$B183)*IF($A183=Mercado!$D$30,$C183,IF($A183=Mercado!$D$31,$D183,$E183))*H$86,"-") -> - | I183: =IFERROR(SUMIFS(Mercado!G:G,Mercado!$A:$A,$A183,Mercado!$C:$C,$B183)*IF($A183=Mercado!$D$30,$C183,IF($A183=Mercado!$D$31,$D183,$E183))*I$86,"-") -> - | J183: =IFERROR(SUMIFS(Mercado!H:H,Mercado!$A:$A,$A183,Mercado!$C:$C,$B183)*IF($A183=Mercado!$D$30,$C183,IF($A183=Mercado!$D$31,$D183,$E183))*J$86,"-") -> - | K183: =SUMPRODUCT(G183:J183,datos!$B$10:$E$10) -> 0
A184: 0 | B184: =Mercado!C180 ->  | C184: =1/(Mercado!$G568*8760)*Mercado!$Z568 ->  | D184: =Mercado!$H568*Mercado!$Z568 ->  | E184: =Mercado!$I568*Mercado!$P568 ->  | F184: =IFERROR(SUMIFS(Mercado!D:D,Mercado!$A:$A,$A184,Mercado!$C:$C,$B184)*IF($A184=Mercado!$D$30,$C184,IF($A184=Mercado!$D$31,$D184,$E184))*F$86,"-") -> - | G184: =IFERROR(SUMIFS(Mercado!E:E,Mercado!$A:$A,$A184,Mercado!$C:$C,$B184)*IF($A184=Mercado!$D$30,$C184,IF($A184=Mercado!$D$31,$D184,$E184))*G$86,"-") -> - | H184: =IFERROR(SUMIFS(Mercado!F:F,Mercado!$A:$A,$A184,Mercado!$C:$C,$B184)*IF($A184=Mercado!$D$30,$C184,IF($A184=Mercado!$D$31,$D184,$E184))*H$86,"-") -> - | I184: =IFERROR(SUMIFS(Mercado!G:G,Mercado!$A:$A,$A184,Mercado!$C:$C,$B184)*IF($A184=Mercado!$D$30,$C184,IF($A184=Mercado!$D$31,$D184,$E184))*I$86,"-") -> - | J184: =IFERROR(SUMIFS(Mercado!H:H,Mercado!$A:$A,$A184,Mercado!$C:$C,$B184)*IF($A184=Mercado!$D$30,$C184,IF($A184=Mercado!$D$31,$D184,$E184))*J$86,"-") -> - | K184: =SUMPRODUCT(G184:J184,datos!$B$10:$E$10) -> 0
A185: 0 | B185: =Mercado!C181 ->  | C185: =1/(Mercado!$G569*8760)*Mercado!$Z569 ->  | D185: =Mercado!$H569*Mercado!$Z569 ->  | E185: =Mercado!$I569*Mercado!$P569 ->  | F185: =IFERROR(SUMIFS(Mercado!D:D,Mercado!$A:$A,$A185,Mercado!$C:$C,$B185)*IF($A185=Mercado!$D$30,$C185,IF($A185=Mercado!$D$31,$D185,$E185))*F$86,"-") -> - | G185: =IFERROR(SUMIFS(Mercado!E:E,Mercado!$A:$A,$A185,Mercado!$C:$C,$B185)*IF($A185=Mercado!$D$30,$C185,IF($A185=Mercado!$D$31,$D185,$E185))*G$86,"-") -> - | H185: =IFERROR(SUMIFS(Mercado!F:F,Mercado!$A:$A,$A185,Mercado!$C:$C,$B185)*IF($A185=Mercado!$D$30,$C185,IF($A185=Mercado!$D$31,$D185,$E185))*H$86,"-") -> - | I185: =IFERROR(SUMIFS(Mercado!G:G,Mercado!$A:$A,$A185,Mercado!$C:$C,$B185)*IF($A185=Mercado!$D$30,$C185,IF($A185=Mercado!$D$31,$D185,$E185))*I$86,"-") -> - | J185: =IFERROR(SUMIFS(Mercado!H:H,Mercado!$A:$A,$A185,Mercado!$C:$C,$B185)*IF($A185=Mercado!$D$30,$C185,IF($A185=Mercado!$D$31,$D185,$E185))*J$86,"-") -> - | K185: =SUMPRODUCT(G185:J185,datos!$B$10:$E$10) -> 0
A186: 0 | B186: =Mercado!C182 ->  | C186: =1/(Mercado!$G570*8760)*Mercado!$Z570 ->  | D186: =Mercado!$H570*Mercado!$Z570 ->  | E186: =Mercado!$I570*Mercado!$P570 ->  | F186: =IFERROR(SUMIFS(Mercado!D:D,Mercado!$A:$A,$A186,Mercado!$C:$C,$B186)*IF($A186=Mercado!$D$30,$C186,IF($A186=Mercado!$D$31,$D186,$E186))*F$86,"-") -> - | G186: =IFERROR(SUMIFS(Mercado!E:E,Mercado!$A:$A,$A186,Mercado!$C:$C,$B186)*IF($A186=Mercado!$D$30,$C186,IF($A186=Mercado!$D$31,$D186,$E186))*G$86,"-") -> - | H186: =IFERROR(SUMIFS(Mercado!F:F,Mercado!$A:$A,$A186,Mercado!$C:$C,$B186)*IF($A186=Mercado!$D$30,$C186,IF($A186=Mercado!$D$31,$D186,$E186))*H$86,"-") -> - | I186: =IFERROR(SUMIFS(Mercado!G:G,Mercado!$A:$A,$A186,Mercado!$C:$C,$B186)*IF($A186=Mercado!$D$30,$C186,IF($A186=Mercado!$D$31,$D186,$E186))*I$86,"-") -> - | J186: =IFERROR(SUMIFS(Mercado!H:H,Mercado!$A:$A,$A186,Mercado!$C:$C,$B186)*IF($A186=Mercado!$D$30,$C186,IF($A186=Mercado!$D$31,$D186,$E186))*J$86,"-") -> - | K186: =SUMPRODUCT(G186:J186,datos!$B$10:$E$10) -> 0
A187: 0 | B187: =Mercado!C183 ->  | C187: =1/(Mercado!$G571*8760)*Mercado!$Z571 ->  | D187: =Mercado!$H571*Mercado!$Z571 ->  | E187: =Mercado!$I571*Mercado!$P571 ->  | F187: =IFERROR(SUMIFS(Mercado!D:D,Mercado!$A:$A,$A187,Mercado!$C:$C,$B187)*IF($A187=Mercado!$D$30,$C187,IF($A187=Mercado!$D$31,$D187,$E187))*F$86,"-") -> - | G187: =IFERROR(SUMIFS(Mercado!E:E,Mercado!$A:$A,$A187,Mercado!$C:$C,$B187)*IF($A187=Mercado!$D$30,$C187,IF($A187=Mercado!$D$31,$D187,$E187))*G$86,"-") -> - | H187: =IFERROR(SUMIFS(Mercado!F:F,Mercado!$A:$A,$A187,Mercado!$C:$C,$B187)*IF($A187=Mercado!$D$30,$C187,IF($A187=Mercado!$D$31,$D187,$E187))*H$86,"-") -> - | I187: =IFERROR(SUMIFS(Mercado!G:G,Mercado!$A:$A,$A187,Mercado!$C:$C,$B187)*IF($A187=Mercado!$D$30,$C187,IF($A187=Mercado!$D$31,$D187,$E187))*I$86,"-") -> - | J187: =IFERROR(SUMIFS(Mercado!H:H,Mercado!$A:$A,$A187,Mercado!$C:$C,$B187)*IF($A187=Mercado!$D$30,$C187,IF($A187=Mercado!$D$31,$D187,$E187))*J$86,"-") -> - | K187: =SUMPRODUCT(G187:J187,datos!$B$10:$E$10) -> 0
A188: 0 | B188: =Mercado!C184 ->  | C188: =1/(Mercado!$G572*8760)*Mercado!$Z572 ->  | D188: =Mercado!$H572*Mercado!$Z572 ->  | E188: =Mercado!$I572*Mercado!$P572 ->  | F188: =IFERROR(SUMIFS(Mercado!D:D,Mercado!$A:$A,$A188,Mercado!$C:$C,$B188)*IF($A188=Mercado!$D$30,$C188,IF($A188=Mercado!$D$31,$D188,$E188))*F$86,"-") -> - | G188: =IFERROR(SUMIFS(Mercado!E:E,Mercado!$A:$A,$A188,Mercado!$C:$C,$B188)*IF($A188=Mercado!$D$30,$C188,IF($A188=Mercado!$D$31,$D188,$E188))*G$86,"-") -> - | H188: =IFERROR(SUMIFS(Mercado!F:F,Mercado!$A:$A,$A188,Mercado!$C:$C,$B188)*IF($A188=Mercado!$D$30,$C188,IF($A188=Mercado!$D$31,$D188,$E188))*H$86,"-") -> - | I188: =IFERROR(SUMIFS(Mercado!G:G,Mercado!$A:$A,$A188,Mercado!$C:$C,$B188)*IF($A188=Mercado!$D$30,$C188,IF($A188=Mercado!$D$31,$D188,$E188))*I$86,"-") -> - | J188: =IFERROR(SUMIFS(Mercado!H:H,Mercado!$A:$A,$A188,Mercado!$C:$C,$B188)*IF($A188=Mercado!$D$30,$C188,IF($A188=Mercado!$D$31,$D188,$E188))*J$86,"-") -> - | K188: =SUMPRODUCT(G188:J188,datos!$B$10:$E$10) -> 0
A189: Energia | B189: =Mercado!C185 -> AP | C189: =1/(Mercado!$G573*8760)*Mercado!$Z573 -> 0 | D189: =Mercado!$H573*Mercado!$Z573 -> 0 | E189: =Mercado!$I573*Mercado!$P573 -> 0 | F189: =IFERROR(SUMIFS(Mercado!D:D,Mercado!$A:$A,$A189,Mercado!$C:$C,$B189)*IF($A189=Mercado!$D$30,$C189,IF($A189=Mercado!$D$31,$D189,$E189))*F$86,"-") -> 0 | G189: =IFERROR(SUMIFS(Mercado!E:E,Mercado!$A:$A,$A189,Mercado!$C:$C,$B189)*IF($A189=Mercado!$D$30,$C189,IF($A189=Mercado!$D$31,$D189,$E189))*G$86,"-") -> 0 | H189: =IFERROR(SUMIFS(Mercado!F:F,Mercado!$A:$A,$A189,Mercado!$C:$C,$B189)*IF($A189=Mercado!$D$30,$C189,IF($A189=Mercado!$D$31,$D189,$E189))*H$86,"-") -> 0 | I189: =IFERROR(SUMIFS(Mercado!G:G,Mercado!$A:$A,$A189,Mercado!$C:$C,$B189)*IF($A189=Mercado!$D$30,$C189,IF($A189=Mercado!$D$31,$D189,$E189))*I$86,"-") -> 0 | J189: =IFERROR(SUMIFS(Mercado!H:H,Mercado!$A:$A,$A189,Mercado!$C:$C,$B189)*IF($A189=Mercado!$D$30,$C189,IF($A189=Mercado!$D$31,$D189,$E189))*J$86,"-") -> 0 | K189: =SUMPRODUCT(G189:J189,datos!$B$10:$E$10) -> 0
B190: Pérdida NT BT | F190: =SUM(F169:F189)*(F68-1) -> 34.9137068 | G190: =SUM(G169:G189)*(G68-1) -> 40.86532169 | H190: 46.49281597 | I190: 52.84906692 | J190: 59.82260949 | K190: =SUMPRODUCT(G190:J190,datos!$B$10:$E$10) -> 167.6278493
B191: Pérdida T BT | F191: =SUM(F169:F190)*(F69-1) -> 15.92719264 | G191: =SUM(G169:G190)*(G69-1) -> 16.33644351 | H191: 16.90873426 | I191: 17.51854899 | J191: 18.15703522 | K191: =SUMPRODUCT(G191:J191,datos!$B$10:$E$10) -> 58.31704867
B192: Potencia BT coincidente con Máx AT | F192: =SUM(F169:F191) -> 523.7841939 | G192: =SUM(G169:G191) -> 545.9286314 | H192: 570.5577273 | I192: 596.7411926 | J192: 624.2193378 | K192: =SUMPRODUCT(G192:J192,datos!$B$10:$E$10) -> 1975.853092
A193: =A144 -> 0 | B193: =Mercado!C186 ->  | C193: =1/(Mercado!$G574*8760)*Mercado!$Z574 ->  | D193: =Mercado!$H574*Mercado!$Z574 ->  | E193: =Mercado!$I574*Mercado!$P574 ->  | F193: =IFERROR(SUMIFS(Mercado!D:D,Mercado!$A:$A,$A193,Mercado!$C:$C,$B193)*IF($A193=Mercado!$D$30,$C193,IF($A193=Mercado!$D$31,$D193,$E193))*F$86,"-") -> - | G193: =IFERROR(SUMIFS(Mercado!E:E,Mercado!$A:$A,$A193,Mercado!$C:$C,$B193)*IF($A193=Mercado!$D$30,$C193,IF($A193=Mercado!$D$31,$D193,$E193))*G$86,"-") -> - | H193: =IFERROR(SUMIFS(Mercado!F:F,Mercado!$A:$A,$A193,Mercado!$C:$C,$B193)*IF($A193=Mercado!$D$30,$C193,IF($A193=Mercado!$D$31,$D193,$E193))*H$86,"-") -> - | I193: =IFERROR(SUMIFS(Mercado!G:G,Mercado!$A:$A,$A193,Mercado!$C:$C,$B193)*IF($A193=Mercado!$D$30,$C193,IF($A193=Mercado!$D$31,$D193,$E193))*I$86,"-") -> - | J193: =IFERROR(SUMIFS(Mercado!H:H,Mercado!$A:$A,$A193,Mercado!$C:$C,$B193)*IF($A193=Mercado!$D$30,$C193,IF($A193=Mercado!$D$31,$D193,$E193))*J$86,"-") -> - | K193: =SUMPRODUCT(G193:J193,datos!$B$10:$E$10) -> 0
A194: 0 | B194: =Mercado!C187 ->  | C194: =1/(Mercado!$G575*8760)*Mercado!$Z575 ->  | D194: =Mercado!$H575*Mercado!$Z575 ->  | E194: =Mercado!$I575*Mercado!$P575 ->  | F194: =IFERROR(SUMIFS(Mercado!D:D,Mercado!$A:$A,$A194,Mercado!$C:$C,$B194)*IF($A194=Mercado!$D$30,$C194,IF($A194=Mercado!$D$31,$D194,$E194))*F$86,"-") -> - | G194: =IFERROR(SUMIFS(Mercado!E:E,Mercado!$A:$A,$A194,Mercado!$C:$C,$B194)*IF($A194=Mercado!$D$30,$C194,IF($A194=Mercado!$D$31,$D194,$E194))*G$86,"-") -> - | H194: =IFERROR(SUMIFS(Mercado!F:F,Mercado!$A:$A,$A194,Mercado!$C:$C,$B194)*IF($A194=Mercado!$D$30,$C194,IF($A194=Mercado!$D$31,$D194,$E194))*H$86,"-") -> - | I194: =IFERROR(SUMIFS(Mercado!G:G,Mercado!$A:$A,$A194,Mercado!$C:$C,$B194)*IF($A194=Mercado!$D$30,$C194,IF($A194=Mercado!$D$31,$D194,$E194))*I$86,"-") -> - | J194: =IFERROR(SUMIFS(Mercado!H:H,Mercado!$A:$A,$A194,Mercado!$C:$C,$B194)*IF($A194=Mercado!$D$30,$C194,IF($A194=Mercado!$D$31,$D194,$E194))*J$86,"-") -> - | K194: =SUMPRODUCT(G194:J194,datos!$B$10:$E$10) -> 0
A195: 0 | B195: =Mercado!C188 ->  | C195: =1/(Mercado!$G576*8760)*Mercado!$Z576 ->  | D195: =Mercado!$H576*Mercado!$Z576 ->  | E195: =Mercado!$I576*Mercado!$P576 ->  | F195: =IFERROR(SUMIFS(Mercado!D:D,Mercado!$A:$A,$A195,Mercado!$C:$C,$B195)*IF($A195=Mercado!$D$30,$C195,IF($A195=Mercado!$D$31,$D195,$E195))*F$86,"-") -> - | G195: =IFERROR(SUMIFS(Mercado!E:E,Mercado!$A:$A,$A195,Mercado!$C:$C,$B195)*IF($A195=Mercado!$D$30,$C195,IF($A195=Mercado!$D$31,$D195,$E195))*G$86,"-") -> - | H195: =IFERROR(SUMIFS(Mercado!F:F,Mercado!$A:$A,$A195,Mercado!$C:$C,$B195)*IF($A195=Mercado!$D$30,$C195,IF($A195=Mercado!$D$31,$D195,$E195))*H$86,"-") -> - | I195: =IFERROR(SUMIFS(Mercado!G:G,Mercado!$A:$A,$A195,Mercado!$C:$C,$B195)*IF($A195=Mercado!$D$30,$C195,IF($A195=Mercado!$D$31,$D195,$E195))*I$86,"-") -> - | J195: =IFERROR(SUMIFS(Mercado!H:H,Mercado!$A:$A,$A195,Mercado!$C:$C,$B195)*IF($A195=Mercado!$D$30,$C195,IF($A195=Mercado!$D$31,$D195,$E195))*J$86,"-") -> - | K195: =SUMPRODUCT(G195:J195,datos!$B$10:$E$10) -> 0
A196: 0 | B196: =Mercado!C189 ->  | C196: =1/(Mercado!$G577*8760)*Mercado!$Z577 ->  | D196: =Mercado!$H577*Mercado!$Z577 ->  | E196: =Mercado!$I577*Mercado!$P577 ->  | F196: =IFERROR(SUMIFS(Mercado!D:D,Mercado!$A:$A,$A196,Mercado!$C:$C,$B196)*IF($A196=Mercado!$D$30,$C196,IF($A196=Mercado!$D$31,$D196,$E196))*F$86,"-") -> - | G196: =IFERROR(SUMIFS(Mercado!E:E,Mercado!$A:$A,$A196,Mercado!$C:$C,$B196)*IF($A196=Mercado!$D$30,$C196,IF($A196=Mercado!$D$31,$D196,$E196))*G$86,"-") -> - | H196: =IFERROR(SUMIFS(Mercado!F:F,Mercado!$A:$A,$A196,Mercado!$C:$C,$B196)*IF($A196=Mercado!$D$30,$C196,IF($A196=Mercado!$D$31,$D196,$E196))*H$86,"-") -> - | I196: =IFERROR(SUMIFS(Mercado!G:G,Mercado!$A:$A,$A196,Mercado!$C:$C,$B196)*IF($A196=Mercado!$D$30,$C196,IF($A196=Mercado!$D$31,$D196,$E196))*I$86,"-") -> - | J196: =IFERROR(SUMIFS(Mercado!H:H,Mercado!$A:$A,$A196,Mercado!$C:$C,$B196)*IF($A196=Mercado!$D$30,$C196,IF($A196=Mercado!$D$31,$D196,$E196))*J$86,"-") -> - | K196: =SUMPRODUCT(G196:J196,datos!$B$10:$E$10) -> 0
A197: 0 | B197: =Mercado!C190 ->  | C197: =1/(Mercado!$G578*8760)*Mercado!$Z578 ->  | D197: =Mercado!$H578*Mercado!$Z578 ->  | E197: =Mercado!$I578*Mercado!$P578 ->  | F197: =IFERROR(SUMIFS(Mercado!D:D,Mercado!$A:$A,$A197,Mercado!$C:$C,$B197)*IF($A197=Mercado!$D$30,$C197,IF($A197=Mercado!$D$31,$D197,$E197))*F$86,"-") -> - | G197: =IFERROR(SUMIFS(Mercado!E:E,Mercado!$A:$A,$A197,Mercado!$C:$C,$B197)*IF($A197=Mercado!$D$30,$C197,IF($A197=Mercado!$D$31,$D197,$E197))*G$86,"-") -> - | H197: =IFERROR(SUMIFS(Mercado!F:F,Mercado!$A:$A,$A197,Mercado!$C:$C,$B197)*IF($A197=Mercado!$D$30,$C197,IF($A197=Mercado!$D$31,$D197,$E197))*H$86,"-") -> - | I197: =IFERROR(SUMIFS(Mercado!G:G,Mercado!$A:$A,$A197,Mercado!$C:$C,$B197)*IF($A197=Mercado!$D$30,$C197,IF($A197=Mercado!$D$31,$D197,$E197))*I$86,"-") -> - | J197: =IFERROR(SUMIFS(Mercado!H:H,Mercado!$A:$A,$A197,Mercado!$C:$C,$B197)*IF($A197=Mercado!$D$30,$C197,IF($A197=Mercado!$D$31,$D197,$E197))*J$86,"-") -> - | K197: =SUMPRODUCT(G197:J197,datos!$B$10:$E$10) -> 0
A198: 0 | B198: =Mercado!C191 ->  | C198: =1/(Mercado!$G579*8760)*Mercado!$Z579 ->  | D198: =Mercado!$H579*Mercado!$Z579 ->  | E198: =Mercado!$I579*Mercado!$P579 ->  | F198: =IFERROR(SUMIFS(Mercado!D:D,Mercado!$A:$A,$A198,Mercado!$C:$C,$B198)*IF($A198=Mercado!$D$30,$C198,IF($A198=Mercado!$D$31,$D198,$E198))*F$86,"-") -> - | G198: =IFERROR(SUMIFS(Mercado!E:E,Mercado!$A:$A,$A198,Mercado!$C:$C,$B198)*IF($A198=Mercado!$D$30,$C198,IF($A198=Mercado!$D$31,$D198,$E198))*G$86,"-") -> - | H198: =IFERROR(SUMIFS(Mercado!F:F,Mercado!$A:$A,$A198,Mercado!$C:$C,$B198)*IF($A198=Mercado!$D$30,$C198,IF($A198=Mercado!$D$31,$D198,$E198))*H$86,"-") -> - | I198: =IFERROR(SUMIFS(Mercado!G:G,Mercado!$A:$A,$A198,Mercado!$C:$C,$B198)*IF($A198=Mercado!$D$30,$C198,IF($A198=Mercado!$D$31,$D198,$E198))*I$86,"-") -> - | J198: =IFERROR(SUMIFS(Mercado!H:H,Mercado!$A:$A,$A198,Mercado!$C:$C,$B198)*IF($A198=Mercado!$D$30,$C198,IF($A198=Mercado!$D$31,$D198,$E198))*J$86,"-") -> - | K198: =SUMPRODUCT(G198:J198,datos!$B$10:$E$10) -> 0
A199: Pot_Max | B199: =Mercado!C192 -> MTD | C199: =1/(Mercado!$G580*8760)*Mercado!$Z580 -> 0.0001622627624 | D199: =Mercado!$H580*Mercado!$Z580 -> 0.8171768283 | E199: =Mercado!$I580*Mercado!$P580 -> 0.8329133491 | F199: =IFERROR(SUMIFS(Mercado!D:D,Mercado!$A:$A,$A199,Mercado!$C:$C,$B199)*IF($A199=Mercado!$D$30,$C199,IF($A199=Mercado!$D$31,$D199,$E199))*F$86,"-") -> 64.13992028 | G199: =IFERROR(SUMIFS(Mercado!E:E,Mercado!$A:$A,$A199,Mercado!$C:$C,$B199)*IF($A199=Mercado!$D$30,$C199,IF($A199=Mercado!$D$31,$D199,$E199))*G$86,"-") -> 64.76311281 | H199: =IFERROR(SUMIFS(Mercado!F:F,Mercado!$A:$A,$A199,Mercado!$C:$C,$B199)*IF($A199=Mercado!$D$30,$C199,IF($A199=Mercado!$D$31,$D199,$E199))*H$86,"-") -> 65.71551666 | I199: =IFERROR(SUMIFS(Mercado!G:G,Mercado!$A:$A,$A199,Mercado!$C:$C,$B199)*IF($A199=Mercado!$D$30,$C199,IF($A199=Mercado!$D$31,$D199,$E199))*I$86,"-") -> 66.68347451 | J199: =IFERROR(SUMIFS(Mercado!H:H,Mercado!$A:$A,$A199,Mercado!$C:$C,$B199)*IF($A199=Mercado!$D$30,$C199,IF($A199=Mercado!$D$31,$D199,$E199))*J$86,"-") -> 67.65364891 | K199: =SUMPRODUCT(G199:J199,datos!$B$10:$E$10) -> 224.5614637
A200: Pot_Max_P | B200: =Mercado!C193 -> MTH | C200: =1/(Mercado!$G581*8760)*Mercado!$Z581 -> 0.0001622627624 | D200: =Mercado!$H581*Mercado!$Z581 -> 0.8171768283 | E200: =Mercado!$I581*Mercado!$P581 -> 0.8329133491 | F200: =IFERROR(SUMIFS(Mercado!D:D,Mercado!$A:$A,$A200,Mercado!$C:$C,$B200)*IF($A200=Mercado!$D$30,$C200,IF($A200=Mercado!$D$31,$D200,$E200))*F$86,"-") -> 9.078371263 | G200: =IFERROR(SUMIFS(Mercado!E:E,Mercado!$A:$A,$A200,Mercado!$C:$C,$B200)*IF($A200=Mercado!$D$30,$C200,IF($A200=Mercado!$D$31,$D200,$E200))*G$86,"-") -> 9.077129527 | H200: =IFERROR(SUMIFS(Mercado!F:F,Mercado!$A:$A,$A200,Mercado!$C:$C,$B200)*IF($A200=Mercado!$D$30,$C200,IF($A200=Mercado!$D$31,$D200,$E200))*H$86,"-") -> 9.120724181 | I200: =IFERROR(SUMIFS(Mercado!G:G,Mercado!$A:$A,$A200,Mercado!$C:$C,$B200)*IF($A200=Mercado!$D$30,$C200,IF($A200=Mercado!$D$31,$D200,$E200))*I$86,"-") -> 9.164725982 | J200: =IFERROR(SUMIFS(Mercado!H:H,Mercado!$A:$A,$A200,Mercado!$C:$C,$B200)*IF($A200=Mercado!$D$30,$C200,IF($A200=Mercado!$D$31,$D200,$E200))*J$86,"-") -> 9.20728645 | K200: =SUMPRODUCT(G200:J200,datos!$B$10:$E$10) -> 31.04297026
A201: Pot_Max | B201: =Mercado!C194 -> A-MT | C201: =1/(Mercado!$G582*8760)*Mercado!$Z582 -> 0.0001832863965 | D201: =Mercado!$H582*Mercado!$Z582 -> 0.5482564127 | E201: =Mercado!$I582*Mercado!$P582 -> 0.5524613244 | F201: =IFERROR(SUMIFS(Mercado!D:D,Mercado!$A:$A,$A201,Mercado!$C:$C,$B201)*IF($A201=Mercado!$D$30,$C201,IF($A201=Mercado!$D$31,$D201,$E201))*F$86,"-") -> 0 | G201: =IFERROR(SUMIFS(Mercado!E:E,Mercado!$A:$A,$A201,Mercado!$C:$C,$B201)*IF($A201=Mercado!$D$30,$C201,IF($A201=Mercado!$D$31,$D201,$E201))*G$86,"-") -> 0 | H201: =IFERROR(SUMIFS(Mercado!F:F,Mercado!$A:$A,$A201,Mercado!$C:$C,$B201)*IF($A201=Mercado!$D$30,$C201,IF($A201=Mercado!$D$31,$D201,$E201))*H$86,"-") -> 0 | I201: =IFERROR(SUMIFS(Mercado!G:G,Mercado!$A:$A,$A201,Mercado!$C:$C,$B201)*IF($A201=Mercado!$D$30,$C201,IF($A201=Mercado!$D$31,$D201,$E201))*I$86,"-") -> 0 | J201: =IFERROR(SUMIFS(Mercado!H:H,Mercado!$A:$A,$A201,Mercado!$C:$C,$B201)*IF($A201=Mercado!$D$30,$C201,IF($A201=Mercado!$D$31,$D201,$E201))*J$86,"-") -> 0 | K201: =SUMPRODUCT(G201:J201,datos!$B$10:$E$10) -> 0
A202: Pot_Max | B202: =Mercado!C195 -> Peaje MT | C202: =1/(Mercado!$G583*8760)*Mercado!$Z583 -> 0.0001622627624 | D202: =Mercado!$H583*Mercado!$Z583 -> 0.8171768283 | E202: =Mercado!$I583*Mercado!$P583 -> 0.8329133491 | F202: =IFERROR(SUMIFS(Mercado!D:D,Mercado!$A:$A,$A202,Mercado!$C:$C,$B202)*IF($A202=Mercado!$D$30,$C202,IF($A202=Mercado!$D$31,$D202,$E202))*F$86,"-") -> 81.04738539 | G202: =IFERROR(SUMIFS(Mercado!E:E,Mercado!$A:$A,$A202,Mercado!$C:$C,$B202)*IF($A202=Mercado!$D$30,$C202,IF($A202=Mercado!$D$31,$D202,$E202))*G$86,"-") -> 81.03629976 | H202: =IFERROR(SUMIFS(Mercado!F:F,Mercado!$A:$A,$A202,Mercado!$C:$C,$B202)*IF($A202=Mercado!$D$30,$C202,IF($A202=Mercado!$D$31,$D202,$E202))*H$86,"-") -> 81.42549212 | I202: =IFERROR(SUMIFS(Mercado!G:G,Mercado!$A:$A,$A202,Mercado!$C:$C,$B202)*IF($A202=Mercado!$D$30,$C202,IF($A202=Mercado!$D$31,$D202,$E202))*I$86,"-") -> 81.81831929 | J202: =IFERROR(SUMIFS(Mercado!H:H,Mercado!$A:$A,$A202,Mercado!$C:$C,$B202)*IF($A202=Mercado!$D$30,$C202,IF($A202=Mercado!$D$31,$D202,$E202))*J$86,"-") -> 82.19827892 | K202: =SUMPRODUCT(G202:J202,datos!$B$10:$E$10) -> 277.1368896
A203: 0 | B203: =Mercado!C196 ->  | C203: =1/(Mercado!$G584*8760)*Mercado!$Z584 ->  | D203: =Mercado!$H584*Mercado!$Z584 ->  | E203: =Mercado!$I584*Mercado!$P584 ->  | F203: =IFERROR(SUMIFS(Mercado!D:D,Mercado!$A:$A,$A203,Mercado!$C:$C,$B203)*IF($A203=Mercado!$D$30,$C203,IF($A203=Mercado!$D$31,$D203,$E203))*F$86,"-") -> - | G203: =IFERROR(SUMIFS(Mercado!E:E,Mercado!$A:$A,$A203,Mercado!$C:$C,$B203)*IF($A203=Mercado!$D$30,$C203,IF($A203=Mercado!$D$31,$D203,$E203))*G$86,"-") -> - | H203: =IFERROR(SUMIFS(Mercado!F:F,Mercado!$A:$A,$A203,Mercado!$C:$C,$B203)*IF($A203=Mercado!$D$30,$C203,IF($A203=Mercado!$D$31,$D203,$E203))*H$86,"-") -> - | I203: =IFERROR(SUMIFS(Mercado!G:G,Mercado!$A:$A,$A203,Mercado!$C:$C,$B203)*IF($A203=Mercado!$D$30,$C203,IF($A203=Mercado!$D$31,$D203,$E203))*I$86,"-") -> - | J203: =IFERROR(SUMIFS(Mercado!H:H,Mercado!$A:$A,$A203,Mercado!$C:$C,$B203)*IF($A203=Mercado!$D$30,$C203,IF($A203=Mercado!$D$31,$D203,$E203))*J$86,"-") -> - | K203: =SUMPRODUCT(G203:J203,datos!$B$10:$E$10) -> 0
A204: 0 | B204: =Mercado!C197 ->  | C204: =1/(Mercado!$G585*8760)*Mercado!$Z585 ->  | D204: =Mercado!$H585*Mercado!$Z585 ->  | E204: =Mercado!$I585*Mercado!$P585 ->  | F204: =IFERROR(SUMIFS(Mercado!D:D,Mercado!$A:$A,$A204,Mercado!$C:$C,$B204)*IF($A204=Mercado!$D$30,$C204,IF($A204=Mercado!$D$31,$D204,$E204))*F$86,"-") -> - | G204: =IFERROR(SUMIFS(Mercado!E:E,Mercado!$A:$A,$A204,Mercado!$C:$C,$B204)*IF($A204=Mercado!$D$30,$C204,IF($A204=Mercado!$D$31,$D204,$E204))*G$86,"-") -> - | H204: =IFERROR(SUMIFS(Mercado!F:F,Mercado!$A:$A,$A204,Mercado!$C:$C,$B204)*IF($A204=Mercado!$D$30,$C204,IF($A204=Mercado!$D$31,$D204,$E204))*H$86,"-") -> - | I204: =IFERROR(SUMIFS(Mercado!G:G,Mercado!$A:$A,$A204,Mercado!$C:$C,$B204)*IF($A204=Mercado!$D$30,$C204,IF($A204=Mercado!$D$31,$D204,$E204))*I$86,"-") -> - | J204: =IFERROR(SUMIFS(Mercado!H:H,Mercado!$A:$A,$A204,Mercado!$C:$C,$B204)*IF($A204=Mercado!$D$30,$C204,IF($A204=Mercado!$D$31,$D204,$E204))*J$86,"-") -> - | K204: =SUMPRODUCT(G204:J204,datos!$B$10:$E$10) -> 0
A205: 0 | B205: =Mercado!C198 ->  | C205: =1/(Mercado!$G586*8760)*Mercado!$Z586 ->  | D205: =Mercado!$H586*Mercado!$Z586 ->  | E205: =Mercado!$I586*Mercado!$P586 ->  | F205: =IFERROR(SUMIFS(Mercado!D:D,Mercado!$A:$A,$A205,Mercado!$C:$C,$B205)*IF($A205=Mercado!$D$30,$C205,IF($A205=Mercado!$D$31,$D205,$E205))*F$86,"-") -> - | G205: =IFERROR(SUMIFS(Mercado!E:E,Mercado!$A:$A,$A205,Mercado!$C:$C,$B205)*IF($A205=Mercado!$D$30,$C205,IF($A205=Mercado!$D$31,$D205,$E205))*G$86,"-") -> - | H205: =IFERROR(SUMIFS(Mercado!F:F,Mercado!$A:$A,$A205,Mercado!$C:$C,$B205)*IF($A205=Mercado!$D$30,$C205,IF($A205=Mercado!$D$31,$D205,$E205))*H$86,"-") -> - | I205: =IFERROR(SUMIFS(Mercado!G:G,Mercado!$A:$A,$A205,Mercado!$C:$C,$B205)*IF($A205=Mercado!$D$30,$C205,IF($A205=Mercado!$D$31,$D205,$E205))*I$86,"-") -> - | J205: =IFERROR(SUMIFS(Mercado!H:H,Mercado!$A:$A,$A205,Mercado!$C:$C,$B205)*IF($A205=Mercado!$D$30,$C205,IF($A205=Mercado!$D$31,$D205,$E205))*J$86,"-") -> - | K205: =SUMPRODUCT(G205:J205,datos!$B$10:$E$10) -> 0
A206: 0 | B206: =Mercado!C199 ->  | C206: =1/(Mercado!$G587*8760)*Mercado!$Z587 ->  | D206: =Mercado!$H587*Mercado!$Z587 ->  | E206: =Mercado!$I587*Mercado!$P587 ->  | F206: =IFERROR(SUMIFS(Mercado!D:D,Mercado!$A:$A,$A206,Mercado!$C:$C,$B206)*IF($A206=Mercado!$D$30,$C206,IF($A206=Mercado!$D$31,$D206,$E206))*F$86,"-") -> - | G206: =IFERROR(SUMIFS(Mercado!E:E,Mercado!$A:$A,$A206,Mercado!$C:$C,$B206)*IF($A206=Mercado!$D$30,$C206,IF($A206=Mercado!$D$31,$D206,$E206))*G$86,"-") -> - | H206: =IFERROR(SUMIFS(Mercado!F:F,Mercado!$A:$A,$A206,Mercado!$C:$C,$B206)*IF($A206=Mercado!$D$30,$C206,IF($A206=Mercado!$D$31,$D206,$E206))*H$86,"-") -> - | I206: =IFERROR(SUMIFS(Mercado!G:G,Mercado!$A:$A,$A206,Mercado!$C:$C,$B206)*IF($A206=Mercado!$D$30,$C206,IF($A206=Mercado!$D$31,$D206,$E206))*I$86,"-") -> - | J206: =IFERROR(SUMIFS(Mercado!H:H,Mercado!$A:$A,$A206,Mercado!$C:$C,$B206)*IF($A206=Mercado!$D$30,$C206,IF($A206=Mercado!$D$31,$D206,$E206))*J$86,"-") -> - | K206: =SUMPRODUCT(G206:J206,datos!$B$10:$E$10) -> 0
A207: 0 | B207: =Mercado!C200 ->  | C207: =1/(Mercado!$G588*8760)*Mercado!$Z588 ->  | D207: =Mercado!$H588*Mercado!$Z588 ->  | E207: =Mercado!$I588*Mercado!$P588 ->  | F207: =IFERROR(SUMIFS(Mercado!D:D,Mercado!$A:$A,$A207,Mercado!$C:$C,$B207)*IF($A207=Mercado!$D$30,$C207,IF($A207=Mercado!$D$31,$D207,$E207))*F$86,"-") -> - | G207: =IFERROR(SUMIFS(Mercado!E:E,Mercado!$A:$A,$A207,Mercado!$C:$C,$B207)*IF($A207=Mercado!$D$30,$C207,IF($A207=Mercado!$D$31,$D207,$E207))*G$86,"-") -> - | H207: =IFERROR(SUMIFS(Mercado!F:F,Mercado!$A:$A,$A207,Mercado!$C:$C,$B207)*IF($A207=Mercado!$D$30,$C207,IF($A207=Mercado!$D$31,$D207,$E207))*H$86,"-") -> - | I207: =IFERROR(SUMIFS(Mercado!G:G,Mercado!$A:$A,$A207,Mercado!$C:$C,$B207)*IF($A207=Mercado!$D$30,$C207,IF($A207=Mercado!$D$31,$D207,$E207))*I$86,"-") -> - | J207: =IFERROR(SUMIFS(Mercado!H:H,Mercado!$A:$A,$A207,Mercado!$C:$C,$B207)*IF($A207=Mercado!$D$30,$C207,IF($A207=Mercado!$D$31,$D207,$E207))*J$86,"-") -> - | K207: =SUMPRODUCT(G207:J207,datos!$B$10:$E$10) -> 0
A208: Pot_Max_P | B208: =Mercado!C201 -> Peaje MTH | C208: =1/(Mercado!$G589*8760)*Mercado!$Z589 -> 0.0001622627624 | D208: =Mercado!$H589*Mercado!$Z589 -> 0.8171768283 | E208: =Mercado!$I589*Mercado!$P589 -> 0.8329133491 | F208: =IFERROR(SUMIFS(Mercado!D:D,Mercado!$A:$A,$A208,Mercado!$C:$C,$B208)*IF($A208=Mercado!$D$30,$C208,IF($A208=Mercado!$D$31,$D208,$E208))*F$86,"-") -> 21.34205721 | G208: =IFERROR(SUMIFS(Mercado!E:E,Mercado!$A:$A,$A208,Mercado!$C:$C,$B208)*IF($A208=Mercado!$D$30,$C208,IF($A208=Mercado!$D$31,$D208,$E208))*G$86,"-") -> 21.33913805 | H208: =IFERROR(SUMIFS(Mercado!F:F,Mercado!$A:$A,$A208,Mercado!$C:$C,$B208)*IF($A208=Mercado!$D$30,$C208,IF($A208=Mercado!$D$31,$D208,$E208))*H$86,"-") -> 21.44162335 | I208: =IFERROR(SUMIFS(Mercado!G:G,Mercado!$A:$A,$A208,Mercado!$C:$C,$B208)*IF($A208=Mercado!$D$30,$C208,IF($A208=Mercado!$D$31,$D208,$E208))*I$86,"-") -> 21.5450658 | J208: =IFERROR(SUMIFS(Mercado!H:H,Mercado!$A:$A,$A208,Mercado!$C:$C,$B208)*IF($A208=Mercado!$D$30,$C208,IF($A208=Mercado!$D$31,$D208,$E208))*J$86,"-") -> 21.64511986 | K208: =SUMPRODUCT(G208:J208,datos!$B$10:$E$10) -> 72.97794151
... 241 more rows

Sheet datos
A2: INFORMACIÓN DEL IMP
J3: Bandas
A4: Tasa de rentabilidad (%) | B4: =[3]RETORNO!$D$40 -> 0.088 | J4: PUNTA
J5: FUERA DE PUNTA
A6: Año | B6: 0 | C6: 1 | D6: 2 | E6: 3 | F6: 4
A7: F descuento Calendario | B7: =1/(1+$B$4)^B6 -> 1 | C7: =1/(1+$B$4)^C6 -> 0.9191176471 | D7: =1/(1+$B$4)^D6 -> 0.8447772491 | E7: =1/(1+$B$4)^E6 -> 0.7764496775 | F7: =1/(1+$B$4)^F6 -> 0.7136486007
A9: Año Tarifario | B9: 1 | C9: 2 | D9: 3 | E9: 4
A10: Factor de descuento | B10: =AVERAGE(B7:C7) -> 0.9595588235 | C10: =AVERAGE(C7:D7) -> 0.8819474481 | D10: =AVERAGE(D7:E7) -> 0.8106134633 | E10: =AVERAGE(E7:F7) -> 0.7450491391
A13: IMP (Valor presente) (miles B/.)
A14: Componente | B14: IPSD | C14: IPPD | D14: IMPCO | E14: ALUMPU | F14: IMP
A15: Nombre del Componente | B15: IMP sistema de distribución | C15: IMP pérdidas del sistema de distribución | D15: IMP actividad de comercialización | E15: IMP servicio de alumbrado público | F15: IMP Total | H15: Porcentaje IPPD a recuperar con cargos por potencia
A16: Valor presente (miles B/.) | B16: ='[3]IMP-RESUMEN'!$D$35 -> 455704.7922 | C16: ='[3]IMP-RESUMEN'!$D$39 -> 191030.3951 | D16: ='[3]IMP-RESUMEN'!$D$36 -> 180581.2885 | E16: ='[3]IMP-RESUMEN'!$D$37 -> 18628.35693 | F16: =SUM(B16:E16) -> 845944.8328 | H16: 0.08
I18: Distribución Activos
A19: CIPLP | C19: BS-01 2021 | E19: Asignación Punta y Fuera de Punta | I19: BS-01 2021 | K19: Pedido ASEP | M19: RT anterior
A20: Nivel de Tensión | C20: Distribución IMP | E20: Nivel de Tensión | F20: Participación en punta | J20: IMP | K20: Distribución IMP | M20: Distribución IMP
A21: AT | C21: =HLOOKUP($C$19,$I$19:$M$23,3,0) -> 0.0830206848 | E21: AT | F21: 0.7353754678 | I21: ='[7]anexo BS-01'!P26 -> 0.0830206848 | K21: =J21/$J$24 ->  | M21: =L21/$L$24 -> 0
A22: MT | C22: =HLOOKUP($C$19,$I$19:$M$23,4,0) -> 0.6393073381 | E22: MT | F22: 0.4694691521 | I22: ='[7]anexo BS-01'!P27 -> 0.6393073381 | K22: =J22/$J$24 ->  | M22: =L22/$L$24 -> 0
A23: BT | C23: =HLOOKUP($C$19,$I$19:$M$23,5,0) -> 0.2776719771 | E23: BT | F23: 0.4685645316 | I23: ='[7]anexo BS-01'!P28 -> 0.2776719771 | M23: =L23/$L$24 -> 0
A24: Total | C24: =SUM(C21:C23) -> 1 | J24: =SUM(J21:J23) -> 0 | K24: =SUM(K21:K23) ->  | L24: 626042.8101 | M24: =SUM(M21:M23) -> 0
A27: Periodicidad Facturación | B27: mensual
A30: INFORMACIÓN COSTOS DE GENERACIÓN
A32: Costo por Potencia Máxima en Punta de Generación (CPG) | E32: CPG Grandes Clientes (B/./kW)
A33: Grupo de Clientes | B33: Año de aplicación | C33: CPG (B/./kW) | E33: Año de Aplicación | F33: CPG (B/./kW)
A34: Clientes Regulados | B34: Todos | C34: =F34 -> 16 | E34: 2023 | F34: 16
A35: Grandes Clientes | B35: 2023 | C35: =VLOOKUP(B35,E34:F37,2,0) -> 16 | E35: =E34+1 -> 2024 | F35: =F34 -> 16
E36: =E35+1 -> 2025 | F36: =F35 -> 16
E37: 2026 | F37: 16
A39: Demanda Contratada + SRLP | B39: MW | C39: =[8]GEN502!$M$50 -> 678.9349028
A42: Costos Generación y Potencia. 2do sem 2023
A43: Concepto | B43: B/. | C43: miles B/.
A44: Costo de Potencia
A45: Costo Total Potencia Contratos | B45: =[9]ENSA!$G$9*1000 -> 53467321.72 | C45: =B45/1000 -> 53467.32172
A46: Costo de Reserva | B46: =[9]ENSA!$G$24*1000 -> 8073488.196 | C46: =B46/1000 -> 8073.488196
C47: 0
C48: 0
A49: Costo de Autoabastecimiento | B49: =[9]ENSA!$G$37*1000 -> 417000 | C49: 417
A50: Subtotal | B50: =SUBTOTAL(9,B45:B49) -> 61957809.92 | C50: 61957.80992
A51: Costo de Energía
A52: Costo Total Energía Contratos | B52: =[9]ENSA!$G$13*1000 -> 63138063.85 | C52: 63138.06385
A53: Costo Mercado Ocasional | B53: =[9]ENSA!$G$18*1000 -> 63911441.96 | C53: 63911.44196
C54: 0
A55: Costo Servicios Auxiliares | B55: =[9]ENSA!$G$34*1000 -> 3600221.441 | C55: 3600.221441
C56: 0
C57: 0
C58: 0
C59: 0
A60: Subtotal | B60: =SUBTOTAL(9,B52:B59) -> 130649727.3 | C60: 130649.7273
A61: Costos de Generación Extra por Restricciones y Otros
A62: Transacciones por Autoabastecimiento | C62: 0
A63: Extra Costo por Generacion - Restricciones Relacionadas con Mitigaciòn de Riesgo de Racionamiento | C63: 0
A64: Porción del Mercado Ocasional causado por contratos cancelado o suspendidos autorizada por la ASEP | C64: 0
A65: Costos por Incrementos en Precios en Contratos por Arbittraje | C65: 0
A66: Subtotal | B66: =SUBTOTAL(9,B62:B65) -> 0 | C66: 0
A67: Total | B67: =SUBTOTAL(9,B45:B66) -> 192607537.2 | C67: 192607.5372
A70: Total Energía Ingresada
A71: Energía CND + SIGSA + Mercado Ocasional | B71: MWh | C71: =[9]ENSA!$G$4 -> 1783173.487
B73: Costo Energía Contratos + Ocasional | D73: Energía | F73: Costo Energía por Banda Horaria
B74: Miles B/. | C74: % | D74: MWh | E74: % | F74: B/./kWh
A75: Punta | B75: =C75*B77 -> 35543.4165 | C75: =E75 -> 0.279760368 | D75: =C$71*E75 -> 498861.2709 | E75: 0.279760368 | F75: =B75/D75 -> 0.07124909984
A76: Fuera de Punta | B76: =C76*B77 -> 91506.08931 | C76: =1-C75 -> 0.720239632 | D76: =C$71*E76 -> 1284312.216 | E76: =1-E75 -> 0.720239632 | F76: =B76/D76 -> 0.07124909984
A77: Total | B77: =C52+C53 -> 127049.5058 | D77: =D75+D76 -> 1783173.487
A80: INFORMACIÓN PRECIO MONÓMICO
A82: Precios Monómicos Proyectados para ENSA por Semestre del Periodo Tarifario
A83: Concepto | B83: 2018 | C83: 2019 | E83: 2020 | G83: 2021 | I83: 2022
B84: II Sem | C84: I Sem | D84: II Sem | E84: I Sem | F84: II Sem | G84: I Sem | H84: II Sem | I84: I Sem
A85: Demana Máxima | B85: ='[10]Tabla Doc IMP'!N5 -> 658.92 | C85: ='[10]Tabla Doc IMP'!O5 -> 658.92 | D85: ='[10]Tabla Doc IMP'!P5 -> 761.92 | E85: ='[10]Tabla Doc IMP'!Q5 -> 761.92 | F85: ='[10]Tabla Doc IMP'!R5 -> 784.54 | G85: ='[10]Tabla Doc IMP'!S5 -> 788.6946 | H85: ='[10]Tabla Doc IMP'!T5 -> 788.6946 | I85: ='[10]Tabla Doc IMP'!U5 -> 804.46849
A86: Energía Prevista | B86: ='[10]Tabla Doc IMP'!N6 -> 1933595.819 | C86: ='[10]Tabla Doc IMP'!O6 -> 1918819.414 | D86: ='[10]Tabla Doc IMP'!P6 -> 1953479.69 | E86: ='[10]Tabla Doc IMP'!Q6 -> 1989213.758 | F86: ='[10]Tabla Doc IMP'!R6 -> 1998440.5 | G86: ='[10]Tabla Doc IMP'!S6 -> 2072997.82 | H86: ='[10]Tabla Doc IMP'!T6 -> 2072997.82 | I86: ='[10]Tabla Doc IMP'!U6 -> 2141616.287
A88: Precios Promedios
A89: Potencia Contratada | B89: ='[10]Tabla Doc IMP'!N9 -> 684.5674502 | C89: ='[10]Tabla Doc IMP'!O9 -> 726.9917877 | D89: ='[10]Tabla Doc IMP'!P9 -> 724.2867877 | E89: ='[10]Tabla Doc IMP'!Q9 -> 763.5031794 | F89: ='[10]Tabla Doc IMP'!R9 -> 659.1096572 | G89: ='[10]Tabla Doc IMP'!S9 -> 581.0525711 | H89: ='[10]Tabla Doc IMP'!T9 -> 581.0525711 | I89: ='[10]Tabla Doc IMP'!U9 -> 558.0526294
A90: Costo Total Potencia Contratos | B90: ='[10]Tabla Doc IMP'!N10 -> 81915.89468 | C90: ='[10]Tabla Doc IMP'!O10 -> 84888.7231 | D90: ='[10]Tabla Doc IMP'!P10 -> 84578.1587 | E90: ='[10]Tabla Doc IMP'!Q10 -> 98067.28953 | F90: ='[10]Tabla Doc IMP'!R10 -> 87906.9797 | G90: ='[10]Tabla Doc IMP'!S10 -> 89988.70348 | H90: ='[10]Tabla Doc IMP'!T10 -> 89988.70348 | I90: ='[10]Tabla Doc IMP'!U10 -> 88608.70348
A91: Precio Promedio Potencia | B91: =B90/B89/6 -> 19.94346811 | C91: =C90/C89/6 -> 19.46118341 | D91: 19.46240084 | E91: 21.4073087 | F91: 22.22871888 | G91: 25.81197983 | H91: 25.81197983 | I91: 26.46366394
A92: Energía Contratada | B92: ='[10]Tabla Doc IMP'!N12 -> 1771581.43 | C92: ='[10]Tabla Doc IMP'!O12 -> 1861664.155 | D92: ='[10]Tabla Doc IMP'!P12 -> 1806212.889 | E92: ='[10]Tabla Doc IMP'!Q12 -> 2022728.005 | F92: ='[10]Tabla Doc IMP'!R12 -> 1783809.137 | G92: ='[10]Tabla Doc IMP'!S12 -> 1514623.491 | H92: ='[10]Tabla Doc IMP'!T12 -> 1514623.491 | I92: ='[10]Tabla Doc IMP'!U12 -> 1448856.471
A93: Costos Total Energía Contratos | B93: ='[10]Tabla Doc IMP'!N13 -> 155655.2767 | C93: ='[10]Tabla Doc IMP'!O13 -> 160831.4854 | D93: ='[10]Tabla Doc IMP'!P13 -> 161724.1524 | E93: ='[10]Tabla Doc IMP'!Q13 -> 150281.6212 | F93: ='[10]Tabla Doc IMP'!R13 -> 127191.5981 | G93: ='[10]Tabla Doc IMP'!S13 -> 102304.2856 | H93: ='[10]Tabla Doc IMP'!T13 -> 102304.2856 | I93: ='[10]Tabla Doc IMP'!U13 -> 98324.56769
A94: Precio Promedio Energía | B94: =B93/B92*1000 -> 87.86233254 | C94: =C93/C92*1000 -> 86.39124565 | D94: 89.53770253 | E94: 74.29650491 | F94: 71.30336728 | G94: 67.5443674 | H94: 67.5443674 | I94: 67.86356667
A96: Mercado Ocasional
A97: Costo Marginal Proyectado | B97: ='[10]Tabla Doc IMP'!N17 -> 61.60375691 | C97: ='[10]Tabla Doc IMP'!O17 -> 72.57398485 | D97: ='[10]Tabla Doc IMP'!P17 -> 63.41096546 | E97: ='[10]Tabla Doc IMP'!Q17 -> 90.51058751 | F97: ='[10]Tabla Doc IMP'!R17 -> 70.88968472 | G97: ='[10]Tabla Doc IMP'!S17 -> 72.57398485 | H97: ='[10]Tabla Doc IMP'!T17 -> 63.41096546 | I97: ='[10]Tabla Doc IMP'!U17 -> 72.57398485
A98: Costo Mercado Ocasional | B98: =B97*B99/1000 -> 5373.346356 | C98: =C97*C99/1000 -> 811.5120542 | D98: 6398.076348 | E98: -7365.75518 | F98: 11868.19781 | G98: 36890.23543 | H98: 32232.5617 | I98: 46491.62143
A99: Energía en el Mercado Ocasional | B99: ='[10]Tabla Doc IMP'!N19 -> 87224.32893 | C99: ='[10]Tabla Doc IMP'!O19 -> 11181.85884 | D99: ='[10]Tabla Doc IMP'!P19 -> 100898.5796 | E99: ='[10]Tabla Doc IMP'!Q19 -> -81380.03943 | F99: ='[10]Tabla Doc IMP'!R19 -> 167417.8388 | G99: ='[10]Tabla Doc IMP'!S19 -> 508312.1108 | H99: ='[10]Tabla Doc IMP'!T19 -> 508312.1108 | I99: ='[10]Tabla Doc IMP'!U19 -> 640610.0137
A100: Porcentaje sin Contratar | B100: =B99/B86 -> 0.0451099077 | C100: =C99/C86 -> 0.005827468055 | D100: 0.05165069294 | E100: -0.04091065583 | F100: 0.08377424236 | G100: 0.245206293 | H100: 0.245206293 | I100: 0.2991245527
A102: Reserva | B102: =B103/B104/6 -> 8.96 | C102: =C103/C104/6 -> 8.96 | D102: 8.96 | E102: 8.96 | F102: 8.96 | G102: 8.96 | H102: 8.96 | I102: 8.96
A103: Costo de Reserva | B103: ='[10]Tabla Doc IMP'!N23 -> 1513.167591 | C103: ='[10]Tabla Doc IMP'!O23 -> 271.7879181 | D103: ='[10]Tabla Doc IMP'!P23 -> 917.726286 | E103: ='[10]Tabla Doc IMP'!Q23 -> 80.48341432 | F103: ='[10]Tabla Doc IMP'!R23 -> 6110.812145 | G103: ='[10]Tabla Doc IMP'!S23 -> 14155.80342 | H103: ='[10]Tabla Doc IMP'!T23 -> 14155.80342 | I103: ='[10]Tabla Doc IMP'!U23 -> 17203.09721
A104: Potencia en Reserva | B104: ='[10]Tabla Doc IMP'!N24 -> 28.14671858 | C104: ='[10]Tabla Doc IMP'!O24 -> 5.055578835 | D104: ='[10]Tabla Doc IMP'!P24 -> 17.07080145 | E104: ='[10]Tabla Doc IMP'!Q24 -> 1.49708732 | F104: ='[10]Tabla Doc IMP'!R24 -> 113.6683807 | G104: ='[10]Tabla Doc IMP'!S24 -> 263.3147957 | H104: ='[10]Tabla Doc IMP'!T24 -> 263.3147957 | I104: ='[10]Tabla Doc IMP'!U24 -> 319.998088
A105: Porcetaje sin Contratar | B105: =B104/B85 -> 0.04271644294 | C105: =C104/C85 -> 0.007672522969 | D105: 0.0224049788 | E105: 0.00196488781 | F105: 0.1448853859 | G105: 0.3338615424 | H105: 0.3338615424 | I105: 0.3977757886
A106: Energía Servicio B
A107: Costo Total Compras | B107: =B98+B93+B90+B103 -> 244457.6854 | C107: =C98+C93+C90+C103 -> 246803.5084 | D107: 253618.1137 | E107: 241063.6389 | F107: 233077.5877 | G107: 243339.0279 | H107: 238681.3542 | I107: 250627.9898
A108: Monómico Compras | B108: =B107/(B92+B99)*1000 -> 131.5133032 | C108: =C107/(C92+C99)*1000 -> 131.7799256 | D108: 132.9854693 | E108: 124.1733286 | F108: 119.4518068 | G108: 120.2900516 | H108: 117.9876185 | I108: 119.9483178
A110: Servicios Auxiliares
A111: Costo Servicios Auxiliares | B111: ='[10]Tabla Doc IMP'!N31 -> 3917.949915 | C111: ='[10]Tabla Doc IMP'!O31 -> 2305.569292 | D111: ='[10]Tabla Doc IMP'!P31 -> 3807.204552 | E111: ='[10]Tabla Doc IMP'!Q31 -> 2305.569292 | F111: ='[10]Tabla Doc IMP'!R31 -> 3807.204552 | G111: ='[10]Tabla Doc IMP'!S31 -> 2979.224201 | H111: ='[10]Tabla Doc IMP'!T31 -> 2979.224201 | I111: ='[10]Tabla Doc IMP'!U31 -> 3033.687521
A113: Autoabastecimiento
A114: Costo de Autoabastecimiento
A116: Monómico Total | B116: =(B107+B111)/(B92+B99)*1000 -> 133.6210812 | C116: =(C107+C111)/(C92+C99)*1000 -> 133.0109768 | D116: 134.9817892 | E116: 125.3609412 | F116: 121.4029917 | G116: 121.7627748 | H116: 119.4603418 | I116: 121.4002135
A118: Monómico de Transmisión
A119: Costo Transmisión | B119: ='[10]Tabla Doc IMP'!N39 -> 32898.05442 | C119: ='[10]Tabla Doc IMP'!O39 -> 30851.28186 | D119: ='[10]Tabla Doc IMP'!P39 -> 33421.77454 | E119: ='[10]Tabla Doc IMP'!Q39 -> 33079.61996 | F119: ='[10]Tabla Doc IMP'!R39 -> 34025.72046 | G119: ='[10]Tabla Doc IMP'!S39 -> 33584.07062 | H119: ='[10]Tabla Doc IMP'!T39 -> 33584.07062 | I119: ='[10]Tabla Doc IMP'!U39 -> 34364.94965
A120: Energía Prevista | B120: =B86 -> 1933595.819 | C120: =C86 -> 1918819.414 | D120: 1953479.69 | E120: 1989213.758 | F120: 1998440.5 | G120: 2072997.82 | H120: 2072997.82 | I120: 2141616.287
A121: Monómico de Transmisión | B121: =B119*1000/B120 -> 17.01392509 | C121: =C119*1000/C120 -> 16.0782623 | D121: 17.10884158 | E121: 16.62949485 | F121: 17.02613636 | G121: 16.20072645 | H121: 16.20072645 | I121: 16.04626836
A123: Monómico Total (G + T) | B123: =(B107+B111+B114+B119)/(B92+B99+B106)*1000 -> 151.3195708 | C123: =(C107+C111+C114+C119)/(C92+C99+C106)*1000 -> 149.4839178 | D123: =(D107+D111+D114+D119)/(D92+D99+D106)*1000 -> 152.5066036 | E123: 142.4004522 | F123: 138.8411067 | G123: 138.3644256 | H123: 136.0619926 | I123: 137.8469715
B125: jul18-jun19 | C125: jul19-jun20 | D125: jul20-jun21 | E125: jul21-jun22 | F125: Promedio
B126: =AVERAGE(B123:C123) -> 150.4017443 | C126: =AVERAGE(D123:E123) -> 147.4535279 | D126: =AVERAGE(F123:G123) -> 138.6027662 | E126: =AVERAGE(H123:I123) -> 136.9544821 | F126: =AVERAGE(B126:E126) -> 143.3531301
A129: INFORMACIÓN COSTOS DE TRANSMISIÓN
A131: Costos por Uso del Sistema de Transporte. 1er semestre
A132: Concepto | B132: B/. | C132: miles B/.
A134: Costo Transmisión | B134: =[9]ENSA!$G$42*1000 -> 14298801.93 | C134: =B134/1000 -> 14298.80193
C135: =B135/1000 -> 0
C136: 0
C137: 0
C138: 0
C139: 0
C140: 0
C141: 0
C142: 0
C143: 0
C144: 0
C145: 0
C146: 0
A147: Total | B147: =SUM(B134:B146) -> 14298801.93 | C147: 14298.80193
A150: máxima demanda agregada de punta de la distribuidora
A151: Demanda Máxima Mensual de Clientes conectados a la distribuidora (MW) | B151: =[9]ENSA!$G$3 -> 712.6539516
A154: Costo de las pérdidas del sistema de transmisión. 1er semestre
A155: Costo Estimado de Pérdidas en Transmisión | B155: B/. | C155: =[9]ENSA!$G$43*1000 -> 8095677.906
A156: energía ingresada a la red en los nodos de compra o entrega | B156: MWh | C156: =[9]ENSA!$G$4 -> 1783173.487
A161: Cargos Vigentes Generación BTS (B/./kWh) | C161: Incremento entre escalones
A162: 0 a 300 kWh | B162: 0.0648
A163: 301 a 750 kWh | B163: 0.08943 | C163: =B163/B162-1 -> 0.3800925926
A164: mayor a 750 kWh | B164: 0.11359 | C164: =B164/B163-1 -> 0.2701554288

Sheet cargos_conexión
A2: DISEÑO DE LOS COMPONENTES DE COSTOS DE DISTRIBUCIÓN (Cargos por Conexión)
B4: IPSD Conexión (miles B/.) | C4: =SUMPRODUCT(D21:D81,C21:C81)/1000 -> 873.6697531
B7: Costos por conexión
B8: Costo Mano de Obra (B/./conexión)
B9: Categoría | C9: CXC
B11: BTS | C11: 16.36782137
B12: BTD/BTH | C12: 70.45974065
B13: MTD/MTH | C13: 1957.272701
B14: ATD | C14: 2400.07
B15: Prepago | C15: 18.3473967
G16: CX_
B17: Fuente: Data ordenes RGrisales - Trabajado JPerez AChera V2.xlsx | G17: =G16&"conex_" -> CX_conex_
F18: Cargos por Conexión (B/./conexión)
D19: V. Presente Vble. Facturación | F19: Unidad de Aplicación: Conexión
A20: Tipo de Conexión | B20: Categoría Tarifaria | C20: Costo de conexión (B/./conexión) | D20: Conexiones | F20: Identificación | G20: Valor
A21: BTS | B21: =Mercado!C101 -> BTS | C21: =IFERROR(VLOOKUP(A21,$B$11:$C$16,2,0),) -> 16.36782137 | D21: =Mercado!O101 -> 47797.50654 | F21: =CONCATENATE(G$16,$B21) -> CX_BTS | G21: =C21 -> 16.36782137
A22: BTD/BTH | B22: =Mercado!C102 -> BTD | C22: =IFERROR(VLOOKUP(A22,$B$11:$C$16,2,0),) -> 70.45974065 | D22: =Mercado!O102 -> 726.5741374 | F22: =CONCATENATE(G$16,$B22) -> CX_BTD | G22: =C22 -> 70.45974065
A23: BTD/BTH | B23: =Mercado!C103 -> BTH | C23: 70.45974065 | D23: =Mercado!O103 -> 3.397168874 | F23: =CONCATENATE(G$16,$B23) -> CX_BTH | G23: 70.45974065
A24: BTD/BTH | B24: =Mercado!C104 -> A-BTS | C24: 70.45974065 | D24: =Mercado!O104 -> 0 | F24: CX_A-BTS | G24: 70.45974065
A25: BTD/BTH | B25: =Mercado!C105 -> A-BTD | C25: 70.45974065 | D25: =Mercado!O105 -> 0 | F25: CX_A-BTD | G25: 70.45974065
A26: BTD/BTH | B26: =Mercado!C106 -> Peaje BT | C26: 70.45974065 | D26: =Mercado!O106 -> 0 | F26: CX_Peaje BT | G26: 70.45974065
A27: BTD/BTH | B27: =Mercado!C107 -> Peaje BTH | C27: 70.45974065 | D27: =Mercado!O107 -> 0 | F27: CX_Peaje BTH | G27: 70.45974065
B28: =Mercado!C108 ->  | C28: 0 | D28: =Mercado!O108 -> 0 | F28: CX_ | G28: 0
B29: =Mercado!C109 ->  | C29: 0 | D29: =Mercado!O109 -> 0 | F29: CX_ | G29: 0
B30: =Mercado!C110 ->  | C30: 0 | D30: =Mercado!O110 -> 0 | F30: CX_ | G30: 0
B31: =Mercado!C111 ->  | C31: 0 | D31: =Mercado!O111 -> 0 | F31: CX_ | G31: 0
B32: =Mercado!C112 ->  | C32: 0 | D32: =Mercado!O112 -> 0 | F32: CX_ | G32: 0
B33: =Mercado!C113 ->  | C33: 0 | D33: =Mercado!O113 -> 0 | F33: CX_ | G33: 0
B34: =Mercado!C114 ->  | C34: 0 | D34: =Mercado!O114 -> 0 | F34: CX_ | G34: 0
B35: =Mercado!C115 ->  | C35: 0 | D35: =Mercado!O115 -> 0 | F35: CX_ | G35: 0
B36: =Mercado!C116 ->  | C36: 0 | D36: =Mercado!O116 -> 0 | F36: CX_ | G36: 0
B37: =Mercado!C117 ->  | C37: 0 | D37: =Mercado!O117 -> 0 | F37: CX_ | G37: 0
B38: =Mercado!C118 ->  | C38: 0 | D38: =Mercado!O118 -> 0 | F38: CX_ | G38: 0
B39: =Mercado!C119 ->  | C39: 0 | D39: =Mercado!O119 -> 0 | F39: CX_ | G39: 0
B40: =Mercado!C120 ->  | C40: 0 | D40: =Mercado!O120 -> 0 | F40: CX_ | G40: 0
B41: =Mercado!C121 -> AP | C41: 0 | D41: =Mercado!O121 -> 0 | F41: CX_AP | G41: 0
B42: =Mercado!C122 ->  | C42: 0 | D42: =Mercado!O122 -> 0 | F42: CX_ | G42: 0
B43: =Mercado!C123 ->  | C43: 0 | D43: =Mercado!O123 -> 0 | F43: CX_ | G43: 0
B44: =Mercado!C124 ->  | C44: 0 | D44: =Mercado!O124 -> 0 | F44: CX_ | G44: 0
B45: =Mercado!C125 ->  | C45: 0 | D45: =Mercado!O125 -> 0 | F45: CX_ | G45: 0
B46: =Mercado!C126 ->  | C46: 0 | D46: =Mercado!O126 -> 0 | F46: CX_ | G46: 0
B47: =Mercado!C127 ->  | C47: 0 | D47: =Mercado!O127 -> 0 | F47: CX_ | G47: 0
A48: MTD/MTH | B48: =Mercado!C128 -> MTD | C48: 1957.272701 | D48: =Mercado!O128 -> 16.98584437 | F48: CX_MTD | G48: 1957.272701
A49: MTD/MTH | B49: =Mercado!C129 -> MTH | C49: 1957.272701 | D49: =Mercado!O129 -> 3.397168874 | F49: CX_MTH | G49: 1957.272701
A50: MTD/MTH | B50: =Mercado!C130 -> A-MT | C50: 1957.272701 | D50: =Mercado!O130 -> 0 | F50: CX_A-MT | G50: 1957.272701
A51: MTD/MTH | B51: =Mercado!C131 -> Peaje MT | C51: 1957.272701 | D51: =Mercado!O131 -> 0 | F51: CX_Peaje MT | G51: 1957.272701
B52: =Mercado!C132 ->  | C52: 0 | D52: =Mercado!O132 -> 0 | F52: CX_ | G52: 0
B53: =Mercado!C133 ->  | C53: 0 | D53: =Mercado!O133 -> 0 | F53: CX_ | G53: 0
B54: =Mercado!C134 ->  | C54: 0 | D54: =Mercado!O134 -> 0 | F54: CX_ | G54: 0
B55: =Mercado!C135 ->  | C55: 0 | D55: =Mercado!O135 -> 0 | F55: CX_ | G55: 0
B56: =Mercado!C136 ->  | C56: 0 | D56: =Mercado!O136 -> 0 | F56: CX_ | G56: 0
A57: MTD/MTH | B57: =Mercado!C137 -> Peaje MTH | C57: 1957.272701 | D57: =Mercado!O137 -> 0 | F57: CX_Peaje MTH | G57: 1957.272701
B58: =Mercado!C138 ->  | C58: 0 | D58: =Mercado!O138 -> 0 | F58: CX_ | G58: 0
B59: =Mercado!C139 ->  | C59: 0 | D59: =Mercado!O139 -> 0 | F59: CX_ | G59: 0
B60: =Mercado!C140 ->  | C60: 0 | D60: =Mercado!O140 -> 0 | F60: CX_ | G60: 0
B61: =Mercado!C141 ->  | C61: 0 | D61: =Mercado!O141 -> 0 | F61: CX_ | G61: 0
B62: =Mercado!C142 ->  | C62: 0 | D62: =Mercado!O142 -> 0 | F62: CX_ | G62: 0
B63: =Mercado!C143 ->  | C63: 0 | D63: =Mercado!O143 -> 0 | F63: CX_ | G63: 0
B64: =Mercado!C144 ->  | C64: 0 | D64: =Mercado!O144 -> 0 | F64: CX_ | G64: 0
B65: =Mercado!C145 ->  | C65: 0 | D65: =Mercado!O145 -> 0 | F65: CX_ | G65: 0
B66: =Mercado!C146 ->  | C66: 0 | D66: =Mercado!O146 -> 0 | F66: CX_ | G66: 0
B67: =Mercado!C147 ->  | C67: 0 | D67: =Mercado!O147 -> 0 | F67: CX_ | G67: 0
B68: =Mercado!C148 ->  | C68: 0 | D68: =Mercado!O148 -> 0 | F68: CX_ | G68: 0
B69: =Mercado!C149 ->  | C69: 0 | D69: =Mercado!O149 -> 0 | F69: CX_ | G69: 0
B70: =Mercado!C150 ->  | C70: 0 | D70: =Mercado!O150 -> 0 | F70: CX_ | G70: 0
B71: =Mercado!C151 ->  | C71: 0 | D71: =Mercado!O151 -> 0 | F71: CX_ | G71: 0
A72: ATD | B72: =Mercado!C152 -> ATD | C72: 2400.07 | D72: =Mercado!O152 -> 0 | F72: CX_ATD | G72: 2400.07
A73: ATD | B73: =Mercado!C153 -> ATH | C73: 2400.07 | D73: =Mercado!O153 -> 0 | F73: CX_ATH | G73: 2400.07
A74: ATD | B74: =Mercado!C154 -> Peaje AT | C74: 2400.07 | D74: =Mercado!O154 -> 0 | F74: CX_Peaje AT | G74: 2400.07
A75: ATD | B75: =Mercado!C155 -> EDEMET | C75: 2400.07 | D75: =Mercado!O155 -> 0 | F75: CX_EDEMET | G75: 2400.07
A76: ATD | B76: =Mercado!C156 -> A-AT | C76: 2400.07 | D76: =Mercado!O156 -> 0 | F76: CX_A-AT | G76: 2400.07
A77: ATD | B77: =Mercado!C157 -> Peaje ATH | C77: 2400.07 | D77: =Mercado!O157 -> 0 | F77: CX_Peaje ATH | G77: 2400.07
B78: =Mercado!C158 ->  | C78: 0 | D78: =Mercado!O158 -> 0 | F78: CX_ | G78: 0
B79: =Mercado!C159 ->  | C79: 0 | D79: =Mercado!O159 -> 0 | F79: CX_ | G79: 0
B80: =Mercado!C160 ->  | C80: 0 | D80: =Mercado!O160 -> 0 | F80: CX_ | G80: 0
B81: =Mercado!C161 ->  | C81: 0 | D81: =Mercado!O161 -> 0 | F81: CX_ | G81: 0

Sheet cargos_distribución
A1: DISEÑO DE LOS COMPONENTES DE COSTOS DE DISTRIBUCIÓN
A3: Desagregación Ingreso Permitido Sistema de Distribución
C4: IPSD Uso (miles B/.) | F4: Potencia Máxima Coincidente (kW) | H4: Costo Desarrollo Anual (B/./kW)
C5: Total | D5: PUNTA | E5: FUERA DE PUNTA | F5: PUNTA | G5: FUERA DE PUNTA | H5: PUNTA | I5: FUERA DE PUNTA
B6: BT | C6: =(datos!B$16-cargos_conexión!$C$4)*datos!C23 -> 126293.857 | D6: =$C6*datos!$F23 -> 59176.82197 | E6: =$C6*(1-datos!$F23) -> 67117.03507 | F6: =Balance!K116*1000 -> 1975853.092 | G6: =Balance!K271*1000 -> 1851143.868 | H6: =D6*1000/F6 -> 29.95001106 | I6: =E6*1000/G6 -> 36.25706042
B7: MT | C7: =(datos!B$16-cargos_conexión!$C$4)*datos!C22 -> 290776.8742 | D7: =$C7*datos!$F22 -> 136510.7726 | E7: =$C7*(1-datos!$F22) -> 154266.1016 | F7: =Balance!K165*1000 -> 2738383.092 | G7: =Balance!K320*1000 -> 2506550.913 | H7: =D7*1000/F7 -> 49.85086747 | I7: 61.54516981
B8: AT | C8: =(datos!B$16-cargos_conexión!$C$4)*datos!C21 -> 37760.39126 | D8: =$C8*datos!$F21 -> 27768.06539 | E8: =$C8*(1-datos!$F21) -> 9992.325871 | F8: =Balance!K236*1000 -> 3233937.261 | G8: =Balance!K391*1000 -> 2924006.028 | H8: 8.586457666 | I8: 3.417341064
A9: Resultados Balance Potencia Tarifario | B9: =B6 -> BT | F9: =F121*1000 -> 1659583.323 | G9: =F276*1000 -> 1486480.911
B10: =B7 -> MT | F10: =F170*1000 -> 2300148.829 | G10: =F325*1000 -> 2012810.452
B11: AT | F11: =F241*1000 -> 2716404.75 | G11: =F396*1000 -> 2348039.577
A12: Factores de ajuste Potencia Balances | B12: BT | F12: =F6/F9 -> 1.190571792 | G12: 1.245319636
B13: MT | F13: 1.190524308 | G13: 1.245299035
B14: AT | F14: 1.190521133 | G14: 1.245296739
B16: Producido Tarifario (miles B/.) | C16: =SUM(T87:W87) -> 454831.1225
B17: IPSD (miles B/.) | C17: =SUM(C6:C8) -> 454831.1225
B18: diferencia | C18: =C16-C17 -> 0
Z21: CD_ | AB21: CD_ | AD21: CD_ | AF21: CD_
Z22: =Z21&"kWh_" -> CD_kWh_ | AB22: =AB21&"kW_" -> CD_kW_ | AD22: =AD21&"kWP_" -> CD_kWP_ | AF22: =AF21&"kWFP_" -> CD_kWFP_
M23: =Mercado!D31 -> Pot_Max | N23: =Mercado!D32 -> Pot_Max_P | O23: =Mercado!D33 -> Pot_Max_FP | P23: =Mercado!D30 -> Energia | Q23: =M23 -> Pot_Max | R23: =N23 -> Pot_Max_P | S23: =O23 -> Pot_Max_FP | Y23: Cargos de Distribución (B/./kWh, B/./kW)
I24: Cargo Tarifario sin energizar (B/./kWh, B/./kW) | M24: Cargo energizado (B/./kWh) | P24: Cargo Tarifario (B/./kWh, B/./kW) | T24: V. Presente V. Facturación (MWh, MW) | Y24: Unidad de Aplicación: kWh | AA24: Unidad de Aplicación: kW | AC24: Unidad de Aplicación: kWP | AE24: Unidad de Aplicación: kWFP
A25: Parámetros Tarifarios | B25: Categoría Tarifaria | C25: CUSOP (B/./kW-mes) | D25: CUSOFP (B/./kW-mes) | F25: Vble. Balance Potencia Tarifario en Punta | G25: Vble. Balance Potencia Tarifario en Fuera de Punta | H25: % Energización | I25: Energía | J25: Potencia máxima | K25: Potencia Máxima en Punta | L25: Potencia Máxima en Fuera de Punta | M25: =J25 -> Potencia máxima | N25: =K25 -> Potencia Máxima en Punta | O25: =L25 -> Potencia Máxima en Fuera de Punta | P25: Energía | Q25: Potencia máxima | R25: Potencia Máxima en Punta | S25: Potencia Máxima en Fuera de Punta | T25: =I25 -> Energía | U25: =J25 -> Potencia máxima | V25: =K25 -> Potencia Máxima en Punta | W25: =L25 -> Potencia Máxima en Fuera de Punta | Y25: Identificación | Z25: Valor | AA25: =Y25 -> Identificación | AB25: Valor | AC25: Identificación | AD25: Valor | AE25: Identificación | AF25: Valor
A26: =Mercado!B553 -> BTS | B26: =Mercado!C165 -> BTS | C26: =IFERROR(($H$6*Balance!$K$441*Mercado!X553*$F$12+$H$7*Balance!$K$444*Mercado!Y553*$F$13+$H$8*Balance!$K$448*Mercado!Z553*$F$14)/12,"-") -> 7.880609859 | D26: =IFERROR(($I$6*Balance!$K$466*Mercado!AA553*$G$12+$I$7*Balance!$K$469*Mercado!AB553*$G$13+$I$8*Balance!$K$473*Mercado!AC553*$G$14)/12,"-") -> 10.04499389 | F26: =Mercado!D618 -> Energia | G26: =Mercado!D682 -> Energia | H26: 1 | I26: =IFERROR((C26+D26)/(Mercado!$G553*730),) -> 0.03582570139 | J26: =IFERROR((C26+D26)*Mercado!$H553,) -> 9.347880634 | K26: =IFERROR(C26*Mercado!$I553*Mercado!$AH553,) -> 5.285960014 | L26: =IFERROR(D26*Mercado!$J553*Mercado!$AI553,) -> 5.466259905 | M26: =IFERROR(IF($F26=M$23,J26*SUMIFS($U$26:$U$86,$A$26:$A$86,$A26,$F$26:$F$86,M$23)*12/SUMIFS($T$26:$T$86,$A$26:$A$86,$A26,$F$26:$F$86,M$23),),) -> 0 | N26: =IFERROR(IF($F26=N$23,K26*SUMIFS($V$26:$V$86,$A$26:$A$86,$A26,$F$26:$F$86,N$23)*12/SUMIFS($T$26:$T$86,$A$26:$A$86,$A26,$F$26:$F$86,N$23),),) -> 0 | O26: =IFERROR(IF($G26=O$23,L26*SUMIFS($W$26:$W$86,$A$26:$A$86,$A26,$G$26:$G$86,O$23)*12/SUMIFS($T$26:$T$86,$A$26:$A$86,$A26,$G$26:$G$86,O$23),),) -> 0 | P26: =IF($F26=P$23,I26,)+(M26+N26+O26)*H26 -> 0.03582570139 | Q26: =IF($F26<>Q$23,,J26*(1-$H26)) -> 0 | R26: =IF($F26<>R$23,,K26*(1-$H26)) -> 0 | S26: =IF($G26<>S$23,,L26*(1-$H26)) -> 0 | T26: =Mercado!O165 -> 7096365.335 | U26: =Mercado!O360 -> 0 | V26: =Mercado!O424 -> 0 | W26: =Mercado!O488 -> 0 | Y26: =CONCATENATE(Z$21,$B26) -> CD_BTS | Z26: =P26 -> 0.03582570139 | AA26: =CONCATENATE(AB$21,$B26) -> CD_BTS | AB26: =Q26 -> 0 | AC26: =CONCATENATE(AD$21,$B26) -> CD_BTS | AD26: =R26 -> 0 | AE26: CD_BTS | AF26: =S26 -> 0
A27: =Mercado!B554 -> BTD-BTH-Peaje BT | B27: =Mercado!C166 -> BTD | C27: =IFERROR(($H$6*Balance!$K$441*Mercado!X554*$F$12+$H$7*Balance!$K$444*Mercado!Y554*$F$13+$H$8*Balance!$K$448*Mercado!Z554*$F$14)/12,"-") -> 9.986032094 | D27: =IFERROR(($I$6*Balance!$K$466*Mercado!AA554*$G$12+$I$7*Balance!$K$469*Mercado!AB554*$G$13+$I$8*Balance!$K$473*Mercado!AC554*$G$14)/12,"-") -> 6.040730358 | F27: =Mercado!D619 -> Pot_Max | G27: =Mercado!D683 -> Pot_Max | H27: 0 | I27: =IFERROR((C27+D27)/(Mercado!$G554*730),) -> 0.04170157094 | J27: =IFERROR((C27+D27)*Mercado!$H554,) -> 12.62039109 | K27: =IFERROR(C27*Mercado!$I554*Mercado!$AH554,) -> 8.114343767 | L27: =IFERROR(D27*Mercado!$J554*Mercado!$AI554,) -> 5.071001536 | M27: =IFERROR(IF($F27=M$23,J27*SUMIFS($U$26:$U$86,$A$26:$A$86,$A27,$F$26:$F$86,M$23)*12/SUMIFS($T$26:$T$86,$A$26:$A$86,$A27,$F$26:$F$86,M$23),),) -> 0.0461778449 | N27: 0 | O27: 0 | P27: 0 | Q27: 12.62039109 | R27: 0 | S27: 0 | T27: =Mercado!O166 -> 2089493.56 | U27: =Mercado!O361 -> 661.77483 | V27: =Mercado!O425 -> 0 | W27: =Mercado!O489 -> 0 | Y27: =CONCATENATE(Z$21,$B27) -> CD_BTD | Z27: =P27 -> 0 | AA27: CD_BTD | AB27: =Q27 -> 12.62039109 | AC27: CD_BTD | AD27: =R27 -> 0 | AE27: CD_BTD | AF27: =S27 -> 0
A28: =Mercado!B555 -> BTD-BTH-Peaje BT | B28: =Mercado!C167 -> BTH | C28: =IFERROR(($H$6*Balance!$K$441*Mercado!X555*$F$12+$H$7*Balance!$K$444*Mercado!Y555*$F$13+$H$8*Balance!$K$448*Mercado!Z555*$F$14)/12,"-") -> 9.986032094 | D28: =IFERROR(($I$6*Balance!$K$466*Mercado!AA555*$G$12+$I$7*Balance!$K$469*Mercado!AB555*$G$13+$I$8*Balance!$K$473*Mercado!AC555*$G$14)/12,"-") -> 6.040730358 | F28: =Mercado!D620 -> Pot_Max_P | G28: =Mercado!D684 -> Pot_Max_FP | H28: 0 | I28: =IFERROR((C28+D28)/(Mercado!$G555*730),) -> 0.04170157094 | J28: =IFERROR((C28+D28)*Mercado!$H555,) -> 12.62039109 | K28: =IFERROR(C28*Mercado!$I555*Mercado!$AH555,) -> 8.114343767 | L28: =IFERROR(D28*Mercado!$J555*Mercado!$AI555,) -> 5.071001536 | M28: 0 | N28: 0.02400975299 | O28: 0.01893598744 | P28: 0 | Q28: 0 | R28: 8.114343767 | S28: 5.071001536 | T28: =Mercado!O167 -> 21831.61081 | U28: =Mercado!O362 -> 0 | V28: =Mercado!O426 -> 5.723663358 | W28: =Mercado!O490 -> 7.756868929 | Y28: CD_BTH | Z28: 0 | AA28: CD_BTH | AB28: 0 | AC28: CD_BTH | AD28: 8.114343767 | AE28: CD_BTH | AF28: 5.071001536
A29: =Mercado!B556 -> ABTD | B29: =Mercado!C168 -> A-BTS | C29: =IFERROR(($H$6*Balance!$K$441*Mercado!X556*$F$12+$H$7*Balance!$K$444*Mercado!Y556*$F$13+$H$8*Balance!$K$448*Mercado!Z556*$F$14)/12,"-") -> 6.232032869 | D29: =IFERROR(($I$6*Balance!$K$466*Mercado!AA556*$G$12+$I$7*Balance!$K$469*Mercado!AB556*$G$13+$I$8*Balance!$K$473*Mercado!AC556*$G$14)/12,"-") -> 4.21687798 | F29: =Mercado!D621 -> 0 | G29: =Mercado!D685 -> 0 | I29: =IFERROR((C29+D29)/(Mercado!$G556*730),) -> 0.04240764417 | J29: =IFERROR((C29+D29)*Mercado!$H556,) -> 9.053896283 | K29: =IFERROR(C29*Mercado!$I556*Mercado!$AH556,) -> 5.471671524 | L29: =IFERROR(D29*Mercado!$J556*Mercado!$AI556,) -> 4.149150096 | M29: 0 | N29: 0 | O29: 0 | P29: 0 | Q29: 0 | R29: 0 | S29: 0 | T29: =Mercado!O168 -> 0 | U29: =Mercado!O363 -> 0 | V29: =Mercado!O427 -> 0 | W29: =Mercado!O491 -> 0 | Y29: CD_A-BTS | Z29: 0 | AA29: CD_A-BTS | AB29: 0 | AC29: CD_A-BTS | AD29: 0 | AE29: CD_A-BTS | AF29: 0
A30: =Mercado!B557 -> ABTD | B30: =Mercado!C169 -> A-BTD | C30: =IFERROR(($H$6*Balance!$K$441*Mercado!X557*$F$12+$H$7*Balance!$K$444*Mercado!Y557*$F$13+$H$8*Balance!$K$448*Mercado!Z557*$F$14)/12,"-") -> 6.232032869 | D30: =IFERROR(($I$6*Balance!$K$466*Mercado!AA557*$G$12+$I$7*Balance!$K$469*Mercado!AB557*$G$13+$I$8*Balance!$K$473*Mercado!AC557*$G$14)/12,"-") -> 4.21687798 | F30: =Mercado!D622 -> Pot_Max | G30: =Mercado!D686 -> Pot_Max | H30: 0 | I30: =IFERROR((C30+D30)/(Mercado!$G557*730),) -> 0.04240764417 | J30: =IFERROR((C30+D30)*Mercado!$H557,) -> 9.053896283 | K30: =IFERROR(C30*Mercado!$I557*Mercado!$AH557,) -> 5.471671524 | L30: =IFERROR(D30*Mercado!$J557*Mercado!$AI557,) -> 4.149150096 | M30: 0 | N30: 0 | O30: 0 | P30: 0 | Q30: 9.053896283 | R30: 0 | S30: 0 | T30: =Mercado!O169 -> 0 | U30: =Mercado!O364 -> 0 | V30: =Mercado!O428 -> 0 | W30: =Mercado!O492 -> 0 | Y30: CD_A-BTD | Z30: 0 | AA30: CD_A-BTD | AB30: 9.053896283 | AC30: CD_A-BTD | AD30: 0 | AE30: CD_A-BTD | AF30: 0
A31: =Mercado!B558 -> BTD-BTH-Peaje BT | B31: =Mercado!C170 -> Peaje BT | C31: =IFERROR(($H$6*Balance!$K$441*Mercado!X558*$F$12+$H$7*Balance!$K$444*Mercado!Y558*$F$13+$H$8*Balance!$K$448*Mercado!Z558*$F$14)/12,"-") -> 9.986032094 | D31: =IFERROR(($I$6*Balance!$K$466*Mercado!AA558*$G$12+$I$7*Balance!$K$469*Mercado!AB558*$G$13+$I$8*Balance!$K$473*Mercado!AC558*$G$14)/12,"-") -> 6.040730358 | F31: =Mercado!D623 -> Pot_Max | G31: =Mercado!D687 -> Pot_Max | H31: 0 | I31: =IFERROR((C31+D31)/(Mercado!$G558*730),) -> 0.04170157094 | J31: =IFERROR((C31+D31)*Mercado!$H558,) -> 12.62039109 | K31: =IFERROR(C31*Mercado!$I558*Mercado!$AH558,) -> 8.114343767 | L31: =IFERROR(D31*Mercado!$J558*Mercado!$AI558,) -> 5.071001536 | M31: 0.0461778449 | N31: 0 | O31: 0 | P31: 0 | Q31: 12.62039109 | R31: 0 | S31: 0 | T31: =Mercado!O170 -> 320671.6615 | U31: =Mercado!O365 -> 73.12207221 | V31: =Mercado!O429 -> 0 | W31: =Mercado!O493 -> 0 | Y31: CD_Peaje BT | Z31: 0 | AA31: CD_Peaje BT | AB31: 12.62039109 | AC31: CD_Peaje BT | AD31: 0 | AE31: CD_Peaje BT | AF31: 0
A32: =Mercado!B559 -> BTD-BTH-Peaje BT | B32: =Mercado!C171 -> Peaje BTH | C32: =IFERROR(($H$6*Balance!$K$441*Mercado!X559*$F$12+$H$7*Balance!$K$444*Mercado!Y559*$F$13+$H$8*Balance!$K$448*Mercado!Z559*$F$14)/12,"-") -> 9.986032094 | D32: =IFERROR(($I$6*Balance!$K$466*Mercado!AA559*$G$12+$I$7*Balance!$K$469*Mercado!AB559*$G$13+$I$8*Balance!$K$473*Mercado!AC559*$G$14)/12,"-") -> 6.040730358 | F32: =Mercado!D624 -> Pot_Max_P | G32: =Mercado!D688 -> Pot_Max_FP | H32: 0 | I32: =IFERROR((C32+D32)/(Mercado!$G559*730),) -> 0.04170157094 | J32: =IFERROR((C32+D32)*Mercado!$H559,) -> 12.62039109 | K32: =IFERROR(C32*Mercado!$I559*Mercado!$AH559,) -> 8.114343767 | L32: =IFERROR(D32*Mercado!$J559*Mercado!$AI559,) -> 5.071001536 | M32: 0 | N32: 0.02400975299 | O32: 0.01893598744 | P32: 0 | Q32: 0 | R32: 8.114343767 | S32: 5.071001536 | T32: =Mercado!O171 -> 8605.940472 | U32: =Mercado!O366 -> 0 | V32: =Mercado!O430 -> 1.781545 | W32: =Mercado!O494 -> 1.71471646 | Y32: CD_Peaje BTH | Z32: 0 | AA32: CD_Peaje BTH | AB32: 0 | AC32: CD_Peaje BTH | AD32: 8.114343767 | AE32: CD_Peaje BTH | AF32: 5.071001536
A33: =Mercado!B560 -> 0 | B33: =Mercado!C172 ->  | C33: =IFERROR(($H$6*Balance!$K$441*Mercado!X560*$F$12+$H$7*Balance!$K$444*Mercado!Y560*$F$13+$H$8*Balance!$K$448*Mercado!Z560*$F$14)/12,"-") -> - | D33: =IFERROR(($I$6*Balance!$K$466*Mercado!AA560*$G$12+$I$7*Balance!$K$469*Mercado!AB560*$G$13+$I$8*Balance!$K$473*Mercado!AC560*$G$14)/12,"-") -> - | F33: =Mercado!D625 -> 0 | G33: =Mercado!D689 -> 0 | I33: =IFERROR((C33+D33)/(Mercado!$G560*730),) -> 0 | J33: =IFERROR((C33+D33)*Mercado!$H560,) -> 0 | K33: =IFERROR(C33*Mercado!$I560*Mercado!$AH560,) -> 0 | L33: =IFERROR(D33*Mercado!$J560*Mercado!$AI560,) -> 0 | M33: 0 | N33: 0 | O33: 0 | P33: 0 | Q33: 0 | R33: 0 | S33: 0 | T33: =Mercado!O172 -> 0 | U33: =Mercado!O367 -> 0 | V33: =Mercado!O431 -> 0 | W33: =Mercado!O495 -> 0 | Y33: CD_ | Z33: 0 | AA33: CD_ | AB33: 0 | AC33: CD_ | AD33: 0 | AE33: CD_ | AF33: 0
A34: =Mercado!B561 -> 0 | B34: =Mercado!C173 ->  | C34: =IFERROR(($H$6*Balance!$K$441*Mercado!X561*$F$12+$H$7*Balance!$K$444*Mercado!Y561*$F$13+$H$8*Balance!$K$448*Mercado!Z561*$F$14)/12,"-") -> - | D34: =IFERROR(($I$6*Balance!$K$466*Mercado!AA561*$G$12+$I$7*Balance!$K$469*Mercado!AB561*$G$13+$I$8*Balance!$K$473*Mercado!AC561*$G$14)/12,"-") -> - | F34: =Mercado!D626 -> 0 | G34: =Mercado!D690 -> 0 | I34: =IFERROR((C34+D34)/(Mercado!$G561*730),) -> 0 | J34: =IFERROR((C34+D34)*Mercado!$H561,) -> 0 | K34: =IFERROR(C34*Mercado!$I561*Mercado!$AH561,) -> 0 | L34: =IFERROR(D34*Mercado!$J561*Mercado!$AI561,) -> 0 | M34: 0 | N34: 0 | O34: 0 | P34: 0 | Q34: 0 | R34: 0 | S34: 0 | T34: =Mercado!O173 -> 0 | U34: =Mercado!O368 -> 0 | V34: =Mercado!O432 -> 0 | W34: =Mercado!O496 -> 0 | Y34: CD_ | Z34: 0 | AA34: CD_ | AB34: 0 | AC34: CD_ | AD34: 0 | AE34: CD_ | AF34: 0
A35: =Mercado!B562 -> 0 | B35: =Mercado!C174 ->  | C35: =IFERROR(($H$6*Balance!$K$441*Mercado!X562*$F$12+$H$7*Balance!$K$444*Mercado!Y562*$F$13+$H$8*Balance!$K$448*Mercado!Z562*$F$14)/12,"-") -> - | D35: =IFERROR(($I$6*Balance!$K$466*Mercado!AA562*$G$12+$I$7*Balance!$K$469*Mercado!AB562*$G$13+$I$8*Balance!$K$473*Mercado!AC562*$G$14)/12,"-") -> - | F35: =Mercado!D627 -> 0 | G35: =Mercado!D691 -> 0 | I35: =IFERROR((C35+D35)/(Mercado!$G562*730),) -> 0 | J35: =IFERROR((C35+D35)*Mercado!$H562,) -> 0 | K35: =IFERROR(C35*Mercado!$I562*Mercado!$AH562,) -> 0 | L35: =IFERROR(D35*Mercado!$J562*Mercado!$AI562,) -> 0 | M35: 0 | N35: 0 | O35: 0 | P35: 0 | Q35: 0 | R35: 0 | S35: 0 | T35: =Mercado!O174 -> 0 | U35: =Mercado!O369 -> 0 | V35: =Mercado!O433 -> 0 | W35: =Mercado!O497 -> 0 | Y35: CD_ | Z35: 0 | AA35: CD_ | AB35: 0 | AC35: CD_ | AD35: 0 | AE35: CD_ | AF35: 0
A36: =Mercado!B563 -> 0 | B36: =Mercado!C175 ->  | C36: =IFERROR(($H$6*Balance!$K$441*Mercado!X563*$F$12+$H$7*Balance!$K$444*Mercado!Y563*$F$13+$H$8*Balance!$K$448*Mercado!Z563*$F$14)/12,"-") -> - | D36: =IFERROR(($I$6*Balance!$K$466*Mercado!AA563*$G$12+$I$7*Balance!$K$469*Mercado!AB563*$G$13+$I$8*Balance!$K$473*Mercado!AC563*$G$14)/12,"-") -> - | F36: =Mercado!D628 -> 0 | G36: =Mercado!D692 -> 0 | I36: =IFERROR((C36+D36)/(Mercado!$G563*730),) -> 0 | J36: =IFERROR((C36+D36)*Mercado!$H563,) -> 0 | K36: =IFERROR(C36*Mercado!$I563*Mercado!$AH563,) -> 0 | L36: =IFERROR(D36*Mercado!$J563*Mercado!$AI563,) -> 0 | M36: 0 | N36: 0 | O36: 0 | P36: 0 | Q36: 0 | R36: 0 | S36: 0 | T36: =Mercado!O175 -> 0 | U36: =Mercado!O370 -> 0 | V36: =Mercado!O434 -> 0 | W36: =Mercado!O498 -> 0 | Y36: CD_ | Z36: 0 | AA36: CD_ | AB36: 0 | AC36: CD_ | AD36: 0 | AE36: CD_ | AF36: 0
A37: =Mercado!B564 -> 0 | B37: =Mercado!C176 ->  | C37: =IFERROR(($H$6*Balance!$K$441*Mercado!X564*$F$12+$H$7*Balance!$K$444*Mercado!Y564*$F$13+$H$8*Balance!$K$448*Mercado!Z564*$F$14)/12,"-") -> - | D37: =IFERROR(($I$6*Balance!$K$466*Mercado!AA564*$G$12+$I$7*Balance!$K$469*Mercado!AB564*$G$13+$I$8*Balance!$K$473*Mercado!AC564*$G$14)/12,"-") -> - | F37: =Mercado!D629 -> 0 | G37: =Mercado!D693 -> 0 | I37: =IFERROR((C37+D37)/(Mercado!$G564*730),) -> 0 | J37: =IFERROR((C37+D37)*Mercado!$H564,) -> 0 | K37: =IFERROR(C37*Mercado!$I564*Mercado!$AH564,) -> 0 | L37: =IFERROR(D37*Mercado!$J564*Mercado!$AI564,) -> 0 | M37: 0 | N37: 0 | O37: 0 | P37: 0 | Q37: 0 | R37: 0 | S37: 0 | T37: =Mercado!O176 -> 0 | U37: =Mercado!O371 -> 0 | V37: =Mercado!O435 -> 0 | W37: =Mercado!O499 -> 0 | Y37: CD_ | Z37: 0 | AA37: CD_ | AB37: 0 | AC37: CD_ | AD37: 0 | AE37: CD_ | AF37: 0
A38: =Mercado!B565 -> 0 | B38: =Mercado!C177 ->  | C38: =IFERROR(($H$6*Balance!$K$441*Mercado!X565*$F$12+$H$7*Balance!$K$444*Mercado!Y565*$F$13+$H$8*Balance!$K$448*Mercado!Z565*$F$14)/12,"-") -> - | D38: =IFERROR(($I$6*Balance!$K$466*Mercado!AA565*$G$12+$I$7*Balance!$K$469*Mercado!AB565*$G$13+$I$8*Balance!$K$473*Mercado!AC565*$G$14)/12,"-") -> - | F38: =Mercado!D630 -> 0 | G38: =Mercado!D694 -> 0 | I38: =IFERROR((C38+D38)/(Mercado!$G565*730),) -> 0 | J38: =IFERROR((C38+D38)*Mercado!$H565,) -> 0 | K38: =IFERROR(C38*Mercado!$I565*Mercado!$AH565,) -> 0 | L38: =IFERROR(D38*Mercado!$J565*Mercado!$AI565,) -> 0 | M38: 0 | N38: 0 | O38: 0 | P38: 0 | Q38: 0 | R38: 0 | S38: 0 | T38: =Mercado!O177 -> 0 | U38: =Mercado!O372 -> 0 | V38: =Mercado!O436 -> 0 | W38: =Mercado!O500 -> 0 | Y38: CD_ | Z38: 0 | AA38: CD_ | AB38: 0 | AC38: CD_ | AD38: 0 | AE38: CD_ | AF38: 0
A39: =Mercado!B566 -> 0 | B39: =Mercado!C178 ->  | C39: =IFERROR(($H$6*Balance!$K$441*Mercado!X566*$F$12+$H$7*Balance!$K$444*Mercado!Y566*$F$13+$H$8*Balance!$K$448*Mercado!Z566*$F$14)/12,"-") -> - | D39: =IFERROR(($I$6*Balance!$K$466*Mercado!AA566*$G$12+$I$7*Balance!$K$469*Mercado!AB566*$G$13+$I$8*Balance!$K$473*Mercado!AC566*$G$14)/12,"-") -> - | F39: =Mercado!D631 -> 0 | G39: =Mercado!D695 -> 0 | I39: =IFERROR((C39+D39)/(Mercado!$G566*730),) -> 0 | J39: =IFERROR((C39+D39)*Mercado!$H566,) -> 0 | K39: =IFERROR(C39*Mercado!$I566*Mercado!$AH566,) -> 0 | L39: =IFERROR(D39*Mercado!$J566*Mercado!$AI566,) -> 0 | M39: 0 | N39: 0 | O39: 0 | P39: 0 | Q39: 0 | R39: 0 | S39: 0 | T39: =Mercado!O178 -> 0 | U39: =Mercado!O373 -> 0 | V39: =Mercado!O437 -> 0 | W39: =Mercado!O501 -> 0 | Y39: CD_ | Z39: 0 | AA39: CD_ | AB39: 0 | AC39: CD_ | AD39: 0 | AE39: CD_ | AF39: 0
A40: =Mercado!B567 -> 0 | B40: =Mercado!C179 ->  | C40: =IFERROR(($H$6*Balance!$K$441*Mercado!X567*$F$12+$H$7*Balance!$K$444*Mercado!Y567*$F$13+$H$8*Balance!$K$448*Mercado!Z567*$F$14)/12,"-") -> - | D40: =IFERROR(($I$6*Balance!$K$466*Mercado!AA567*$G$12+$I$7*Balance!$K$469*Mercado!AB567*$G$13+$I$8*Balance!$K$473*Mercado!AC567*$G$14)/12,"-") -> - | F40: =Mercado!D632 -> 0 | G40: =Mercado!D696 -> 0 | I40: =IFERROR((C40+D40)/(Mercado!$G567*730),) -> 0 | J40: =IFERROR((C40+D40)*Mercado!$H567,) -> 0 | K40: =IFERROR(C40*Mercado!$I567*Mercado!$AH567,) -> 0 | L40: =IFERROR(D40*Mercado!$J567*Mercado!$AI567,) -> 0 | M40: 0 | N40: 0 | O40: 0 | P40: 0 | Q40: 0 | R40: 0 | S40: 0 | T40: =Mercado!O179 -> 0 | U40: =Mercado!O374 -> 0 | V40: =Mercado!O438 -> 0 | W40: =Mercado!O502 -> 0 | Y40: CD_ | Z40: 0 | AA40: CD_ | AB40: 0 | AC40: CD_ | AD40: 0 | AE40: CD_ | AF40: 0
A41: =Mercado!B568 -> 0 | B41: =Mercado!C180 ->  | C41: =IFERROR(($H$6*Balance!$K$441*Mercado!X568*$F$12+$H$7*Balance!$K$444*Mercado!Y568*$F$13+$H$8*Balance!$K$448*Mercado!Z568*$F$14)/12,"-") -> - | D41: =IFERROR(($I$6*Balance!$K$466*Mercado!AA568*$G$12+$I$7*Balance!$K$469*Mercado!AB568*$G$13+$I$8*Balance!$K$473*Mercado!AC568*$G$14)/12,"-") -> - | F41: =Mercado!D633 -> 0 | G41: =Mercado!D697 -> 0 | I41: =IFERROR((C41+D41)/(Mercado!$G568*730),) -> 0 | J41: =IFERROR((C41+D41)*Mercado!$H568,) -> 0 | K41: =IFERROR(C41*Mercado!$I568*Mercado!$AH568,) -> 0 | L41: =IFERROR(D41*Mercado!$J568*Mercado!$AI568,) -> 0 | M41: 0 | N41: 0 | O41: 0 | P41: 0 | Q41: 0 | R41: 0 | S41: 0 | T41: =Mercado!O180 -> 0 | U41: =Mercado!O375 -> 0 | V41: =Mercado!O439 -> 0 | W41: =Mercado!O503 -> 0 | Y41: CD_ | Z41: 0 | AA41: CD_ | AB41: 0 | AC41: CD_ | AD41: 0 | AE41: CD_ | AF41: 0
A42: =Mercado!B569 -> 0 | B42: =Mercado!C181 ->  | C42: =IFERROR(($H$6*Balance!$K$441*Mercado!X569*$F$12+$H$7*Balance!$K$444*Mercado!Y569*$F$13+$H$8*Balance!$K$448*Mercado!Z569*$F$14)/12,"-") -> - | D42: =IFERROR(($I$6*Balance!$K$466*Mercado!AA569*$G$12+$I$7*Balance!$K$469*Mercado!AB569*$G$13+$I$8*Balance!$K$473*Mercado!AC569*$G$14)/12,"-") -> - | F42: =Mercado!D634 -> 0 | G42: =Mercado!D698 -> 0 | I42: =IFERROR((C42+D42)/(Mercado!$G569*730),) -> 0 | J42: =IFERROR((C42+D42)*Mercado!$H569,) -> 0 | K42: =IFERROR(C42*Mercado!$I569*Mercado!$AH569,) -> 0 | L42: =IFERROR(D42*Mercado!$J569*Mercado!$AI569,) -> 0 | M42: 0 | N42: 0 | O42: 0 | P42: 0 | Q42: 0 | R42: 0 | S42: 0 | T42: =Mercado!O181 -> 0 | U42: =Mercado!O376 -> 0 | V42: =Mercado!O440 -> 0 | W42: =Mercado!O504 -> 0 | Y42: CD_ | Z42: 0 | AA42: CD_ | AB42: 0 | AC42: CD_ | AD42: 0 | AE42: CD_ | AF42: 0
A43: =Mercado!B570 -> 0 | B43: =Mercado!C182 ->  | C43: =IFERROR(($H$6*Balance!$K$441*Mercado!X570*$F$12+$H$7*Balance!$K$444*Mercado!Y570*$F$13+$H$8*Balance!$K$448*Mercado!Z570*$F$14)/12,"-") -> - | D43: =IFERROR(($I$6*Balance!$K$466*Mercado!AA570*$G$12+$I$7*Balance!$K$469*Mercado!AB570*$G$13+$I$8*Balance!$K$473*Mercado!AC570*$G$14)/12,"-") -> - | F43: =Mercado!D635 -> 0 | G43: =Mercado!D699 -> 0 | I43: =IFERROR((C43+D43)/(Mercado!$G570*730),) -> 0 | J43: =IFERROR((C43+D43)*Mercado!$H570,) -> 0 | K43: =IFERROR(C43*Mercado!$I570*Mercado!$AH570,) -> 0 | L43: =IFERROR(D43*Mercado!$J570*Mercado!$AI570,) -> 0 | M43: 0 | N43: 0 | O43: 0 | P43: 0 | Q43: 0 | R43: 0 | S43: 0 | T43: =Mercado!O182 -> 0 | U43: =Mercado!O377 -> 0 | V43: =Mercado!O441 -> 0 | W43: =Mercado!O505 -> 0 | Y43: CD_ | Z43: 0 | AA43: CD_ | AB43: 0 | AC43: CD_ | AD43: 0 | AE43: CD_ | AF43: 0
A44: =Mercado!B571 -> 0 | B44: =Mercado!C183 ->  | C44: =IFERROR(($H$6*Balance!$K$441*Mercado!X571*$F$12+$H$7*Balance!$K$444*Mercado!Y571*$F$13+$H$8*Balance!$K$448*Mercado!Z571*$F$14)/12,"-") -> - | D44: =IFERROR(($I$6*Balance!$K$466*Mercado!AA571*$G$12+$I$7*Balance!$K$469*Mercado!AB571*$G$13+$I$8*Balance!$K$473*Mercado!AC571*$G$14)/12,"-") -> - | F44: =Mercado!D636 -> 0 | G44: =Mercado!D700 -> 0 | I44: =IFERROR((C44+D44)/(Mercado!$G571*730),) -> 0 | J44: =IFERROR((C44+D44)*Mercado!$H571,) -> 0 | K44: =IFERROR(C44*Mercado!$I571*Mercado!$AH571,) -> 0 | L44: =IFERROR(D44*Mercado!$J571*Mercado!$AI571,) -> 0 | M44: 0 | N44: 0 | O44: 0 | P44: 0 | Q44: 0 | R44: 0 | S44: 0 | T44: =Mercado!O183 -> 0 | U44: =Mercado!O378 -> 0 | V44: =Mercado!O442 -> 0 | W44: =Mercado!O506 -> 0 | Y44: CD_ | Z44: 0 | AA44: CD_ | AB44: 0 | AC44: CD_ | AD44: 0 | AE44: CD_ | AF44: 0
A45: =Mercado!B572 -> 0 | B45: =Mercado!C184 ->  | C45: =IFERROR(($H$6*Balance!$K$441*Mercado!X572*$F$12+$H$7*Balance!$K$444*Mercado!Y572*$F$13+$H$8*Balance!$K$448*Mercado!Z572*$F$14)/12,"-") -> - | D45: =IFERROR(($I$6*Balance!$K$466*Mercado!AA572*$G$12+$I$7*Balance!$K$469*Mercado!AB572*$G$13+$I$8*Balance!$K$473*Mercado!AC572*$G$14)/12,"-") -> - | F45: =Mercado!D637 -> 0 | G45: =Mercado!D701 -> 0 | I45: =IFERROR((C45+D45)/(Mercado!$G572*730),) -> 0 | J45: =IFERROR((C45+D45)*Mercado!$H572,) -> 0 | K45: =IFERROR(C45*Mercado!$I572*Mercado!$AH572,) -> 0 | L45: =IFERROR(D45*Mercado!$J572*Mercado!$AI572,) -> 0 | M45: 0 | N45: 0 | O45: 0 | P45: 0 | Q45: 0 | R45: 0 | S45: 0 | T45: =Mercado!O184 -> 0 | U45: =Mercado!O379 -> 0 | V45: =Mercado!O443 -> 0 | W45: =Mercado!O507 -> 0 | Y45: CD_ | Z45: 0 | AA45: CD_ | AB45: 0 | AC45: CD_ | AD45: 0 | AE45: CD_ | AF45: 0
A46: =Mercado!B573 -> AP | B46: =Mercado!C185 -> AP | C46: =IFERROR(($H$6*Balance!$K$441*Mercado!X573*$F$12+$H$7*Balance!$K$444*Mercado!Y573*$F$13+$H$8*Balance!$K$448*Mercado!Z573*$F$14)/12,"-") -> 0 | D46: =IFERROR(($I$6*Balance!$K$466*Mercado!AA573*$G$12+$I$7*Balance!$K$469*Mercado!AB573*$G$13+$I$8*Balance!$K$473*Mercado!AC573*$G$14)/12,"-") -> 12.32746417 | F46: =Mercado!D638 -> Energia | G46: =Mercado!D702 -> Energia | H46: 1 | I46: =IFERROR((C46+D46)/(Mercado!$G573*730),) -> 0.03377387445 | J46: =IFERROR((C46+D46)*Mercado!$H573,) -> 12.32746417 | K46: =IFERROR(C46*Mercado!$I573*Mercado!$AH573,) -> 0 | L46: =IFERROR(D46*Mercado!$J573*Mercado!$AI573,) -> 12.32746417 | M46: 0 | N46: 0 | O46: 0 | P46: 0.03377387445 | Q46: 0 | R46: 0 | S46: 0 | T46: =Mercado!O185 -> 308657.8197 | U46: =Mercado!O380 -> 0 | V46: =Mercado!O444 -> 0 | W46: =Mercado!O508 -> 0 | Y46: CD_AP | Z46: 0.03377387445 | AA46: CD_AP | AB46: 0 | AC46: CD_AP | AD46: 0 | AE46: CD_AP | AF46: 0
A47: =Mercado!B574 -> 0 | B47: =Mercado!C186 ->  | C47: =IFERROR(($H$7*Balance!$K$445*Mercado!Y574*$F$13+$H$8*Balance!$K$449*Mercado!Z574*$F$14)/12,"-") -> - | D47: =IFERROR(($I$7*Balance!$K$470*Mercado!AB574*$G$13+$I$8*Balance!$K$474*Mercado!AC574*$G$14)/12,"-") -> - | F47: =Mercado!D639 -> 0 | G47: =Mercado!D703 -> 0 | I47: =IFERROR((C47+D47)/(Mercado!$G574*730),) -> 0 | J47: =IFERROR((C47+D47)*Mercado!$H574,) -> 0 | K47: =IFERROR(C47*Mercado!$I574*Mercado!$AH574,) -> 0 | L47: =IFERROR(D47*Mercado!$J574*Mercado!$AI574,) -> 0 | M47: 0 | N47: 0 | O47: 0 | P47: 0 | Q47: 0 | R47: 0 | S47: 0 | T47: =Mercado!O186 -> 0 | U47: =Mercado!O381 -> 0 | V47: =Mercado!O445 -> 0 | W47: =Mercado!O509 -> 0 | Y47: CD_ | Z47: 0 | AA47: CD_ | AB47: 0 | AC47: CD_ | AD47: 0 | AE47: CD_ | AF47: 0
A48: =Mercado!B575 -> 0 | B48: =Mercado!C187 ->  | C48: =IFERROR(($H$7*Balance!$K$445*Mercado!Y575*$F$13+$H$8*Balance!$K$449*Mercado!Z575*$F$14)/12,"-") -> - | D48: =IFERROR(($I$7*Balance!$K$470*Mercado!AB575*$G$13+$I$8*Balance!$K$474*Mercado!AC575*$G$14)/12,"-") -> - | F48: =Mercado!D640 -> 0 | G48: =Mercado!D704 -> 0 | I48: =IFERROR((C48+D48)/(Mercado!$G575*730),) -> 0 | J48: =IFERROR((C48+D48)*Mercado!$H575,) -> 0 | K48: =IFERROR(C48*Mercado!$I575*Mercado!$AH575,) -> 0 | L48: =IFERROR(D48*Mercado!$J575*Mercado!$AI575,) -> 0 | M48: 0 | N48: 0 | O48: 0 | P48: 0 | Q48: 0 | R48: 0 | S48: 0 | T48: =Mercado!O187 -> 0 | U48: =Mercado!O382 -> 0 | V48: =Mercado!O446 -> 0 | W48: =Mercado!O510 -> 0 | Y48: CD_ | Z48: 0 | AA48: CD_ | AB48: 0 | AC48: CD_ | AD48: 0 | AE48: CD_ | AF48: 0
A49: =Mercado!B576 -> 0 | B49: =Mercado!C188 ->  | C49: =IFERROR(($H$7*Balance!$K$445*Mercado!Y576*$F$13+$H$8*Balance!$K$449*Mercado!Z576*$F$14)/12,"-") -> - | D49: =IFERROR(($I$7*Balance!$K$470*Mercado!AB576*$G$13+$I$8*Balance!$K$474*Mercado!AC576*$G$14)/12,"-") -> - | F49: =Mercado!D641 -> 0 | G49: =Mercado!D705 -> 0 | I49: =IFERROR((C49+D49)/(Mercado!$G576*730),) -> 0 | J49: =IFERROR((C49+D49)*Mercado!$H576,) -> 0 | K49: =IFERROR(C49*Mercado!$I576*Mercado!$AH576,) -> 0 | L49: =IFERROR(D49*Mercado!$J576*Mercado!$AI576,) -> 0 | M49: 0 | N49: 0 | O49: 0 | P49: 0 | Q49: 0 | R49: 0 | S49: 0 | T49: =Mercado!O188 -> 0 | U49: =Mercado!O383 -> 0 | V49: =Mercado!O447 -> 0 | W49: =Mercado!O511 -> 0 | Y49: CD_ | Z49: 0 | AA49: CD_ | AB49: 0 | AC49: CD_ | AD49: 0 | AE49: CD_ | AF49: 0
A50: =Mercado!B577 -> 0 | B50: =Mercado!C189 ->  | C50: =IFERROR(($H$7*Balance!$K$445*Mercado!Y577*$F$13+$H$8*Balance!$K$449*Mercado!Z577*$F$14)/12,"-") -> - | D50: =IFERROR(($I$7*Balance!$K$470*Mercado!AB577*$G$13+$I$8*Balance!$K$474*Mercado!AC577*$G$14)/12,"-") -> - | F50: =Mercado!D642 -> 0 | G50: =Mercado!D706 -> 0 | I50: =IFERROR((C50+D50)/(Mercado!$G577*730),) -> 0 | J50: =IFERROR((C50+D50)*Mercado!$H577,) -> 0 | K50: =IFERROR(C50*Mercado!$I577*Mercado!$AH577,) -> 0 | L50: =IFERROR(D50*Mercado!$J577*Mercado!$AI577,) -> 0 | M50: 0 | N50: 0 | O50: 0 | P50: 0 | Q50: 0 | R50: 0 | S50: 0 | T50: =Mercado!O189 -> 0 | U50: =Mercado!O384 -> 0 | V50: =Mercado!O448 -> 0 | W50: =Mercado!O512 -> 0 | Y50: CD_ | Z50: 0 | AA50: CD_ | AB50: 0 | AC50: CD_ | AD50: 0 | AE50: CD_ | AF50: 0
A51: =Mercado!B578 -> 0 | B51: =Mercado!C190 ->  | C51: =IFERROR(($H$7*Balance!$K$445*Mercado!Y578*$F$13+$H$8*Balance!$K$449*Mercado!Z578*$F$14)/12,"-") -> - | D51: =IFERROR(($I$7*Balance!$K$470*Mercado!AB578*$G$13+$I$8*Balance!$K$474*Mercado!AC578*$G$14)/12,"-") -> - | F51: =Mercado!D643 -> 0 | G51: =Mercado!D707 -> 0 | I51: =IFERROR((C51+D51)/(Mercado!$G578*730),) -> 0 | J51: =IFERROR((C51+D51)*Mercado!$H578,) -> 0 | K51: =IFERROR(C51*Mercado!$I578*Mercado!$AH578,) -> 0 | L51: =IFERROR(D51*Mercado!$J578*Mercado!$AI578,) -> 0 | M51: 0 | N51: 0 | O51: 0 | P51: 0 | Q51: 0 | R51: 0 | S51: 0 | T51: =Mercado!O190 -> 0 | U51: =Mercado!O385 -> 0 | V51: =Mercado!O449 -> 0 | W51: =Mercado!O513 -> 0 | Y51: CD_ | Z51: 0 | AA51: CD_ | AB51: 0 | AC51: CD_ | AD51: 0 | AE51: CD_ | AF51: 0
A52: =Mercado!B579 -> 0 | B52: =Mercado!C191 ->  | C52: =IFERROR(($H$7*Balance!$K$445*Mercado!Y579*$F$13+$H$8*Balance!$K$449*Mercado!Z579*$F$14)/12,"-") -> - | D52: =IFERROR(($I$7*Balance!$K$470*Mercado!AB579*$G$13+$I$8*Balance!$K$474*Mercado!AC579*$G$14)/12,"-") -> - | F52: =Mercado!D644 -> 0 | G52: =Mercado!D708 -> 0 | I52: =IFERROR((C52+D52)/(Mercado!$G579*730),) -> 0 | J52: =IFERROR((C52+D52)*Mercado!$H579,) -> 0 | K52: =IFERROR(C52*Mercado!$I579*Mercado!$AH579,) -> 0 | L52: =IFERROR(D52*Mercado!$J579*Mercado!$AI579,) -> 0 | M52: 0 | N52: 0 | O52: 0 | P52: 0 | Q52: 0 | R52: 0 | S52: 0 | T52: =Mercado!O191 -> 0 | U52: =Mercado!O386 -> 0 | V52: =Mercado!O450 -> 0 | W52: =Mercado!O514 -> 0 | Y52: CD_ | Z52: 0 | AA52: CD_ | AB52: 0 | AC52: CD_ | AD52: 0 | AE52: CD_ | AF52: 0
A53: =Mercado!B580 -> MTD-MTH-Peaje MT | B53: =Mercado!C192 -> MTD | C53: =IFERROR(($H$7*Balance!$K$445*Mercado!Y580*$F$13+$H$8*Balance!$K$449*Mercado!Z580*$F$14)/12,"-") -> 6.014191189 | D53: =IFERROR(($I$7*Balance!$K$470*Mercado!AB580*$G$13+$I$8*Balance!$K$474*Mercado!AC580*$G$14)/12,"-") -> 5.504403467 | F53: =Mercado!D645 -> Pot_Max | G53: =Mercado!D709 -> Pot_Max | H53: 0 | I53: =IFERROR((C53+D53)/(Mercado!$G580*730),) -> 0.02297079766 | J53: =IFERROR((C53+D53)*Mercado!$H580,) -> 9.640332395 | K53: =IFERROR(C53*Mercado!$I580*Mercado!$AH580,) -> 5.130427114 | L53: =IFERROR(D53*Mercado!$J580*Mercado!$AI580,) -> 4.865225173 | M53: 0.02493272012 | N53: 0 | O53: 0 | P53: 0 | Q53: 9.640332395 | R53: 0 | S53: 0 | T53: =Mercado!O192 -> 912685.3936 | U53: =Mercado!O387 -> 230.8455812 | V53: =Mercado!O451 -> 0 | W53: =Mercado!O515 -> 0 | Y53: CD_MTD | Z53: 0 | AA53: CD_MTD | AB53: 9.640332395 | AC53: CD_MTD | AD53: 0 | AE53: CD_MTD | AF53: 0
A54: =Mercado!B581 -> MTD-MTH-Peaje MT | B54: =Mercado!C193 -> MTH | C54: =IFERROR(($H$7*Balance!$K$445*Mercado!Y581*$F$13+$H$8*Balance!$K$449*Mercado!Z581*$F$14)/12,"-") -> 6.014191189 | D54: =IFERROR(($I$7*Balance!$K$470*Mercado!AB581*$G$13+$I$8*Balance!$K$474*Mercado!AC581*$G$14)/12,"-") -> 5.504403467 | F54: =Mercado!D646 -> Pot_Max_P | G54: =Mercado!D710 -> Pot_Max_FP | H54: 0 | I54: =IFERROR((C54+D54)/(Mercado!$G581*730),) -> 0.02297079766 | J54: =IFERROR((C54+D54)*Mercado!$H581,) -> 9.640332395 | K54: =IFERROR(C54*Mercado!$I581*Mercado!$AH581,) -> 5.130427114 | L54: =IFERROR(D54*Mercado!$J581*Mercado!$AI581,) -> 4.865225173 | M54: 0 | N54: 0.01150168283 | O54: 0.01089017693 | P54: 0 | Q54: 0 | R54: 5.130427114 | S54: 4.865225173 | T54: =Mercado!O193 -> 169019.9021 | U54: =Mercado!O388 -> 0 | V54: =Mercado!O452 -> 31.31057312 | W54: =Mercado!O516 -> 31.68992365 | Y54: CD_MTH | Z54: 0 | AA54: CD_MTH | AB54: 0 | AC54: CD_MTH | AD54: 5.130427114 | AE54: CD_MTH | AF54: 4.865225173
A55: =Mercado!B582 -> AMTD | B55: =Mercado!C194 -> A-MT | C55: =IFERROR(($H$7*Balance!$K$445*Mercado!Y582*$F$13+$H$8*Balance!$K$449*Mercado!Z582*$F$14)/12,"-") -> 3.962684813 | D55: =IFERROR(($I$7*Balance!$K$470*Mercado!AB582*$G$13+$I$8*Balance!$K$474*Mercado!AC582*$G$14)/12,"-") -> 3.59607198 | F55: =Mercado!D647 -> Pot_Max | G55: =Mercado!D711 -> Pot_Max | H55: 0 | I55: =IFERROR((C55+D55)/(Mercado!$G582*730),) -> 0.02584199392 | J55: =IFERROR((C55+D55)*Mercado!$H582,) -> 6.441666863 | K55: =IFERROR(C55*Mercado!$I582*Mercado!$AH582,) -> 3.402950092 | L55: =IFERROR(D55*Mercado!$J582*Mercado!$AI582,) -> 3.308375646 | M55: 0 | N55: 0 | O55: 0 | P55: 0 | Q55: 6.441666863 | R55: 0 | S55: 0 | T55: =Mercado!O194 -> 0 | U55: =Mercado!O389 -> 0 | V55: =Mercado!O453 -> 0 | W55: =Mercado!O517 -> 0 | Y55: CD_A-MT | Z55: 0 | AA55: CD_A-MT | AB55: 6.441666863 | AC55: CD_A-MT | AD55: 0 | AE55: CD_A-MT | AF55: 0
A56: =Mercado!B583 -> MTD-MTH-Peaje MT | B56: =Mercado!C195 -> Peaje MT | C56: =IFERROR(($H$7*Balance!$K$445*Mercado!Y583*$F$13+$H$8*Balance!$K$449*Mercado!Z583*$F$14)/12,"-") -> 6.014191189 | D56: =IFERROR(($I$7*Balance!$K$470*Mercado!AB583*$G$13+$I$8*Balance!$K$474*Mercado!AC583*$G$14)/12,"-") -> 5.504403467 | F56: =Mercado!D648 -> Pot_Max | G56: =Mercado!D712 -> Pot_Max | H56: 0 | I56: =IFERROR((C56+D56)/(Mercado!$G583*730),) -> 0.02297079766 | J56: =IFERROR((C56+D56)*Mercado!$H583,) -> 9.640332395 | K56: =IFERROR(C56*Mercado!$I583*Mercado!$AH583,) -> 5.130427114 | L56: =IFERROR(D56*Mercado!$J583*Mercado!$AI583,) -> 4.865225173 | M56: 0.02493272012 | N56: 0 | O56: 0 | P56: 0 | Q56: 9.640332395 | R56: 0 | S56: 0 | T56: =Mercado!O195 -> 1480335.661 | U56: =Mercado!O390 -> 284.9088016 | V56: =Mercado!O454 -> 0 | W56: =Mercado!O518 -> 0 | Y56: CD_Peaje MT | Z56: 0 | AA56: CD_Peaje MT | AB56: 9.640332395 | AC56: CD_Peaje MT | AD56: 0 | AE56: CD_Peaje MT | AF56: 0
A57: =Mercado!B584 -> 0 | B57: =Mercado!C196 ->  | C57: =IFERROR(($H$7*Balance!$K$445*Mercado!Y584*$F$13+$H$8*Balance!$K$449*Mercado!Z584*$F$14)/12,"-") -> - | D57: =IFERROR(($I$7*Balance!$K$470*Mercado!AB584*$G$13+$I$8*Balance!$K$474*Mercado!AC584*$G$14)/12,"-") -> - | F57: =Mercado!D649 -> 0 | G57: =Mercado!D713 -> 0 | I57: =IFERROR((C57+D57)/(Mercado!$G584*730),) -> 0 | J57: =IFERROR((C57+D57)*Mercado!$H584,) -> 0 | K57: =IFERROR(C57*Mercado!$I584*Mercado!$AH584,) -> 0 | L57: =IFERROR(D57*Mercado!$J584*Mercado!$AI584,) -> 0 | M57: 0 | N57: 0 | O57: 0 | P57: 0 | Q57: 0 | R57: 0 | S57: 0 | T57: =Mercado!O196 -> 0 | U57: =Mercado!O391 -> 0 | V57: =Mercado!O455 -> 0 | W57: =Mercado!O519 -> 0 | Y57: CD_ | Z57: 0 | AA57: CD_ | AB57: 0 | AC57: CD_ | AD57: 0 | AE57: CD_ | AF57: 0
A58: =Mercado!B585 -> 0 | B58: =Mercado!C197 ->  | C58: =IFERROR(($H$7*Balance!$K$445*Mercado!Y585*$F$13+$H$8*Balance!$K$449*Mercado!Z585*$F$14)/12,"-") -> - | D58: =IFERROR(($I$7*Balance!$K$470*Mercado!AB585*$G$13+$I$8*Balance!$K$474*Mercado!AC585*$G$14)/12,"-") -> - | F58: =Mercado!D650 -> 0 | G58: =Mercado!D714 -> 0 | I58: =IFERROR((C58+D58)/(Mercado!$G585*730),) -> 0 | J58: =IFERROR((C58+D58)*Mercado!$H585,) -> 0 | K58: =IFERROR(C58*Mercado!$I585*Mercado!$AH585,) -> 0 | L58: =IFERROR(D58*Mercado!$J585*Mercado!$AI585,) -> 0 | M58: =IFERROR(IF($F58=M$23,J58*SUMIFS($U$26:$U$86,$A$26:$A$86,$A58,$F$26:$F$86,M$23)*12/SUMIFS($T$26:$T$86,$A$26:$A$86,$A58,$F$26:$F$86,M$23),),) -> 0 | N58: =IFERROR(IF($F58=N$23,K58*SUMIFS($V$26:$V$86,$A$26:$A$86,$A58,$F$26:$F$86,N$23)*12/SUMIFS($T$26:$T$86,$A$26:$A$86,$A58,$F$26:$F$86,N$23),),) -> 0 | O58: =IFERROR(IF($G58=O$23,L58*SUMIFS($W$26:$W$86,$A$26:$A$86,$A58,$G$26:$G$86,O$23)*12/SUMIFS($T$26:$T$86,$A$26:$A$86,$A58,$G$26:$G$86,O$23),),) -> 0 | P58: =IF($F58=P$23,I58,)+(M58+N58+O58)*H58 -> 0 | Q58: =IF($F58<>Q$23,,J58*(1-$H58)) -> 0 | R58: =IF($F58<>R$23,,K58*(1-$H58)) -> 0 | S58: =IF($G58<>S$23,,L58*(1-$H58)) -> 0 | T58: =Mercado!O197 -> 0 | U58: =Mercado!O392 -> 0 | V58: =Mercado!O456 -> 0 | W58: =Mercado!O520 -> 0 | Y58: CD_ | Z58: 0 | AA58: CD_ | AB58: 0 | AC58: CD_ | AD58: 0 | AE58: CD_ | AF58: 0
A59: =Mercado!B586 -> 0 | B59: =Mercado!C198 ->  | C59: =IFERROR(($H$7*Balance!$K$445*Mercado!Y586*$F$13+$H$8*Balance!$K$449*Mercado!Z586*$F$14)/12,"-") -> - | D59: =IFERROR(($I$7*Balance!$K$470*Mercado!AB586*$G$13+$I$8*Balance!$K$474*Mercado!AC586*$G$14)/12,"-") -> - | F59: =Mercado!D651 -> 0 | G59: =Mercado!D715 -> 0 | I59: =IFERROR((C59+D59)/(Mercado!$G586*730),) -> 0 | J59: =IFERROR((C59+D59)*Mercado!$H586,) -> 0 | K59: =IFERROR(C59*Mercado!$I586*Mercado!$AH586,) -> 0 | L59: =IFERROR(D59*Mercado!$J586*Mercado!$AI586,) -> 0 | M59: 0 | N59: 0 | O59: 0 | P59: 0 | Q59: 0 | R59: 0 | S59: 0 | T59: =Mercado!O198 -> 0 | U59: =Mercado!O393 -> 0 | V59: =Mercado!O457 -> 0 | W59: =Mercado!O521 -> 0 | Y59: CD_ | Z59: 0 | AA59: CD_ | AB59: 0 | AC59: CD_ | AD59: 0 | AE59: CD_ | AF59: 0
A60: =Mercado!B587 -> 0 | B60: =Mercado!C199 ->  | C60: =IFERROR(($H$7*Balance!$K$445*Mercado!Y587*$F$13+$H$8*Balance!$K$449*Mercado!Z587*$F$14)/12,"-") -> - | D60: =IFERROR(($I$7*Balance!$K$470*Mercado!AB587*$G$13+$I$8*Balance!$K$474*Mercado!AC587*$G$14)/12,"-") -> - | F60: =Mercado!D652 -> 0 | G60: =Mercado!D716 -> 0 | I60: =IFERROR((C60+D60)/(Mercado!$G587*730),) -> 0 | J60: =IFERROR((C60+D60)*Mercado!$H587,) -> 0 | K60: =IFERROR(C60*Mercado!$I587*Mercado!$AH587,) -> 0 | L60: =IFERROR(D60*Mercado!$J587*Mercado!$AI587,) -> 0 | M60: 0 | N60: 0 | O60: 0 | P60: 0 | Q60: 0 | R60: 0 | S60: 0 | T60: =Mercado!O199 -> 0 | U60: =Mercado!O394 -> 0 | V60: =Mercado!O458 -> 0 | W60: =Mercado!O522 -> 0 | Y60: CD_ | Z60: 0 | AA60: CD_ | AB60: 0 | AC60: CD_ | AD60: 0 | AE60: CD_ | AF60: 0
A61: =Mercado!B588 -> 0 | B61: =Mercado!C200 ->  | C61: =IFERROR(($H$7*Balance!$K$445*Mercado!Y588*$F$13+$H$8*Balance!$K$449*Mercado!Z588*$F$14)/12,"-") -> - | D61: =IFERROR(($I$7*Balance!$K$470*Mercado!AB588*$G$13+$I$8*Balance!$K$474*Mercado!AC588*$G$14)/12,"-") -> - | F61: =Mercado!D653 -> 0 | G61: =Mercado!D717 -> 0 | I61: =IFERROR((C61+D61)/(Mercado!$G588*730),) -> 0 | J61: =IFERROR((C61+D61)*Mercado!$H588,) -> 0 | K61: =IFERROR(C61*Mercado!$I588*Mercado!$AH588,) -> 0 | L61: =IFERROR(D61*Mercado!$J588*Mercado!$AI588,) -> 0 | M61: 0 | N61: 0 | O61: 0 | P61: 0 | Q61: 0 | R61: 0 | S61: 0 | T61: =Mercado!O200 -> 0 | U61: =Mercado!O395 -> 0 | V61: =Mercado!O459 -> 0 | W61: =Mercado!O523 -> 0 | Y61: CD_ | Z61: 0 | AA61: CD_ | AB61: 0 | AC61: CD_ | AD61: 0 | AE61: CD_ | AF61: 0
A62: =Mercado!B589 -> MTD-MTH-Peaje MT | B62: =Mercado!C201 -> Peaje MTH | C62: =IFERROR(($H$7*Balance!$K$445*Mercado!Y589*$F$13+$H$8*Balance!$K$449*Mercado!Z589*$F$14)/12,"-") -> 6.014191189 | D62: =IFERROR(($I$7*Balance!$K$470*Mercado!AB589*$G$13+$I$8*Balance!$K$474*Mercado!AC589*$G$14)/12,"-") -> 5.504403467 | F62: =Mercado!D654 -> Pot_Max_P | G62: =Mercado!D718 -> Pot_Max_FP | H62: 0 | I62: =IFERROR((C62+D62)/(Mercado!$G589*730),) -> 0.02297079766 | J62: =IFERROR((C62+D62)*Mercado!$H589,) -> 9.640332395 | K62: =IFERROR(C62*Mercado!$I589*Mercado!$AH589,) -> 5.130427114 | L62: =IFERROR(D62*Mercado!$J589*Mercado!$AI589,) -> 4.865225173 | M62: 0 | N62: 0.01150168283 | O62: 0.01089017693 | P62: 0 | Q62: 0 | R62: 5.130427114 | S62: 4.865225173 | T62: =Mercado!O201 -> 392573.2265 | U62: =Mercado!O396 -> 0 | V62: =Mercado!O460 -> 73.60704066 | W62: =Mercado!O524 -> 73.06453816 | Y62: CD_Peaje MTH | Z62: 0 | AA62: CD_Peaje MTH | AB62: 0 | AC62: CD_Peaje MTH | AD62: 5.130427114 | AE62: CD_Peaje MTH | AF62: 4.865225173
A63: =Mercado!B590 -> 0 | B63: =Mercado!C202 ->  | C63: =IFERROR(($H$7*Balance!$K$445*Mercado!Y590*$F$13+$H$8*Balance!$K$449*Mercado!Z590*$F$14)/12,"-") -> - | D63: =IFERROR(($I$7*Balance!$K$470*Mercado!AB590*$G$13+$I$8*Balance!$K$474*Mercado!AC590*$G$14)/12,"-") -> - | F63: =Mercado!D655 -> 0 | G63: =Mercado!D719 -> 0 | I63: =IFERROR((C63+D63)/(Mercado!$G590*730),) -> 0 | J63: =IFERROR((C63+D63)*Mercado!$H590,) -> 0 | K63: =IFERROR(C63*Mercado!$I590*Mercado!$AH590,) -> 0 | L63: =IFERROR(D63*Mercado!$J590*Mercado!$AI590,) -> 0 | M63: 0 | N63: 0 | O63: 0 | P63: 0 | Q63: 0 | R63: 0 | S63: 0 | T63: =Mercado!O202 -> 0 | U63: =Mercado!O397 -> 0 | V63: =Mercado!O461 -> 0 | W63: =Mercado!O525 -> 0 | Y63: CD_ | Z63: 0 | AA63: CD_ | AB63: 0 | AC63: CD_ | AD63: 0 | AE63: CD_ | AF63: 0
A64: =Mercado!B591 -> 0 | B64: =Mercado!C203 ->  | C64: =IFERROR(($H$7*Balance!$K$445*Mercado!Y591*$F$13+$H$8*Balance!$K$449*Mercado!Z591*$F$14)/12,"-") -> - | D64: =IFERROR(($I$7*Balance!$K$470*Mercado!AB591*$G$13+$I$8*Balance!$K$474*Mercado!AC591*$G$14)/12,"-") -> - | F64: =Mercado!D656 -> 0 | G64: =Mercado!D720 -> 0 | I64: =IFERROR((C64+D64)/(Mercado!$G591*730),) -> 0 | J64: =IFERROR((C64+D64)*Mercado!$H591,) -> 0 | K64: =IFERROR(C64*Mercado!$I591*Mercado!$AH591,) -> 0 | L64: =IFERROR(D64*Mercado!$J591*Mercado!$AI591,) -> 0 | M64: 0 | N64: 0 | O64: 0 | P64: 0 | Q64: 0 | R64: 0 | S64: 0 | T64: =Mercado!O203 -> 0 | U64: =Mercado!O398 -> 0 | V64: =Mercado!O462 -> 0 | W64: =Mercado!O526 -> 0 | Y64: CD_ | Z64: 0 | AA64: CD_ | AB64: 0 | AC64: CD_ | AD64: 0 | AE64: CD_ | AF64: 0
A65: =Mercado!B592 -> 0 | B65: =Mercado!C204 ->  | C65: =IFERROR(($H$7*Balance!$K$445*Mercado!Y592*$F$13+$H$8*Balance!$K$449*Mercado!Z592*$F$14)/12,"-") -> - | D65: =IFERROR(($I$7*Balance!$K$470*Mercado!AB592*$G$13+$I$8*Balance!$K$474*Mercado!AC592*$G$14)/12,"-") -> - | F65: =Mercado!D657 -> 0 | G65: =Mercado!D721 -> 0 | I65: =IFERROR((C65+D65)/(Mercado!$G592*730),) -> 0 | J65: =IFERROR((C65+D65)*Mercado!$H592,) -> 0 | K65: =IFERROR(C65*Mercado!$I592*Mercado!$AH592,) -> 0 | L65: =IFERROR(D65*Mercado!$J592*Mercado!$AI592,) -> 0 | M65: 0 | N65: 0 | O65: 0 | P65: 0 | Q65: 0 | R65: 0 | S65: 0 | T65: =Mercado!O204 -> 0 | U65: =Mercado!O399 -> 0 | V65: =Mercado!O463 -> 0 | W65: =Mercado!O527 -> 0 | Y65: CD_ | Z65: 0 | AA65: CD_ | AB65: 0 | AC65: CD_ | AD65: 0 | AE65: CD_ | AF65: 0
A66: =Mercado!B593 -> 0 | B66: =Mercado!C205 ->  | C66: =IFERROR(($H$7*Balance!$K$445*Mercado!Y593*$F$13+$H$8*Balance!$K$449*Mercado!Z593*$F$14)/12,"-") -> - | D66: =IFERROR(($I$7*Balance!$K$470*Mercado!AB593*$G$13+$I$8*Balance!$K$474*Mercado!AC593*$G$14)/12,"-") -> - | F66: =Mercado!D658 -> 0 | G66: =Mercado!D722 -> 0 | I66: =IFERROR((C66+D66)/(Mercado!$G593*730),) -> 0 | J66: =IFERROR((C66+D66)*Mercado!$H593,) -> 0 | K66: =IFERROR(C66*Mercado!$I593*Mercado!$AH593,) -> 0 | L66: =IFERROR(D66*Mercado!$J593*Mercado!$AI593,) -> 0 | M66: 0 | N66: 0 | O66: 0 | P66: 0 | Q66: 0 | R66: 0 | S66: 0 | T66: =Mercado!O205 -> 0 | U66: =Mercado!O400 -> 0 | V66: =Mercado!O464 -> 0 | W66: =Mercado!O528 -> 0 | Y66: CD_ | Z66: 0 | AA66: CD_ | AB66: 0 | AC66: CD_ | AD66: 0 | AE66: CD_ | AF66: 0
A67: =Mercado!B594 -> 0 | B67: =Mercado!C206 ->  | C67: =IFERROR(($H$8*Balance!$K$450*Mercado!Z594*$F$14)/12,"-") -> - | D67: =IFERROR(($I$8*Balance!$K$475*Mercado!AC594*$G$14)/12,"-") -> - | F67: =Mercado!D659 -> 0 | G67: =Mercado!D723 -> 0 | I67: =IFERROR((C67+D67)/(Mercado!$G594*730),) -> 0 | J67: =IFERROR((C67+D67)*Mercado!$H594,) -> 0 | K67: =IFERROR(C67*Mercado!$I594*Mercado!$AH594,) -> 0 | L67: =IFERROR(D67*Mercado!$J594*Mercado!$AI594,) -> 0 | M67: 0 | N67: 0 | O67: 0 | P67: 0 | Q67: 0 | R67: 0 | S67: 0 | T67: =Mercado!O206 -> 0 | U67: =Mercado!O401 -> 0 | V67: =Mercado!O465 -> 0 | W67: =Mercado!O529 -> 0 | Y67: CD_ | Z67: 0 | AA67: CD_ | AB67: 0 | AC67: CD_ | AD67: 0 | AE67: CD_ | AF67: 0
A68: =Mercado!B595 -> 0 | B68: =Mercado!C207 ->  | C68: =IFERROR(($H$8*Balance!$K$450*Mercado!Z595*$F$14)/12,"-") -> - | D68: =IFERROR(($I$8*Balance!$K$475*Mercado!AC595*$G$14)/12,"-") -> - | F68: =Mercado!D660 -> 0 | G68: =Mercado!D724 -> 0 | I68: =IFERROR((C68+D68)/(Mercado!$G595*730),) -> 0 | J68: =IFERROR((C68+D68)*Mercado!$H595,) -> 0 | K68: =IFERROR(C68*Mercado!$I595*Mercado!$AH595,) -> 0 | L68: =IFERROR(D68*Mercado!$J595*Mercado!$AI595,) -> 0 | M68: 0 | N68: 0 | O68: 0 | P68: 0 | Q68: 0 | R68: 0 | S68: 0 | T68: =Mercado!O207 -> 0 | U68: =Mercado!O402 -> 0 | V68: =Mercado!O466 -> 0 | W68: =Mercado!O530 -> 0 | Y68: CD_ | Z68: 0 | AA68: CD_ | AB68: 0 | AC68: CD_ | AD68: 0 | AE68: CD_ | AF68: 0
A69: =Mercado!B596 -> 0 | B69: =Mercado!C208 ->  | C69: =IFERROR(($H$8*Balance!$K$450*Mercado!Z596*$F$14)/12,"-") -> - | D69: =IFERROR(($I$8*Balance!$K$475*Mercado!AC596*$G$14)/12,"-") -> - | F69: =Mercado!D661 -> 0 | G69: =Mercado!D725 -> 0 | I69: =IFERROR((C69+D69)/(Mercado!$G596*730),) -> 0 | J69: =IFERROR((C69+D69)*Mercado!$H596,) -> 0 | K69: =IFERROR(C69*Mercado!$I596*Mercado!$AH596,) -> 0 | L69: =IFERROR(D69*Mercado!$J596*Mercado!$AI596,) -> 0 | M69: 0 | N69: 0 | O69: 0 | P69: 0 | Q69: 0 | R69: 0 | S69: 0 | T69: =Mercado!O208 -> 0 | U69: =Mercado!O403 -> 0 | V69: =Mercado!O467 -> 0 | W69: =Mercado!O531 -> 0 | Y69: CD_ | Z69: 0 | AA69: CD_ | AB69: 0 | AC69: CD_ | AD69: 0 | AE69: CD_ | AF69: 0
A70: =Mercado!B597 -> 0 | B70: =Mercado!C209 ->  | C70: =IFERROR(($H$8*Balance!$K$450*Mercado!Z597*$F$14)/12,"-") -> - | D70: =IFERROR(($I$8*Balance!$K$475*Mercado!AC597*$G$14)/12,"-") -> - | F70: =Mercado!D662 -> 0 | G70: =Mercado!D726 -> 0 | I70: =IFERROR((C70+D70)/(Mercado!$G597*730),) -> 0 | J70: =IFERROR((C70+D70)*Mercado!$H597,) -> 0 | K70: =IFERROR(C70*Mercado!$I597*Mercado!$AH597,) -> 0 | L70: =IFERROR(D70*Mercado!$J597*Mercado!$AI597,) -> 0 | M70: 0 | N70: 0 | O70: 0 | P70: 0 | Q70: 0 | R70: 0 | S70: 0 | T70: =Mercado!O209 -> 0 | U70: =Mercado!O404 -> 0 | V70: =Mercado!O468 -> 0 | W70: =Mercado!O532 -> 0 | Y70: CD_ | Z70: 0 | AA70: CD_ | AB70: 0 | AC70: CD_ | AD70: 0 | AE70: CD_ | AF70: 0
A71: =Mercado!B598 -> 0 | B71: =Mercado!C210 ->  | C71: =IFERROR(($H$8*Balance!$K$450*Mercado!Z598*$F$14)/12,"-") -> - | D71: =IFERROR(($I$8*Balance!$K$475*Mercado!AC598*$G$14)/12,"-") -> - | F71: =Mercado!D663 -> 0 | G71: =Mercado!D727 -> 0 | I71: =IFERROR((C71+D71)/(Mercado!$G598*730),) -> 0 | J71: =IFERROR((C71+D71)*Mercado!$H598,) -> 0 | K71: =IFERROR(C71*Mercado!$I598*Mercado!$AH598,) -> 0 | L71: =IFERROR(D71*Mercado!$J598*Mercado!$AI598,) -> 0 | M71: 0 | N71: 0 | O71: 0 | P71: 0 | Q71: 0 | R71: 0 | S71: 0 | T71: =Mercado!O210 -> 0 | U71: =Mercado!O405 -> 0 | V71: =Mercado!O469 -> 0 | W71: =Mercado!O533 -> 0 | Y71: CD_ | Z71: 0 | AA71: CD_ | AB71: 0 | AC71: CD_ | AD71: 0 | AE71: CD_ | AF71: 0
A72: =Mercado!B599 -> 0 | B72: =Mercado!C211 ->  | C72: =IFERROR(($H$8*Balance!$K$450*Mercado!Z599*$F$14)/12,"-") -> - | D72: =IFERROR(($I$8*Balance!$K$475*Mercado!AC599*$G$14)/12,"-") -> - | F72: =Mercado!D664 -> 0 | G72: =Mercado!D728 -> 0 | I72: =IFERROR((C72+D72)/(Mercado!$G599*730),) -> 0 | J72: =IFERROR((C72+D72)*Mercado!$H599,) -> 0 | K72: =IFERROR(C72*Mercado!$I599*Mercado!$AH599,) -> 0 | L72: =IFERROR(D72*Mercado!$J599*Mercado!$AI599,) -> 0 | M72: 0 | N72: 0 | O72: 0 | P72: 0 | Q72: 0 | R72: 0 | S72: 0 | T72: =Mercado!O211 -> 0 | U72: =Mercado!O406 -> 0 | V72: =Mercado!O470 -> 0 | W72: =Mercado!O534 -> 0 | Y72: CD_ | Z72: 0 | AA72: CD_ | AB72: 0 | AC72: CD_ | AD72: 0 | AE72: CD_ | AF72: 0
A73: =Mercado!B600 -> 0 | B73: =Mercado!C212 ->  | C73: =IFERROR(($H$8*Balance!$K$450*Mercado!Z600*$F$14)/12,"-") -> - | D73: =IFERROR(($I$8*Balance!$K$475*Mercado!AC600*$G$14)/12,"-") -> - | F73: =Mercado!D665 -> 0 | G73: =Mercado!D729 -> 0 | I73: =IFERROR((C73+D73)/(Mercado!$G600*730),) -> 0 | J73: =IFERROR((C73+D73)*Mercado!$H600,) -> 0 | K73: =IFERROR(C73*Mercado!$I600*Mercado!$AH600,) -> 0 | L73: =IFERROR(D73*Mercado!$J600*Mercado!$AI600,) -> 0 | M73: 0 | N73: 0 | O73: 0 | P73: 0 | Q73: 0 | R73: 0 | S73: 0 | T73: =Mercado!O212 -> 0 | U73: =Mercado!O407 -> 0 | V73: =Mercado!O471 -> 0 | W73: =Mercado!O535 -> 0 | Y73: CD_ | Z73: 0 | AA73: CD_ | AB73: 0 | AC73: CD_ | AD73: 0 | AE73: CD_ | AF73: 0
A74: =Mercado!B601 -> 0 | B74: =Mercado!C213 ->  | C74: =IFERROR(($H$8*Balance!$K$450*Mercado!Z601*$F$14)/12,"-") -> - | D74: =IFERROR(($I$8*Balance!$K$475*Mercado!AC601*$G$14)/12,"-") -> - | F74: =Mercado!D666 -> 0 | G74: =Mercado!D730 -> 0 | I74: =IFERROR((C74+D74)/(Mercado!$G601*730),) -> 0 | J74: =IFERROR((C74+D74)*Mercado!$H601,) -> 0 | K74: =IFERROR(C74*Mercado!$I601*Mercado!$AH601,) -> 0 | L74: =IFERROR(D74*Mercado!$J601*Mercado!$AI601,) -> 0 | M74: 0 | N74: 0 | O74: 0 | P74: 0 | Q74: 0 | R74: 0 | S74: 0 | T74: =Mercado!O213 -> 0 | U74: =Mercado!O408 -> 0 | V74: =Mercado!O472 -> 0 | W74: =Mercado!O536 -> 0 | Y74: CD_ | Z74: 0 | AA74: CD_ | AB74: 0 | AC74: CD_ | AD74: 0 | AE74: CD_ | AF74: 0
A75: =Mercado!B602 -> 0 | B75: =Mercado!C214 ->  | C75: =IFERROR(($H$8*Balance!$K$450*Mercado!Z602*$F$14)/12,"-") -> - | D75: =IFERROR(($I$8*Balance!$K$475*Mercado!AC602*$G$14)/12,"-") -> - | F75: =Mercado!D667 -> 0 | G75: =Mercado!D731 -> 0 | I75: =IFERROR((C75+D75)/(Mercado!$G602*730),) -> 0 | J75: =IFERROR((C75+D75)*Mercado!$H602,) -> 0 | K75: =IFERROR(C75*Mercado!$I602*Mercado!$AH602,) -> 0 | L75: =IFERROR(D75*Mercado!$J602*Mercado!$AI602,) -> 0 | M75: 0 | N75: 0 | O75: 0 | P75: 0 | Q75: 0 | R75: 0 | S75: 0 | T75: =Mercado!O214 -> 0 | U75: =Mercado!O409 -> 0 | V75: =Mercado!O473 -> 0 | W75: =Mercado!O537 -> 0 | Y75: CD_ | Z75: 0 | AA75: CD_ | AB75: 0 | AC75: CD_ | AD75: 0 | AE75: CD_ | AF75: 0
A76: =Mercado!B603 -> 0 | B76: =Mercado!C215 ->  | C76: =IFERROR(($H$8*Balance!$K$450*Mercado!Z603*$F$14)/12,"-") -> - | D76: =IFERROR(($I$8*Balance!$K$475*Mercado!AC603*$G$14)/12,"-") -> - | F76: =Mercado!D668 -> 0 | G76: =Mercado!D732 -> 0 | I76: =IFERROR((C76+D76)/(Mercado!$G603*730),) -> 0 | J76: =IFERROR((C76+D76)*Mercado!$H603,) -> 0 | K76: =IFERROR(C76*Mercado!$I603*Mercado!$AH603,) -> 0 | L76: =IFERROR(D76*Mercado!$J603*Mercado!$AI603,) -> 0 | M76: 0 | N76: 0 | O76: 0 | P76: 0 | Q76: 0 | R76: 0 | S76: 0 | T76: =Mercado!O215 -> 0 | U76: =Mercado!O410 -> 0 | V76: =Mercado!O474 -> 0 | W76: =Mercado!O538 -> 0 | Y76: CD_ | Z76: 0 | AA76: CD_ | AB76: 0 | AC76: CD_ | AD76: 0 | AE76: CD_ | AF76: 0
A77: =Mercado!B604 -> ATD-Peaje AT-Edemet | B77: =Mercado!C216 -> ATD | C77: =IFERROR(($H$8*Balance!$K$450*Mercado!Z604*$F$14)/12,"-") -> 0.8222437424 | D77: =IFERROR(($I$8*Balance!$K$475*Mercado!AC604*$G$14)/12,"-") -> 0.2715488831 | F77: =Mercado!D669 -> Pot_Max | G77: =Mercado!D733 -> Pot_Max | H77: 0 | I77: =IFERROR((C77+D77)/(Mercado!$G604*730),) -> 0.002018445062 | J77: =IFERROR((C77+D77)*Mercado!$H604,) -> 1.093283439 | K77: =IFERROR(C77*Mercado!$I604*Mercado!$AH604,) -> 0.8234060892 | L77: =IFERROR(D77*Mercado!$J604*Mercado!$AI604,) -> 0.2798192455 | M77: 0.002676409672 | N77: 0 | O77: 0 | P77: 0 | Q77: 1.093283439 | R77: 0 | S77: 0 | T77: =Mercado!O216 -> 0 | U77: =Mercado!O411 -> 0 | V77: =Mercado!O475 -> 0 | W77: =Mercado!O539 -> 0 | Y77: CD_ATD | Z77: 0 | AA77: CD_ATD | AB77: 1.093283439 | AC77: CD_ATD | AD77: 0 | AE77: CD_ATD | AF77: 0
A78: =Mercado!B605 -> ATD-Peaje AT-Edemet | B78: =Mercado!C217 -> ATH | C78: =IFERROR(($H$8*Balance!$K$450*Mercado!Z605*$F$14)/12,"-") -> 0.8222437424 | D78: =IFERROR(($I$8*Balance!$K$475*Mercado!AC605*$G$14)/12,"-") -> 0.2715488831 | F78: =Mercado!D670 -> Pot_Max_P | G78: =Mercado!D734 -> Pot_Max_FP | I78: =IFERROR((C78+D78)/(Mercado!$G605*730),) -> 0.002018445062 | J78: =IFERROR((C78+D78)*Mercado!$H605,) -> 1.093283439 | K78: =IFERROR(C78*Mercado!$I605*Mercado!$AH605,) -> 0.8234060892 | L78: =IFERROR(D78*Mercado!$J605*Mercado!$AI605,) -> 0.2798192455 | M78: 0 | N78: 0.001452725773 | O78: 0.0004929572879 | P78: 0 | Q78: 0 | R78: 0.8234060892 | S78: 0.2798192455 | T78: =Mercado!O217 -> 700132.1162 | U78: =Mercado!O412 -> 0 | V78: =Mercado!O476 -> 86.35886907 | W78: =Mercado!O540 -> 86.00797116 | Y78: CD_ATH | Z78: 0 | AA78: CD_ATH | AB78: 0 | AC78: CD_ATH | AD78: 0.8234060892 | AE78: CD_ATH | AF78: 0.2798192455
A79: =Mercado!B606 -> ATD-Peaje AT-Edemet | B79: =Mercado!C218 -> Peaje AT | C79: =IFERROR(($H$8*Balance!$K$450*Mercado!Z606*$F$14)/12,"-") -> 0.8222437424 | D79: =IFERROR(($I$8*Balance!$K$475*Mercado!AC606*$G$14)/12,"-") -> 0.2715488831 | F79: =Mercado!D671 -> Pot_Max | G79: =Mercado!D735 -> Pot_Max | H79: 0 | I79: =IFERROR((C79+D79)/(Mercado!$G606*730),) -> 0.002018445062 | J79: =IFERROR((C79+D79)*Mercado!$H606,) -> 1.093283439 | K79: =IFERROR(C79*Mercado!$I606*Mercado!$AH606,) -> 0.8234060892 | L79: =IFERROR(D79*Mercado!$J606*Mercado!$AI606,) -> 0.2798192455 | M79: 0.002676409672 | N79: 0 | O79: 0 | P79: 0 | Q79: 1.093283439 | R79: 0 | S79: 0 | T79: =Mercado!O218 -> 218729.4497 | U79: =Mercado!O413 -> 29.44038608 | V79: =Mercado!O477 -> 0 | W79: =Mercado!O541 -> 0 | Y79: CD_Peaje AT | Z79: 0 | AA79: CD_Peaje AT | AB79: 1.093283439 | AC79: CD_Peaje AT | AD79: 0 | AE79: CD_Peaje AT | AF79: 0
A80: =Mercado!B607 -> ATD-Peaje AT-Edemet | B80: =Mercado!C219 -> EDEMET | C80: =IFERROR(($H$8*Balance!$K$450*Mercado!Z607*$F$14)/12,"-") -> 0.8222437424 | D80: =IFERROR(($I$8*Balance!$K$475*Mercado!AC607*$G$14)/12,"-") -> 0.2715488831 | F80: =Mercado!D672 -> Pot_Max | G80: =Mercado!D736 -> Pot_Max | H80: 0 | I80: =IFERROR((C80+D80)/(Mercado!$G607*730),) -> 0.002018445062 | J80: =IFERROR((C80+D80)*Mercado!$H607,) -> 1.093283439 | K80: =IFERROR(C80*Mercado!$I607*Mercado!$AH607,) -> 0.8234060892 | L80: =IFERROR(D80*Mercado!$J607*Mercado!$AI607,) -> 0.2798192455 | M80: 0.002676409672 | N80: 0 | O80: 0 | P80: 0 | Q80: 1.093283439 | R80: 0 | S80: 0 | T80: =Mercado!O219 -> 1079327.083 | U80: =Mercado!O414 -> 235.3682731 | V80: =Mercado!O478 -> 0 | W80: =Mercado!O542 -> 0 | Y80: CD_EDEMET | Z80: 0 | AA80: CD_EDEMET | AB80: 1.093283439 | AC80: CD_EDEMET | AD80: 0 | AE80: CD_EDEMET | AF80: 0
A81: =Mercado!B608 -> A-MT | B81: =Mercado!C220 -> A-AT | C81: =IFERROR(($H$8*Balance!$K$450*Mercado!Z608*$F$14)/12,"-") -> - | D81: =IFERROR(($I$8*Balance!$K$475*Mercado!AC608*$G$14)/12,"-") -> - | F81: =Mercado!D673 -> Pot_Max | G81: =Mercado!D737 -> Pot_Max | H81: 0 | I81: =IFERROR((C81+D81)/(Mercado!$G608*730),) -> 0 | J81: =IFERROR((C81+D81)*Mercado!$H608,) -> 0 | K81: =IFERROR(C81*Mercado!$I608*Mercado!$AH608,) -> 0 | L81: =IFERROR(D81*Mercado!$J608*Mercado!$AI608,) -> 0 | M81: 0 | N81: 0 | O81: 0 | P81: 0 | Q81: 0 | R81: 0 | S81: 0 | T81: =Mercado!O220 -> 0 | U81: =Mercado!O415 -> 0 | V81: =Mercado!O479 -> 0 | W81: =Mercado!O543 -> 0 | Y81: CD_A-AT | Z81: 0 | AA81: CD_A-AT | AB81: 0 | AC81: CD_A-AT | AD81: 0 | AE81: CD_A-AT | AF81: 0
A82: =Mercado!B609 -> ATD-Peaje AT-Edemet | B82: =Mercado!C221 -> Peaje ATH | C82: =IFERROR(($H$8*Balance!$K$450*Mercado!Z609*$F$14)/12,"-") -> 0.8222437424 | D82: =IFERROR(($I$8*Balance!$K$475*Mercado!AC609*$G$14)/12,"-") -> 0.2715488831 | F82: =Mercado!D674 -> Pot_Max_P | G82: =Mercado!D738 -> Pot_Max_FP | H82: 0 | I82: =IFERROR((C82+D82)/(Mercado!$G609*730),) -> 0.002018445062 | J82: =IFERROR((C82+D82)*Mercado!$H609,) -> 1.093283439 | K82: =IFERROR(C82*Mercado!$I609*Mercado!$AH609,) -> 0.8234060892 | L82: =IFERROR(D82*Mercado!$J609*Mercado!$AI609,) -> 0.2798192455 | M82: 0 | N82: 0.001452725773 | O82: 0.0004929572879 | P82: 0 | Q82: 0 | R82: 0.8234060892 | S82: 0.2798192455 | T82: =Mercado!O221 -> 254349.0417 | U82: =Mercado!O416 -> 0 | V82: =Mercado!O480 -> 53.97279682 | W82: =Mercado!O544 -> 54.11773812 | Y82: CD_Peaje ATH | Z82: 0 | AA82: CD_Peaje ATH | AB82: 0 | AC82: CD_Peaje ATH | AD82: 0.8234060892 | AE82: CD_Peaje ATH | AF82: 0.2798192455
A83: =Mercado!B610 -> 0 | B83: =Mercado!C222 ->  | C83: =IFERROR(($H$8*Balance!$K$450*Mercado!Z610*$F$14)/12,"-") -> - | D83: =IFERROR(($I$8*Balance!$K$475*Mercado!AC610*$G$14)/12,"-") -> - | F83: =Mercado!D675 -> 0 | G83: =Mercado!D739 -> 0 | I83: =IFERROR((C83+D83)/(Mercado!$G610*730),) -> 0 | J83: =IFERROR((C83+D83)*Mercado!$H610,) -> 0 | K83: =IFERROR(C83*Mercado!$I610*Mercado!$AH610,) -> 0 | L83: =IFERROR(D83*Mercado!$J610*Mercado!$AI610,) -> 0 | M83: 0 | N83: 0 | O83: 0 | P83: 0 | Q83: 0 | R83: 0 | S83: 0 | T83: =Mercado!O222 -> 0 | U83: =Mercado!O417 -> 0 | V83: =Mercado!O481 -> 0 | W83: =Mercado!O545 -> 0 | Y83: CD_ | Z83: 0 | AA83: CD_ | AB83: 0 | AC83: CD_ | AD83: 0 | AE83: CD_ | AF83: 0
A84: =Mercado!B611 -> 0 | B84: =Mercado!C223 ->  | C84: =IFERROR(($H$8*Balance!$K$450*Mercado!Z611*$F$14)/12,"-") -> - | D84: =IFERROR(($I$8*Balance!$K$475*Mercado!AC611*$G$14)/12,"-") -> - | F84: =Mercado!D676 -> 0 | G84: =Mercado!D740 -> 0 | I84: =IFERROR((C84+D84)/(Mercado!$G611*730),) -> 0 | J84: =IFERROR((C84+D84)*Mercado!$H611,) -> 0 | K84: =IFERROR(C84*Mercado!$I611*Mercado!$AH611,) -> 0 | L84: =IFERROR(D84*Mercado!$J611*Mercado!$AI611,) -> 0 | M84: 0 | N84: 0 | O84: 0 | P84: 0 | Q84: 0 | R84: 0 | S84: 0 | T84: =Mercado!O223 -> 0 | U84: =Mercado!O418 -> 0 | V84: =Mercado!O482 -> 0 | W84: =Mercado!O546 -> 0 | Y84: CD_ | Z84: 0 | AA84: CD_ | AB84: 0 | AC84: CD_ | AD84: 0 | AE84: CD_ | AF84: 0
A85: =Mercado!B612 -> 0 | B85: =Mercado!C224 ->  | C85: =IFERROR(($H$8*Balance!$K$450*Mercado!Z612*$F$14)/12,"-") -> - | D85: =IFERROR(($I$8*Balance!$K$475*Mercado!AC612*$G$14)/12,"-") -> - | F85: =Mercado!D677 -> 0 | G85: =Mercado!D741 -> 0 | I85: =IFERROR((C85+D85)/(Mercado!$G612*730),) -> 0 | J85: =IFERROR((C85+D85)*Mercado!$H612,) -> 0 | K85: =IFERROR(C85*Mercado!$I612*Mercado!$AH612,) -> 0 | L85: =IFERROR(D85*Mercado!$J612*Mercado!$AI612,) -> 0 | M85: 0 | N85: 0 | O85: 0 | P85: 0 | Q85: 0 | R85: 0 | S85: 0 | T85: =Mercado!O224 -> 0 | U85: =Mercado!O419 -> 0 | V85: =Mercado!O483 -> 0 | W85: =Mercado!O547 -> 0 | Y85: CD_ | Z85: 0 | AA85: CD_ | AB85: 0 | AC85: CD_ | AD85: 0 | AE85: CD_ | AF85: 0
A86: =Mercado!B613 -> 0 | B86: =Mercado!C225 ->  | C86: =IFERROR(($H$8*Balance!$K$450*Mercado!Z613*$F$14)/12,"-") -> - | D86: =IFERROR(($I$8*Balance!$K$475*Mercado!AC613*$G$14)/12,"-") -> - | F86: =Mercado!D678 -> 0 | G86: =Mercado!D742 -> 0 | I86: =IFERROR((C86+D86)/(Mercado!$G613*730),) -> 0 | J86: =IFERROR((C86+D86)*Mercado!$H613,) -> 0 | K86: =IFERROR(C86*Mercado!$I613*Mercado!$AH613,) -> 0 | L86: =IFERROR(D86*Mercado!$J613*Mercado!$AI613,) -> 0 | M86: 0 | N86: 0 | O86: 0 | P86: 0 | Q86: 0 | R86: 0 | S86: 0 | T86: =Mercado!O225 -> 0 | U86: =Mercado!O420 -> 0 | V86: =Mercado!O484 -> 0 | W86: =Mercado!O548 -> 0 | Y86: CD_ | Z86: 0 | AA86: CD_ | AB86: 0 | AC86: CD_ | AD86: 0 | AE86: CD_ | AF86: 0
T87: =SUMPRODUCT(T26:T86,P26:P86) -> 264656.8359 | U87: =SUMPRODUCT(U26:U86,Q26:Q86)*12 -> 174434.891 | V87: =SUMPRODUCT(V26:V86,R26:R86)*12 -> 8576.663512 | W87: =SUMPRODUCT(W26:W86,S26:S86)*12 -> 7162.732067
R91: =I89-R90 -> 0
A94: BALANCE DE POTENCIA TARIFARIO HORAS PUNTA
F95: V. Presente
C96: Coeficientes de responsabilidad (Tipo de medición) | F96: Potencia coincidente con máxima BT
A97: Variable Facturación | C97: Energía | D97: Potencia máxima | E97: Potencia por franja horaria
A98: =Mercado!D618 -> Energia | B98: =Mercado!C165 -> BTS | C98: =1/(Mercado!$G553*8760)*Mercado!$X553 -> 0.0001273027066 | D98: =Mercado!$H553*Mercado!$X553 -> 0.3986000416 | E98: =Mercado!$I553*Mercado!$N553 -> 0.5126984678 | F98: =IFERROR(SUMIFS(Mercado!O:O,Mercado!$A:$A,$A98,Mercado!$C:$C,$B98)*IF($A98=Mercado!$D$30,$C98,IF($A98=Mercado!$D$31,$D98,$E98)),"-") -> 903.3865139
A99: =Mercado!D619 -> Pot_Max | B99: =Mercado!C166 -> BTD | C99: =1/(Mercado!$G554*8760)*Mercado!$X554 -> 0.0002100179781 | D99: =Mercado!$H554*Mercado!$X554 -> 0.7627076752 | E99: =Mercado!$I554*Mercado!$N554 -> 0.7870304742 | F99: =IFERROR(SUMIFS(Mercado!O:O,Mercado!$A:$A,$A99,Mercado!$C:$C,$B99)*IF($A99=Mercado!$D$30,$C99,IF($A99=Mercado!$D$31,$D99,$E99)),"-") -> 504.7407422
A100: =Mercado!D620 -> Pot_Max_P | B100: =Mercado!C167 -> BTH | C100: =1/(Mercado!$G555*8760)*Mercado!$X555 -> 0.0002100179781 | D100: =Mercado!$H555*Mercado!$X555 -> 0.7627076752 | E100: =Mercado!$I555*Mercado!$N555 -> 0.7870304742 | F100: =IFERROR(SUMIFS(Mercado!O:O,Mercado!$A:$A,$A100,Mercado!$C:$C,$B100)*IF($A100=Mercado!$D$30,$C100,IF($A100=Mercado!$D$31,$D100,$E100)),"-") -> 4.504697487
A101: =Mercado!D621 -> 0 | B101: =Mercado!C168 -> A-BTS | C101: =1/(Mercado!$G556*8760)*Mercado!$X556 -> 0.0002044371221 | D101: =Mercado!$H556*Mercado!$X556 -> 0.5237600539 | E101: =Mercado!$I556*Mercado!$N556 -> 0.5307110911 | F101: =IFERROR(SUMIFS(Mercado!O:O,Mercado!$A:$A,$A101,Mercado!$C:$C,$B101)*IF($A101=Mercado!$D$30,$C101,IF($A101=Mercado!$D$31,$D101,$E101)),"-") -> 0
A102: =Mercado!D622 -> Pot_Max | B102: =Mercado!C169 -> A-BTD | C102: =1/(Mercado!$G557*8760)*Mercado!$X557 -> 0.0002044371221 | D102: =Mercado!$H557*Mercado!$X557 -> 0.5237600539 | E102: =Mercado!$I557*Mercado!$N557 -> 0.5307110911 | F102: =IFERROR(SUMIFS(Mercado!O:O,Mercado!$A:$A,$A102,Mercado!$C:$C,$B102)*IF($A102=Mercado!$D$30,$C102,IF($A102=Mercado!$D$31,$D102,$E102)),"-") -> 0
A103: =Mercado!D623 -> Pot_Max | B103: =Mercado!C170 -> Peaje BT | C103: =1/(Mercado!$G558*8760)*Mercado!$X558 -> 0.0002100179781 | D103: =Mercado!$H558*Mercado!$X558 -> 0.7627076752 | E103: =Mercado!$I558*Mercado!$N558 -> 0.7870304742 | F103: =IFERROR(SUMIFS(Mercado!O:O,Mercado!$A:$A,$A103,Mercado!$C:$C,$B103)*IF($A103=Mercado!$D$30,$C103,IF($A103=Mercado!$D$31,$D103,$E103)),"-") -> 55.77076571
A104: =Mercado!D624 -> Pot_Max_P | B104: =Mercado!C171 -> Peaje BTH | C104: =1/(Mercado!$G559*8760)*Mercado!$X559 -> 0.0002100179781 | D104: =Mercado!$H559*Mercado!$X559 -> 0.7627076752 | E104: =Mercado!$I559*Mercado!$N559 -> 0.7870304742 | F104: =IFERROR(SUMIFS(Mercado!O:O,Mercado!$A:$A,$A104,Mercado!$C:$C,$B104)*IF($A104=Mercado!$D$30,$C104,IF($A104=Mercado!$D$31,$D104,$E104)),"-") -> 1.402130206
A105: =Mercado!D625 -> 0 | B105: =Mercado!C172 ->  | C105: =1/(Mercado!$G560*8760)*Mercado!$X560 ->  | D105: =Mercado!$H560*Mercado!$X560 ->  | E105: =Mercado!$I560*Mercado!$N560 ->  | F105: =IFERROR(SUMIFS(Mercado!O:O,Mercado!$A:$A,$A105,Mercado!$C:$C,$B105)*IF($A105=Mercado!$D$30,$C105,IF($A105=Mercado!$D$31,$D105,$E105)),"-") -> -
A106: =Mercado!D626 -> 0 | B106: =Mercado!C173 ->  | C106: =1/(Mercado!$G561*8760)*Mercado!$X561 ->  | D106: =Mercado!$H561*Mercado!$X561 ->  | E106: =Mercado!$I561*Mercado!$N561 ->  | F106: =IFERROR(SUMIFS(Mercado!O:O,Mercado!$A:$A,$A106,Mercado!$C:$C,$B106)*IF($A106=Mercado!$D$30,$C106,IF($A106=Mercado!$D$31,$D106,$E106)),"-") -> -
A107: =Mercado!D627 -> 0 | B107: =Mercado!C174 ->  | C107: =1/(Mercado!$G562*8760)*Mercado!$X562 ->  | D107: =Mercado!$H562*Mercado!$X562 ->  | E107: =Mercado!$I562*Mercado!$N562 ->  | F107: =IFERROR(SUMIFS(Mercado!O:O,Mercado!$A:$A,$A107,Mercado!$C:$C,$B107)*IF($A107=Mercado!$D$30,$C107,IF($A107=Mercado!$D$31,$D107,$E107)),"-") -> -
A108: =Mercado!D628 -> 0 | B108: =Mercado!C175 ->  | C108: =1/(Mercado!$G563*8760)*Mercado!$X563 ->  | D108: =Mercado!$H563*Mercado!$X563 ->  | E108: =Mercado!$I563*Mercado!$N563 ->  | F108: =IFERROR(SUMIFS(Mercado!O:O,Mercado!$A:$A,$A108,Mercado!$C:$C,$B108)*IF($A108=Mercado!$D$30,$C108,IF($A108=Mercado!$D$31,$D108,$E108)),"-") -> -
A109: =Mercado!D629 -> 0 | B109: =Mercado!C176 ->  | C109: =1/(Mercado!$G564*8760)*Mercado!$X564 ->  | D109: =Mercado!$H564*Mercado!$X564 ->  | E109: =Mercado!$I564*Mercado!$N564 ->  | F109: =IFERROR(SUMIFS(Mercado!O:O,Mercado!$A:$A,$A109,Mercado!$C:$C,$B109)*IF($A109=Mercado!$D$30,$C109,IF($A109=Mercado!$D$31,$D109,$E109)),"-") -> -
A110: =Mercado!D630 -> 0 | B110: =Mercado!C177 ->  | C110: =1/(Mercado!$G565*8760)*Mercado!$X565 ->  | D110: =Mercado!$H565*Mercado!$X565 ->  | E110: =Mercado!$I565*Mercado!$N565 ->  | F110: =IFERROR(SUMIFS(Mercado!O:O,Mercado!$A:$A,$A110,Mercado!$C:$C,$B110)*IF($A110=Mercado!$D$30,$C110,IF($A110=Mercado!$D$31,$D110,$E110)),"-") -> -
A111: =Mercado!D631 -> 0 | B111: =Mercado!C178 ->  | C111: =1/(Mercado!$G566*8760)*Mercado!$X566 ->  | D111: =Mercado!$H566*Mercado!$X566 ->  | E111: =Mercado!$I566*Mercado!$N566 ->  | F111: =IFERROR(SUMIFS(Mercado!O:O,Mercado!$A:$A,$A111,Mercado!$C:$C,$B111)*IF($A111=Mercado!$D$30,$C111,IF($A111=Mercado!$D$31,$D111,$E111)),"-") -> -
A112: =Mercado!D632 -> 0 | B112: =Mercado!C179 ->  | C112: =1/(Mercado!$G567*8760)*Mercado!$X567 ->  | D112: =Mercado!$H567*Mercado!$X567 ->  | E112: =Mercado!$I567*Mercado!$N567 ->  | F112: =IFERROR(SUMIFS(Mercado!O:O,Mercado!$A:$A,$A112,Mercado!$C:$C,$B112)*IF($A112=Mercado!$D$30,$C112,IF($A112=Mercado!$D$31,$D112,$E112)),"-") -> -
A113: =Mercado!D633 -> 0 | B113: =Mercado!C180 ->  | C113: =1/(Mercado!$G568*8760)*Mercado!$X568 ->  | D113: =Mercado!$H568*Mercado!$X568 ->  | E113: =Mercado!$I568*Mercado!$N568 ->  | F113: =IFERROR(SUMIFS(Mercado!O:O,Mercado!$A:$A,$A113,Mercado!$C:$C,$B113)*IF($A113=Mercado!$D$30,$C113,IF($A113=Mercado!$D$31,$D113,$E113)),"-") -> -
A114: =Mercado!D634 -> 0 | B114: =Mercado!C181 ->  | C114: =1/(Mercado!$G569*8760)*Mercado!$X569 ->  | D114: =Mercado!$H569*Mercado!$X569 ->  | E114: =Mercado!$I569*Mercado!$N569 ->  | F114: =IFERROR(SUMIFS(Mercado!O:O,Mercado!$A:$A,$A114,Mercado!$C:$C,$B114)*IF($A114=Mercado!$D$30,$C114,IF($A114=Mercado!$D$31,$D114,$E114)),"-") -> -
A115: =Mercado!D635 -> 0 | B115: =Mercado!C182 ->  | C115: =1/(Mercado!$G570*8760)*Mercado!$X570 ->  | D115: =Mercado!$H570*Mercado!$X570 ->  | E115: =Mercado!$I570*Mercado!$N570 ->  | F115: =IFERROR(SUMIFS(Mercado!O:O,Mercado!$A:$A,$A115,Mercado!$C:$C,$B115)*IF($A115=Mercado!$D$30,$C115,IF($A115=Mercado!$D$31,$D115,$E115)),"-") -> -
A116: =Mercado!D636 -> 0 | B116: =Mercado!C183 ->  | C116: =1/(Mercado!$G571*8760)*Mercado!$X571 ->  | D116: =Mercado!$H571*Mercado!$X571 ->  | E116: =Mercado!$I571*Mercado!$N571 ->  | F116: =IFERROR(SUMIFS(Mercado!O:O,Mercado!$A:$A,$A116,Mercado!$C:$C,$B116)*IF($A116=Mercado!$D$30,$C116,IF($A116=Mercado!$D$31,$D116,$E116)),"-") -> -
A117: =Mercado!D637 -> 0 | B117: =Mercado!C184 ->  | C117: =1/(Mercado!$G572*8760)*Mercado!$X572 ->  | D117: =Mercado!$H572*Mercado!$X572 ->  | E117: =Mercado!$I572*Mercado!$N572 ->  | F117: =IFERROR(SUMIFS(Mercado!O:O,Mercado!$A:$A,$A117,Mercado!$C:$C,$B117)*IF($A117=Mercado!$D$30,$C117,IF($A117=Mercado!$D$31,$D117,$E117)),"-") -> -
A118: =Mercado!D638 -> Energia | B118: =Mercado!C185 -> AP | C118: =1/(Mercado!$G573*8760)*Mercado!$X573 -> 0 | D118: =Mercado!$H573*Mercado!$X573 -> 0 | E118: =Mercado!$I573*Mercado!$N573 -> 0 | F118: =IFERROR(SUMIFS(Mercado!O:O,Mercado!$A:$A,$A118,Mercado!$C:$C,$B118)*IF($A118=Mercado!$D$30,$C118,IF($A118=Mercado!$D$31,$D118,$E118)),"-") -> 0
B121: Potencia Máxima BT | F121: =SUM(F98:F118)*Balance!K429 -> 1659.583323
C123: Coeficientes de responsabilidad (Tipo de medición) | F123: Potencia coincidente con máxima MT
C124: Energía | D124: Potencia máxima | E124: Potencia por franja horaria
A125: =A98 -> Energia | B125: =Mercado!C165 -> BTS | C125: =1/(Mercado!$G553*8760)*Mercado!$Y553 -> 0.0001273027066 | D125: =Mercado!$H553*Mercado!$Y553 -> 0.3986000416 | E125: =Mercado!$I553*Mercado!$O553 -> 0.5126984678 | F125: =IFERROR(SUMIFS(Mercado!O:O,Mercado!$A:$A,$A125,Mercado!$C:$C,$B125)*IF($A125=Mercado!$D$30,$C125,IF($A125=Mercado!$D$31,$D125,$E125)),"-") -> 903.3865139
A126: Pot_Max | B126: =Mercado!C166 -> BTD | C126: =1/(Mercado!$G554*8760)*Mercado!$Y554 -> 0.0002100179781 | D126: =Mercado!$H554*Mercado!$Y554 -> 0.7627076752 | E126: =Mercado!$I554*Mercado!$O554 -> 0.7870304742 | F126: =IFERROR(SUMIFS(Mercado!O:O,Mercado!$A:$A,$A126,Mercado!$C:$C,$B126)*IF($A126=Mercado!$D$30,$C126,IF($A126=Mercado!$D$31,$D126,$E126)),"-") -> 504.7407422
A127: Pot_Max_P | B127: =Mercado!C167 -> BTH | C127: =1/(Mercado!$G555*8760)*Mercado!$Y555 -> 0.0002100179781 | D127: =Mercado!$H555*Mercado!$Y555 -> 0.7627076752 | E127: =Mercado!$I555*Mercado!$O555 -> 0.7870304742 | F127: =IFERROR(SUMIFS(Mercado!O:O,Mercado!$A:$A,$A127,Mercado!$C:$C,$B127)*IF($A127=Mercado!$D$30,$C127,IF($A127=Mercado!$D$31,$D127,$E127)),"-") -> 4.504697487
A128: 0 | B128: =Mercado!C168 -> A-BTS | C128: =1/(Mercado!$G556*8760)*Mercado!$Y556 -> 0.0002044371221 | D128: =Mercado!$H556*Mercado!$Y556 -> 0.5237600539 | E128: =Mercado!$I556*Mercado!$O556 -> 0.5307110911 | F128: =IFERROR(SUMIFS(Mercado!O:O,Mercado!$A:$A,$A128,Mercado!$C:$C,$B128)*IF($A128=Mercado!$D$30,$C128,IF($A128=Mercado!$D$31,$D128,$E128)),"-") -> 0
A129: Pot_Max | B129: =Mercado!C169 -> A-BTD | C129: =1/(Mercado!$G557*8760)*Mercado!$Y557 -> 0.0002044371221 | D129: =Mercado!$H557*Mercado!$Y557 -> 0.5237600539 | E129: =Mercado!$I557*Mercado!$O557 -> 0.5307110911 | F129: =IFERROR(SUMIFS(Mercado!O:O,Mercado!$A:$A,$A129,Mercado!$C:$C,$B129)*IF($A129=Mercado!$D$30,$C129,IF($A129=Mercado!$D$31,$D129,$E129)),"-") -> 0
A130: Pot_Max | B130: =Mercado!C170 -> Peaje BT | C130: =1/(Mercado!$G558*8760)*Mercado!$Y558 -> 0.0002100179781 | D130: =Mercado!$H558*Mercado!$Y558 -> 0.7627076752 | E130: =Mercado!$I558*Mercado!$O558 -> 0.7870304742 | F130: =IFERROR(SUMIFS(Mercado!O:O,Mercado!$A:$A,$A130,Mercado!$C:$C,$B130)*IF($A130=Mercado!$D$30,$C130,IF($A130=Mercado!$D$31,$D130,$E130)),"-") -> 55.77076571
A131: Pot_Max_P | B131: =Mercado!C171 -> Peaje BTH | C131: =1/(Mercado!$G559*8760)*Mercado!$Y559 -> 0.0002100179781 | D131: =Mercado!$H559*Mercado!$Y559 -> 0.7627076752 | E131: =Mercado!$I559*Mercado!$O559 -> 0.7870304742 | F131: =IFERROR(SUMIFS(Mercado!O:O,Mercado!$A:$A,$A131,Mercado!$C:$C,$B131)*IF($A131=Mercado!$D$30,$C131,IF($A131=Mercado!$D$31,$D131,$E131)),"-") -> 1.402130206
A132: 0 | B132: =Mercado!C172 ->  | C132: =1/(Mercado!$G560*8760)*Mercado!$Y560 ->  | D132: =Mercado!$H560*Mercado!$Y560 ->  | E132: =Mercado!$I560*Mercado!$O560 ->  | F132: =IFERROR(SUMIFS(Mercado!O:O,Mercado!$A:$A,$A132,Mercado!$C:$C,$B132)*IF($A132=Mercado!$D$30,$C132,IF($A132=Mercado!$D$31,$D132,$E132)),"-") -> -
A133: 0 | B133: =Mercado!C173 ->  | C133: =1/(Mercado!$G561*8760)*Mercado!$Y561 ->  | D133: =Mercado!$H561*Mercado!$Y561 ->  | E133: =Mercado!$I561*Mercado!$O561 ->  | F133: =IFERROR(SUMIFS(Mercado!O:O,Mercado!$A:$A,$A133,Mercado!$C:$C,$B133)*IF($A133=Mercado!$D$30,$C133,IF($A133=Mercado!$D$31,$D133,$E133)),"-") -> -
A134: 0 | B134: =Mercado!C174 ->  | C134: =1/(Mercado!$G562*8760)*Mercado!$Y562 ->  | D134: =Mercado!$H562*Mercado!$Y562 ->  | E134: =Mercado!$I562*Mercado!$O562 ->  | F134: =IFERROR(SUMIFS(Mercado!O:O,Mercado!$A:$A,$A134,Mercado!$C:$C,$B134)*IF($A134=Mercado!$D$30,$C134,IF($A134=Mercado!$D$31,$D134,$E134)),"-") -> -
A135: 0 | B135: =Mercado!C175 ->  | C135: =1/(Mercado!$G563*8760)*Mercado!$Y563 ->  | D135: =Mercado!$H563*Mercado!$Y563 ->  | E135: =Mercado!$I563*Mercado!$O563 ->  | F135: =IFERROR(SUMIFS(Mercado!O:O,Mercado!$A:$A,$A135,Mercado!$C:$C,$B135)*IF($A135=Mercado!$D$30,$C135,IF($A135=Mercado!$D$31,$D135,$E135)),"-") -> -
A136: 0 | B136: =Mercado!C176 ->  | C136: =1/(Mercado!$G564*8760)*Mercado!$Y564 ->  | D136: =Mercado!$H564*Mercado!$Y564 ->  | E136: =Mercado!$I564*Mercado!$O564 ->  | F136: =IFERROR(SUMIFS(Mercado!O:O,Mercado!$A:$A,$A136,Mercado!$C:$C,$B136)*IF($A136=Mercado!$D$30,$C136,IF($A136=Mercado!$D$31,$D136,$E136)),"-") -> -
A137: 0 | B137: =Mercado!C177 ->  | C137: =1/(Mercado!$G565*8760)*Mercado!$Y565 ->  | D137: =Mercado!$H565*Mercado!$Y565 ->  | E137: =Mercado!$I565*Mercado!$O565 ->  | F137: =IFERROR(SUMIFS(Mercado!O:O,Mercado!$A:$A,$A137,Mercado!$C:$C,$B137)*IF($A137=Mercado!$D$30,$C137,IF($A137=Mercado!$D$31,$D137,$E137)),"-") -> -
A138: 0 | B138: =Mercado!C178 ->  | C138: =1/(Mercado!$G566*8760)*Mercado!$Y566 ->  | D138: =Mercado!$H566*Mercado!$Y566 ->  | E138: =Mercado!$I566*Mercado!$O566 ->  | F138: =IFERROR(SUMIFS(Mercado!O:O,Mercado!$A:$A,$A138,Mercado!$C:$C,$B138)*IF($A138=Mercado!$D$30,$C138,IF($A138=Mercado!$D$31,$D138,$E138)),"-") -> -
A139: 0 | B139: =Mercado!C179 ->  | C139: =1/(Mercado!$G567*8760)*Mercado!$Y567 ->  | D139: =Mercado!$H567*Mercado!$Y567 ->  | E139: =Mercado!$I567*Mercado!$O567 ->  | F139: =IFERROR(SUMIFS(Mercado!O:O,Mercado!$A:$A,$A139,Mercado!$C:$C,$B139)*IF($A139=Mercado!$D$30,$C139,IF($A139=Mercado!$D$31,$D139,$E139)),"-") -> -
A140: 0 | B140: =Mercado!C180 ->  | C140: =1/(Mercado!$G568*8760)*Mercado!$Y568 ->  | D140: =Mercado!$H568*Mercado!$Y568 ->  | E140: =Mercado!$I568*Mercado!$O568 ->  | F140: =IFERROR(SUMIFS(Mercado!O:O,Mercado!$A:$A,$A140,Mercado!$C:$C,$B140)*IF($A140=Mercado!$D$30,$C140,IF($A140=Mercado!$D$31,$D140,$E140)),"-") -> -
A141: 0 | B141: =Mercado!C181 ->  | C141: =1/(Mercado!$G569*8760)*Mercado!$Y569 ->  | D141: =Mercado!$H569*Mercado!$Y569 ->  | E141: =Mercado!$I569*Mercado!$O569 ->  | F141: =IFERROR(SUMIFS(Mercado!O:O,Mercado!$A:$A,$A141,Mercado!$C:$C,$B141)*IF($A141=Mercado!$D$30,$C141,IF($A141=Mercado!$D$31,$D141,$E141)),"-") -> -
A142: 0 | B142: =Mercado!C182 ->  | C142: =1/(Mercado!$G570*8760)*Mercado!$Y570 ->  | D142: =Mercado!$H570*Mercado!$Y570 ->  | E142: =Mercado!$I570*Mercado!$O570 ->  | F142: =IFERROR(SUMIFS(Mercado!O:O,Mercado!$A:$A,$A142,Mercado!$C:$C,$B142)*IF($A142=Mercado!$D$30,$C142,IF($A142=Mercado!$D$31,$D142,$E142)),"-") -> -
A143: 0 | B143: =Mercado!C183 ->  | C143: =1/(Mercado!$G571*8760)*Mercado!$Y571 ->  | D143: =Mercado!$H571*Mercado!$Y571 ->  | E143: =Mercado!$I571*Mercado!$O571 ->  | F143: =IFERROR(SUMIFS(Mercado!O:O,Mercado!$A:$A,$A143,Mercado!$C:$C,$B143)*IF($A143=Mercado!$D$30,$C143,IF($A143=Mercado!$D$31,$D143,$E143)),"-") -> -
A144: 0 | B144: =Mercado!C184 ->  | C144: =1/(Mercado!$G572*8760)*Mercado!$Y572 ->  | D144: =Mercado!$H572*Mercado!$Y572 ->  | E144: =Mercado!$I572*Mercado!$O572 ->  | F144: =IFERROR(SUMIFS(Mercado!O:O,Mercado!$A:$A,$A144,Mercado!$C:$C,$B144)*IF($A144=Mercado!$D$30,$C144,IF($A144=Mercado!$D$31,$D144,$E144)),"-") -> -
A145: Energia | B145: =Mercado!C185 -> AP | C145: =1/(Mercado!$G573*8760)*Mercado!$Y573 -> 0 | D145: =Mercado!$H573*Mercado!$Y573 -> 0 | E145: =Mercado!$I573*Mercado!$O573 -> 0 | F145: =IFERROR(SUMIFS(Mercado!O:O,Mercado!$A:$A,$A145,Mercado!$C:$C,$B145)*IF($A145=Mercado!$D$30,$C145,IF($A145=Mercado!$D$31,$D145,$E145)),"-") -> 0
B148: Potencia BT coincidente con Máx MT | F148: =SUM(F125:F145)*Balance!K432 -> 1659.583323
A149: =Mercado!D639 -> 0 | B149: =Mercado!C186 ->  | C149: =1/(Mercado!$G574*8760)*Mercado!$Y574 ->  | D149: =Mercado!$H574*Mercado!$Y574 ->  | E149: =Mercado!$I574*Mercado!$O574 ->  | F149: =IFERROR(SUMIFS(Mercado!O:O,Mercado!$A:$A,$A149,Mercado!$C:$C,$B149)*IF($A149=Mercado!$D$30,$C149,IF($A149=Mercado!$D$31,$D149,$E149)),"-") -> -
A150: =Mercado!D640 -> 0 | B150: =Mercado!C187 ->  | C150: =1/(Mercado!$G575*8760)*Mercado!$Y575 ->  | D150: =Mercado!$H575*Mercado!$Y575 ->  | E150: =Mercado!$I575*Mercado!$O575 ->  | F150: =IFERROR(SUMIFS(Mercado!O:O,Mercado!$A:$A,$A150,Mercado!$C:$C,$B150)*IF($A150=Mercado!$D$30,$C150,IF($A150=Mercado!$D$31,$D150,$E150)),"-") -> -
A151: =Mercado!D641 -> 0 | B151: =Mercado!C188 ->  | C151: =1/(Mercado!$G576*8760)*Mercado!$Y576 ->  | D151: =Mercado!$H576*Mercado!$Y576 ->  | E151: =Mercado!$I576*Mercado!$O576 ->  | F151: =IFERROR(SUMIFS(Mercado!O:O,Mercado!$A:$A,$A151,Mercado!$C:$C,$B151)*IF($A151=Mercado!$D$30,$C151,IF($A151=Mercado!$D$31,$D151,$E151)),"-") -> -
A152: =Mercado!D642 -> 0 | B152: =Mercado!C189 ->  | C152: =1/(Mercado!$G577*8760)*Mercado!$Y577 ->  | D152: =Mercado!$H577*Mercado!$Y577 ->  | E152: =Mercado!$I577*Mercado!$O577 ->  | F152: =IFERROR(SUMIFS(Mercado!O:O,Mercado!$A:$A,$A152,Mercado!$C:$C,$B152)*IF($A152=Mercado!$D$30,$C152,IF($A152=Mercado!$D$31,$D152,$E152)),"-") -> -
A153: =Mercado!D643 -> 0 | B153: =Mercado!C190 ->  | C153: =1/(Mercado!$G578*8760)*Mercado!$Y578 ->  | D153: =Mercado!$H578*Mercado!$Y578 ->  | E153: =Mercado!$I578*Mercado!$O578 ->  | F153: =IFERROR(SUMIFS(Mercado!O:O,Mercado!$A:$A,$A153,Mercado!$C:$C,$B153)*IF($A153=Mercado!$D$30,$C153,IF($A153=Mercado!$D$31,$D153,$E153)),"-") -> -
A154: =Mercado!D644 -> 0 | B154: =Mercado!C191 ->  | C154: =1/(Mercado!$G579*8760)*Mercado!$Y579 ->  | D154: =Mercado!$H579*Mercado!$Y579 ->  | E154: =Mercado!$I579*Mercado!$O579 ->  | F154: =IFERROR(SUMIFS(Mercado!O:O,Mercado!$A:$A,$A154,Mercado!$C:$C,$B154)*IF($A154=Mercado!$D$30,$C154,IF($A154=Mercado!$D$31,$D154,$E154)),"-") -> -
A155: =Mercado!D645 -> Pot_Max | B155: =Mercado!C192 -> MTD | C155: =1/(Mercado!$G580*8760)*Mercado!$Y580 -> 0.0001622627624 | D155: =Mercado!$H580*Mercado!$Y580 -> 0.8171768283 | E155: =Mercado!$I580*Mercado!$O580 -> 0.8329133491 | F155: =IFERROR(SUMIFS(Mercado!O:O,Mercado!$A:$A,$A155,Mercado!$C:$C,$B155)*IF($A155=Mercado!$D$30,$C155,IF($A155=Mercado!$D$31,$D155,$E155)),"-") -> 188.6416598
A156: =Mercado!D646 -> Pot_Max_P | B156: =Mercado!C193 -> MTH | C156: =1/(Mercado!$G581*8760)*Mercado!$Y581 -> 0.0001622627624 | D156: =Mercado!$H581*Mercado!$Y581 -> 0.8171768283 | E156: =Mercado!$I581*Mercado!$O581 -> 0.8329133491 | F156: =IFERROR(SUMIFS(Mercado!O:O,Mercado!$A:$A,$A156,Mercado!$C:$C,$B156)*IF($A156=Mercado!$D$30,$C156,IF($A156=Mercado!$D$31,$D156,$E156)),"-") -> 26.07899432
A157: =Mercado!D647 -> Pot_Max | B157: =Mercado!C194 -> A-MT | C157: =1/(Mercado!$G582*8760)*Mercado!$Y582 -> 0.0001832863965 | D157: =Mercado!$H582*Mercado!$Y582 -> 0.5482564127 | E157: =Mercado!$I582*Mercado!$O582 -> 0.5524613244 | F157: =IFERROR(SUMIFS(Mercado!O:O,Mercado!$A:$A,$A157,Mercado!$C:$C,$B157)*IF($A157=Mercado!$D$30,$C157,IF($A157=Mercado!$D$31,$D157,$E157)),"-") -> 0
A158: =Mercado!D648 -> Pot_Max | B158: =Mercado!C195 -> Peaje MT | C158: =1/(Mercado!$G583*8760)*Mercado!$Y583 -> 0.0001622627624 | D158: =Mercado!$H583*Mercado!$Y583 -> 0.8171768283 | E158: =Mercado!$I583*Mercado!$O583 -> 0.8329133491 | F158: =IFERROR(SUMIFS(Mercado!O:O,Mercado!$A:$A,$A158,Mercado!$C:$C,$B158)*IF($A158=Mercado!$D$30,$C158,IF($A158=Mercado!$D$31,$D158,$E158)),"-") -> 232.8208708
A159: =Mercado!D649 -> 0 | B159: =Mercado!C196 ->  | C159: =1/(Mercado!$G584*8760)*Mercado!$Y584 ->  | D159: =Mercado!$H584*Mercado!$Y584 ->  | E159: =Mercado!$I584*Mercado!$O584 ->  | F159: =IFERROR(SUMIFS(Mercado!O:O,Mercado!$A:$A,$A159,Mercado!$C:$C,$B159)*IF($A159=Mercado!$D$30,$C159,IF($A159=Mercado!$D$31,$D159,$E159)),"-") -> -
A160: =Mercado!D650 -> 0 | B160: =Mercado!C197 ->  | C160: =1/(Mercado!$G585*8760)*Mercado!$Y585 ->  | D160: =Mercado!$H585*Mercado!$Y585 ->  | E160: =Mercado!$I585*Mercado!$O585 ->  | F160: =IFERROR(SUMIFS(Mercado!O:O,Mercado!$A:$A,$A160,Mercado!$C:$C,$B160)*IF($A160=Mercado!$D$30,$C160,IF($A160=Mercado!$D$31,$D160,$E160)),"-") -> -
A161: =Mercado!D651 -> 0 | B161: =Mercado!C198 ->  | C161: =1/(Mercado!$G586*8760)*Mercado!$Y586 ->  | D161: =Mercado!$H586*Mercado!$Y586 ->  | E161: =Mercado!$I586*Mercado!$O586 ->  | F161: =IFERROR(SUMIFS(Mercado!O:O,Mercado!$A:$A,$A161,Mercado!$C:$C,$B161)*IF($A161=Mercado!$D$30,$C161,IF($A161=Mercado!$D$31,$D161,$E161)),"-") -> -
A162: =Mercado!D652 -> 0 | B162: =Mercado!C199 ->  | C162: =1/(Mercado!$G587*8760)*Mercado!$Y587 ->  | D162: =Mercado!$H587*Mercado!$Y587 ->  | E162: =Mercado!$I587*Mercado!$O587 ->  | F162: =IFERROR(SUMIFS(Mercado!O:O,Mercado!$A:$A,$A162,Mercado!$C:$C,$B162)*IF($A162=Mercado!$D$30,$C162,IF($A162=Mercado!$D$31,$D162,$E162)),"-") -> -
A163: =Mercado!D653 -> 0 | B163: =Mercado!C200 ->  | C163: =1/(Mercado!$G588*8760)*Mercado!$Y588 ->  | D163: =Mercado!$H588*Mercado!$Y588 ->  | E163: =Mercado!$I588*Mercado!$O588 ->  | F163: =IFERROR(SUMIFS(Mercado!O:O,Mercado!$A:$A,$A163,Mercado!$C:$C,$B163)*IF($A163=Mercado!$D$30,$C163,IF($A163=Mercado!$D$31,$D163,$E163)),"-") -> -
A164: =Mercado!D654 -> Pot_Max_P | B164: =Mercado!C201 -> Peaje MTH | C164: =1/(Mercado!$G589*8760)*Mercado!$Y589 -> 0.0001622627624 | D164: =Mercado!$H589*Mercado!$Y589 -> 0.8171768283 | E164: =Mercado!$I589*Mercado!$O589 -> 0.8329133491 | F164: =IFERROR(SUMIFS(Mercado!O:O,Mercado!$A:$A,$A164,Mercado!$C:$C,$B164)*IF($A164=Mercado!$D$30,$C164,IF($A164=Mercado!$D$31,$D164,$E164)),"-") -> 61.30828676
A165: =Mercado!D655 -> 0 | B165: =Mercado!C202 ->  | C165: =1/(Mercado!$G590*8760)*Mercado!$Y590 ->  | D165: =Mercado!$H590*Mercado!$Y590 ->  | E165: =Mercado!$I590*Mercado!$O590 ->  | F165: =IFERROR(SUMIFS(Mercado!O:O,Mercado!$A:$A,$A165,Mercado!$C:$C,$B165)*IF($A165=Mercado!$D$30,$C165,IF($A165=Mercado!$D$31,$D165,$E165)),"-") -> -
A166: =Mercado!D656 -> 0 | B166: =Mercado!C203 ->  | C166: =1/(Mercado!$G591*8760)*Mercado!$Y591 ->  | D166: =Mercado!$H591*Mercado!$Y591 ->  | E166: =Mercado!$I591*Mercado!$O591 ->  | F166: =IFERROR(SUMIFS(Mercado!O:O,Mercado!$A:$A,$A166,Mercado!$C:$C,$B166)*IF($A166=Mercado!$D$30,$C166,IF($A166=Mercado!$D$31,$D166,$E166)),"-") -> -
A167: =Mercado!D657 -> 0 | B167: =Mercado!C204 ->  | C167: =1/(Mercado!$G592*8760)*Mercado!$Y592 ->  | D167: =Mercado!$H592*Mercado!$Y592 ->  | E167: =Mercado!$I592*Mercado!$O592 ->  | F167: =IFERROR(SUMIFS(Mercado!O:O,Mercado!$A:$A,$A167,Mercado!$C:$C,$B167)*IF($A167=Mercado!$D$30,$C167,IF($A167=Mercado!$D$31,$D167,$E167)),"-") -> -
A168: =Mercado!D658 -> 0 | B168: =Mercado!C205 ->  | C168: =1/(Mercado!$G593*8760)*Mercado!$Y593 ->  | D168: =Mercado!$H593*Mercado!$Y593 ->  | E168: =Mercado!$I593*Mercado!$O593 ->  | F168: =IFERROR(SUMIFS(Mercado!O:O,Mercado!$A:$A,$A168,Mercado!$C:$C,$B168)*IF($A168=Mercado!$D$30,$C168,IF($A168=Mercado!$D$31,$D168,$E168)),"-") -> -
B170: Potencia Máxima MT | F170: =SUM(F148:F168)*Balance!K433 -> 2300.148829
C172: Coeficientes de responsabilidad (Tipo de medición) | F172: Potencia coincidente con máxima AT
C173: Energía | D173: Potencia máxima | E173: Potencia por franja horaria
A174: =A98 -> Energia | B174: =Mercado!C165 -> BTS | C174: =1/(Mercado!$G553*8760)*Mercado!$Z553 -> 0.0001273027066 | D174: =Mercado!$H553*Mercado!$Z553 -> 0.3986000416 | E174: =Mercado!$I553*Mercado!$P553 -> 0.5126984678 | F174: =IFERROR(SUMIFS(Mercado!O:O,Mercado!$A:$A,$A174,Mercado!$C:$C,$B174)*IF($A174=Mercado!$D$30,$C174,IF($A174=Mercado!$D$31,$D174,$E174)),"-") -> 903.3865139
A175: Pot_Max | B175: =Mercado!C166 -> BTD | C175: =1/(Mercado!$G554*8760)*Mercado!$Z554 -> 0.0002100179781 | D175: =Mercado!$H554*Mercado!$Z554 -> 0.7627076752 | E175: =Mercado!$I554*Mercado!$P554 -> 0.7870304742 | F175: =IFERROR(SUMIFS(Mercado!O:O,Mercado!$A:$A,$A175,Mercado!$C:$C,$B175)*IF($A175=Mercado!$D$30,$C175,IF($A175=Mercado!$D$31,$D175,$E175)),"-") -> 504.7407422
A176: Pot_Max_P | B176: =Mercado!C167 -> BTH | C176: =1/(Mercado!$G555*8760)*Mercado!$Z555 -> 0.0002100179781 | D176: =Mercado!$H555*Mercado!$Z555 -> 0.7627076752 | E176: =Mercado!$I555*Mercado!$P555 -> 0.7870304742 | F176: =IFERROR(SUMIFS(Mercado!O:O,Mercado!$A:$A,$A176,Mercado!$C:$C,$B176)*IF($A176=Mercado!$D$30,$C176,IF($A176=Mercado!$D$31,$D176,$E176)),"-") -> 4.504697487
A177: 0 | B177: =Mercado!C168 -> A-BTS | C177: =1/(Mercado!$G556*8760)*Mercado!$Z556 -> 0.0002044371221 | D177: =Mercado!$H556*Mercado!$Z556 -> 0.5237600539 | E177: =Mercado!$I556*Mercado!$P556 -> 0.5307110911 | F177: =IFERROR(SUMIFS(Mercado!O:O,Mercado!$A:$A,$A177,Mercado!$C:$C,$B177)*IF($A177=Mercado!$D$30,$C177,IF($A177=Mercado!$D$31,$D177,$E177)),"-") -> 0
A178: Pot_Max | B178: =Mercado!C169 -> A-BTD | C178: =1/(Mercado!$G557*8760)*Mercado!$Z557 -> 0.0002044371221 | D178: =Mercado!$H557*Mercado!$Z557 -> 0.5237600539 | E178: =Mercado!$I557*Mercado!$P557 -> 0.5307110911 | F178: =IFERROR(SUMIFS(Mercado!O:O,Mercado!$A:$A,$A178,Mercado!$C:$C,$B178)*IF($A178=Mercado!$D$30,$C178,IF($A178=Mercado!$D$31,$D178,$E178)),"-") -> 0
A179: Pot_Max | B179: =Mercado!C170 -> Peaje BT | C179: =1/(Mercado!$G558*8760)*Mercado!$Z558 -> 0.0002100179781 | D179: =Mercado!$H558*Mercado!$Z558 -> 0.7627076752 | E179: =Mercado!$I558*Mercado!$P558 -> 0.7870304742 | F179: =IFERROR(SUMIFS(Mercado!O:O,Mercado!$A:$A,$A179,Mercado!$C:$C,$B179)*IF($A179=Mercado!$D$30,$C179,IF($A179=Mercado!$D$31,$D179,$E179)),"-") -> 55.77076571
A180: Pot_Max_P | B180: =Mercado!C171 -> Peaje BTH | C180: =1/(Mercado!$G559*8760)*Mercado!$Z559 -> 0.0002100179781 | D180: =Mercado!$H559*Mercado!$Z559 -> 0.7627076752 | E180: =Mercado!$I559*Mercado!$P559 -> 0.7870304742 | F180: =IFERROR(SUMIFS(Mercado!O:O,Mercado!$A:$A,$A180,Mercado!$C:$C,$B180)*IF($A180=Mercado!$D$30,$C180,IF($A180=Mercado!$D$31,$D180,$E180)),"-") -> 1.402130206
A181: 0 | B181: =Mercado!C172 ->  | C181: =1/(Mercado!$G560*8760)*Mercado!$Z560 ->  | D181: =Mercado!$H560*Mercado!$Z560 ->  | E181: =Mercado!$I560*Mercado!$P560 ->  | F181: =IFERROR(SUMIFS(Mercado!O:O,Mercado!$A:$A,$A181,Mercado!$C:$C,$B181)*IF($A181=Mercado!$D$30,$C181,IF($A181=Mercado!$D$31,$D181,$E181)),"-") -> -
A182: 0 | B182: =Mercado!C173 ->  | C182: =1/(Mercado!$G561*8760)*Mercado!$Z561 ->  | D182: =Mercado!$H561*Mercado!$Z561 ->  | E182: =Mercado!$I561*Mercado!$P561 ->  | F182: =IFERROR(SUMIFS(Mercado!O:O,Mercado!$A:$A,$A182,Mercado!$C:$C,$B182)*IF($A182=Mercado!$D$30,$C182,IF($A182=Mercado!$D$31,$D182,$E182)),"-") -> -
A183: 0 | B183: =Mercado!C174 ->  | C183: =1/(Mercado!$G562*8760)*Mercado!$Z562 ->  | D183: =Mercado!$H562*Mercado!$Z562 ->  | E183: =Mercado!$I562*Mercado!$P562 ->  | F183: =IFERROR(SUMIFS(Mercado!O:O,Mercado!$A:$A,$A183,Mercado!$C:$C,$B183)*IF($A183=Mercado!$D$30,$C183,IF($A183=Mercado!$D$31,$D183,$E183)),"-") -> -
A184: 0 | B184: =Mercado!C175 ->  | C184: =1/(Mercado!$G563*8760)*Mercado!$Z563 ->  | D184: =Mercado!$H563*Mercado!$Z563 ->  | E184: =Mercado!$I563*Mercado!$P563 ->  | F184: =IFERROR(SUMIFS(Mercado!O:O,Mercado!$A:$A,$A184,Mercado!$C:$C,$B184)*IF($A184=Mercado!$D$30,$C184,IF($A184=Mercado!$D$31,$D184,$E184)),"-") -> -
A185: 0 | B185: =Mercado!C176 ->  | C185: =1/(Mercado!$G564*8760)*Mercado!$Z564 ->  | D185: =Mercado!$H564*Mercado!$Z564 ->  | E185: =Mercado!$I564*Mercado!$P564 ->  | F185: =IFERROR(SUMIFS(Mercado!O:O,Mercado!$A:$A,$A185,Mercado!$C:$C,$B185)*IF($A185=Mercado!$D$30,$C185,IF($A185=Mercado!$D$31,$D185,$E185)),"-") -> -
A186: 0 | B186: =Mercado!C177 ->  | C186: =1/(Mercado!$G565*8760)*Mercado!$Z565 ->  | D186: =Mercado!$H565*Mercado!$Z565 ->  | E186: =Mercado!$I565*Mercado!$P565 ->  | F186: =IFERROR(SUMIFS(Mercado!O:O,Mercado!$A:$A,$A186,Mercado!$C:$C,$B186)*IF($A186=Mercado!$D$30,$C186,IF($A186=Mercado!$D$31,$D186,$E186)),"-") -> -
A187: 0 | B187: =Mercado!C178 ->  | C187: =1/(Mercado!$G566*8760)*Mercado!$Z566 ->  | D187: =Mercado!$H566*Mercado!$Z566 ->  | E187: =Mercado!$I566*Mercado!$P566 ->  | F187: =IFERROR(SUMIFS(Mercado!O:O,Mercado!$A:$A,$A187,Mercado!$C:$C,$B187)*IF($A187=Mercado!$D$30,$C187,IF($A187=Mercado!$D$31,$D187,$E187)),"-") -> -
A188: 0 | B188: =Mercado!C179 ->  | C188: =1/(Mercado!$G567*8760)*Mercado!$Z567 ->  | D188: =Mercado!$H567*Mercado!$Z567 ->  | E188: =Mercado!$I567*Mercado!$P567 ->  | F188: =IFERROR(SUMIFS(Mercado!O:O,Mercado!$A:$A,$A188,Mercado!$C:$C,$B188)*IF($A188=Mercado!$D$30,$C188,IF($A188=Mercado!$D$31,$D188,$E188)),"-") -> -
A189: 0 | B189: =Mercado!C180 ->  | C189: =1/(Mercado!$G568*8760)*Mercado!$Z568 ->  | D189: =Mercado!$H568*Mercado!$Z568 ->  | E189: =Mercado!$I568*Mercado!$P568 ->  | F189: =IFERROR(SUMIFS(Mercado!O:O,Mercado!$A:$A,$A189,Mercado!$C:$C,$B189)*IF($A189=Mercado!$D$30,$C189,IF($A189=Mercado!$D$31,$D189,$E189)),"-") -> -
A190: 0 | B190: =Mercado!C181 ->  | C190: =1/(Mercado!$G569*8760)*Mercado!$Z569 ->  | D190: =Mercado!$H569*Mercado!$Z569 ->  | E190: =Mercado!$I569*Mercado!$P569 ->  | F190: =IFERROR(SUMIFS(Mercado!O:O,Mercado!$A:$A,$A190,Mercado!$C:$C,$B190)*IF($A190=Mercado!$D$30,$C190,IF($A190=Mercado!$D$31,$D190,$E190)),"-") -> -
A191: 0 | B191: =Mercado!C182 ->  | C191: =1/(Mercado!$G570*8760)*Mercado!$Z570 ->  | D191: =Mercado!$H570*Mercado!$Z570 ->  | E191: =Mercado!$I570*Mercado!$P570 ->  | F191: =IFERROR(SUMIFS(Mercado!O:O,Mercado!$A:$A,$A191,Mercado!$C:$C,$B191)*IF($A191=Mercado!$D$30,$C191,IF($A191=Mercado!$D$31,$D191,$E191)),"-") -> -
A192: 0 | B192: =Mercado!C183 ->  | C192: =1/(Mercado!$G571*8760)*Mercado!$Z571 ->  | D192: =Mercado!$H571*Mercado!$Z571 ->  | E192: =Mercado!$I571*Mercado!$P571 ->  | F192: =IFERROR(SUMIFS(Mercado!O:O,Mercado!$A:$A,$A192,Mercado!$C:$C,$B192)*IF($A192=Mercado!$D$30,$C192,IF($A192=Mercado!$D$31,$D192,$E192)),"-") -> -
A193: 0 | B193: =Mercado!C184 ->  | C193: =1/(Mercado!$G572*8760)*Mercado!$Z572 ->  | D193: =Mercado!$H572*Mercado!$Z572 ->  | E193: =Mercado!$I572*Mercado!$P572 ->  | F193: =IFERROR(SUMIFS(Mercado!O:O,Mercado!$A:$A,$A193,Mercado!$C:$C,$B193)*IF($A193=Mercado!$D$30,$C193,IF($A193=Mercado!$D$31,$D193,$E193)),"-") -> -
A194: Energia | B194: =Mercado!C185 -> AP | C194: =1/(Mercado!$G573*8760)*Mercado!$Z573 -> 0 | D194: =Mercado!$H573*Mercado!$Z573 -> 0 | E194: =Mercado!$I573*Mercado!$P573 -> 0 | F194: =IFERROR(SUMIFS(Mercado!O:O,Mercado!$A:$A,$A194,Mercado!$C:$C,$B194)*IF($A194=Mercado!$D$30,$C194,IF($A194=Mercado!$D$31,$D194,$E194)),"-") -> 0
B197: Potencia BT coincidente | F197: =SUM(F174:F194)*Balance!K436 -> 1659.583323
A198: =A149 -> 0 | B198: =Mercado!C186 ->  | C198: =1/(Mercado!$G574*8760)*Mercado!$Z574 ->  | D198: =Mercado!$H574*Mercado!$Z574 ->  | E198: =Mercado!$I574*Mercado!$P574 ->  | F198: =IFERROR(SUMIFS(Mercado!O:O,Mercado!$A:$A,$A198,Mercado!$C:$C,$B198)*IF($A198=Mercado!$D$30,$C198,IF($A198=Mercado!$D$31,$D198,$E198)),"-") -> -
A199: 0 | B199: =Mercado!C187 ->  | C199: =1/(Mercado!$G575*8760)*Mercado!$Z575 ->  | D199: =Mercado!$H575*Mercado!$Z575 ->  | E199: =Mercado!$I575*Mercado!$P575 ->  | F199: =IFERROR(SUMIFS(Mercado!O:O,Mercado!$A:$A,$A199,Mercado!$C:$C,$B199)*IF($A199=Mercado!$D$30,$C199,IF($A199=Mercado!$D$31,$D199,$E199)),"-") -> -
A200: 0 | B200: =Mercado!C188 ->  | C200: =1/(Mercado!$G576*8760)*Mercado!$Z576 ->  | D200: =Mercado!$H576*Mercado!$Z576 ->  | E200: =Mercado!$I576*Mercado!$P576 ->  | F200: =IFERROR(SUMIFS(Mercado!O:O,Mercado!$A:$A,$A200,Mercado!$C:$C,$B200)*IF($A200=Mercado!$D$30,$C200,IF($A200=Mercado!$D$31,$D200,$E200)),"-") -> -
A201: 0 | B201: =Mercado!C189 ->  | C201: =1/(Mercado!$G577*8760)*Mercado!$Z577 ->  | D201: =Mercado!$H577*Mercado!$Z577 ->  | E201: =Mercado!$I577*Mercado!$P577 ->  | F201: =IFERROR(SUMIFS(Mercado!O:O,Mercado!$A:$A,$A201,Mercado!$C:$C,$B201)*IF($A201=Mercado!$D$30,$C201,IF($A201=Mercado!$D$31,$D201,$E201)),"-") -> -
A202: 0 | B202: =Mercado!C190 ->  | C202: =1/(Mercado!$G578*8760)*Mercado!$Z578 ->  | D202: =Mercado!$H578*Mercado!$Z578 ->  | E202: =Mercado!$I578*Mercado!$P578 ->  | F202: =IFERROR(SUMIFS(Mercado!O:O,Mercado!$A:$A,$A202,Mercado!$C:$C,$B202)*IF($A202=Mercado!$D$30,$C202,IF($A202=Mercado!$D$31,$D202,$E202)),"-") -> -
A203: 0 | B203: =Mercado!C191 ->  | C203: =1/(Mercado!$G579*8760)*Mercado!$Z579 ->  | D203: =Mercado!$H579*Mercado!$Z579 ->  | E203: =Mercado!$I579*Mercado!$P579 ->  | F203: =IFERROR(SUMIFS(Mercado!O:O,Mercado!$A:$A,$A203,Mercado!$C:$C,$B203)*IF($A203=Mercado!$D$30,$C203,IF($A203=Mercado!$D$31,$D203,$E203)),"-") -> -
A204: Pot_Max | B204: =Mercado!C192 -> MTD | C204: =1/(Mercado!$G580*8760)*Mercado!$Z580 -> 0.0001622627624 | D204: =Mercado!$H580*Mercado!$Z580 -> 0.8171768283 | E204: =Mercado!$I580*Mercado!$P580 -> 0.8329133491 | F204: =IFERROR(SUMIFS(Mercado!O:O,Mercado!$A:$A,$A204,Mercado!$C:$C,$B204)*IF($A204=Mercado!$D$30,$C204,IF($A204=Mercado!$D$31,$D204,$E204)),"-") -> 188.6416598
A205: Pot_Max_P | B205: =Mercado!C193 -> MTH | C205: =1/(Mercado!$G581*8760)*Mercado!$Z581 -> 0.0001622627624 | D205: =Mercado!$H581*Mercado!$Z581 -> 0.8171768283 | E205: =Mercado!$I581*Mercado!$P581 -> 0.8329133491 | F205: =IFERROR(SUMIFS(Mercado!O:O,Mercado!$A:$A,$A205,Mercado!$C:$C,$B205)*IF($A205=Mercado!$D$30,$C205,IF($A205=Mercado!$D$31,$D205,$E205)),"-") -> 26.07899432
A206: Pot_Max | B206: =Mercado!C194 -> A-MT | C206: =1/(Mercado!$G582*8760)*Mercado!$Z582 -> 0.0001832863965 | D206: =Mercado!$H582*Mercado!$Z582 -> 0.5482564127 | E206: =Mercado!$I582*Mercado!$P582 -> 0.5524613244 | F206: =IFERROR(SUMIFS(Mercado!O:O,Mercado!$A:$A,$A206,Mercado!$C:$C,$B206)*IF($A206=Mercado!$D$30,$C206,IF($A206=Mercado!$D$31,$D206,$E206)),"-") -> 0
A207: Pot_Max | B207: =Mercado!C195 -> Peaje MT | C207: =1/(Mercado!$G583*8760)*Mercado!$Z583 -> 0.0001622627624 | D207: =Mercado!$H583*Mercado!$Z583 -> 0.8171768283 | E207: =Mercado!$I583*Mercado!$P583 -> 0.8329133491 | F207: =IFERROR(SUMIFS(Mercado!O:O,Mercado!$A:$A,$A207,Mercado!$C:$C,$B207)*IF($A207=Mercado!$D$30,$C207,IF($A207=Mercado!$D$31,$D207,$E207)),"-") -> 232.8208708
A208: 0 | B208: =Mercado!C196 ->  | C208: =1/(Mercado!$G584*8760)*Mercado!$Z584 ->  | D208: =Mercado!$H584*Mercado!$Z584 ->  | E208: =Mercado!$I584*Mercado!$P584 ->  | F208: =IFERROR(SUMIFS(Mercado!O:O,Mercado!$A:$A,$A208,Mercado!$C:$C,$B208)*IF($A208=Mercado!$D$30,$C208,IF($A208=Mercado!$D$31,$D208,$E208)),"-") -> -
A209: 0 | B209: =Mercado!C197 ->  | C209: =1/(Mercado!$G585*8760)*Mercado!$Z585 ->  | D209: =Mercado!$H585*Mercado!$Z585 ->  | E209: =Mercado!$I585*Mercado!$P585 ->  | F209: =IFERROR(SUMIFS(Mercado!O:O,Mercado!$A:$A,$A209,Mercado!$C:$C,$B209)*IF($A209=Mercado!$D$30,$C209,IF($A209=Mercado!$D$31,$D209,$E209)),"-") -> -
A210: 0 | B210: =Mercado!C198 ->  | C210: =1/(Mercado!$G586*8760)*Mercado!$Z586 ->  | D210: =Mercado!$H586*Mercado!$Z586 ->  | E210: =Mercado!$I586*Mercado!$P586 ->  | F210: =IFERROR(SUMIFS(Mercado!O:O,Mercado!$A:$A,$A210,Mercado!$C:$C,$B210)*IF($A210=Mercado!$D$30,$C210,IF($A210=Mercado!$D$31,$D210,$E210)),"-") -> -
A211: 0 | B211: =Mercado!C199 ->  | C211: =1/(Mercado!$G587*8760)*Mercado!$Z587 ->  | D211: =Mercado!$H587*Mercado!$Z587 ->  | E211: =Mercado!$I587*Mercado!$P587 ->  | F211: =IFERROR(SUMIFS(Mercado!O:O,Mercado!$A:$A,$A211,Mercado!$C:$C,$B211)*IF($A211=Mercado!$D$30,$C211,IF($A211=Mercado!$D$31,$D211,$E211)),"-") -> -
A212: 0 | B212: =Mercado!C200 ->  | C212: =1/(Mercado!$G588*8760)*Mercado!$Z588 ->  | D212: =Mercado!$H588*Mercado!$Z588 ->  | E212: =Mercado!$I588*Mercado!$P588 ->  | F212: =IFERROR(SUMIFS(Mercado!O:O,Mercado!$A:$A,$A212,Mercado!$C:$C,$B212)*IF($A212=Mercado!$D$30,$C212,IF($A212=Mercado!$D$31,$D212,$E212)),"-") -> -
A213: Pot_Max_P | B213: =Mercado!C201 -> Peaje MTH | C213: =1/(Mercado!$G589*8760)*Mercado!$Z589 -> 0.0001622627624 | D213: =Mercado!$H589*Mercado!$Z589 -> 0.8171768283 | E213: =Mercado!$I589*Mercado!$P589 -> 0.8329133491 | F213: =IFERROR(SUMIFS(Mercado!O:O,Mercado!$A:$A,$A213,Mercado!$C:$C,$B213)*IF($A213=Mercado!$D$30,$C213,IF($A213=Mercado!$D$31,$D213,$E213)),"-") -> 61.30828676
A214: 0 | B214: =Mercado!C202 ->  | C214: =1/(Mercado!$G590*8760)*Mercado!$Z590 ->  | D214: =Mercado!$H590*Mercado!$Z590 ->  | E214: =Mercado!$I590*Mercado!$P590 ->  | F214: =IFERROR(SUMIFS(Mercado!O:O,Mercado!$A:$A,$A214,Mercado!$C:$C,$B214)*IF($A214=Mercado!$D$30,$C214,IF($A214=Mercado!$D$31,$D214,$E214)),"-") -> -
A215: 0 | B215: =Mercado!C203 ->  | C215: =1/(Mercado!$G591*8760)*Mercado!$Z591 ->  | D215: =Mercado!$H591*Mercado!$Z591 ->  | E215: =Mercado!$I591*Mercado!$P591 ->  | F215: =IFERROR(SUMIFS(Mercado!O:O,Mercado!$A:$A,$A215,Mercado!$C:$C,$B215)*IF($A215=Mercado!$D$30,$C215,IF($A215=Mercado!$D$31,$D215,$E215)),"-") -> -
A216: 0 | B216: =Mercado!C204 ->  | C216: =1/(Mercado!$G592*8760)*Mercado!$Z592 ->  | D216: =Mercado!$H592*Mercado!$Z592 ->  | E216: =Mercado!$I592*Mercado!$P592 ->  | F216: =IFERROR(SUMIFS(Mercado!O:O,Mercado!$A:$A,$A216,Mercado!$C:$C,$B216)*IF($A216=Mercado!$D$30,$C216,IF($A216=Mercado!$D$31,$D216,$E216)),"-") -> -
A217: 0 | B217: =Mercado!C205 ->  | C217: =1/(Mercado!$G593*8760)*Mercado!$Z593 ->  | D217: =Mercado!$H593*Mercado!$Z593 ->  | E217: =Mercado!$I593*Mercado!$P593 ->  | F217: =IFERROR(SUMIFS(Mercado!O:O,Mercado!$A:$A,$A217,Mercado!$C:$C,$B217)*IF($A217=Mercado!$D$30,$C217,IF($A217=Mercado!$D$31,$D217,$E217)),"-") -> -
B219: Potencia MT coincidente | F219: =SUM(F197:F217)*Balance!K437 -> 2300.148829
... 162 more rows

Sheet cargos_comercialización
A2: DISEÑO DE LOS COMPONENTES DE COSTOS POR COMERCIALIZACIÓN
K4: Valor Presente
C5: Costo Comercialización Fijo (B/./mes) | I5: Grupo Tarifario | J5: Anualidad Medidor (B/./año) | K5: Clientes por tipo de medidor | L5: Anualidad total por tipo de medidor | M5: Participación por tipo de medidor | N5: IMPCOvariable por tipo de medidor
B6: Categoría | C6: Vigente | D6: Vigente | E6: Estimado | F6: vigente sin ajustar por inflación | G6: inflación 1er sem 2023 | I6: BTS | J6: ='Costo medidores'!D6 -> 14.32254296 | K6: =SUMIFS(D:D,E:E,$I6,F:F,1) -> 1838689.576 | L6: =J6*K6 -> 26334710.45 | M6: =L6/SUM($L$6:$L$12) -> 0.793085839 | N6: =M6*($C$20-$H$102/1000) -> 100714.2288
B7: AT_conSMEC | C7: =SUMIFS(D7:E7,$D$6:$E$6,$C$6) -> 4.545 | D7: =F7*(1+G7) -> 4.545 | F7: =F8/2 -> 4.545 | G7: 0 | I7: BTD | J7: ='Costo medidores'!D7 -> 160.6170889 | K7: 20451.25342 | L7: =J7*K7 -> 3284820.789 | M7: 0.09892437803 | N7: =M7*($C$20-$H$102/1000) -> 12562.43896
B8: AT_sinSMEC | C8: =SUMIFS(D8:E8,$D$6:$E$6,$C$6) -> 9.09 | D8: =F8*(1+G8) -> 9.09 | F8: 9.09 | G8: =G7 -> 0 | I8: MTD | J8: ='Costo medidores'!D8 -> 1603.613292 | K8: 2145.149237 | L8: 3439989.83 | M8: 0.1035973882 | N8: 13155.86604
B9: MT_conSMEC | C9: 4.545 | D9: 4.545 | F9: =F10/2 -> 4.545 | G9: =G8 -> 0 | I9: ATD | J9: ='Costo medidores'!D9 -> 8586.626763 | K9: 16.98584437 | L9: 145851.1059 | M9: 0.004392394854 | N9: 557.7916521
B10: MT_sinSMEC | C10: 9.09 | D10: 9.09 | F10: 9.09 | G10: 0 | K10: 0 | L10: 0 | M10: 0 | N10: 0
B11: BT_conSMEC | C11: 2.53 | D11: 2.53 | F11: =F12/2 -> 2.53 | G11: 0 | K11: 0 | L11: 0 | M11: 0 | N11: 0
B12: BT_sinSMEC | C12: 5.06 | D12: 5.06 | F12: 5.06 | G12: 0 | K12: 0 | L12: 0 | M12: 0 | N12: 0
B13: BTS | C13: 2.36 | D13: 2.36 | F13: 2.36 | G13: 0 | M13: =SUM(M6:M12) -> 1 | N13: =SUM(N6:N12) -> 126990.3255
B18: IPCO | C18: =datos!D16 -> 180581.2885
B19: IPCOFR | C19: =D88 -> 53503.04695
B20: IPCOVR | C20: =J88+H107*H105/1000 -> 127078.2415
B21: IPCOR | C21: =C19+C20 -> 180581.2885
B22: Diferencia | C22: =C18-C21 -> 0 | M22: CCOMF_ | P22: CCOMV_
M23: =M22&"cliente" -> CCOMF_cliente | P23: =P22&"kWh_" -> CCOMV_kWh_
L24: Cargos de Comercialización Fijo (B/./mes) | O24: Cargos de Comercialización Variable (B/./kWh)
D25: V. Presente Vble. Facturación | H25: V. Presente Vble. Facturación | L25: Unidad de Aplicación: por cliente | O25: Unidad de Aplicación: kWh
A26: Tipo Medición | B26: Categoría Tarifaria | C26: Cargo Comercialización Fijo (B/./mes) | D26: Clientes | E26: Tipo de medidor | F26: Paga Costo Variable | G26: =J5 -> Anualidad Medidor (B/./año) | H26: Energía | I26: Asignación IMPCOV a categorías | J26: Cargo Comercialización Variable (B/./kWh) | L26: Identificación | M26: Valor | O26: Identificación | P26: Valor
A27: BTS | B27: =Mercado!C165 -> BTS | C27: =IFERROR(VLOOKUP(A27,$B$7:$C$13,2,0),) -> 2.36 | D27: =SUMPRODUCT(Mercado!E38:H38,datos!$B$10:$E$10) -> 1838689.576 | E27: BTS | F27: 1 | G27: =IFERROR(VLOOKUP(E27,$I$6:$J$12,2,0),) -> 14.32254296 | H27: =Mercado!O165 -> 7096365.335 | I27: =SUMPRODUCT(($G$27:$G$87)*($F$27:$F$87)*($D$27:$D$87)*($E$27:$E$87=E27))/$G$88*(datos!$D$16-$D$88-$H$102/1000) -> 100714.2288 | J27: =IF(F27=0,,I27/SUMPRODUCT(($H$27:$H$87)*($F$27:$F$87)*($E$27:$E$87=E27))) -> 0.01419236807 | L27: =CONCATENATE(M$22,$B27) -> CCOMF_BTS | M27: =C27 -> 2.36 | O27: =CONCATENATE(P$22,$B27) -> CCOMV_BTS | P27: =J27 -> 0.01419236807
A28: BT_sinSMEC | B28: =Mercado!C166 -> BTD | C28: =IFERROR(VLOOKUP(A28,$B$7:$C$13,2,0),) -> 5.06 | D28: =SUMPRODUCT(Mercado!E39:H39,datos!$B$10:$E$10) -> 19770.47849 | E28: BTD | F28: 1 | G28: 160.6170889 | H28: =Mercado!O166 -> 2089493.56 | I28: =SUMPRODUCT(($G$27:$G$87)*($F$27:$F$87)*($D$27:$D$87)*($E$27:$E$87=E28))/$G$88*(datos!$D$16-$D$88-$H$102/1000) -> 12562.43896 | J28: =IF(F28=0,,I28/SUMPRODUCT(($H$27:$H$87)*($F$27:$F$87)*($E$27:$E$87=E28))) -> 0.005147268988 | L28: =CONCATENATE(M$22,$B28) -> CCOMF_BTD | M28: =C28 -> 5.06 | O28: =CONCATENATE(P$22,$B28) -> CCOMV_BTD | P28: =J28 -> 0.005147268988
A29: BT_sinSMEC | B29: =Mercado!C167 -> BTH | C29: 5.06 | D29: =SUMPRODUCT(Mercado!E40:H40,datos!$B$10:$E$10) -> 311.6159101 | E29: BTD | F29: 1 | G29: 160.6170889 | H29: =Mercado!O167 -> 21831.61081 | I29: =SUMPRODUCT(($G$27:$G$87)*($F$27:$F$87)*($D$27:$D$87)*($E$27:$E$87=E29))/$G$88*(datos!$D$16-$D$88-$H$102/1000) -> 12562.43896 | J29: 0.005147268988 | L29: CCOMF_BTH | M29: 5.06 | O29: CCOMV_BTH | P29: 0.005147268988
A30: BT_sinSMEC | B30: =Mercado!C168 -> A-BTS | C30: 5.06 | D30: =SUMPRODUCT(Mercado!E41:H41,datos!$B$10:$E$10) -> 0 | E30: BTD | F30: 1 | G30: 160.6170889 | H30: =Mercado!O168 -> 0 | I30: =SUMPRODUCT(($G$27:$G$87)*($F$27:$F$87)*($D$27:$D$87)*($E$27:$E$87=E30))/$G$88*(datos!$D$16-$D$88-$H$102/1000) -> 12562.43896 | J30: 0.005147268988 | L30: CCOMF_A-BTS | M30: 5.06 | O30: CCOMV_A-BTS | P30: 0.005147268988
A31: BT_sinSMEC | B31: =Mercado!C169 -> A-BTD | C31: 5.06 | D31: =SUMPRODUCT(Mercado!E42:H42,datos!$B$10:$E$10) -> 0 | E31: BTD | F31: 1 | G31: 160.6170889 | H31: =Mercado!O169 -> 0 | I31: =SUMPRODUCT(($G$27:$G$87)*($F$27:$F$87)*($D$27:$D$87)*($E$27:$E$87=E31))/$G$88*(datos!$D$16-$D$88-$H$102/1000) -> 12562.43896 | J31: 0.005147268988 | L31: CCOMF_A-BTD | M31: 5.06 | O31: CCOMV_A-BTD | P31: 0.005147268988
A32: BT_conSMEC | B32: =Mercado!C170 -> Peaje BT | C32: 2.53 | D32: =SUMPRODUCT(Mercado!E43:H43,datos!$B$10:$E$10) -> 362.3646799 | E32: BTD | F32: 1 | G32: 160.6170889 | H32: =Mercado!O170 -> 320671.6615 | I32: =SUMPRODUCT(($G$27:$G$87)*($F$27:$F$87)*($D$27:$D$87)*($E$27:$E$87=E32))/$G$88*(datos!$D$16-$D$88-$H$102/1000) -> 12562.43896 | J32: 0.005147268988 | L32: CCOMF_Peaje BT | M32: 2.53 | O32: CCOMV_Peaje BT | P32: 0.005147268988
A33: BT_conSMEC | B33: =Mercado!C171 -> Peaje BTH | C33: 2.53 | D33: =SUMPRODUCT(Mercado!E44:H44,datos!$B$10:$E$10) -> 6.794337748 | E33: BTD | F33: 1 | G33: 160.6170889 | H33: =Mercado!O171 -> 8605.940472 | I33: =SUMPRODUCT(($G$27:$G$87)*($F$27:$F$87)*($D$27:$D$87)*($E$27:$E$87=E33))/$G$88*(datos!$D$16-$D$88-$H$102/1000) -> 12562.43896 | J33: 0.005147268988 | L33: CCOMF_Peaje BTH | M33: 2.53 | O33: CCOMV_Peaje BTH | P33: 0.005147268988
B34: =Mercado!C172 ->  | C34: 0 | D34: =SUMPRODUCT(Mercado!E45:H45,datos!$B$10:$E$10) -> 0 | G34: 0 | H34: =Mercado!O172 -> 0 | I34: =SUMPRODUCT(($G$27:$G$87)*($F$27:$F$87)*($D$27:$D$87)*($E$27:$E$87=E34))/$G$88*(datos!$D$16-$D$88-$H$102/1000) -> 0 | J34: 0 | L34: CCOMF_ | M34: 0 | O34: CCOMV_ | P34: 0
B35: =Mercado!C173 ->  | C35: 0 | D35: =SUMPRODUCT(Mercado!E46:H46,datos!$B$10:$E$10) -> 0 | G35: 0 | H35: =Mercado!O173 -> 0 | I35: =SUMPRODUCT(($G$27:$G$87)*($F$27:$F$87)*($D$27:$D$87)*($E$27:$E$87=E35))/$G$88*(datos!$D$16-$D$88-$H$102/1000) -> 0 | J35: 0 | L35: CCOMF_ | M35: 0 | O35: CCOMV_ | P35: 0
B36: =Mercado!C174 ->  | C36: 0 | D36: =SUMPRODUCT(Mercado!E47:H47,datos!$B$10:$E$10) -> 0 | G36: 0 | H36: =Mercado!O174 -> 0 | I36: =SUMPRODUCT(($G$27:$G$87)*($F$27:$F$87)*($D$27:$D$87)*($E$27:$E$87=E36))/$G$88*(datos!$D$16-$D$88-$H$102/1000) -> 0 | J36: 0 | L36: CCOMF_ | M36: 0 | O36: CCOMV_ | P36: 0
B37: =Mercado!C175 ->  | C37: 0 | D37: =SUMPRODUCT(Mercado!E48:H48,datos!$B$10:$E$10) -> 0 | G37: 0 | H37: =Mercado!O175 -> 0 | I37: =SUMPRODUCT(($G$27:$G$87)*($F$27:$F$87)*($D$27:$D$87)*($E$27:$E$87=E37))/$G$88*(datos!$D$16-$D$88-$H$102/1000) -> 0 | J37: 0 | L37: CCOMF_ | M37: 0 | O37: CCOMV_ | P37: 0
B38: =Mercado!C176 ->  | C38: 0 | D38: =SUMPRODUCT(Mercado!E49:H49,datos!$B$10:$E$10) -> 0 | G38: 0 | H38: =Mercado!O176 -> 0 | I38: =SUMPRODUCT(($G$27:$G$87)*($F$27:$F$87)*($D$27:$D$87)*($E$27:$E$87=E38))/$G$88*(datos!$D$16-$D$88-$H$102/1000) -> 0 | J38: 0 | L38: CCOMF_ | M38: 0 | O38: CCOMV_ | P38: 0
B39: =Mercado!C177 ->  | C39: 0 | D39: =SUMPRODUCT(Mercado!E50:H50,datos!$B$10:$E$10) -> 0 | G39: 0 | H39: =Mercado!O177 -> 0 | I39: =SUMPRODUCT(($G$27:$G$87)*($F$27:$F$87)*($D$27:$D$87)*($E$27:$E$87=E39))/$G$88*(datos!$D$16-$D$88-$H$102/1000) -> 0 | J39: 0 | L39: CCOMF_ | M39: 0 | O39: CCOMV_ | P39: 0
B40: =Mercado!C178 ->  | C40: 0 | D40: =SUMPRODUCT(Mercado!E51:H51,datos!$B$10:$E$10) -> 0 | G40: 0 | H40: =Mercado!O178 -> 0 | I40: =SUMPRODUCT(($G$27:$G$87)*($F$27:$F$87)*($D$27:$D$87)*($E$27:$E$87=E40))/$G$88*(datos!$D$16-$D$88-$H$102/1000) -> 0 | J40: 0 | L40: CCOMF_ | M40: 0 | O40: CCOMV_ | P40: 0
B41: =Mercado!C179 ->  | C41: 0 | D41: =SUMPRODUCT(Mercado!E52:H52,datos!$B$10:$E$10) -> 0 | G41: 0 | H41: =Mercado!O179 -> 0 | I41: =SUMPRODUCT(($G$27:$G$87)*($F$27:$F$87)*($D$27:$D$87)*($E$27:$E$87=E41))/$G$88*(datos!$D$16-$D$88-$H$102/1000) -> 0 | J41: 0 | L41: CCOMF_ | M41: 0 | O41: CCOMV_ | P41: 0
B42: =Mercado!C180 ->  | C42: 0 | D42: =SUMPRODUCT(Mercado!E53:H53,datos!$B$10:$E$10) -> 0 | G42: 0 | H42: =Mercado!O180 -> 0 | I42: =SUMPRODUCT(($G$27:$G$87)*($F$27:$F$87)*($D$27:$D$87)*($E$27:$E$87=E42))/$G$88*(datos!$D$16-$D$88-$H$102/1000) -> 0 | J42: 0 | L42: CCOMF_ | M42: 0 | O42: CCOMV_ | P42: 0
B43: =Mercado!C181 ->  | C43: 0 | D43: =SUMPRODUCT(Mercado!E54:H54,datos!$B$10:$E$10) -> 0 | G43: 0 | H43: =Mercado!O181 -> 0 | I43: =SUMPRODUCT(($G$27:$G$87)*($F$27:$F$87)*($D$27:$D$87)*($E$27:$E$87=E43))/$G$88*(datos!$D$16-$D$88-$H$102/1000) -> 0 | J43: 0 | L43: CCOMF_ | M43: 0 | O43: CCOMV_ | P43: 0
B44: =Mercado!C182 ->  | C44: 0 | D44: =SUMPRODUCT(Mercado!E55:H55,datos!$B$10:$E$10) -> 0 | G44: 0 | H44: =Mercado!O182 -> 0 | I44: =SUMPRODUCT(($G$27:$G$87)*($F$27:$F$87)*($D$27:$D$87)*($E$27:$E$87=E44))/$G$88*(datos!$D$16-$D$88-$H$102/1000) -> 0 | J44: 0 | L44: CCOMF_ | M44: 0 | O44: CCOMV_ | P44: 0
B45: =Mercado!C183 ->  | C45: 0 | D45: =SUMPRODUCT(Mercado!E56:H56,datos!$B$10:$E$10) -> 0 | G45: 0 | H45: =Mercado!O183 -> 0 | I45: =SUMPRODUCT(($G$27:$G$87)*($F$27:$F$87)*($D$27:$D$87)*($E$27:$E$87=E45))/$G$88*(datos!$D$16-$D$88-$H$102/1000) -> 0 | J45: 0 | L45: CCOMF_ | M45: 0 | O45: CCOMV_ | P45: 0
B46: =Mercado!C184 ->  | C46: 0 | D46: =SUMPRODUCT(Mercado!E57:H57,datos!$B$10:$E$10) -> 0 | G46: 0 | H46: =Mercado!O184 -> 0 | I46: =SUMPRODUCT(($G$27:$G$87)*($F$27:$F$87)*($D$27:$D$87)*($E$27:$E$87=E46))/$G$88*(datos!$D$16-$D$88-$H$102/1000) -> 0 | J46: 0 | L46: CCOMF_ | M46: 0 | O46: CCOMV_ | P46: 0
B47: =Mercado!C185 -> AP | C47: 0 | D47: =SUMPRODUCT(Mercado!E58:H58,datos!$B$10:$E$10) -> 0 | G47: 0 | H47: =Mercado!O185 -> 308657.8197 | I47: =SUMPRODUCT(($G$27:$G$87)*($F$27:$F$87)*($D$27:$D$87)*($E$27:$E$87=E47))/$G$88*(datos!$D$16-$D$88-$H$102/1000) -> 0 | J47: 0 | L47: CCOMF_AP | M47: 0 | O47: CCOMV_AP | P47: 0
B48: =Mercado!C186 ->  | C48: 0 | D48: =SUMPRODUCT(Mercado!E59:H59,datos!$B$10:$E$10) -> 0 | G48: 0 | H48: =Mercado!O186 -> 0 | I48: =SUMPRODUCT(($G$27:$G$87)*($F$27:$F$87)*($D$27:$D$87)*($E$27:$E$87=E48))/$G$88*(datos!$D$16-$D$88-$H$102/1000) -> 0 | J48: 0 | L48: CCOMF_ | M48: 0 | O48: CCOMV_ | P48: 0
B49: =Mercado!C187 ->  | C49: 0 | D49: =SUMPRODUCT(Mercado!E60:H60,datos!$B$10:$E$10) -> 0 | G49: 0 | H49: =Mercado!O187 -> 0 | I49: =SUMPRODUCT(($G$27:$G$87)*($F$27:$F$87)*($D$27:$D$87)*($E$27:$E$87=E49))/$G$88*(datos!$D$16-$D$88-$H$102/1000) -> 0 | J49: 0 | L49: CCOMF_ | M49: 0 | O49: CCOMV_ | P49: 0
B50: =Mercado!C188 ->  | C50: 0 | D50: =SUMPRODUCT(Mercado!E61:H61,datos!$B$10:$E$10) -> 0 | G50: 0 | H50: =Mercado!O188 -> 0 | I50: =SUMPRODUCT(($G$27:$G$87)*($F$27:$F$87)*($D$27:$D$87)*($E$27:$E$87=E50))/$G$88*(datos!$D$16-$D$88-$H$102/1000) -> 0 | J50: 0 | L50: CCOMF_ | M50: 0 | O50: CCOMV_ | P50: 0
B51: =Mercado!C189 ->  | C51: 0 | D51: =SUMPRODUCT(Mercado!E62:H62,datos!$B$10:$E$10) -> 0 | G51: 0 | H51: =Mercado!O189 -> 0 | I51: =SUMPRODUCT(($G$27:$G$87)*($F$27:$F$87)*($D$27:$D$87)*($E$27:$E$87=E51))/$G$88*(datos!$D$16-$D$88-$H$102/1000) -> 0 | J51: 0 | L51: CCOMF_ | M51: 0 | O51: CCOMV_ | P51: 0
B52: =Mercado!C190 ->  | C52: 0 | D52: =SUMPRODUCT(Mercado!E63:H63,datos!$B$10:$E$10) -> 0 | G52: 0 | H52: =Mercado!O190 -> 0 | I52: =SUMPRODUCT(($G$27:$G$87)*($F$27:$F$87)*($D$27:$D$87)*($E$27:$E$87=E52))/$G$88*(datos!$D$16-$D$88-$H$102/1000) -> 0 | J52: 0 | L52: CCOMF_ | M52: 0 | O52: CCOMV_ | P52: 0
B53: =Mercado!C191 ->  | C53: 0 | D53: =SUMPRODUCT(Mercado!E64:H64,datos!$B$10:$E$10) -> 0 | G53: 0 | H53: =Mercado!O191 -> 0 | I53: =SUMPRODUCT(($G$27:$G$87)*($F$27:$F$87)*($D$27:$D$87)*($E$27:$E$87=E53))/$G$88*(datos!$D$16-$D$88-$H$102/1000) -> 0 | J53: 0 | L53: CCOMF_ | M53: 0 | O53: CCOMV_ | P53: 0
A54: MT_sinSMEC | B54: =Mercado!C192 -> MTD | C54: 9.09 | D54: =SUMPRODUCT(Mercado!E65:H65,datos!$B$10:$E$10) -> 1401.243587 | E54: MTD | F54: 1 | G54: 1603.613292 | H54: =Mercado!O192 -> 912685.3936 | I54: =SUMPRODUCT(($G$27:$G$87)*($F$27:$F$87)*($D$27:$D$87)*($E$27:$E$87=E54))/$G$88*(datos!$D$16-$D$88-$H$102/1000) -> 13155.86604 | J54: 0.004452651082 | L54: CCOMF_MTD | M54: 9.09 | O54: CCOMV_MTD | P54: 0.004452651082
A55: MT_sinSMEC | B55: =Mercado!C193 -> MTH | C55: 9.09 | D55: =SUMPRODUCT(Mercado!E66:H66,datos!$B$10:$E$10) -> 104.1055114 | E55: MTD | F55: 1 | G55: 1603.613292 | H55: =Mercado!O193 -> 169019.9021 | I55: =SUMPRODUCT(($G$27:$G$87)*($F$27:$F$87)*($D$27:$D$87)*($E$27:$E$87=E55))/$G$88*(datos!$D$16-$D$88-$H$102/1000) -> 13155.86604 | J55: 0.004452651082 | L55: CCOMF_MTH | M55: 9.09 | O55: CCOMV_MTH | P55: 0.004452651082
A56: MT_sinSMEC | B56: =Mercado!C194 -> A-MT | C56: 9.09 | D56: =SUMPRODUCT(Mercado!E67:H67,datos!$B$10:$E$10) -> 0 | E56: MTD | F56: 1 | G56: 1603.613292 | H56: =Mercado!O194 -> 0 | I56: =SUMPRODUCT(($G$27:$G$87)*($F$27:$F$87)*($D$27:$D$87)*($E$27:$E$87=E56))/$G$88*(datos!$D$16-$D$88-$H$102/1000) -> 13155.86604 | J56: 0.004452651082 | L56: CCOMF_A-MT | M56: 9.09 | O56: CCOMV_A-MT | P56: 0.004452651082
A57: MT_conSMEC | B57: =Mercado!C195 -> Peaje MT | C57: 4.545 | D57: =SUMPRODUCT(Mercado!E68:H68,datos!$B$10:$E$10) -> 514.6710844 | E57: MTD | F57: 1 | G57: 1603.613292 | H57: =Mercado!O195 -> 1480335.661 | I57: =SUMPRODUCT(($G$27:$G$87)*($F$27:$F$87)*($D$27:$D$87)*($E$27:$E$87=E57))/$G$88*(datos!$D$16-$D$88-$H$102/1000) -> 13155.86604 | J57: 0.004452651082 | L57: CCOMF_Peaje MT | M57: 4.545 | O57: CCOMV_Peaje MT | P57: 0.004452651082
B58: =Mercado!C196 ->  | C58: 0 | D58: =SUMPRODUCT(Mercado!E69:H69,datos!$B$10:$E$10) -> 0 | G58: 0 | H58: =Mercado!O196 -> 0 | I58: =SUMPRODUCT(($G$27:$G$87)*($F$27:$F$87)*($D$27:$D$87)*($E$27:$E$87=E58))/$G$88*(datos!$D$16-$D$88-$H$102/1000) -> 0 | J58: 0 | L58: CCOMF_ | M58: 0 | O58: CCOMV_ | P58: 0
B59: =Mercado!C197 ->  | C59: 0 | D59: =SUMPRODUCT(Mercado!E70:H70,datos!$B$10:$E$10) -> 0 | G59: =IFERROR(VLOOKUP(E59,$I$6:$J$12,2,0),) -> 0 | H59: =Mercado!O197 -> 0 | I59: =SUMPRODUCT(($G$27:$G$87)*($F$27:$F$87)*($D$27:$D$87)*($E$27:$E$87=E59))/$G$88*(datos!$D$16-$D$88-$H$102/1000) -> 0 | J59: 0 | L59: CCOMF_ | M59: 0 | O59: CCOMV_ | P59: 0
B60: =Mercado!C198 ->  | C60: 0 | D60: =SUMPRODUCT(Mercado!E71:H71,datos!$B$10:$E$10) -> 0 | G60: 0 | H60: =Mercado!O198 -> 0 | I60: =SUMPRODUCT(($G$27:$G$87)*($F$27:$F$87)*($D$27:$D$87)*($E$27:$E$87=E60))/$G$88*(datos!$D$16-$D$88-$H$102/1000) -> 0 | J60: 0 | L60: CCOMF_ | M60: 0 | O60: CCOMV_ | P60: 0
B61: =Mercado!C199 ->  | C61: 0 | D61: =SUMPRODUCT(Mercado!E72:H72,datos!$B$10:$E$10) -> 0 | G61: 0 | H61: =Mercado!O199 -> 0 | I61: =SUMPRODUCT(($G$27:$G$87)*($F$27:$F$87)*($D$27:$D$87)*($E$27:$E$87=E61))/$G$88*(datos!$D$16-$D$88-$H$102/1000) -> 0 | J61: 0 | L61: CCOMF_ | M61: 0 | O61: CCOMV_ | P61: 0
B62: =Mercado!C200 ->  | C62: 0 | D62: =SUMPRODUCT(Mercado!E73:H73,datos!$B$10:$E$10) -> 0 | G62: 0 | H62: =Mercado!O200 -> 0 | I62: =SUMPRODUCT(($G$27:$G$87)*($F$27:$F$87)*($D$27:$D$87)*($E$27:$E$87=E62))/$G$88*(datos!$D$16-$D$88-$H$102/1000) -> 0 | J62: 0 | L62: CCOMF_ | M62: 0 | O62: CCOMV_ | P62: 0
A63: MT_conSMEC | B63: =Mercado!C201 -> Peaje MTH | C63: 4.545 | D63: =SUMPRODUCT(Mercado!E74:H74,datos!$B$10:$E$10) -> 125.1290535 | E63: MTD | F63: 1 | G63: 1603.613292 | H63: =Mercado!O201 -> 392573.2265 | I63: =SUMPRODUCT(($G$27:$G$87)*($F$27:$F$87)*($D$27:$D$87)*($E$27:$E$87=E63))/$G$88*(datos!$D$16-$D$88-$H$102/1000) -> 13155.86604 | J63: 0.004452651082 | L63: CCOMF_Peaje MTH | M63: 4.545 | O63: CCOMV_Peaje MTH | P63: 0.004452651082
B64: =Mercado!C202 ->  | C64: 0 | D64: =SUMPRODUCT(Mercado!E75:H75,datos!$B$10:$E$10) -> 0 | G64: 0 | H64: =Mercado!O202 -> 0 | I64: =SUMPRODUCT(($G$27:$G$87)*($F$27:$F$87)*($D$27:$D$87)*($E$27:$E$87=E64))/$G$88*(datos!$D$16-$D$88-$H$102/1000) -> 0 | J64: 0 | L64: CCOMF_ | M64: 0 | O64: CCOMV_ | P64: 0
B65: =Mercado!C203 ->  | C65: 0 | D65: =SUMPRODUCT(Mercado!E76:H76,datos!$B$10:$E$10) -> 0 | G65: 0 | H65: =Mercado!O203 -> 0 | I65: =SUMPRODUCT(($G$27:$G$87)*($F$27:$F$87)*($D$27:$D$87)*($E$27:$E$87=E65))/$G$88*(datos!$D$16-$D$88-$H$102/1000) -> 0 | J65: 0 | L65: CCOMF_ | M65: 0 | O65: CCOMV_ | P65: 0
B66: =Mercado!C204 ->  | C66: 0 | D66: =SUMPRODUCT(Mercado!E77:H77,datos!$B$10:$E$10) -> 0 | G66: 0 | H66: =Mercado!O204 -> 0 | I66: =SUMPRODUCT(($G$27:$G$87)*($F$27:$F$87)*($D$27:$D$87)*($E$27:$E$87=E66))/$G$88*(datos!$D$16-$D$88-$H$102/1000) -> 0 | J66: 0 | L66: CCOMF_ | M66: 0 | O66: CCOMV_ | P66: 0
B67: =Mercado!C205 ->  | C67: 0 | D67: =SUMPRODUCT(Mercado!E78:H78,datos!$B$10:$E$10) -> 0 | G67: 0 | H67: =Mercado!O205 -> 0 | I67: =SUMPRODUCT(($G$27:$G$87)*($F$27:$F$87)*($D$27:$D$87)*($E$27:$E$87=E67))/$G$88*(datos!$D$16-$D$88-$H$102/1000) -> 0 | J67: 0 | L67: CCOMF_ | M67: 0 | O67: CCOMV_ | P67: 0
B68: =Mercado!C206 ->  | C68: 0 | D68: =SUMPRODUCT(Mercado!E79:H79,datos!$B$10:$E$10) -> 0 | G68: 0 | H68: =Mercado!O206 -> 0 | I68: =SUMPRODUCT(($G$27:$G$87)*($F$27:$F$87)*($D$27:$D$87)*($E$27:$E$87=E68))/$G$88*(datos!$D$16-$D$88-$H$102/1000) -> 0 | J68: 0 | L68: CCOMF_ | M68: 0 | O68: CCOMV_ | P68: 0
B69: =Mercado!C207 ->  | C69: 0 | D69: =SUMPRODUCT(Mercado!E80:H80,datos!$B$10:$E$10) -> 0 | G69: 0 | H69: =Mercado!O207 -> 0 | I69: =SUMPRODUCT(($G$27:$G$87)*($F$27:$F$87)*($D$27:$D$87)*($E$27:$E$87=E69))/$G$88*(datos!$D$16-$D$88-$H$102/1000) -> 0 | J69: 0 | L69: CCOMF_ | M69: 0 | O69: CCOMV_ | P69: 0
B70: =Mercado!C208 ->  | C70: 0 | D70: =SUMPRODUCT(Mercado!E81:H81,datos!$B$10:$E$10) -> 0 | G70: 0 | H70: =Mercado!O208 -> 0 | I70: =SUMPRODUCT(($G$27:$G$87)*($F$27:$F$87)*($D$27:$D$87)*($E$27:$E$87=E70))/$G$88*(datos!$D$16-$D$88-$H$102/1000) -> 0 | J70: 0 | L70: CCOMF_ | M70: 0 | O70: CCOMV_ | P70: 0
B71: =Mercado!C209 ->  | C71: 0 | D71: =SUMPRODUCT(Mercado!E82:H82,datos!$B$10:$E$10) -> 0 | G71: 0 | H71: =Mercado!O209 -> 0 | I71: =SUMPRODUCT(($G$27:$G$87)*($F$27:$F$87)*($D$27:$D$87)*($E$27:$E$87=E71))/$G$88*(datos!$D$16-$D$88-$H$102/1000) -> 0 | J71: 0 | L71: CCOMF_ | M71: 0 | O71: CCOMV_ | P71: 0
B72: =Mercado!C210 ->  | C72: 0 | D72: =SUMPRODUCT(Mercado!E83:H83,datos!$B$10:$E$10) -> 0 | G72: 0 | H72: =Mercado!O210 -> 0 | I72: =SUMPRODUCT(($G$27:$G$87)*($F$27:$F$87)*($D$27:$D$87)*($E$27:$E$87=E72))/$G$88*(datos!$D$16-$D$88-$H$102/1000) -> 0 | J72: 0 | L72: CCOMF_ | M72: 0 | O72: CCOMV_ | P72: 0
B73: =Mercado!C211 ->  | C73: 0 | D73: =SUMPRODUCT(Mercado!E84:H84,datos!$B$10:$E$10) -> 0 | G73: 0 | H73: =Mercado!O211 -> 0 | I73: =SUMPRODUCT(($G$27:$G$87)*($F$27:$F$87)*($D$27:$D$87)*($E$27:$E$87=E73))/$G$88*(datos!$D$16-$D$88-$H$102/1000) -> 0 | J73: 0 | L73: CCOMF_ | M73: 0 | O73: CCOMV_ | P73: 0
B74: =Mercado!C212 ->  | C74: 0 | D74: =SUMPRODUCT(Mercado!E85:H85,datos!$B$10:$E$10) -> 0 | G74: 0 | H74: =Mercado!O212 -> 0 | I74: =SUMPRODUCT(($G$27:$G$87)*($F$27:$F$87)*($D$27:$D$87)*($E$27:$E$87=E74))/$G$88*(datos!$D$16-$D$88-$H$102/1000) -> 0 | J74: 0 | L74: CCOMF_ | M74: 0 | O74: CCOMV_ | P74: 0
B75: =Mercado!C213 ->  | C75: 0 | D75: =SUMPRODUCT(Mercado!E86:H86,datos!$B$10:$E$10) -> 0 | G75: 0 | H75: =Mercado!O213 -> 0 | I75: =SUMPRODUCT(($G$27:$G$87)*($F$27:$F$87)*($D$27:$D$87)*($E$27:$E$87=E75))/$G$88*(datos!$D$16-$D$88-$H$102/1000) -> 0 | J75: 0 | L75: CCOMF_ | M75: 0 | O75: CCOMV_ | P75: 0
B76: =Mercado!C214 ->  | C76: 0 | D76: =SUMPRODUCT(Mercado!E87:H87,datos!$B$10:$E$10) -> 0 | G76: 0 | H76: =Mercado!O214 -> 0 | I76: =SUMPRODUCT(($G$27:$G$87)*($F$27:$F$87)*($D$27:$D$87)*($E$27:$E$87=E76))/$G$88*(datos!$D$16-$D$88-$H$102/1000) -> 0 | J76: 0 | L76: CCOMF_ | M76: 0 | O76: CCOMV_ | P76: 0
B77: =Mercado!C215 ->  | C77: 0 | D77: =SUMPRODUCT(Mercado!E88:H88,datos!$B$10:$E$10) -> 0 | G77: 0 | H77: =Mercado!O215 -> 0 | I77: =SUMPRODUCT(($G$27:$G$87)*($F$27:$F$87)*($D$27:$D$87)*($E$27:$E$87=E77))/$G$88*(datos!$D$16-$D$88-$H$102/1000) -> 0 | J77: 0 | L77: CCOMF_ | M77: 0 | O77: CCOMV_ | P77: 0
A78: AT_sinSMEC | B78: =Mercado!C216 -> ATD | C78: 9.09 | D78: =SUMPRODUCT(Mercado!E89:H89,datos!$B$10:$E$10) -> 0 | E78: ATD | F78: 1 | G78: 8586.626763 | H78: =Mercado!O216 -> 0 | I78: =SUMPRODUCT(($G$27:$G$87)*($F$27:$F$87)*($D$27:$D$87)*($E$27:$E$87=E78))/$G$88*(datos!$D$16-$D$88-$H$102/1000) -> 557.7916521 | J78: 0.0004754403417 | L78: CCOMF_ATD | M78: 9.09 | O78: CCOMV_ATD | P78: 0.0004754403417
A79: AT_sinSMEC | B79: =Mercado!C217 -> ATH | C79: 9.09 | D79: =SUMPRODUCT(Mercado!E90:H90,datos!$B$10:$E$10) -> 10.19150662 | E79: ATD | F79: 1 | G79: 8586.626763 | H79: =Mercado!O217 -> 700132.1162 | I79: =SUMPRODUCT(($G$27:$G$87)*($F$27:$F$87)*($D$27:$D$87)*($E$27:$E$87=E79))/$G$88*(datos!$D$16-$D$88-$H$102/1000) -> 557.7916521 | J79: 0.0004754403417 | L79: CCOMF_ATH | M79: 9.09 | O79: CCOMV_ATH | P79: 0.0004754403417
A80: AT_conSMEC | B80: =Mercado!C218 -> Peaje AT | C80: 4.545 | D80: =SUMPRODUCT(Mercado!E91:H91,datos!$B$10:$E$10) -> 3.397168874 | E80: ATD | F80: 1 | G80: 8586.626763 | H80: =Mercado!O218 -> 218729.4497 | I80: =SUMPRODUCT(($G$27:$G$87)*($F$27:$F$87)*($D$27:$D$87)*($E$27:$E$87=E80))/$G$88*(datos!$D$16-$D$88-$H$102/1000) -> 557.7916521 | J80: 0.0004754403417 | L80: CCOMF_Peaje AT | M80: 4.545 | O80: CCOMV_Peaje AT | P80: 0.0004754403417
A81: AT_conSMEC | B81: =Mercado!C219 -> EDEMET | C81: 4.545 | D81: =SUMPRODUCT(Mercado!E92:H92,datos!$B$10:$E$10) -> 3.397168874 | E81: ATD | F81: 0 | G81: 8586.626763 | H81: =Mercado!O219 -> 1079327.083 | I81: =SUMPRODUCT(($G$27:$G$87)*($F$27:$F$87)*($D$27:$D$87)*($E$27:$E$87=E81))/$G$88*(datos!$D$16-$D$88-$H$102/1000) -> 557.7916521 | J81: 0 | L81: CCOMF_EDEMET | M81: 4.545 | O81: CCOMV_EDEMET | P81: 0
A82: AT_sinSMEC | B82: =Mercado!C220 -> A-AT | C82: 9.09 | D82: =SUMPRODUCT(Mercado!E93:H93,datos!$B$10:$E$10) -> 0 | E82: ATD | F82: 1 | G82: 8586.626763 | H82: =Mercado!O220 -> 0 | I82: =SUMPRODUCT(($G$27:$G$87)*($F$27:$F$87)*($D$27:$D$87)*($E$27:$E$87=E82))/$G$88*(datos!$D$16-$D$88-$H$102/1000) -> 557.7916521 | J82: 0.0004754403417 | L82: CCOMF_A-AT | M82: 9.09 | O82: CCOMV_A-AT | P82: 0.0004754403417
A83: AT_conSMEC | B83: =Mercado!C221 -> Peaje ATH | C83: 4.545 | D83: =SUMPRODUCT(Mercado!E94:H94,datos!$B$10:$E$10) -> 3.397168874 | E83: ATD | F83: 1 | G83: 8586.626763 | H83: =Mercado!O221 -> 254349.0417 | I83: =SUMPRODUCT(($G$27:$G$87)*($F$27:$F$87)*($D$27:$D$87)*($E$27:$E$87=E83))/$G$88*(datos!$D$16-$D$88-$H$102/1000) -> 557.7916521 | J83: 0.0004754403417 | L83: CCOMF_Peaje ATH | M83: 4.545 | O83: CCOMV_Peaje ATH | P83: 0.0004754403417
B84: =Mercado!C222 ->  | C84: 0 | D84: =SUMPRODUCT(Mercado!E95:H95,datos!$B$10:$E$10) -> 0 | G84: 0 | H84: =Mercado!O222 -> 0 | I84: =SUMPRODUCT(($G$27:$G$87)*($F$27:$F$87)*($D$27:$D$87)*($E$27:$E$87=E84))/$G$88*(datos!$D$16-$D$88-$H$102/1000) -> 0 | J84: 0 | L84: CCOMF_ | M84: 0 | O84: CCOMV_ | P84: 0
B85: =Mercado!C223 ->  | C85: 0 | D85: =SUMPRODUCT(Mercado!E96:H96,datos!$B$10:$E$10) -> 0 | G85: 0 | H85: =Mercado!O223 -> 0 | I85: =SUMPRODUCT(($G$27:$G$87)*($F$27:$F$87)*($D$27:$D$87)*($E$27:$E$87=E85))/$G$88*(datos!$D$16-$D$88-$H$102/1000) -> 0 | J85: 0 | L85: CCOMF_ | M85: 0 | O85: CCOMV_ | P85: 0
B86: =Mercado!C224 ->  | C86: 0 | D86: =SUMPRODUCT(Mercado!E97:H97,datos!$B$10:$E$10) -> 0 | G86: 0 | H86: =Mercado!O224 -> 0 | I86: =SUMPRODUCT(($G$27:$G$87)*($F$27:$F$87)*($D$27:$D$87)*($E$27:$E$87=E86))/$G$88*(datos!$D$16-$D$88-$H$102/1000) -> 0 | J86: 0 | L86: CCOMF_ | M86: 0 | O86: CCOMV_ | P86: 0
B87: =Mercado!C225 ->  | C87: 0 | D87: =SUMPRODUCT(Mercado!E98:H98,datos!$B$10:$E$10) -> 0 | G87: 0 | H87: =Mercado!O225 -> 0 | I87: =SUMPRODUCT(($G$27:$G$87)*($F$27:$F$87)*($D$27:$D$87)*($E$27:$E$87=E87))/$G$88*(datos!$D$16-$D$88-$H$102/1000) -> 0 | J87: 0 | L87: CCOMF_ | M87: 0 | O87: CCOMV_ | P87: 0
D88: =SUMPRODUCT(D27:D87,C27:C87)*12/1000 -> 53503.04695 | G88: =SUMPRODUCT($G$27:$G$87,$D$27:$D$87,$F$27:$F$87) -> 33205372.17 | J88: =SUMPRODUCT(J27:J87,H27:H87) -> 126990.3255
A98: Migración/Conexión a BTSH
A99: Concepto | C99: unidad | D99: 1 | E99: 2 | F99: 3 | G99: 4 | H99: Vpte | J99: % incremento anual clientes
A100: medidores | D100: 100 | E100: =D100*(1+$J$100) -> 103.7868799 | F100: =E100*(1+$J$100) -> 107.7171644 | G100: =F100*(1+$J$100) -> 111.796284 | H100: =SUMPRODUCT(datos!$B$10:$E$10,D100:G100) -> 358.1011651 | J100: =[3]DEMANDA!$I$9 -> 0.03786879893
A101: costo medidor | C101: B/. | D101: ='Costo medidores'!F25 -> 245.50625 | E101: =$D$101 -> 245.50625 | F101: =$D$101 -> 245.50625 | G101: 245.50625
A102: Costo Total Medidores BTSH | C102: B/. | D102: =D100*D101 -> 24550.625 | E102: =E100*E101 -> 25480.32768 | F102: 26445.23709 | G102: 27446.68645 | H102: =SUMPRODUCT(datos!$B$10:$E$10,D102:G102) -> 87916.07415
A104: Consumo medio BTSH | B104: kWh/mes | C104: kWh | D104: ='[11]Informe 1'!$X$41 -> 317.9665126 | E104: =$D$104 -> 317.9665126 | F104: =$D$104 -> 317.9665126 | G104: 317.9665126
A105: Consumo clientes BTSH | B105: kWh/año | C105: kWh | D105: =D104*12*SUM($D100:D100) -> 381559.8152 | E105: =E104*12*SUM($D100:E100) -> 777568.8423 | F105: =F104*12*SUM($D100:F100) -> 1188574.256 | G105: =G104*12*SUM($D100:G100) -> 1615143.95 | H105: =SUMPRODUCT(datos!$B$10:$E$10,D105:G105) -> 3218739.847
A107: Costo variable adicional costo medidor BTSH (B/./kWh) | H107: =H102/H105 -> 0.02731381793
A109: Ingreso cargo energía comercialización adicional costo medidor BTSH (miles B/.) | H109: =H107*H105/1000 -> 87.91607415

Sheet cargos_reconexión
A3: DISEÑO DE LOS COMPONENTES DE COSTOS POR COMERCIALIZACIÓN (Cargo por Reconexión)
D5: CRX_
D6: =D5&"reconex_" -> CRX_reconex_
C7: Cargos por Reconexión (B/./conexión)
C8: Unidad de Aplicación: Reconexión
C9: Identificación | D9: Valor
C10: =CONCATENATE(D$5,cargos_conexión!B21) -> CRX_BTS | D10: =cargos_conexión!G21 -> 16.36782137
C11: =CONCATENATE(D$5,cargos_conexión!B22) -> CRX_BTD | D11: =cargos_conexión!G22 -> 70.45974065
C12: =CONCATENATE(D$5,cargos_conexión!B23) -> CRX_BTH | D12: =cargos_conexión!G23 -> 70.45974065
C13: =CONCATENATE(D$5,cargos_conexión!B24) -> CRX_A-BTS | D13: =cargos_conexión!G24 -> 70.45974065
C14: =CONCATENATE(D$5,cargos_conexión!B25) -> CRX_A-BTD | D14: =cargos_conexión!G25 -> 70.45974065
C15: =CONCATENATE(D$5,cargos_conexión!B26) -> CRX_Peaje BT | D15: =cargos_conexión!G26 -> 70.45974065
C16: =CONCATENATE(D$5,cargos_conexión!B27) -> CRX_Peaje BTH | D16: =cargos_conexión!G27 -> 70.45974065
C17: =CONCATENATE(D$5,cargos_conexión!B28) -> CRX_ | D17: =cargos_conexión!G28 -> 0
C18: =CONCATENATE(D$5,cargos_conexión!B29) -> CRX_ | D18: =cargos_conexión!G29 -> 0
C19: =CONCATENATE(D$5,cargos_conexión!B30) -> CRX_ | D19: =cargos_conexión!G30 -> 0
C20: =CONCATENATE(D$5,cargos_conexión!B31) -> CRX_ | D20: =cargos_conexión!G31 -> 0
C21: =CONCATENATE(D$5,cargos_conexión!B32) -> CRX_ | D21: =cargos_conexión!G32 -> 0
C22: =CONCATENATE(D$5,cargos_conexión!B33) -> CRX_ | D22: =cargos_conexión!G33 -> 0
C23: =CONCATENATE(D$5,cargos_conexión!B34) -> CRX_ | D23: =cargos_conexión!G34 -> 0
C24: =CONCATENATE(D$5,cargos_conexión!B35) -> CRX_ | D24: =cargos_conexión!G35 -> 0
C25: =CONCATENATE(D$5,cargos_conexión!B36) -> CRX_ | D25: =cargos_conexión!G36 -> 0
C26: =CONCATENATE(D$5,cargos_conexión!B37) -> CRX_ | D26: =cargos_conexión!G37 -> 0
C27: =CONCATENATE(D$5,cargos_conexión!B38) -> CRX_ | D27: =cargos_conexión!G38 -> 0
C28: =CONCATENATE(D$5,cargos_conexión!B39) -> CRX_ | D28: =cargos_conexión!G39 -> 0
C29: =CONCATENATE(D$5,cargos_conexión!B40) -> CRX_ | D29: =cargos_conexión!G40 -> 0
C30: =CONCATENATE(D$5,cargos_conexión!B41) -> CRX_AP | D30: =cargos_conexión!G41 -> 0
C31: =CONCATENATE(D$5,cargos_conexión!B42) -> CRX_ | D31: =cargos_conexión!G42 -> 0
C32: =CONCATENATE(D$5,cargos_conexión!B43) -> CRX_ | D32: =cargos_conexión!G43 -> 0
C33: =CONCATENATE(D$5,cargos_conexión!B44) -> CRX_ | D33: =cargos_conexión!G44 -> 0
C34: =CONCATENATE(D$5,cargos_conexión!B45) -> CRX_ | D34: =cargos_conexión!G45 -> 0
C35: =CONCATENATE(D$5,cargos_conexión!B46) -> CRX_ | D35: =cargos_conexión!G46 -> 0
C36: =CONCATENATE(D$5,cargos_conexión!B47) -> CRX_ | D36: =cargos_conexión!G47 -> 0
C37: =CONCATENATE(D$5,cargos_conexión!B48) -> CRX_MTD | D37: =cargos_conexión!G48 -> 1957.272701
C38: =CONCATENATE(D$5,cargos_conexión!B49) -> CRX_MTH | D38: =cargos_conexión!G49 -> 1957.272701
C39: =CONCATENATE(D$5,cargos_conexión!B50) -> CRX_A-MT | D39: =cargos_conexión!G50 -> 1957.272701
C40: =CONCATENATE(D$5,cargos_conexión!B51) -> CRX_Peaje MT | D40: =cargos_conexión!G51 -> 1957.272701
C41: =CONCATENATE(D$5,cargos_conexión!B52) -> CRX_ | D41: =cargos_conexión!G52 -> 0
C42: =CONCATENATE(D$5,cargos_conexión!B53) -> CRX_ | D42: =cargos_conexión!G53 -> 0
C43: =CONCATENATE(D$5,cargos_conexión!B54) -> CRX_ | D43: =cargos_conexión!G54 -> 0
C44: =CONCATENATE(D$5,cargos_conexión!B55) -> CRX_ | D44: =cargos_conexión!G55 -> 0
C45: =CONCATENATE(D$5,cargos_conexión!B56) -> CRX_ | D45: =cargos_conexión!G56 -> 0
C46: =CONCATENATE(D$5,cargos_conexión!B57) -> CRX_Peaje MTH | D46: =cargos_conexión!G57 -> 1957.272701
C47: =CONCATENATE(D$5,cargos_conexión!B58) -> CRX_ | D47: =cargos_conexión!G58 -> 0
C48: =CONCATENATE(D$5,cargos_conexión!B59) -> CRX_ | D48: =cargos_conexión!G59 -> 0
C49: =CONCATENATE(D$5,cargos_conexión!B60) -> CRX_ | D49: =cargos_conexión!G60 -> 0
C50: =CONCATENATE(D$5,cargos_conexión!B61) -> CRX_ | D50: =cargos_conexión!G61 -> 0
C51: =CONCATENATE(D$5,cargos_conexión!B62) -> CRX_ | D51: =cargos_conexión!G62 -> 0
C52: =CONCATENATE(D$5,cargos_conexión!B63) -> CRX_ | D52: =cargos_conexión!G63 -> 0
C53: =CONCATENATE(D$5,cargos_conexión!B64) -> CRX_ | D53: =cargos_conexión!G64 -> 0
C54: =CONCATENATE(D$5,cargos_conexión!B65) -> CRX_ | D54: =cargos_conexión!G65 -> 0
C55: =CONCATENATE(D$5,cargos_conexión!B66) -> CRX_ | D55: =cargos_conexión!G66 -> 0
C56: =CONCATENATE(D$5,cargos_conexión!B67) -> CRX_ | D56: =cargos_conexión!G67 -> 0
C57: =CONCATENATE(D$5,cargos_conexión!B68) -> CRX_ | D57: =cargos_conexión!G68 -> 0
C58: =CONCATENATE(D$5,cargos_conexión!B69) -> CRX_ | D58: =cargos_conexión!G69 -> 0
C59: =CONCATENATE(D$5,cargos_conexión!B70) -> CRX_ | D59: =cargos_conexión!G70 -> 0
C60: =CONCATENATE(D$5,cargos_conexión!B71) -> CRX_ | D60: =cargos_conexión!G71 -> 0
C61: =CONCATENATE(D$5,cargos_conexión!B72) -> CRX_ATD | D61: =cargos_conexión!G72 -> 2400.07
C62: =CONCATENATE(D$5,cargos_conexión!B73) -> CRX_ATH | D62: =cargos_conexión!G73 -> 2400.07
C63: =CONCATENATE(D$5,cargos_conexión!B74) -> CRX_Peaje AT | D63: =cargos_conexión!G74 -> 2400.07
C64: =CONCATENATE(D$5,cargos_conexión!B75) -> CRX_EDEMET | D64: =cargos_conexión!G75 -> 2400.07
C65: =CONCATENATE(D$5,cargos_conexión!B76) -> CRX_A-AT | D65: =cargos_conexión!G76 -> 2400.07
C66: =CONCATENATE(D$5,cargos_conexión!B77) -> CRX_Peaje ATH | D66: =cargos_conexión!G77 -> 2400.07
C67: =CONCATENATE(D$5,cargos_conexión!B78) -> CRX_ | D67: =cargos_conexión!G78 -> 0
C68: =CONCATENATE(D$5,cargos_conexión!B79) -> CRX_ | D68: =cargos_conexión!G79 -> 0
C69: =CONCATENATE(D$5,cargos_conexión!B80) -> CRX_ | D69: =cargos_conexión!G80 -> 0
C70: =CONCATENATE(D$5,cargos_conexión!B81) -> CRX_ | D70: =cargos_conexión!G81 -> 0

Sheet cargos_AP
A2: DISEÑO DE LOS COMPONENTES DE COSTOS POR ALUMBRADO PÚBLICO
A4: Concepto | B4: u. medida | C4: Valor
A5: CD_AP | B5: (B/./kWh) | C5: =VLOOKUP(A5,cargos_distribución!$Y$26:$Z$86,2,0) -> 0.03377387445
A6: Energía AP | B6: V.Pte. MWh | C6: =INDEX(cargos_distribución!$T$26:$T$86,MATCH("AP",cargos_distribución!$B$26:$B$86,0),1) -> 308657.8197
A7: IMP (AP) | B7: miles B/. | C7: =C5*C6 -> 10424.57045
A9: Concepto | B9: miles B/.
A10: ALUMPU | B10: =datos!E16 -> 18628.35693
A11: IMP (AP) | B11: =C7 -> 10424.57045
A12: ALUMPU + IMP(AP) | B12: =B10+B11 -> 29052.92738
A14: ALUMPU + IMP_AP | B14: miles B/. | C14: =B12 -> 29052.92738
A15: Ventas energía | B15: MWh | C15: =SUMPRODUCT(C28:C88,D28:D88) -> 13664792.9
A16: CSAP | B16: B/./kWh | C16: =C14/C15 -> 0.002126115455
A18: Consumo AP (1er semestre) | B18: MWh | C18: =INDEX(Mercado!$D$165:$N$225,MATCH("AP",Mercado!$C$165:$C$225,0),MATCH(1,Mercado!$D$164:$N$164,0))/2 -> 43204.1397
A19: CEGFP | B19: B/./kWh | C19: =cargos_abastecimiento!D47 -> 0.07146236047
A20: CCAP | B20: B/./kWh | C20: =C18*C19/SUMPRODUCT(E28:E88,D28:D88) -> 0.00160439174
K23: CSERAP_ | N23: CCONAP_
K24: =K23&"kWh_" -> CSERAP_kWh_ | N24: =N23&"kWh_" -> CCONAP_kWh_
J25: Cargos por Servicio de Alumbrado Público (B/./kWh) | M25: Cargos por Consumo de Alumbrado Público (B/./kWh)
